Workbook

Sheet Introduction
B2: Bonjour à vous qui allez lire ces tableaux de distribution des sièges dans les communes de Wallonie lors des élections communales de 2018
B4: De quoi s'agit-il ?
B6: Il s'agit de trois tableaux par page :
B8: Le premier est l'application de la clé de répartition Impériali ne tenant compte que des votes valables (c'est-à-dire hors votes blancs et nuls ainsi que les bulletins non-déposés).
B11: Le deuxième tableau tient compte de tous les votes. (votes blancs et nuls, et bulletins non-déposés)
B13: Le troisième tableau regroupe les votes non-valables.
B15: Pourquoi ces tableaux ?
B17: Ces tableaux permettent de voir commune par commune à quelle(s) liste(s) profite(nt)
B18: les votes considérés comme non-valables par la loi électorale.
B20: Bonne lecture

Sheet Modèle
R2: Blancs & Nuls | S2: Non-déposés | AI2: Non-valables
B3: Chiffres électoraux | R3: =C63 -> 0 | S3: =C61-C62 -> 0 | AI3: =R3+S3 -> 0
B4: Sièges | C4: =[1]!NB_SI_COULEUR(C5:C55,13551615) ->  | D4: =[1]!NB_SI_COULEUR(D5:D55,13551615) ->  | E4: =[1]!NB_SI_COULEUR(E5:E55,13551615) ->  | F4: =[1]!NB_SI_COULEUR(F5:F55,13551615) ->  | G4: =[1]!NB_SI_COULEUR(G5:G55,13551615) ->  | H4: =[1]!NB_SI_COULEUR(H5:H55,13551615) ->  | I4: =[1]!NB_SI_COULEUR(I5:I55,13551615) ->  | J4: =[1]!NB_SI_COULEUR(J5:J55,13551615) ->  | K4: =[1]!NB_SI_COULEUR(K5:K55,13551615) ->  | L4: =[1]!NB_SI_COULEUR(L5:L55,13551615) ->  | M4: =[1]!NB_SI_COULEUR(M5:M55,13551615) ->  | N4: =[1]!NB_SI_COULEUR(N5:N55,13551615) ->  | O4: =[1]!NB_SI_COULEUR(O5:O55,13551615) ->  | P4: =[1]!NB_SI_COULEUR(P5:P55,13551615) ->  | Q4: 0 | R4: =[1]!NB_SI_COULEUR(R5:R55,13551615) ->  | S4: =[1]!NB_SI_COULEUR(S5:S55,13551615) ->  | T4: =[1]!NB_SI_COULEUR(T5:T55,13551615) ->  | U4: =[1]!NB_SI_COULEUR(U5:U55,13551615) ->  | V4: =[1]!NB_SI_COULEUR(V5:V55,13551615) ->  | W4: =[1]!NB_SI_COULEUR(W5:W55,13551615) ->  | X4: =[1]!NB_SI_COULEUR(X5:X55,13551615) ->  | Y4: =[1]!NB_SI_COULEUR(Y5:Y55,13551615) ->  | Z4: =[1]!NB_SI_COULEUR(Z5:Z55,13551615) ->  | AA4: =[1]!NB_SI_COULEUR(AA5:AA55,13551615) ->  | AB4: =[1]!NB_SI_COULEUR(AB5:AB55,13551615) ->  | AC4: =[1]!NB_SI_COULEUR(AC5:AC55,13551615) ->  | AD4: =[1]!NB_SI_COULEUR(AD5:AD55,13551615) ->  | AE4: =[1]!NB_SI_COULEUR(AE5:AE55,13551615) ->  | AF4: =[1]!NB_SI_COULEUR(AF5:AF55,13551615) ->  | AG4: =[1]!NB_SI_COULEUR(AG5:AG55,13551615) ->  | AH4: 0 | AI4: =[1]!NB_SI_COULEUR(AI5:AI55,13551615) ->  | AJ4: =[1]!NB_SI_COULEUR(AJ5:AJ55,13551615) ->  | AK4: =[1]!NB_SI_COULEUR(AK5:AK55,13551615) ->  | AL4: =[1]!NB_SI_COULEUR(AL5:AL55,13551615) ->  | AM4: =[1]!NB_SI_COULEUR(AM5:AM55,13551615) ->  | AN4: =[1]!NB_SI_COULEUR(AN5:AN55,13551615) ->  | AO4: =[1]!NB_SI_COULEUR(AO5:AO55,13551615) ->  | AP4: =[1]!NB_SI_COULEUR(AP5:AP55,13551615) ->  | AQ4: =[1]!NB_SI_COULEUR(AQ5:AQ55,13551615) ->  | AR4: =[1]!NB_SI_COULEUR(AR5:AR55,13551615) ->  | AS4: =[1]!NB_SI_COULEUR(AS5:AS55,13551615) ->  | AT4: =[1]!NB_SI_COULEUR(AT5:AT55,13551615) ->  | AU4: =[1]!NB_SI_COULEUR(AU5:AU55,13551615) ->  | AV4: =[1]!NB_SI_COULEUR(AV5:AV55,13551615) ->  | AW4: =[1]!NB_SI_COULEUR(AW5:AW55,13551615) -> 
B5: 2 | C5: =$C$3/B5 -> 0 | D5: =$D$3/B5 -> 0 | E5: =$E$3/B5 -> 0 | F5: =$F$3/B5 -> 0 | G5: =$G$3/B5 -> 0 | H5: =$H$3/B5 -> 0 | I5: =$I$3/B5 -> 0 | J5: =$J$3/B5 -> 0 | K5: =$K$3/B5 -> 0 | L5: =$L$3/B5 -> 0 | M5: =$M$3/B5 -> 0 | N5: =$N$3/B5 -> 0 | O5: =$O$3/B5 -> 0 | P5: =$P$3/B5 -> 0 | R5: =$R$3/B5 -> 0 | S5: =$S$3/B5 -> 0 | T5: =C5 -> 0 | U5: 0 | V5: 0 | W5: 0 | X5: 0 | Y5: 0 | Z5: 0 | AA5: 0 | AB5: 0 | AC5: 0 | AD5: 0 | AE5: 0 | AF5: 0 | AG5: 0 | AI5: =$AI$3/B5 -> 0 | AJ5: =C5 -> 0 | AK5: 0 | AL5: 0 | AM5: 0 | AN5: 0 | AO5: 0 | AP5: 0 | AQ5: 0 | AR5: 0 | AS5: 0 | AT5: 0 | AU5: 0 | AV5: 0 | AW5: 0
B6: 3 | C6: =$C$3/B6 -> 0 | D6: 0 | E6: =$E$3/B6 -> 0 | F6: 0 | G6: 0 | H6: =$H$3/B6 -> 0 | I6: =$I$3/B6 -> 0 | J6: =$J$3/B6 -> 0 | K6: =$K$3/B6 -> 0 | L6: =$L$3/B6 -> 0 | M6: =$M$3/B6 -> 0 | N6: =$N$3/B6 -> 0 | O6: =$O$3/B6 -> 0 | P6: =$P$3/B6 -> 0 | R6: =$R$3/B6 -> 0 | S6: =$S$3/B6 -> 0 | T6: 0 | U6: 0 | V6: 0 | W6: 0 | X6: 0 | Y6: 0 | Z6: 0 | AA6: 0 | AB6: 0 | AC6: 0 | AD6: 0 | AE6: 0 | AF6: 0 | AG6: 0 | AI6: =$AI$3/B6 -> 0 | AJ6: =C6 -> 0 | AK6: =D6 -> 0 | AL6: =E6 -> 0 | AM6: =F6 -> 0 | AN6: =G6 -> 0 | AO6: =H6 -> 0 | AP6: =I6 -> 0 | AQ6: =J6 -> 0 | AR6: =K6 -> 0 | AS6: =L6 -> 0 | AT6: =M6 -> 0 | AU6: =N6 -> 0 | AV6: =O6 -> 0 | AW6: =P6 -> 0
B7: 4 | C7: 0 | D7: 0 | E7: 0 | F7: 0 | G7: 0 | H7: 0 | I7: 0 | J7: 0 | K7: 0 | L7: 0 | M7: 0 | N7: 0 | O7: 0 | P7: 0 | R7: 0 | S7: 0 | T7: =C7 -> 0 | U7: =D7 -> 0 | V7: =E7 -> 0 | W7: =F7 -> 0 | X7: =G7 -> 0 | Y7: =H7 -> 0 | Z7: =I7 -> 0 | AA7: =J7 -> 0 | AB7: =K7 -> 0 | AC7: =L7 -> 0 | AD7: =M7 -> 0 | AE7: =N7 -> 0 | AF7: =O7 -> 0 | AG7: =P7 -> 0 | AI7: 0 | AJ7: 0 | AK7: 0 | AL7: 0 | AM7: 0 | AN7: 0 | AO7: 0 | AP7: 0 | AQ7: 0 | AR7: 0 | AS7: 0 | AT7: 0 | AU7: 0 | AV7: 0 | AW7: 0
B8: 5 | C8: 0 | D8: 0 | E8: 0 | F8: 0 | G8: 0 | H8: 0 | I8: 0 | J8: 0 | K8: 0 | L8: 0 | M8: 0 | N8: 0 | O8: 0 | P8: 0 | R8: 0 | S8: 0 | T8: 0 | U8: 0 | V8: 0 | W8: 0 | X8: 0 | Y8: 0 | Z8: 0 | AA8: 0 | AB8: 0 | AC8: 0 | AD8: 0 | AE8: 0 | AF8: 0 | AG8: 0 | AI8: 0 | AJ8: 0 | AK8: 0 | AL8: 0 | AM8: 0 | AN8: 0 | AO8: 0 | AP8: 0 | AQ8: 0 | AR8: 0 | AS8: 0 | AT8: 0 | AU8: 0 | AV8: 0 | AW8: 0
B9: 6 | C9: 0 | D9: 0 | E9: 0 | F9: 0 | G9: 0 | H9: 0 | I9: 0 | J9: 0 | K9: 0 | L9: 0 | M9: 0 | N9: 0 | O9: 0 | P9: 0 | R9: 0 | S9: 0 | T9: 0 | U9: 0 | V9: 0 | W9: 0 | X9: 0 | Y9: 0 | Z9: 0 | AA9: 0 | AB9: 0 | AC9: 0 | AD9: 0 | AE9: 0 | AF9: 0 | AG9: 0 | AI9: 0 | AJ9: 0 | AK9: 0 | AL9: 0 | AM9: 0 | AN9: 0 | AO9: 0 | AP9: 0 | AQ9: 0 | AR9: 0 | AS9: 0 | AT9: 0 | AU9: 0 | AV9: 0 | AW9: 0
B10: 7 | C10: 0 | D10: 0 | E10: 0 | F10: 0 | G10: 0 | H10: 0 | I10: 0 | J10: 0 | K10: 0 | L10: 0 | M10: 0 | N10: 0 | O10: 0 | P10: 0 | R10: 0 | S10: 0 | T10: 0 | U10: 0 | V10: 0 | W10: 0 | X10: 0 | Y10: 0 | Z10: 0 | AA10: 0 | AB10: 0 | AC10: 0 | AD10: 0 | AE10: 0 | AF10: 0 | AG10: 0 | AI10: 0 | AJ10: 0 | AK10: 0 | AL10: 0 | AM10: 0 | AN10: 0 | AO10: 0 | AP10: 0 | AQ10: 0 | AR10: 0 | AS10: 0 | AT10: 0 | AU10: 0 | AV10: 0 | AW10: 0
B11: 8 | C11: 0 | D11: 0 | E11: 0 | F11: 0 | G11: 0 | H11: 0 | I11: 0 | J11: 0 | K11: 0 | L11: 0 | M11: 0 | N11: 0 | O11: 0 | P11: 0 | R11: 0 | S11: 0 | T11: 0 | U11: 0 | V11: 0 | W11: 0 | X11: 0 | Y11: 0 | Z11: 0 | AA11: 0 | AB11: 0 | AC11: 0 | AD11: 0 | AE11: 0 | AF11: 0 | AG11: 0 | AI11: 0 | AJ11: 0 | AK11: 0 | AL11: 0 | AM11: 0 | AN11: 0 | AO11: 0 | AP11: 0 | AQ11: 0 | AR11: 0 | AS11: 0 | AT11: 0 | AU11: 0 | AV11: 0 | AW11: 0
B12: 9 | C12: 0 | D12: 0 | E12: 0 | F12: 0 | G12: 0 | H12: 0 | I12: 0 | J12: 0 | K12: 0 | L12: 0 | M12: 0 | N12: 0 | O12: 0 | P12: 0 | R12: 0 | S12: 0 | T12: 0 | U12: 0 | V12: 0 | W12: 0 | X12: 0 | Y12: 0 | Z12: 0 | AA12: 0 | AB12: 0 | AC12: 0 | AD12: 0 | AE12: 0 | AF12: 0 | AG12: 0 | AI12: 0 | AJ12: 0 | AK12: 0 | AL12: 0 | AM12: 0 | AN12: 0 | AO12: 0 | AP12: 0 | AQ12: 0 | AR12: 0 | AS12: 0 | AT12: 0 | AU12: 0 | AV12: 0 | AW12: 0
B13: 10 | C13: 0 | D13: 0 | E13: 0 | F13: 0 | G13: 0 | H13: 0 | I13: 0 | J13: 0 | K13: 0 | L13: 0 | M13: 0 | N13: 0 | O13: 0 | P13: 0 | R13: 0 | S13: 0 | T13: 0 | U13: 0 | V13: 0 | W13: 0 | X13: 0 | Y13: 0 | Z13: 0 | AA13: 0 | AB13: 0 | AC13: 0 | AD13: 0 | AE13: 0 | AF13: 0 | AG13: 0 | AI13: 0 | AJ13: 0 | AK13: 0 | AL13: 0 | AM13: 0 | AN13: 0 | AO13: 0 | AP13: 0 | AQ13: 0 | AR13: 0 | AS13: 0 | AT13: 0 | AU13: 0 | AV13: 0 | AW13: 0
B14: 11 | C14: 0 | D14: 0 | E14: 0 | F14: 0 | G14: 0 | H14: 0 | I14: 0 | J14: 0 | K14: 0 | L14: 0 | M14: 0 | N14: 0 | O14: 0 | P14: 0 | R14: 0 | S14: 0 | T14: 0 | U14: 0 | V14: 0 | W14: 0 | X14: 0 | Y14: 0 | Z14: 0 | AA14: 0 | AB14: 0 | AC14: 0 | AD14: 0 | AE14: 0 | AF14: 0 | AG14: 0 | AI14: 0 | AJ14: 0 | AK14: 0 | AL14: 0 | AM14: 0 | AN14: 0 | AO14: 0 | AP14: 0 | AQ14: 0 | AR14: 0 | AS14: 0 | AT14: 0 | AU14: 0 | AV14: 0 | AW14: 0
B15: 12 | C15: 0 | D15: 0 | E15: 0 | F15: 0 | G15: 0 | H15: 0 | I15: 0 | J15: 0 | K15: 0 | L15: 0 | M15: 0 | N15: 0 | O15: 0 | P15: 0 | R15: 0 | S15: 0 | T15: 0 | U15: 0 | V15: 0 | W15: 0 | X15: 0 | Y15: 0 | Z15: 0 | AA15: 0 | AB15: 0 | AC15: 0 | AD15: 0 | AE15: 0 | AF15: 0 | AG15: 0 | AI15: 0 | AJ15: 0 | AK15: 0 | AL15: 0 | AM15: 0 | AN15: 0 | AO15: 0 | AP15: 0 | AQ15: 0 | AR15: 0 | AS15: 0 | AT15: 0 | AU15: 0 | AV15: 0 | AW15: 0
B16: 13 | C16: 0 | D16: 0 | E16: 0 | F16: 0 | G16: 0 | H16: 0 | I16: 0 | J16: 0 | K16: 0 | L16: 0 | M16: 0 | N16: 0 | O16: 0 | P16: 0 | R16: 0 | S16: 0 | T16: 0 | U16: 0 | V16: 0 | W16: 0 | X16: 0 | Y16: 0 | Z16: 0 | AA16: 0 | AB16: 0 | AC16: 0 | AD16: 0 | AE16: 0 | AF16: 0 | AG16: 0 | AI16: 0 | AJ16: 0 | AK16: 0 | AL16: 0 | AM16: 0 | AN16: 0 | AO16: 0 | AP16: 0 | AQ16: 0 | AR16: 0 | AS16: 0 | AT16: 0 | AU16: 0 | AV16: 0 | AW16: 0
B17: 14 | C17: 0 | D17: 0 | E17: 0 | F17: 0 | G17: 0 | H17: 0 | I17: 0 | J17: 0 | K17: 0 | L17: 0 | M17: 0 | N17: 0 | O17: 0 | P17: 0 | R17: 0 | S17: 0 | T17: 0 | U17: 0 | V17: 0 | W17: 0 | X17: 0 | Y17: 0 | Z17: 0 | AA17: 0 | AB17: 0 | AC17: 0 | AD17: 0 | AE17: 0 | AF17: 0 | AG17: 0 | AI17: 0 | AJ17: 0 | AK17: 0 | AL17: 0 | AM17: 0 | AN17: 0 | AO17: 0 | AP17: 0 | AQ17: 0 | AR17: 0 | AS17: 0 | AT17: 0 | AU17: 0 | AV17: 0 | AW17: 0
B18: 15 | C18: 0 | D18: 0 | E18: 0 | F18: 0 | G18: 0 | H18: 0 | I18: 0 | J18: 0 | K18: 0 | L18: 0 | M18: 0 | N18: 0 | O18: 0 | P18: 0 | R18: 0 | S18: 0 | T18: 0 | U18: 0 | V18: 0 | W18: 0 | X18: 0 | Y18: 0 | Z18: 0 | AA18: 0 | AB18: 0 | AC18: 0 | AD18: 0 | AE18: 0 | AF18: 0 | AG18: 0 | AI18: 0 | AJ18: 0 | AK18: 0 | AL18: 0 | AM18: 0 | AN18: 0 | AO18: 0 | AP18: 0 | AQ18: 0 | AR18: 0 | AS18: 0 | AT18: 0 | AU18: 0 | AV18: 0 | AW18: 0
B19: 16 | C19: 0 | D19: 0 | E19: 0 | F19: 0 | G19: 0 | H19: 0 | I19: 0 | J19: 0 | K19: 0 | L19: 0 | M19: 0 | N19: 0 | O19: 0 | P19: 0 | R19: 0 | S19: 0 | T19: 0 | U19: 0 | V19: 0 | W19: 0 | X19: 0 | Y19: 0 | Z19: 0 | AA19: 0 | AB19: 0 | AC19: 0 | AD19: 0 | AE19: 0 | AF19: 0 | AG19: 0 | AI19: 0 | AJ19: 0 | AK19: 0 | AL19: 0 | AM19: 0 | AN19: 0 | AO19: 0 | AP19: 0 | AQ19: 0 | AR19: 0 | AS19: 0 | AT19: 0 | AU19: 0 | AV19: 0 | AW19: 0
B20: 17 | C20: 0 | D20: 0 | E20: 0 | F20: 0 | G20: 0 | H20: 0 | I20: 0 | J20: 0 | K20: 0 | L20: 0 | M20: 0 | N20: 0 | O20: 0 | P20: 0 | R20: 0 | S20: 0 | T20: 0 | U20: 0 | V20: 0 | W20: 0 | X20: 0 | Y20: 0 | Z20: 0 | AA20: 0 | AB20: 0 | AC20: 0 | AD20: 0 | AE20: 0 | AF20: 0 | AG20: 0 | AI20: 0 | AJ20: 0 | AK20: 0 | AL20: 0 | AM20: 0 | AN20: 0 | AO20: 0 | AP20: 0 | AQ20: 0 | AR20: 0 | AS20: 0 | AT20: 0 | AU20: 0 | AV20: 0 | AW20: 0
B21: 18 | C21: 0 | D21: 0 | E21: 0 | F21: 0 | G21: 0 | H21: 0 | I21: 0 | J21: 0 | K21: 0 | L21: 0 | M21: 0 | N21: 0 | O21: 0 | P21: 0 | R21: 0 | S21: 0 | T21: 0 | U21: 0 | V21: 0 | W21: 0 | X21: 0 | Y21: 0 | Z21: 0 | AA21: 0 | AB21: 0 | AC21: 0 | AD21: 0 | AE21: 0 | AF21: 0 | AG21: 0 | AI21: 0 | AJ21: 0 | AK21: 0 | AL21: 0 | AM21: 0 | AN21: 0 | AO21: 0 | AP21: 0 | AQ21: 0 | AR21: 0 | AS21: 0 | AT21: 0 | AU21: 0 | AV21: 0 | AW21: 0
B22: 19 | C22: 0 | D22: 0 | E22: 0 | F22: 0 | G22: 0 | H22: 0 | I22: 0 | J22: 0 | K22: 0 | L22: 0 | M22: 0 | N22: 0 | O22: 0 | P22: 0 | R22: 0 | S22: 0 | T22: 0 | U22: 0 | V22: 0 | W22: 0 | X22: 0 | Y22: 0 | Z22: 0 | AA22: 0 | AB22: 0 | AC22: 0 | AD22: 0 | AE22: 0 | AF22: 0 | AG22: 0 | AI22: 0 | AJ22: 0 | AK22: 0 | AL22: 0 | AM22: 0 | AN22: 0 | AO22: 0 | AP22: 0 | AQ22: 0 | AR22: 0 | AS22: 0 | AT22: 0 | AU22: 0 | AV22: 0 | AW22: 0
B23: 20 | C23: 0 | D23: 0 | E23: 0 | F23: 0 | G23: 0 | H23: 0 | I23: 0 | J23: 0 | K23: 0 | L23: 0 | M23: 0 | N23: 0 | O23: 0 | P23: 0 | R23: 0 | S23: 0 | T23: 0 | U23: 0 | V23: 0 | W23: 0 | X23: 0 | Y23: 0 | Z23: 0 | AA23: 0 | AB23: 0 | AC23: 0 | AD23: 0 | AE23: 0 | AF23: 0 | AG23: 0 | AI23: 0 | AJ23: 0 | AK23: 0 | AL23: 0 | AM23: 0 | AN23: 0 | AO23: 0 | AP23: 0 | AQ23: 0 | AR23: 0 | AS23: 0 | AT23: 0 | AU23: 0 | AV23: 0 | AW23: 0
B24: 21 | C24: 0 | D24: 0 | E24: 0 | F24: 0 | G24: 0 | H24: 0 | I24: 0 | J24: 0 | K24: 0 | L24: 0 | M24: 0 | N24: 0 | O24: 0 | P24: 0 | R24: 0 | S24: 0 | T24: 0 | U24: 0 | V24: 0 | W24: 0 | X24: 0 | Y24: 0 | Z24: 0 | AA24: 0 | AB24: 0 | AC24: 0 | AD24: 0 | AE24: 0 | AF24: 0 | AG24: 0 | AI24: 0 | AJ24: 0 | AK24: 0 | AL24: 0 | AM24: 0 | AN24: 0 | AO24: 0 | AP24: 0 | AQ24: 0 | AR24: 0 | AS24: 0 | AT24: 0 | AU24: 0 | AV24: 0 | AW24: 0
B25: 22 | C25: 0 | D25: 0 | E25: 0 | F25: 0 | G25: 0 | H25: 0 | I25: 0 | J25: 0 | K25: 0 | L25: 0 | M25: 0 | N25: 0 | O25: 0 | P25: 0 | R25: 0 | S25: 0 | T25: 0 | U25: 0 | V25: 0 | W25: 0 | X25: 0 | Y25: 0 | Z25: 0 | AA25: 0 | AB25: 0 | AC25: 0 | AD25: 0 | AE25: 0 | AF25: 0 | AG25: 0 | AI25: 0 | AJ25: 0 | AK25: 0 | AL25: 0 | AM25: 0 | AN25: 0 | AO25: 0 | AP25: 0 | AQ25: 0 | AR25: 0 | AS25: 0 | AT25: 0 | AU25: 0 | AV25: 0 | AW25: 0
B26: 23 | C26: 0 | D26: 0 | E26: 0 | F26: 0 | G26: 0 | H26: 0 | I26: 0 | J26: 0 | K26: 0 | L26: 0 | M26: 0 | N26: 0 | O26: 0 | P26: 0 | R26: 0 | S26: 0 | T26: 0 | U26: 0 | V26: 0 | W26: 0 | X26: 0 | Y26: 0 | Z26: 0 | AA26: 0 | AB26: 0 | AC26: 0 | AD26: 0 | AE26: 0 | AF26: 0 | AG26: 0 | AI26: 0 | AJ26: 0 | AK26: 0 | AL26: 0 | AM26: 0 | AN26: 0 | AO26: 0 | AP26: 0 | AQ26: 0 | AR26: 0 | AS26: 0 | AT26: 0 | AU26: 0 | AV26: 0 | AW26: 0
B27: 24 | C27: 0 | D27: 0 | E27: 0 | F27: 0 | G27: 0 | H27: 0 | I27: 0 | J27: 0 | K27: 0 | L27: 0 | M27: 0 | N27: 0 | O27: 0 | P27: 0 | R27: 0 | S27: 0 | T27: 0 | U27: 0 | V27: 0 | W27: 0 | X27: 0 | Y27: 0 | Z27: 0 | AA27: 0 | AB27: 0 | AC27: 0 | AD27: 0 | AE27: 0 | AF27: 0 | AG27: 0 | AI27: 0 | AJ27: 0 | AK27: 0 | AL27: 0 | AM27: 0 | AN27: 0 | AO27: 0 | AP27: 0 | AQ27: 0 | AR27: 0 | AS27: 0 | AT27: 0 | AU27: 0 | AV27: 0 | AW27: 0
B28: 25 | C28: 0 | D28: 0 | E28: 0 | F28: 0 | G28: 0 | H28: 0 | I28: 0 | J28: 0 | K28: 0 | L28: 0 | M28: 0 | N28: 0 | O28: 0 | P28: 0 | R28: 0 | S28: 0 | T28: 0 | U28: 0 | V28: 0 | W28: 0 | X28: 0 | Y28: 0 | Z28: 0 | AA28: 0 | AB28: 0 | AC28: 0 | AD28: 0 | AE28: 0 | AF28: 0 | AG28: 0 | AI28: 0 | AJ28: 0 | AK28: 0 | AL28: 0 | AM28: 0 | AN28: 0 | AO28: 0 | AP28: 0 | AQ28: 0 | AR28: 0 | AS28: 0 | AT28: 0 | AU28: 0 | AV28: 0 | AW28: 0
B29: 26 | C29: 0 | D29: 0 | E29: 0 | F29: 0 | G29: 0 | H29: 0 | I29: 0 | J29: 0 | K29: 0 | L29: 0 | M29: 0 | N29: 0 | O29: 0 | P29: 0 | R29: 0 | S29: 0 | T29: 0 | U29: 0 | V29: 0 | W29: 0 | X29: 0 | Y29: 0 | Z29: 0 | AA29: 0 | AB29: 0 | AC29: 0 | AD29: 0 | AE29: 0 | AF29: 0 | AG29: 0 | AI29: 0 | AJ29: 0 | AK29: 0 | AL29: 0 | AM29: 0 | AN29: 0 | AO29: 0 | AP29: 0 | AQ29: 0 | AR29: 0 | AS29: 0 | AT29: 0 | AU29: 0 | AV29: 0 | AW29: 0
B30: 27 | C30: 0 | D30: 0 | E30: 0 | F30: 0 | G30: 0 | H30: 0 | I30: 0 | J30: 0 | K30: 0 | L30: 0 | M30: 0 | N30: 0 | O30: 0 | P30: 0 | R30: 0 | S30: 0 | T30: 0 | U30: 0 | V30: 0 | W30: 0 | X30: 0 | Y30: 0 | Z30: 0 | AA30: 0 | AB30: 0 | AC30: 0 | AD30: 0 | AE30: 0 | AF30: 0 | AG30: 0 | AI30: 0 | AJ30: 0 | AK30: 0 | AL30: 0 | AM30: 0 | AN30: 0 | AO30: 0 | AP30: 0 | AQ30: 0 | AR30: 0 | AS30: 0 | AT30: 0 | AU30: 0 | AV30: 0 | AW30: 0
B31: 28 | C31: 0 | D31: 0 | E31: 0 | F31: 0 | G31: 0 | H31: 0 | I31: 0 | J31: 0 | K31: 0 | L31: 0 | M31: 0 | N31: 0 | O31: 0 | P31: 0 | R31: 0 | S31: 0 | T31: 0 | U31: 0 | V31: 0 | W31: 0 | X31: 0 | Y31: 0 | Z31: 0 | AA31: 0 | AB31: 0 | AC31: 0 | AD31: 0 | AE31: 0 | AF31: 0 | AG31: 0 | AI31: 0 | AJ31: 0 | AK31: 0 | AL31: 0 | AM31: 0 | AN31: 0 | AO31: 0 | AP31: 0 | AQ31: 0 | AR31: 0 | AS31: 0 | AT31: 0 | AU31: 0 | AV31: 0 | AW31: 0
B32: 29 | C32: 0 | D32: 0 | E32: 0 | F32: 0 | G32: 0 | H32: 0 | I32: 0 | J32: 0 | K32: 0 | L32: 0 | M32: 0 | N32: 0 | O32: 0 | P32: 0 | R32: 0 | S32: 0 | T32: 0 | U32: 0 | V32: 0 | W32: 0 | X32: 0 | Y32: 0 | Z32: 0 | AA32: 0 | AB32: 0 | AC32: 0 | AD32: 0 | AE32: 0 | AF32: 0 | AG32: 0 | AI32: 0 | AJ32: 0 | AK32: 0 | AL32: 0 | AM32: 0 | AN32: 0 | AO32: 0 | AP32: 0 | AQ32: 0 | AR32: 0 | AS32: 0 | AT32: 0 | AU32: 0 | AV32: 0 | AW32: 0
B33: 30 | C33: 0 | D33: 0 | E33: 0 | F33: 0 | G33: 0 | H33: 0 | I33: 0 | J33: 0 | K33: 0 | L33: 0 | M33: 0 | N33: 0 | O33: 0 | P33: 0 | R33: 0 | S33: 0 | T33: 0 | U33: 0 | V33: 0 | W33: 0 | X33: 0 | Y33: 0 | Z33: 0 | AA33: 0 | AB33: 0 | AC33: 0 | AD33: 0 | AE33: 0 | AF33: 0 | AG33: 0 | AI33: 0 | AJ33: 0 | AK33: 0 | AL33: 0 | AM33: 0 | AN33: 0 | AO33: 0 | AP33: 0 | AQ33: 0 | AR33: 0 | AS33: 0 | AT33: 0 | AU33: 0 | AV33: 0 | AW33: 0
B34: 31 | C34: 0 | D34: 0 | E34: 0 | F34: 0 | G34: 0 | H34: 0 | I34: 0 | J34: 0 | K34: 0 | L34: 0 | M34: 0 | N34: 0 | O34: 0 | P34: 0 | R34: 0 | S34: 0 | T34: 0 | U34: 0 | V34: 0 | W34: 0 | X34: 0 | Y34: 0 | Z34: 0 | AA34: 0 | AB34: 0 | AC34: 0 | AD34: 0 | AE34: 0 | AF34: 0 | AG34: 0 | AI34: 0 | AJ34: 0 | AK34: 0 | AL34: 0 | AM34: 0 | AN34: 0 | AO34: 0 | AP34: 0 | AQ34: 0 | AR34: 0 | AS34: 0 | AT34: 0 | AU34: 0 | AV34: 0 | AW34: 0
B35: 32 | C35: 0 | D35: 0 | E35: 0 | F35: 0 | G35: 0 | H35: 0 | I35: 0 | J35: 0 | K35: 0 | L35: 0 | M35: 0 | N35: 0 | O35: 0 | P35: 0 | R35: 0 | S35: 0 | T35: 0 | U35: 0 | V35: 0 | W35: 0 | X35: 0 | Y35: 0 | Z35: 0 | AA35: 0 | AB35: 0 | AC35: 0 | AD35: 0 | AE35: 0 | AF35: 0 | AG35: 0 | AI35: 0 | AJ35: 0 | AK35: 0 | AL35: 0 | AM35: 0 | AN35: 0 | AO35: 0 | AP35: 0 | AQ35: 0 | AR35: 0 | AS35: 0 | AT35: 0 | AU35: 0 | AV35: 0 | AW35: 0
B36: 33 | C36: 0 | D36: 0 | E36: 0 | F36: 0 | G36: 0 | H36: 0 | I36: 0 | J36: 0 | K36: 0 | L36: 0 | M36: 0 | N36: 0 | O36: 0 | P36: 0 | R36: 0 | S36: 0 | T36: 0 | U36: 0 | V36: 0 | W36: 0 | X36: 0 | Y36: 0 | Z36: 0 | AA36: 0 | AB36: 0 | AC36: 0 | AD36: 0 | AE36: 0 | AF36: 0 | AG36: 0 | AI36: 0 | AJ36: 0 | AK36: 0 | AL36: 0 | AM36: 0 | AN36: 0 | AO36: 0 | AP36: 0 | AQ36: 0 | AR36: 0 | AS36: 0 | AT36: 0 | AU36: 0 | AV36: 0 | AW36: 0
B37: 34 | C37: 0 | D37: 0 | E37: 0 | F37: 0 | G37: 0 | H37: 0 | I37: 0 | J37: 0 | K37: 0 | L37: 0 | M37: 0 | N37: 0 | O37: 0 | P37: 0 | R37: 0 | S37: 0 | T37: 0 | U37: 0 | V37: 0 | W37: 0 | X37: 0 | Y37: 0 | Z37: 0 | AA37: 0 | AB37: 0 | AC37: 0 | AD37: 0 | AE37: 0 | AF37: 0 | AG37: 0 | AI37: 0 | AJ37: 0 | AK37: 0 | AL37: 0 | AM37: 0 | AN37: 0 | AO37: 0 | AP37: 0 | AQ37: 0 | AR37: 0 | AS37: 0 | AT37: 0 | AU37: 0 | AV37: 0 | AW37: 0
B38: 35 | C38: 0 | D38: 0 | E38: 0 | F38: 0 | G38: 0 | H38: 0 | I38: 0 | J38: 0 | K38: 0 | L38: 0 | M38: 0 | N38: 0 | O38: 0 | P38: 0 | R38: 0 | S38: 0 | T38: 0 | U38: 0 | V38: 0 | W38: 0 | X38: 0 | Y38: 0 | Z38: 0 | AA38: 0 | AB38: 0 | AC38: 0 | AD38: 0 | AE38: 0 | AF38: 0 | AG38: 0 | AI38: 0 | AJ38: 0 | AK38: 0 | AL38: 0 | AM38: 0 | AN38: 0 | AO38: 0 | AP38: 0 | AQ38: 0 | AR38: 0 | AS38: 0 | AT38: 0 | AU38: 0 | AV38: 0 | AW38: 0
B39: 36 | C39: 0 | D39: 0 | E39: 0 | F39: 0 | G39: 0 | H39: 0 | I39: 0 | J39: 0 | K39: 0 | L39: 0 | M39: 0 | N39: 0 | O39: 0 | P39: 0 | R39: 0 | S39: 0 | T39: 0 | U39: 0 | V39: 0 | W39: 0 | X39: 0 | Y39: 0 | Z39: 0 | AA39: 0 | AB39: 0 | AC39: 0 | AD39: 0 | AE39: 0 | AF39: 0 | AG39: 0 | AI39: 0 | AJ39: 0 | AK39: 0 | AL39: 0 | AM39: 0 | AN39: 0 | AO39: 0 | AP39: 0 | AQ39: 0 | AR39: 0 | AS39: 0 | AT39: 0 | AU39: 0 | AV39: 0 | AW39: 0
B40: 37 | C40: 0 | D40: 0 | E40: 0 | F40: 0 | G40: 0 | H40: 0 | I40: 0 | J40: 0 | K40: 0 | L40: 0 | M40: 0 | N40: 0 | O40: 0 | P40: 0 | R40: 0 | S40: 0 | T40: 0 | U40: 0 | V40: 0 | W40: 0 | X40: 0 | Y40: 0 | Z40: 0 | AA40: 0 | AB40: 0 | AC40: 0 | AD40: 0 | AE40: 0 | AF40: 0 | AG40: 0 | AI40: 0 | AJ40: 0 | AK40: 0 | AL40: 0 | AM40: 0 | AN40: 0 | AO40: 0 | AP40: 0 | AQ40: 0 | AR40: 0 | AS40: 0 | AT40: 0 | AU40: 0 | AV40: 0 | AW40: 0
B41: 38 | C41: 0 | D41: 0 | E41: 0 | F41: 0 | G41: 0 | H41: 0 | I41: 0 | J41: 0 | K41: 0 | L41: 0 | M41: 0 | N41: 0 | O41: 0 | P41: 0 | R41: 0 | S41: 0 | T41: 0 | U41: 0 | V41: 0 | W41: 0 | X41: 0 | Y41: 0 | Z41: 0 | AA41: 0 | AB41: 0 | AC41: 0 | AD41: 0 | AE41: 0 | AF41: 0 | AG41: 0 | AI41: 0 | AJ41: 0 | AK41: 0 | AL41: 0 | AM41: 0 | AN41: 0 | AO41: 0 | AP41: 0 | AQ41: 0 | AR41: 0 | AS41: 0 | AT41: 0 | AU41: 0 | AV41: 0 | AW41: 0
B42: 39 | C42: 0 | D42: 0 | E42: 0 | F42: 0 | G42: 0 | H42: 0 | I42: 0 | J42: 0 | K42: 0 | L42: 0 | M42: 0 | N42: 0 | O42: 0 | P42: 0 | R42: 0 | S42: 0 | T42: 0 | U42: 0 | V42: 0 | W42: 0 | X42: 0 | Y42: 0 | Z42: 0 | AA42: 0 | AB42: 0 | AC42: 0 | AD42: 0 | AE42: 0 | AF42: 0 | AG42: 0 | AI42: 0 | AJ42: 0 | AK42: 0 | AL42: 0 | AM42: 0 | AN42: 0 | AO42: 0 | AP42: 0 | AQ42: 0 | AR42: 0 | AS42: 0 | AT42: 0 | AU42: 0 | AV42: 0 | AW42: 0
B43: 40 | C43: 0 | D43: 0 | E43: 0 | F43: 0 | G43: 0 | H43: 0 | I43: 0 | J43: 0 | K43: 0 | L43: 0 | M43: 0 | N43: 0 | O43: 0 | P43: 0 | R43: 0 | S43: 0 | T43: 0 | U43: 0 | V43: 0 | W43: 0 | X43: 0 | Y43: 0 | Z43: 0 | AA43: 0 | AB43: 0 | AC43: 0 | AD43: 0 | AE43: 0 | AF43: 0 | AG43: 0 | AI43: 0 | AJ43: 0 | AK43: 0 | AL43: 0 | AM43: 0 | AN43: 0 | AO43: 0 | AP43: 0 | AQ43: 0 | AR43: 0 | AS43: 0 | AT43: 0 | AU43: 0 | AV43: 0 | AW43: 0
B44: 41 | C44: 0 | D44: 0 | E44: 0 | F44: 0 | G44: 0 | H44: 0 | I44: 0 | J44: 0 | K44: 0 | L44: 0 | M44: 0 | N44: 0 | O44: 0 | P44: 0 | R44: 0 | S44: 0 | T44: 0 | U44: 0 | V44: 0 | W44: 0 | X44: 0 | Y44: 0 | Z44: 0 | AA44: 0 | AB44: 0 | AC44: 0 | AD44: 0 | AE44: 0 | AF44: 0 | AG44: 0 | AI44: 0 | AJ44: 0 | AK44: 0 | AL44: 0 | AM44: 0 | AN44: 0 | AO44: 0 | AP44: 0 | AQ44: 0 | AR44: 0 | AS44: 0 | AT44: 0 | AU44: 0 | AV44: 0 | AW44: 0
B45: 42 | C45: 0 | D45: 0 | E45: 0 | F45: 0 | G45: 0 | H45: 0 | I45: 0 | J45: 0 | K45: 0 | L45: 0 | M45: 0 | N45: 0 | O45: 0 | P45: 0 | R45: 0 | S45: 0 | T45: 0 | U45: 0 | V45: 0 | W45: 0 | X45: 0 | Y45: 0 | Z45: 0 | AA45: 0 | AB45: 0 | AC45: 0 | AD45: 0 | AE45: 0 | AF45: 0 | AG45: 0 | AI45: 0 | AJ45: 0 | AK45: 0 | AL45: 0 | AM45: 0 | AN45: 0 | AO45: 0 | AP45: 0 | AQ45: 0 | AR45: 0 | AS45: 0 | AT45: 0 | AU45: 0 | AV45: 0 | AW45: 0
B46: 43 | C46: 0 | D46: 0 | E46: 0 | F46: 0 | G46: 0 | H46: 0 | I46: 0 | J46: 0 | K46: 0 | L46: 0 | M46: 0 | N46: 0 | O46: 0 | P46: 0 | R46: 0 | S46: 0 | T46: 0 | U46: 0 | V46: 0 | W46: 0 | X46: 0 | Y46: 0 | Z46: 0 | AA46: 0 | AB46: 0 | AC46: 0 | AD46: 0 | AE46: 0 | AF46: 0 | AG46: 0 | AI46: 0 | AJ46: 0 | AK46: 0 | AL46: 0 | AM46: 0 | AN46: 0 | AO46: 0 | AP46: 0 | AQ46: 0 | AR46: 0 | AS46: 0 | AT46: 0 | AU46: 0 | AV46: 0 | AW46: 0
B47: 44 | C47: 0 | D47: 0 | E47: 0 | F47: 0 | G47: 0 | H47: 0 | I47: 0 | J47: 0 | K47: 0 | L47: 0 | M47: 0 | N47: 0 | O47: 0 | P47: 0 | R47: 0 | S47: 0 | T47: 0 | U47: 0 | V47: 0 | W47: 0 | X47: 0 | Y47: 0 | Z47: 0 | AA47: 0 | AB47: 0 | AC47: 0 | AD47: 0 | AE47: 0 | AF47: 0 | AG47: 0 | AI47: 0 | AJ47: 0 | AK47: 0 | AL47: 0 | AM47: 0 | AN47: 0 | AO47: 0 | AP47: 0 | AQ47: 0 | AR47: 0 | AS47: 0 | AT47: 0 | AU47: 0 | AV47: 0 | AW47: 0
B48: 45 | C48: 0 | D48: 0 | E48: 0 | F48: 0 | G48: 0 | H48: 0 | I48: 0 | J48: 0 | K48: 0 | L48: 0 | M48: 0 | N48: 0 | O48: 0 | P48: 0 | R48: 0 | S48: 0 | T48: 0 | U48: 0 | V48: 0 | W48: 0 | X48: 0 | Y48: 0 | Z48: 0 | AA48: 0 | AB48: 0 | AC48: 0 | AD48: 0 | AE48: 0 | AF48: 0 | AG48: 0 | AI48: 0 | AJ48: 0 | AK48: 0 | AL48: 0 | AM48: 0 | AN48: 0 | AO48: 0 | AP48: 0 | AQ48: 0 | AR48: 0 | AS48: 0 | AT48: 0 | AU48: 0 | AV48: 0 | AW48: 0
B49: 46 | C49: 0 | D49: 0 | E49: 0 | F49: 0 | G49: 0 | H49: 0 | I49: 0 | J49: 0 | K49: 0 | L49: 0 | M49: 0 | N49: 0 | O49: 0 | P49: 0 | R49: 0 | S49: 0 | T49: 0 | U49: 0 | V49: 0 | W49: 0 | X49: 0 | Y49: 0 | Z49: 0 | AA49: 0 | AB49: 0 | AC49: 0 | AD49: 0 | AE49: 0 | AF49: 0 | AG49: 0 | AI49: 0 | AJ49: 0 | AK49: 0 | AL49: 0 | AM49: 0 | AN49: 0 | AO49: 0 | AP49: 0 | AQ49: 0 | AR49: 0 | AS49: 0 | AT49: 0 | AU49: 0 | AV49: 0 | AW49: 0
B50: 47 | C50: 0 | D50: 0 | E50: 0 | F50: 0 | G50: 0 | H50: 0 | I50: 0 | J50: 0 | K50: 0 | L50: 0 | M50: 0 | N50: 0 | O50: 0 | P50: 0 | R50: 0 | S50: 0 | T50: 0 | U50: 0 | V50: 0 | W50: 0 | X50: 0 | Y50: 0 | Z50: 0 | AA50: 0 | AB50: 0 | AC50: 0 | AD50: 0 | AE50: 0 | AF50: 0 | AG50: 0 | AI50: 0 | AJ50: 0 | AK50: 0 | AL50: 0 | AM50: 0 | AN50: 0 | AO50: 0 | AP50: 0 | AQ50: 0 | AR50: 0 | AS50: 0 | AT50: 0 | AU50: 0 | AV50: 0 | AW50: 0
B51: 48 | C51: 0 | D51: 0 | E51: 0 | F51: 0 | G51: 0 | H51: 0 | I51: 0 | J51: =$J$3/B51 -> 0 | K51: 0 | L51: 0 | M51: 0 | N51: 0 | O51: 0 | P51: 0 | R51: 0 | S51: 0 | T51: 0 | U51: 0 | V51: 0 | W51: 0 | X51: 0 | Y51: 0 | Z51: 0 | AA51: 0 | AB51: 0 | AC51: 0 | AD51: 0 | AE51: 0 | AF51: 0 | AG51: 0 | AI51: 0 | AJ51: 0 | AK51: 0 | AL51: 0 | AM51: 0 | AN51: 0 | AO51: 0 | AP51: 0 | AQ51: 0 | AR51: 0 | AS51: 0 | AT51: 0 | AU51: 0 | AV51: 0 | AW51: 0
B52: 49 | C52: 0 | D52: 0 | E52: 0 | F52: 0 | G52: 0 | H52: 0 | I52: 0 | J52: =$J$3/B52 -> 0 | K52: 0 | L52: 0 | M52: 0 | N52: 0 | O52: 0 | P52: 0 | R52: 0 | S52: 0 | T52: 0 | U52: 0 | V52: 0 | W52: 0 | X52: 0 | Y52: 0 | Z52: 0 | AA52: 0 | AB52: 0 | AC52: 0 | AD52: 0 | AE52: 0 | AF52: 0 | AG52: 0 | AI52: 0 | AJ52: 0 | AK52: 0 | AL52: 0 | AM52: 0 | AN52: 0 | AO52: 0 | AP52: 0 | AQ52: 0 | AR52: 0 | AS52: 0 | AT52: 0 | AU52: 0 | AV52: 0 | AW52: 0
B53: 50 | C53: 0 | D53: 0 | E53: 0 | F53: 0 | G53: 0 | H53: 0 | I53: 0 | J53: =$J$3/B53 -> 0 | K53: 0 | L53: 0 | M53: 0 | N53: 0 | O53: 0 | P53: 0 | R53: 0 | S53: 0 | T53: 0 | U53: 0 | V53: 0 | W53: 0 | X53: 0 | Y53: 0 | Z53: 0 | AA53: 0 | AB53: 0 | AC53: 0 | AD53: 0 | AE53: 0 | AF53: 0 | AG53: 0 | AI53: 0 | AJ53: 0 | AK53: 0 | AL53: 0 | AM53: 0 | AN53: 0 | AO53: 0 | AP53: 0 | AQ53: 0 | AR53: 0 | AS53: 0 | AT53: 0 | AU53: 0 | AV53: 0 | AW53: 0
B54: 51 | C54: 0 | D54: 0 | E54: 0 | F54: 0 | G54: 0 | H54: 0 | I54: 0 | J54: =$J$3/B54 -> 0 | K54: 0 | L54: 0 | M54: 0 | N54: 0 | O54: 0 | P54: 0 | R54: 0 | S54: 0 | T54: 0 | U54: 0 | V54: 0 | W54: 0 | X54: 0 | Y54: 0 | Z54: 0 | AA54: 0 | AB54: 0 | AC54: 0 | AD54: 0 | AE54: 0 | AF54: 0 | AG54: 0 | AI54: 0 | AJ54: 0 | AK54: 0 | AL54: 0 | AM54: 0 | AN54: 0 | AO54: 0 | AP54: 0 | AQ54: 0 | AR54: 0 | AS54: 0 | AT54: 0 | AU54: 0 | AV54: 0 | AW54: 0
B55: 52 | C55: 0 | D55: 0 | E55: 0 | F55: 0 | G55: 0 | H55: 0 | I55: 0 | J55: =$J$3/B55 -> 0 | K55: 0 | L55: 0 | M55: 0 | N55: 0 | O55: 0 | P55: 0 | R55: 0 | S55: 0 | T55: 0 | U55: 0 | V55: 0 | W55: 0 | X55: 0 | Y55: 0 | Z55: 0 | AA55: 0 | AB55: 0 | AC55: 0 | AD55: 0 | AE55: 0 | AF55: 0 | AG55: 0 | AI55: 0 | AJ55: 0 | AK55: 0 | AL55: 0 | AM55: 0 | AN55: 0 | AO55: 0 | AP55: 0 | AQ55: 0 | AR55: 0 | AS55: 0 | AT55: 0 | AU55: 0 | AV55: 0 | AW55: 0
B61: Inscrits
B62: Déposés
B63: Blancs & Nuls
B64: Valables
B65: Sièges
B70: Majorité absolue | C70: =SUM($C$71:$N$71) ->  | P70: =SUM($P$71:$AC$71) ->  | R70: =SUM($P$71:$AC$71) ->  | AE70: =SUM($AE$71:$AQ$71) ->  | AI70: =SUM($AE$71:$AQ$71) -> 
C71: =IF(C4>($C$65/2),1,0) ->  | P71: =IF(P4>($C$65/2),1,0) ->  | Q71: 0 | AE71: =IF(AE4>($C$65/2),1,0) ->  | AH71: 0

Sheet RÉSULTATS
B1: Elections communales2018 | C1: Inscrits | D1: Bulletins déposés | E1: % Bulletins déposés | F1: Blancs et nuls | G1: % Votes Blancs et nuls | H1: Votes valables | I1: % Votes Valables | J1: Nbre Sièges | K1: Bulletins Non-déposés | L1: % Bulletins Non-déposés | M1: Votes non-valables | N1: % Votes Non-valables | O1: Nbr Listes | P1: Nbr Liste unique Majorité Absolue Sièges | Q1: % Voix Majorités Absolues Sièges | R1: Nbr Liste unique Majorité Absolue Voix | S1: Nbr Coalitions | T1: % Voix Coalition | U1: Nbr Coalition Majorité Absolue Voix | V1: Nbr Sièges Votes Blancs et nuls | W1: Nbr Communes impactées Post Distribution Sièges | X1: Nbr Sièges Bulletins Non-déposés | Y1: Nbr Communes impactées Post Distribution Sièges | Z1: Nbr Majorités Absolues Post Distribution Sièges | AA1: Nbr Sièges Votes non-valable & Absentéisme électoral | AB1: Nbr Communes impactées Post Distribution Sièges | AC1: Nbr Majorités Absolues Post Distribution Sièges
B2: ETTERBEEK | C2: =Inscrits(B2) -> 22962 | D2: =BDEPOSES(B2) -> 19886 | E2: =100/C2*D2 -> 86.60395436 | F2: =BBN(B2) -> 1134 | G2: =100/C2*F2 -> 4.938594199 | H2: =VOTESV(B2) -> 18752 | I2: =100/C2*H2 -> 81.66536016 | J2: =SIEGES(B2) -> 35 | K2: =C2-D2 -> 3076 | L2: =100/C2*K2 -> 13.39604564 | M2: =C2-H2 -> 4210 | N2: =(100/C2)*M2 -> 18.33463984 | O2: =NBL(B2) -> 6 | P2: =Maj_abs_tab1(B2) -> 0 | Q2: =pc_Vx_LUMA(B2) -> 0 | R2: =IF(Q2>50,1,0) -> 0 | S2: =Nbr_Coal(B2) -> 1 | T2: =pc_Vx_Coal(B2) -> 66.7145719 | U2: =IF(T2>50,1,0) -> 1 | V2: =SBN(B2) -> 1 | W2: =IF(V2>0,1,0) -> 1 | X2: =SND(B2) -> 5 | Y2: =IF(X2>0,1,0) -> 1 | Z2: =Maj_abs_tab2(B2) -> 0 | AA2: =SNV(B2) -> 7 | AB2: =IF(AA2>0,1,0) -> 1 | AC2: =Maj_abs_tab3(B2) -> 0
B3: AUDERGHEM | C3: =Inscrits(B3) -> 20098 | D3: =BDEPOSES(B3) -> 17587 | E3: =100/C3*D3 -> 87.50621952 | F3: =BBN(B3) -> 794 | G3: =100/C3*F3 -> 3.950641855 | H3: =VOTESV(B3) -> 16739 | I3: =100/C3*H3 -> 83.28689422 | J3: =SIEGES(B3) -> 31 | K3: =C3-D3 -> 2511 | L3: =100/C3*K3 -> 12.49378048 | M3: =C3-H3 -> 3359 | N3: =(100/C3)*M3 -> 16.71310578 | O3: =NBL(B3) -> 8 | P3: =Maj_abs_tab1(B3) -> 1 | Q3: =pc_Vx_LUMA(B3) -> 39.80993134 | R3: =IF(Q3>50,1,0) -> 0 | S3: =Nbr_Coal(B3) -> 1 | T3: =pc_Vx_Coal(B3) -> 58.76206588 | U3: =IF(T3>50,1,0) -> 1 | V3: =SBN(B3) -> 0 | W3: =IF(V3>0,1,0) -> 0 | X3: =SND(B3) -> 4 | Y3: =IF(X3>0,1,0) -> 1 | Z3: =Maj_abs_tab2(B3) -> 1 | AA3: =SNV(B3) -> 6 | AB3: =IF(AA3>0,1,0) -> 1 | AC3: =Maj_abs_tab3(B3) -> 0
B4: WOLUWE-SAINT-LAMBERT | C4: =Inscrits(B4) -> 30744 | D4: =BDEPOSES(B4) -> 26415 | E4: =100/C4*D4 -> 85.91920375 | F4: =BBN(B4) -> 1303 | G4: =100/C4*F4 -> 4.238225345 | H4: =VOTESV(B4) -> 25112 | I4: =100/C4*H4 -> 81.6809784 | J4: =SIEGES(B4) -> 37 | K4: =C4-D4 -> 4329 | L4: =100/C4*K4 -> 14.08079625 | M4: =C4-H4 -> 5632 | N4: =(100/C4)*M4 -> 18.3190216 | O4: =NBL(B4) -> 6 | P4: =Maj_abs_tab1(B4) -> 1 | Q4: =pc_Vx_LUMA(B4) -> 48.48100442 | R4: =IF(Q4>50,1,0) -> 0 | S4: =Nbr_Coal(B4) -> 1 | T4: =pc_Vx_Coal(B4) -> 54.65131408 | U4: =IF(T4>50,1,0) -> 1 | V4: =SBN(B4) -> 1 | W4: =IF(V4>0,1,0) -> 1 | X4: =SND(B4) -> 5 | Y4: =IF(X4>0,1,0) -> 1 | Z4: =Maj_abs_tab2(B4) -> 1 | AA4: =SNV(B4) -> 7 | AB4: =IF(AA4>0,1,0) -> 1 | AC4: =Maj_abs_tab3(B4) -> 1
B5: JETTE | C5: =Inscrits(B5) -> 30895 | D5: =BDEPOSES(B5) -> 26435 | E5: =100/C5*D5 -> 85.56400712 | F5: =BBN(B5) -> 1856 | G5: =100/C5*F5 -> 6.00744457 | H5: =VOTESV(B5) -> 24579 | I5: =100/C5*H5 -> 79.55656255 | J5: =SIEGES(B5) -> 37 | K5: =C5-D5 -> 4460 | L5: =100/C5*K5 -> 14.43599288 | M5: =C5-H5 -> 6316 | N5: =(100/C5)*M5 -> 20.44343745 | O5: =NBL(B5) -> 8 | P5: =Maj_abs_tab1(B5) -> 0 | Q5: =pc_Vx_LUMA(B5) -> 0 | R5: =IF(Q5>50,1,0) -> 0 | S5: =Nbr_Coal(B5) -> 1 | T5: =pc_Vx_Coal(B5) -> 54.30004855 | U5: =IF(T5>50,1,0) -> 1 | V5: =SBN(B5) -> 2 | W5: =IF(V5>0,1,0) -> 1 | X5: =SND(B5) -> 6 | Y5: =IF(X5>0,1,0) -> 1 | Z5: =Maj_abs_tab2(B5) -> 0 | AA5: =SNV(B5) -> 9 | AB5: =IF(AA5>0,1,0) -> 1 | AC5: =Maj_abs_tab3(B5) -> 0
B6: WOLUWE-SAINT-PIERRE | C6: =Inscrits(B6) -> 23418 | D6: =BDEPOSES(B6) -> 20457 | E6: =100/C6*D6 -> 87.35588009 | F6: =BBN(B6) -> 683 | G6: =100/C6*F6 -> 2.916559911 | H6: =VOTESV(B6) -> 19774 | I6: =100/C6*H6 -> 84.43932018 | J6: =SIEGES(B6) -> 35 | K6: =C6-D6 -> 2961 | L6: =100/C6*K6 -> 12.64411991 | M6: =C6-H6 -> 3644 | N6: =(100/C6)*M6 -> 15.56067982 | O6: =NBL(B6) -> 5 | P6: =Maj_abs_tab1(B6) -> 0 | Q6: =pc_Vx_LUMA(B6) -> 0 | R6: =IF(Q6>50,1,0) -> 0 | S6: =Nbr_Coal(B6) -> 1 | T6: =pc_Vx_Coal(B6) -> 53.84319754 | U6: =IF(T6>50,1,0) -> 1 | V6: =SBN(B6) -> 0 | W6: =IF(V6>0,1,0) -> 0 | X6: =SND(B6) -> 4 | Y6: =IF(X6>0,1,0) -> 1 | Z6: =Maj_abs_tab2(B6) -> 0 | AA6: =SNV(B6) -> 5 | AB6: =IF(AA6>0,1,0) -> 1 | AC6: =Maj_abs_tab3(B6) -> 0
B7: SAINT-GILLES | C7: =Inscrits(B7) -> 23673 | D7: =BDEPOSES(B7) -> 19764 | E7: =100/C7*D7 -> 83.48751742 | F7: =BBN(B7) -> 1178 | G7: =100/C7*F7 -> 4.976133147 | H7: =VOTESV(B7) -> 18586 | I7: =100/C7*H7 -> 78.51138428 | J7: =SIEGES(B7) -> 35 | K7: =C7-D7 -> 3909 | L7: =100/C7*K7 -> 16.51248258 | M7: =C7-H7 -> 5087 | N7: =(100/C7)*M7 -> 21.48861572 | O7: =NBL(B7) -> 9 | P7: =Maj_abs_tab1(B7) -> 0 | Q7: =pc_Vx_LUMA(B7) -> 0 | R7: =IF(Q7>50,1,0) -> 0 | S7: =Nbr_Coal(B7) -> 1 | T7: =pc_Vx_Coal(B7) -> 53.22096904 | U7: =IF(T7>50,1,0) -> 1 | V7: =SBN(B7) -> 1 | W7: =IF(V7>0,1,0) -> 1 | X7: =SND(B7) -> 6 | Y7: =IF(X7>0,1,0) -> 1 | Z7: =Maj_abs_tab2(B7) -> 0 | AA7: =SNV(B7) -> 8 | AB7: =IF(AA7>0,1,0) -> 1 | AC7: =Maj_abs_tab3(B7) -> 0
B8: UCCLE | C8: =Inscrits(B8) -> 48177 | D8: =BDEPOSES(B8) -> 40170 | E8: =100/C8*D8 -> 83.38003612 | F8: =BBN(B8) -> 1804 | G8: =100/C8*F8 -> 3.744525396 | H8: =VOTESV(B8) -> 38366 | I8: =100/C8*H8 -> 79.63551072 | J8: =SIEGES(B8) -> 43 | K8: =C8-D8 -> 8007 | L8: =100/C8*K8 -> 16.61996388 | M8: =C8-H8 -> 9811 | N8: =(100/C8)*M8 -> 20.36448928 | O8: =NBL(B8) -> 8 | P8: =Maj_abs_tab1(B8) -> 0 | Q8: =pc_Vx_LUMA(B8) -> 0 | R8: =IF(Q8>50,1,0) -> 0 | S8: =Nbr_Coal(B8) -> 1 | T8: =pc_Vx_Coal(B8) -> 53.21418934 | U8: =IF(T8>50,1,0) -> 1 | V8: =SBN(B8) -> 1 | W8: =IF(V8>0,1,0) -> 1 | X8: =SND(B8) -> 8 | Y8: =IF(X8>0,1,0) -> 1 | Z8: =Maj_abs_tab2(B8) -> 0 | AA8: =SNV(B8) -> 10 | AB8: =IF(AA8>0,1,0) -> 1 | AC8: =Maj_abs_tab3(B8) -> 0
B9: BERCHEM-SAINTE-AGATHE | C9: =Inscrits(B9) -> 15426 | D9: =BDEPOSES(B9) -> 13189 | E9: =100/C9*D9 -> 85.49850901 | F9: =BBN(B9) -> 934 | G9: =100/C9*F9 -> 6.054712823 | H9: =VOTESV(B9) -> 12255 | I9: =100/C9*H9 -> 79.44379619 | J9: =SIEGES(B9) -> 27 | K9: =C9-D9 -> 2237 | L9: =100/C9*K9 -> 14.50149099 | M9: =C9-H9 -> 3171 | N9: =(100/C9)*M9 -> 20.55620381 | O9: =NBL(B9) -> 7 | P9: =Maj_abs_tab1(B9) -> 0 | Q9: =pc_Vx_LUMA(B9) -> 0 | R9: =IF(Q9>50,1,0) -> 0 | S9: =Nbr_Coal(B9) -> 1 | T9: =pc_Vx_Coal(B9) -> 46.82354466 | U9: =IF(T9>50,1,0) -> 0 | V9: =SBN(B9) -> 1 | W9: =IF(V9>0,1,0) -> 1 | X9: =SND(B9) -> 4 | Y9: =IF(X9>0,1,0) -> 1 | Z9: =Maj_abs_tab2(B9) -> 0 | AA9: =SNV(B9) -> 6 | AB9: =IF(AA9>0,1,0) -> 1 | AC9: =Maj_abs_tab3(B9) -> 0
B10: WATERMAEL-BOITSFORT | C10: =Inscrits(B10) -> 16885 | D10: =BDEPOSES(B10) -> 14712 | E10: =100/C10*D10 -> 87.13058928 | F10: =BBN(B10) -> 575 | G10: =100/C10*F10 -> 3.405389399 | H10: =VOTESV(B10) -> 14137 | I10: =100/C10*H10 -> 83.72519988 | J10: =SIEGES(B10) -> 29 | K10: =C10-D10 -> 2173 | L10: =100/C10*K10 -> 12.86941072 | M10: =C10-H10 -> 2748 | N10: =(100/C10)*M10 -> 16.27480012 | O10: =NBL(B10) -> 8 | P10: =Maj_abs_tab1(B10) -> 0 | Q10: =pc_Vx_LUMA(B10) -> 0 | R10: =IF(Q10>50,1,0) -> 0 | S10: =Nbr_Coal(B10) -> 1 | T10: =pc_Vx_Coal(B10) -> 45.58483861 | U10: =IF(T10>50,1,0) -> 0 | V10: =SBN(B10) -> 0 | W10: =IF(V10>0,1,0) -> 0 | X10: =SND(B10) -> 4 | Y10: =IF(X10>0,1,0) -> 1 | Z10: =Maj_abs_tab2(B10) -> 0 | AA10: =SNV(B10) -> 5 | AB10: =IF(AA10>0,1,0) -> 1 | AC10: =Maj_abs_tab3(B10) -> 0
B11: KOEKELBERG | C11: =Inscrits(B11) -> 11363 | D11: =BDEPOSES(B11) -> 9672 | E11: =100/C11*D11 -> 85.11836663 | F11: =BBN(B11) -> 741 | G11: =100/C11*F11 -> 6.521165185 | H11: =VOTESV(B11) -> 8931 | I11: =100/C11*H11 -> 78.59720144 | J11: =SIEGES(B11) -> 27 | K11: =C11-D11 -> 1691 | L11: =100/C11*K11 -> 14.88163337 | M11: =C11-H11 -> 2432 | N11: =(100/C11)*M11 -> 21.40279856 | O11: =NBL(B11) -> 6 | P11: =Maj_abs_tab1(B11) -> 0 | Q11: =pc_Vx_LUMA(B11) -> 0 | R11: =IF(Q11>50,1,0) -> 0 | S11: =Nbr_Coal(B11) -> 1 | T11: =pc_Vx_Coal(B11) -> 44.65370061 | U11: =IF(T11>50,1,0) -> 0 | V11: =SBN(B11) -> 1 | W11: =IF(V11>0,1,0) -> 1 | X11: =SND(B11) -> 4 | Y11: =IF(X11>0,1,0) -> 1 | Z11: =Maj_abs_tab2(B11) -> 0 | AA11: =SNV(B11) -> 6 | AB11: =IF(AA11>0,1,0) -> 1 | AC11: =Maj_abs_tab3(B11) -> 0
B12: MOLENBEEK-SAINT-JEAN | C12: =Inscrits(B12) -> 49787 | D12: =BDEPOSES(B12) -> 41255 | E12: =100/C12*D12 -> 82.86299636 | F12: =BBN(B12) -> 2581 | G12: =100/C12*F12 -> 5.184084199 | H12: =VOTESV(B12) -> 38674 | I12: =100/C12*H12 -> 77.67891217 | J12: =SIEGES(B12) -> 45 | K12: =C12-D12 -> 8532 | L12: =100/C12*K12 -> 17.13700364 | M12: =C12-H12 -> 11113 | N12: =(100/C12)*M12 -> 22.32108783 | O12: =NBL(B12) -> 11 | P12: =Maj_abs_tab1(B12) -> 0 | Q12: =pc_Vx_LUMA(B12) -> 0 | R12: =IF(Q12>50,1,0) -> 0 | S12: =Nbr_Coal(B12) -> 1 | T12: =pc_Vx_Coal(B12) -> 42.96302248 | U12: =IF(T12>50,1,0) -> 0 | V12: =SBN(B12) -> 2 | W12: =IF(V12>0,1,0) -> 1 | X12: =SND(B12) -> 9 | Y12: =IF(X12>0,1,0) -> 1 | Z12: =Maj_abs_tab2(B12) -> 0 | AA12: =SNV(B12) -> 12 | AB12: =IF(AA12>0,1,0) -> 1 | AC12: =Maj_abs_tab3(B12) -> 0
B13: BRUXELLES | C13: =Inscrits(B13) -> 90049 | D13: =BDEPOSES(B13) -> 74606 | E13: =100/C13*D13 -> 82.85044809 | F13: =BBN(B13) -> 4139 | G13: =100/C13*F13 -> 4.596386412 | H13: =VOTESV(B13) -> 70467 | I13: =100/C13*H13 -> 78.25406168 | J13: =SIEGES(B13) -> 49 | K13: =C13-D13 -> 15443 | L13: =100/C13*K13 -> 17.14955191 | M13: =C13-H13 -> 19582 | N13: =(100/C13)*M13 -> 21.74593832 | O13: =NBL(B13) -> 14 | P13: =Maj_abs_tab1(B13) -> 0 | Q13: =pc_Vx_LUMA(B13) -> 0 | R13: =IF(Q13>50,1,0) -> 0 | S13: =Nbr_Coal(B13) -> 1 | T13: =pc_Vx_Coal(B13) -> 41.26753212 | U13: =IF(T13>50,1,0) -> 0 | V13: =SBN(B13) -> 2 | W13: =IF(V13>0,1,0) -> 1 | X13: =SND(B13) -> 10 | Y13: =IF(X13>0,1,0) -> 1 | Z13: =Maj_abs_tab2(B13) -> 0 | AA13: =SNV(B13) -> 13 | AB13: =IF(AA13>0,1,0) -> 1 | AC13: =Maj_abs_tab3(B13) -> 0
B14: ANDERLECHT | C14: =Inscrits(B14) -> 60873 | D14: =BDEPOSES(B14) -> 50903 | E14: =100/C14*D14 -> 83.62163849 | F14: =BBN(B14) -> 3729 | G14: =100/C14*F14 -> 6.125868612 | H14: =VOTESV(B14) -> 47174 | I14: =100/C14*H14 -> 77.49576988 | J14: =SIEGES(B14) -> 47 | K14: =C14-D14 -> 9970 | L14: =100/C14*K14 -> 16.37836151 | M14: =C14-H14 -> 13699 | N14: =(100/C14)*M14 -> 22.50423012 | O14: =NBL(B14) -> 10 | P14: =Maj_abs_tab1(B14) -> 0 | Q14: =pc_Vx_LUMA(B14) -> 0 | R14: =IF(Q14>50,1,0) -> 0 | S14: =Nbr_Coal(B14) -> 1 | T14: =pc_Vx_Coal(B14) -> 40.944261 | U14: =IF(T14>50,1,0) -> 0 | V14: =SBN(B14) -> 2 | W14: =IF(V14>0,1,0) -> 1 | X14: =SND(B14) -> 9 | Y14: =IF(X14>0,1,0) -> 1 | Z14: =Maj_abs_tab2(B14) -> 0 | AA14: =SNV(B14) -> 12 | AB14: =IF(AA14>0,1,0) -> 1 | AC14: =Maj_abs_tab3(B14) -> 0
B15: IXELLES | C15: =Inscrits(B15) -> 41822 | D15: =BDEPOSES(B15) -> 34446 | E15: =100/C15*D15 -> 82.36334943 | F15: =BBN(B15) -> 1716 | G15: =100/C15*F15 -> 4.10310363 | H15: =VOTESV(B15) -> 32730 | I15: =100/C15*H15 -> 78.2602458 | J15: =SIEGES(B15) -> 43 | K15: =C15-D15 -> 7376 | L15: =100/C15*K15 -> 17.63665057 | M15: =C15-H15 -> 9092 | N15: =(100/C15)*M15 -> 21.7397542 | O15: =NBL(B15) -> 8 | P15: =Maj_abs_tab1(B15) -> 0 | Q15: =pc_Vx_LUMA(B15) -> 0 | R15: =IF(Q15>50,1,0) -> 0 | S15: =Nbr_Coal(B15) -> 1 | T15: =pc_Vx_Coal(B15) -> 40.66520013 | U15: =IF(T15>50,1,0) -> 0 | V15: =SBN(B15) -> 1 | W15: =IF(V15>0,1,0) -> 1 | X15: =SND(B15) -> 8 | Y15: =IF(X15>0,1,0) -> 1 | Z15: =Maj_abs_tab2(B15) -> 0 | AA15: =SNV(B15) -> 10 | AB15: =IF(AA15>0,1,0) -> 1 | AC15: =Maj_abs_tab3(B15) -> 0
B16: SCHAERBEEK | C16: =Inscrits(B16) -> 67412 | D16: =BDEPOSES(B16) -> 56539 | E16: =100/C16*D16 -> 83.87082419 | F16: =BBN(B16) -> 3712 | G16: =100/C16*F16 -> 5.506438023 | H16: =VOTESV(B16) -> 52827 | I16: =100/C16*H16 -> 78.36438616 | J16: =SIEGES(B16) -> 47 | K16: =C16-D16 -> 10873 | L16: =100/C16*K16 -> 16.12917581 | M16: =C16-H16 -> 14585 | N16: =(100/C16)*M16 -> 21.63561384 | O16: =NBL(B16) -> 9 | P16: =Maj_abs_tab1(B16) -> 0 | Q16: =pc_Vx_LUMA(B16) -> 0 | R16: =IF(Q16>50,1,0) -> 0 | S16: =Nbr_Coal(B16) -> 1 | T16: =pc_Vx_Coal(B16) -> 40.2420934 | U16: =IF(T16>50,1,0) -> 0 | V16: =SBN(B16) -> 2 | W16: =IF(V16>0,1,0) -> 1 | X16: =SND(B16) -> 8 | Y16: =IF(X16>0,1,0) -> 1 | Z16: =Maj_abs_tab2(B16) -> 0 | AA16: =SNV(B16) -> 11 | AB16: =IF(AA16>0,1,0) -> 1 | AC16: =Maj_abs_tab3(B16) -> 0
B17: FOREST | C17: =Inscrits(B17) -> 29814 | D17: =BDEPOSES(B17) -> 25242 | E17: =100/C17*D17 -> 84.66492252 | F17: =BBN(B17) -> 1494 | G17: =100/C17*F17 -> 5.011068625 | H17: =VOTESV(B17) -> 23748 | I17: =100/C17*H17 -> 79.65385389 | J17: =SIEGES(B17) -> 37 | K17: =C17-D17 -> 4572 | L17: =100/C17*K17 -> 15.33507748 | M17: =C17-H17 -> 6066 | N17: =(100/C17)*M17 -> 20.34614611 | O17: =NBL(B17) -> 8 | P17: =Maj_abs_tab1(B17) -> 0 | Q17: =pc_Vx_LUMA(B17) -> 0 | R17: =IF(Q17>50,1,0) -> 0 | S17: =Nbr_Coal(B17) -> 1 | T17: =pc_Vx_Coal(B17) -> 39.8101563 | U17: =IF(T17>50,1,0) -> 0 | V17: =SBN(B17) -> 1 | W17: =IF(V17>0,1,0) -> 1 | X17: =SND(B17) -> 6 | Y17: =IF(X17>0,1,0) -> 1 | Z17: =Maj_abs_tab2(B17) -> 0 | AA17: =SNV(B17) -> 9 | AB17: =IF(AA17>0,1,0) -> 1 | AC17: =Maj_abs_tab3(B17) -> 0
B18: EVERE | C18: =Inscrits(B18) -> 23643 | D18: =BDEPOSES(B18) -> 19794 | E18: =100/C18*D18 -> 83.72034006 | F18: =BBN(B18) -> 1716 | G18: =100/C18*F18 -> 7.257962188 | H18: =VOTESV(B18) -> 18078 | I18: =100/C18*H18 -> 76.46237787 | J18: =SIEGES(B18) -> 35 | K18: =C18-D18 -> 3849 | L18: =100/C18*K18 -> 16.27965994 | M18: =C18-H18 -> 5565 | N18: =(100/C18)*M18 -> 23.53762213 | O18: =NBL(B18) -> 8 | P18: =Maj_abs_tab1(B18) -> 0 | Q18: =pc_Vx_LUMA(B18) -> 0 | R18: =IF(Q18>50,1,0) -> 0 | S18: =Nbr_Coal(B18) -> 1 | T18: =pc_Vx_Coal(B18) -> 38.16774521 | U18: =IF(T18>50,1,0) -> 0 | V18: =SBN(B18) -> 2 | W18: =IF(V18>0,1,0) -> 1 | X18: =SND(B18) -> 6 | Y18: =IF(X18>0,1,0) -> 1 | Z18: =Maj_abs_tab2(B18) -> 0 | AA18: =SNV(B18) -> 10 | AB18: =IF(AA18>0,1,0) -> 1 | AC18: =Maj_abs_tab3(B18) -> 0
B19: GANSHOREN | C19: =Inscrits(B19) -> 15260 | D19: =BDEPOSES(B19) -> 13170 | E19: =100/C19*D19 -> 86.30406291 | F19: =BBN(B19) -> 1028 | G19: =100/C19*F19 -> 6.736566186 | H19: =VOTESV(B19) -> 12142 | I19: =100/C19*H19 -> 79.56749672 | J19: =SIEGES(B19) -> 27 | K19: =C19-D19 -> 2090 | L19: =100/C19*K19 -> 13.69593709 | M19: =C19-H19 -> 3118 | N19: =(100/C19)*M19 -> 20.43250328 | O19: =NBL(B19) -> 6 | P19: =Maj_abs_tab1(B19) -> 0 | Q19: =pc_Vx_LUMA(B19) -> 0 | R19: =IF(Q19>50,1,0) -> 0 | S19: =Nbr_Coal(B19) -> 1 | T19: =pc_Vx_Coal(B19) -> 37.66710354 | U19: =IF(T19>50,1,0) -> 0 | V19: =SBN(B19) -> 1 | W19: =IF(V19>0,1,0) -> 1 | X19: =SND(B19) -> 4 | Y19: =IF(X19>0,1,0) -> 1 | Z19: =Maj_abs_tab2(B19) -> 0 | AA19: =SNV(B19) -> 6 | AB19: =IF(AA19>0,1,0) -> 1 | AC19: =Maj_abs_tab3(B19) -> 0
B20: SAINT-JOSSE-TEN-NOODE | C20: =Inscrits(B20) -> 13027 | D20: =BDEPOSES(B20) -> 11124 | E20: =100/C20*D20 -> 85.39187841 | F20: =BBN(B20) -> 713 | G20: =100/C20*F20 -> 5.47324787 | H20: =VOTESV(B20) -> 10411 | I20: =100/C20*H20 -> 79.91863054 | J20: =SIEGES(B20) -> 29 | K20: =C20-D20 -> 1903 | L20: =100/C20*K20 -> 14.60812159 | M20: =C20-H20 -> 2616 | N20: =(100/C20)*M20 -> 20.08136946 | O20: =NBL(B20) -> 7 | P20: =Maj_abs_tab1(B20) -> 1 | Q20: =pc_Vx_LUMA(B20) -> 38.28202963 | R20: =IF(Q20>50,1,0) -> 0 | S20: =Nbr_Coal(B20) -> 0 | T20: =pc_Vx_Coal(B20) -> 0 | U20: =IF(T20>50,1,0) -> 0 | V20: =SBN(B20) -> 1 | W20: =IF(V20>0,1,0) -> 1 | X20: =SND(B20) -> 5 | Y20: =IF(X20>0,1,0) -> 1 | Z20: =Maj_abs_tab2(B20) -> 0 | AA20: =SNV(B20) -> 6 | AB20: =IF(AA20>0,1,0) -> 1 | AC20: =Maj_abs_tab3(B20) -> 0
B22: TOTAUX | C22: =SUM(C2:C20) -> 635328 | D22: =SUM(D2:D20) -> 535366 | E22: =D22 -> 535366 | F22: =SUM(F2:F20) -> 31830 | G22: =F22 -> 31830 | H22: =SUM(H2:H20) -> 503482 | I22: =H22 -> 503482 | J22: =SUM(J2:J20) -> 695 | K22: =SUM(K2:K20) -> 99962 | L22: =K22 -> 99962 | M22: =SUM(M2:M20) -> 131846 | N22: =M22 -> 131846 | O22: =SUM(O2:O20) -> 152 | P22: =SUM(P2:P20) -> 3 | R22: =SUM(R2:R20) -> 0 | S22: =SUM(S2:S20) -> 18 | U22: =SUM(U2:U21) -> 7 | V22: =SUM(V2:V21) -> 22 | W22: =SUM(W2:W21) -> 16 | X22: =SUM(X2:X20) -> 115 | Y22: =SUM(Y2:Y20) -> 19 | Z22: =SUM(Z2:Z20) -> 2 | AA22: =SUM(AA2:AA20) -> 158 | AB22: =SUM(AB2:AB20) -> 19 | AC22: =SUM(AC2:AC20) -> 1
B23: MOYENNES | C23: 100 | E23: =100/C22*D22 -> 84.26607988 | G23: =100/C22*F22 -> 5.010010577 | I23: =100/C22*H22 -> 79.24756976 | L23: =100/C22*K22 -> 15.73392012 | N23: =100/C22*M22 -> 20.75243024 | P23: =100/COUNTA(B2:B20)*P22 -> 15.78947368 | R23: =100/COUNTA(B2:B20)*R22 -> 0 | S23: =100/COUNTA(B2:B20)*S22 -> 94.73684211 | U23: =100/COUNTA(B2:B20)*U22 -> 36.84210526 | V23: =100/J22*V22 -> 3.165467626 | W23: =100/COUNTA(B2:B20)*W22 -> 84.21052632 | X23: =100/J22*X22 -> 16.54676259 | Y23: =100/COUNTA(B2:B20)*Y22 -> 100 | Z23: =100/COUNTA(B2:B20)*Z22 -> 10.52631579 | AA23: =100/J22*AA22 -> 22.73381295 | AB23: =100/COUNTA(B2:B20)*AB22 -> 100 | AC23: =100/COUNTA(B2:B20)*AC22 -> 5.263157895

Sheet Tableaux
A1: Ce tableau est correct si dans l'onglet RÉSULTATS les communes sont classées selon l'ordre décroissant des sièges à pourvoir.
A2: % Inscrits | C2: % Votes Blancs et nuls | E2: % Votes Blancs Selon Opening the opaque blank box 1/3 | G2: % Bulletins Absentéisme électoral | I2: % Votes Non-valables & Absentéisme électoral
A3: =100/RÉSULTATS!$C$22*SUM(RÉSULTATS!C2:C7) -> 23.89159615 | B3: >40 sièges 56,37% / Inscrits | C3: =100/SUM(RÉSULTATS!C2:C6)*SUM(RÉSULTATS!F2:F6) -> 4.503695841 | E3: =C3/3 -> 1.501231947 | G3: =100/SUM(RÉSULTATS!C2:C6)*SUM(RÉSULTATS!K2:K6) -> 13.53216201 | I3: =100/SUM(RÉSULTATS!C2:C6)*SUM(RÉSULTATS!M2:M6) -> 18.07800682
A4: =100/RÉSULTATS!$C$22*SUM(RÉSULTATS!C8:C14) -> 46.04865518 | B4: >35 sièges <40 29,14% / Inscrits | C4: =100/SUM(RÉSULTATS!C7:C18)*SUM(RÉSULTATS!F7:F18) -> 5.077841161 | E4: =C4/3 -> 1.69261372 | G4: =100/SUM(RÉSULTATS!C7:C18)*SUM(RÉSULTATS!K7:K18) -> 16.41847141 | I4: =100/SUM(RÉSULTATS!C7:C18)*SUM(RÉSULTATS!M7:M18) -> 21.49631257
A5: =100/RÉSULTATS!$C$22*SUM(RÉSULTATS!C15:C20) -> 30.05974867 | B5: >0 sièges <35 14,49% / Inscrits | C5: =100/SUM(RÉSULTATS!C19:C20)*SUM(RÉSULTATS!F19:F20) -> 6.154770743 | E5: =C5/3 -> 2.051590248 | G5: =100/SUM(RÉSULTATS!C19:C20)*SUM(RÉSULTATS!K19:K20) -> 14.11602503 | I5: =100/SUM(RÉSULTATS!C19:C20)*SUM(RÉSULTATS!M19:M20) -> 20.27079577

Sheet ANDERLECHT
B2: IMPÉRIALI | AY2: PROPORTIONNELLE PURE | BQ2: D'HONDT
B4: Coalition | C4: x | E4: x | F4: x
B5: =COUNTA(C5:P5) -> 10 | C5: Ecolo-Groen | D5: VLAAMS BELANG | E5: DéFI | F5: PS-sp.a-cdH | G5: CD&V Plus | H5: N-VA | I5: PTB*PVDA | J5: MR-Open Vld-IC | K5: LA DROITE | L5: NATION | R5: Blancs & Nuls | S5: Non-déposés | T5: =C5 -> Ecolo-Groen | U5: =D5 -> VLAAMS BELANG | V5: =E5 -> DéFI | W5: =F5 -> PS-sp.a-cdH | X5: =G5 -> CD&V Plus | Y5: =H5 -> N-VA | Z5: =I5 -> PTB*PVDA | AA5: =J5 -> MR-Open Vld-IC | AB5: =K5 -> LA DROITE | AC5: =L5 -> NATION | AD5: =M5 -> 0 | AE5: =N5 -> 0 | AF5: =O5 -> 0 | AG5: =P5 -> 0 | AI5: Non-valables | AJ5: =C5 -> Ecolo-Groen | AK5: =D5 -> VLAAMS BELANG | AL5: =E5 -> DéFI | AM5: =F5 -> PS-sp.a-cdH | AN5: =G5 -> CD&V Plus | AO5: =H5 -> N-VA | AP5: =I5 -> PTB*PVDA | AQ5: =J5 -> MR-Open Vld-IC | AR5: =K5 -> LA DROITE | AS5: =L5 -> NATION | AT5: =M5 -> 0 | AU5: =N5 -> 0 | AV5: =O5 -> 0 | AW5: =P5 -> 0 | AY5: New Key | AZ5: Blancs & Nuls | BA5: Non-déposés | BB5: =C5 -> Ecolo-Groen | BC5: =D5 -> VLAAMS BELANG | BD5: DéFI | BE5: PS-sp.a-cdH | BF5: CD&V Plus | BG5: N-VA | BH5: PTB*PVDA | BI5: MR-Open Vld-IC | BJ5: LA DROITE | BK5: NATION | BL5: 0 | BM5: 0 | BN5: 0 | BO5: 0 | BR5: =C5 -> Ecolo-Groen | BS5: =D5 -> VLAAMS BELANG | BT5: DéFI | BU5: PS-sp.a-cdH | BV5: CD&V Plus | BW5: N-VA | BX5: PTB*PVDA | BY5: MR-Open Vld-IC | BZ5: LA DROITE | CA5: NATION | CB5: 0 | CC5: 0 | CD5: 0 | CE5: 0 | CG5: Blancs & Nuls | CH5: Non-déposés | CI5: =C5 -> Ecolo-Groen | CJ5: =D5 -> VLAAMS BELANG | CK5: DéFI | CL5: PS-sp.a-cdH | CM5: CD&V Plus | CN5: N-VA | CO5: PTB*PVDA | CP5: MR-Open Vld-IC | CQ5: LA DROITE | CR5: NATION | CS5: 0 | CT5: 0 | CU5: 0 | CV5: 0
B6: Chiffres électoraux | C6: 7320 | D6: 1006 | E6: 3581 | F6: 14023 | G6: 716 | H6: 1950 | I6: 6891 | J6: 10628 | K6: 631 | L6: 428 | M6: 0 | N6: 0 | O6: 0 | P6: 0 | R6: =C65 -> 3729 | S6: =C63-C64 -> 9970 | T6: 7320 | U6: 1006 | V6: 3581 | W6: 14023 | X6: 716 | Y6: 1950 | Z6: 6891 | AA6: 10628 | AB6: 631 | AC6: 428 | AD6: 0 | AE6: 0 | AF6: 0 | AG6: 0 | AI6: =R6+S6 -> 13699 | AJ6: 7320 | AK6: 1006 | AL6: 3581 | AM6: 14023 | AN6: 716 | AO6: 1950 | AP6: 6891 | AQ6: 10628 | AR6: 631 | AS6: 428 | AT6: 0 | AU6: 0 | AV6: 0 | AW6: 0 | AZ6: =C65 -> 3729 | BA6: =C63-C64 -> 9970 | BB6: =C6 -> 7320 | BC6: 1006 | BD6: 3581 | BE6: 14023 | BF6: 716 | BG6: 1950 | BH6: 6891 | BI6: 10628 | BJ6: 631 | BK6: 428 | BL6: 0 | BM6: 0 | BN6: 0 | BO6: 0 | BQ6: Chiffres électoraux | BR6: =C6 -> 7320 | BS6: 1006 | BT6: 3581 | BU6: 14023 | BV6: 716 | BW6: 1950 | BX6: 6891 | BY6: 10628 | BZ6: 631 | CA6: 428 | CB6: 0 | CC6: 0 | CD6: 0 | CE6: 0 | CG6: =C65 -> 3729 | CH6: =C63-C64 -> 9970 | CI6: =C6 -> 7320 | CJ6: 1006 | CK6: 3581 | CL6: 14023 | CM6: 716 | CN6: 1950 | CO6: 6891 | CP6: 10628 | CQ6: 631 | CR6: 428 | CS6: 0 | CT6: 0 | CU6: 0 | CV6: 0
B7: Sièges | C7: 8 | D7: 0 | E7: 3 | F7: 16 | G7: 0 | H7: 1 | I7: 7 | J7: 12 | K7: 0 | L7: 0 | M7: 0 | N7: 0 | O7: 0 | P7: 0 | R7: 2 | S7: 9 | T7: 6 | U7: 0 | V7: 2 | W7: 13 | X7: 0 | Y7: 0 | Z7: 6 | AA7: 9 | AB7: 0 | AC7: 0 | AD7: 0 | AE7: 0 | AF7: 0 | AG7: 0 | AI7: 12 | AJ7: 6 | AK7: 0 | AL7: 2 | AM7: 13 | AN7: 0 | AO7: 0 | AP7: 5 | AQ7: 9 | AR7: 0 | AS7: 0 | AT7: 0 | AU7: 0 | AV7: 0 | AW7: 0 | AY7: 1295.170213 | AZ7: 2.879158247 | BA7: 7.697829908 | BB7: 5.651766793 | BC7: 0.7767318844 | BD7: 2.764887553 | BE7: 10.82714833 | BF7: 0.5528230907 | BG7: 1.505593613 | BH7: 5.320536198 | BI7: 8.20587124 | BJ7: 0.4871946512 | BK7: 0.3304584956 | BL7: 0 | BM7: 0 | BN7: 0 | BO7: 0 | BQ7: Sièges | BR7: 8 | BS7: 1 | BT7: 3 | BU7: 15 | BV7: 0 | BW7: 2 | BX7: 7 | BY7: 11 | BZ7: 0 | CA7: 0 | CB7: 0 | CC7: 0 | CD7: 0 | CE7: 0 | CG7: 3 | CH7: 8 | CI7: 6 | CJ7: 0 | CK7: 3 | CL7: 12 | CM7: 0 | CN7: 1 | CO7: 5 | CP7: 9 | CQ7: 0 | CR7: 0 | CS7: 0 | CT7: 0 | CU7: 0 | CV7: 0
B8: 2 | C8: =$C$6/B8 -> 3660 | D8: =$D$6/B8 -> 503 | E8: =$E$6/B8 -> 1790.5 | F8: =$F$6/B8 -> 7011.5 | G8: =$G$6/B8 -> 358 | H8: =$H$6/B8 -> 975 | I8: =$I$6/B8 -> 3445.5 | J8: =$J$6/B8 -> 5314 | K8: =$K$6/B8 -> 315.5 | L8: =$L$6/B8 -> 214 | M8: =$M$6/B8 -> 0 | N8: =$N$6/B8 -> 0 | O8: =$O$6/B8 -> 0 | P8: =$P$6/B8 -> 0 | R8: =$R$6/B8 -> 1864.5 | S8: =$S$6/B8 -> 4985 | T8: =C8 -> 3660 | U8: =D8 -> 503 | V8: =E8 -> 1790.5 | W8: =F8 -> 7011.5 | X8: =G8 -> 358 | Y8: =H8 -> 975 | Z8: =I8 -> 3445.5 | AA8: =J8 -> 5314 | AB8: =K8 -> 315.5 | AC8: =L8 -> 214 | AD8: =M8 -> 0 | AE8: 0 | AF8: =O8 -> 0 | AG8: =P8 -> 0 | AI8: =$AI$6/B8 -> 6849.5 | AJ8: =C8 -> 3660 | AK8: =D8 -> 503 | AL8: =E8 -> 1790.5 | AM8: =F8 -> 7011.5 | AN8: =G8 -> 358 | AO8: =H8 -> 975 | AP8: =I8 -> 3445.5 | AQ8: =J8 -> 5314 | AR8: =K8 -> 315.5 | AS8: =L8 -> 214 | AT8: =M8 -> 0 | AU8: 0 | AV8: =O8 -> 0 | AW8: =P8 -> 0 | BQ8: 1 | BR8: =$C$6/BQ8 -> 7320 | BS8: =$D$6/BQ8 -> 1006 | BT8: =$E$6/BQ8 -> 3581 | BU8: =$F$6/BQ8 -> 14023 | BV8: =$G$6/BQ8 -> 716 | BW8: =$H$6/BQ8 -> 1950 | BX8: =$I$6/BQ8 -> 6891 | BY8: =$J$6/BQ8 -> 10628 | BZ8: =$K$6/BQ8 -> 631 | CA8: =$L$6/BQ8 -> 428 | CB8: =$M$6/BQ8 -> 0 | CC8: =$N$6/BQ8 -> 0 | CD8: =$O$6/BQ8 -> 0 | CE8: =$P$6/BQ8 -> 0 | CG8: =$R$6/BQ8 -> 3729 | CH8: =$S$6/BQ8 -> 9970 | CI8: =BR8 -> 7320 | CJ8: =BS8 -> 1006 | CK8: =BT8 -> 3581 | CL8: =BU8 -> 14023 | CM8: =BV8 -> 716 | CN8: =BW8 -> 1950 | CO8: =BX8 -> 6891 | CP8: =BY8 -> 10628 | CQ8: =BZ8 -> 631 | CR8: =CA8 -> 428 | CS8: =CB8 -> 0 | CT8: =CC8 -> 0 | CU8: =CD8 -> 0 | CV8: =CE8 -> 0
B9: 3 | C9: =$C$6/B9 -> 2440 | D9: 335.3333333 | E9: =$E$6/B9 -> 1193.666667 | F9: 4674.333333 | G9: 238.6666667 | H9: =$H$6/B9 -> 650 | I9: =$I$6/B9 -> 2297 | J9: =$J$6/B9 -> 3542.666667 | K9: =$K$6/B9 -> 210.3333333 | L9: =$L$6/B9 -> 142.6666667 | M9: 0 | N9: 0 | O9: =$O$6/B9 -> 0 | P9: 0 | R9: 1243 | S9: 3323.333333 | T9: 2440 | U9: 335.3333333 | V9: 1193.666667 | W9: 4674.333333 | X9: 238.6666667 | Y9: 650 | Z9: 2297 | AA9: 3542.666667 | AB9: 210.3333333 | AC9: 142.6666667 | AD9: 0 | AE9: 0 | AF9: 0 | AG9: 0 | AI9: 4566.333333 | AJ9: 2440 | AK9: 335.3333333 | AL9: 1193.666667 | AM9: 4674.333333 | AN9: 238.6666667 | AO9: 650 | AP9: 2297 | AQ9: 3542.666667 | AR9: 210.3333333 | AS9: 142.6666667 | AT9: 0 | AU9: 0 | AV9: 0 | AW9: 0 | BQ9: 2 | BR9: =$C$6/BQ9 -> 3660 | BS9: 503 | BT9: =$E$6/BQ9 -> 1790.5 | BU9: 7011.5 | BV9: 358 | BW9: =$H$6/BQ9 -> 975 | BX9: =$I$6/BQ9 -> 3445.5 | BY9: =$J$6/BQ9 -> 5314 | BZ9: =$K$6/BQ9 -> 315.5 | CA9: =$L$6/BQ9 -> 214 | CB9: 0 | CC9: 0 | CD9: =$O$6/BQ9 -> 0 | CE9: 0 | CG9: 1864.5 | CH9: 4985 | CI9: 3660 | CJ9: 503 | CK9: 1790.5 | CL9: 7011.5 | CM9: 358 | CN9: 975 | CO9: 3445.5 | CP9: 5314 | CQ9: 315.5 | CR9: 214 | CS9: 0 | CT9: 0 | CU9: 0 | CV9: 0
B10: 4 | C10: 1830 | D10: 251.5 | E10: 895.25 | F10: 3505.75 | G10: 179 | H10: 487.5 | I10: 1722.75 | J10: 2657 | K10: 157.75 | L10: 107 | M10: 0 | N10: 0 | O10: 0 | P10: 0 | R10: 932.25 | S10: 2492.5 | T10: 1830 | U10: 251.5 | V10: 895.25 | W10: 3505.75 | X10: 179 | Y10: 487.5 | Z10: 1722.75 | AA10: 2657 | AB10: 157.75 | AC10: 107 | AD10: 0 | AE10: 0 | AF10: 0 | AG10: 0 | AI10: 3424.75 | AJ10: 1830 | AK10: 251.5 | AL10: 895.25 | AM10: 3505.75 | AN10: 179 | AO10: 487.5 | AP10: 1722.75 | AQ10: 2657 | AR10: 157.75 | AS10: 107 | AT10: 0 | AU10: 0 | AV10: 0 | AW10: 0 | BQ10: 3 | BR10: 2440 | BS10: 335.3333333 | BT10: 1193.666667 | BU10: 4674.333333 | BV10: 238.6666667 | BW10: 650 | BX10: 2297 | BY10: 3542.666667 | BZ10: 210.3333333 | CA10: 142.6666667 | CB10: 0 | CC10: 0 | CD10: 0 | CE10: 0 | CG10: 1243 | CH10: 3323.333333 | CI10: 2440 | CJ10: 335.3333333 | CK10: 1193.666667 | CL10: 4674.333333 | CM10: 238.6666667 | CN10: 650 | CO10: 2297 | CP10: 3542.666667 | CQ10: 210.3333333 | CR10: 142.6666667 | CS10: 0 | CT10: 0 | CU10: 0 | CV10: 0
B11: 5 | C11: 1464 | D11: 201.2 | E11: 716.2 | F11: 2804.6 | G11: 143.2 | H11: 390 | I11: 1378.2 | J11: 2125.6 | K11: 126.2 | L11: 85.6 | M11: 0 | N11: 0 | O11: 0 | P11: 0 | R11: 745.8 | S11: 1994 | T11: 1464 | U11: 201.2 | V11: 716.2 | W11: 2804.6 | X11: 143.2 | Y11: 390 | Z11: 1378.2 | AA11: 2125.6 | AB11: 126.2 | AC11: 85.6 | AD11: 0 | AE11: 0 | AF11: 0 | AG11: 0 | AI11: 2739.8 | AJ11: 1464 | AK11: 201.2 | AL11: 716.2 | AM11: 2804.6 | AN11: 143.2 | AO11: 390 | AP11: 1378.2 | AQ11: 2125.6 | AR11: 126.2 | AS11: 85.6 | AT11: 0 | AU11: 0 | AV11: 0 | AW11: 0 | BQ11: 4 | BR11: 1830 | BS11: 251.5 | BT11: 895.25 | BU11: 3505.75 | BV11: 179 | BW11: 487.5 | BX11: 1722.75 | BY11: 2657 | BZ11: 157.75 | CA11: 107 | CB11: 0 | CC11: 0 | CD11: 0 | CE11: 0 | CG11: 932.25 | CH11: 2492.5 | CI11: 1830 | CJ11: 251.5 | CK11: 895.25 | CL11: 3505.75 | CM11: 179 | CN11: 487.5 | CO11: 1722.75 | CP11: 2657 | CQ11: 157.75 | CR11: 107 | CS11: 0 | CT11: 0 | CU11: 0 | CV11: 0
B12: 6 | C12: 1220 | D12: 167.6666667 | E12: 596.8333333 | F12: 2337.166667 | G12: 119.3333333 | H12: 325 | I12: 1148.5 | J12: 1771.333333 | K12: 105.1666667 | L12: 71.33333333 | M12: 0 | N12: 0 | O12: 0 | P12: 0 | R12: 621.5 | S12: 1661.666667 | T12: 1220 | U12: 167.6666667 | V12: 596.8333333 | W12: 2337.166667 | X12: 119.3333333 | Y12: 325 | Z12: 1148.5 | AA12: 1771.333333 | AB12: 105.1666667 | AC12: 71.33333333 | AD12: 0 | AE12: 0 | AF12: 0 | AG12: 0 | AI12: 2283.166667 | AJ12: 1220 | AK12: 167.6666667 | AL12: 596.8333333 | AM12: 2337.166667 | AN12: 119.3333333 | AO12: 325 | AP12: 1148.5 | AQ12: 1771.333333 | AR12: 105.1666667 | AS12: 71.33333333 | AT12: 0 | AU12: 0 | AV12: 0 | AW12: 0 | BQ12: 5 | BR12: 1464 | BS12: 201.2 | BT12: 716.2 | BU12: 2804.6 | BV12: 143.2 | BW12: 390 | BX12: 1378.2 | BY12: 2125.6 | BZ12: 126.2 | CA12: 85.6 | CB12: 0 | CC12: 0 | CD12: 0 | CE12: 0 | CG12: 745.8 | CH12: 1994 | CI12: 1464 | CJ12: 201.2 | CK12: 716.2 | CL12: 2804.6 | CM12: 143.2 | CN12: 390 | CO12: 1378.2 | CP12: 2125.6 | CQ12: 126.2 | CR12: 85.6 | CS12: 0 | CT12: 0 | CU12: 0 | CV12: 0
B13: 7 | C13: 1045.714286 | D13: 143.7142857 | E13: 511.5714286 | F13: 2003.285714 | G13: 102.2857143 | H13: 278.5714286 | I13: 984.4285714 | J13: 1518.285714 | K13: 90.14285714 | L13: 61.14285714 | M13: 0 | N13: 0 | O13: 0 | P13: 0 | R13: 532.7142857 | S13: 1424.285714 | T13: 1045.714286 | U13: 143.7142857 | V13: 511.5714286 | W13: 2003.285714 | X13: 102.2857143 | Y13: 278.5714286 | Z13: 984.4285714 | AA13: 1518.285714 | AB13: 90.14285714 | AC13: 61.14285714 | AD13: 0 | AE13: 0 | AF13: 0 | AG13: 0 | AI13: 1957 | AJ13: 1045.714286 | AK13: 143.7142857 | AL13: 511.5714286 | AM13: 2003.285714 | AN13: 102.2857143 | AO13: 278.5714286 | AP13: 984.4285714 | AQ13: 1518.285714 | AR13: 90.14285714 | AS13: 61.14285714 | AT13: 0 | AU13: 0 | AV13: 0 | AW13: 0 | BQ13: 6 | BR13: 1220 | BS13: 167.6666667 | BT13: 596.8333333 | BU13: 2337.166667 | BV13: 119.3333333 | BW13: 325 | BX13: 1148.5 | BY13: 1771.333333 | BZ13: 105.1666667 | CA13: 71.33333333 | CB13: 0 | CC13: 0 | CD13: 0 | CE13: 0 | CG13: 621.5 | CH13: 1661.666667 | CI13: 1220 | CJ13: 167.6666667 | CK13: 596.8333333 | CL13: 2337.166667 | CM13: 119.3333333 | CN13: 325 | CO13: 1148.5 | CP13: 1771.333333 | CQ13: 105.1666667 | CR13: 71.33333333 | CS13: 0 | CT13: 0 | CU13: 0 | CV13: 0
B14: 8 | C14: 915 | D14: 125.75 | E14: 447.625 | F14: 1752.875 | G14: 89.5 | H14: 243.75 | I14: 861.375 | J14: 1328.5 | K14: 78.875 | L14: 53.5 | M14: 0 | N14: 0 | O14: 0 | P14: 0 | R14: 466.125 | S14: 1246.25 | T14: 915 | U14: 125.75 | V14: 447.625 | W14: 1752.875 | X14: 89.5 | Y14: 243.75 | Z14: 861.375 | AA14: 1328.5 | AB14: 78.875 | AC14: 53.5 | AD14: 0 | AE14: 0 | AF14: 0 | AG14: 0 | AI14: 1712.375 | AJ14: 915 | AK14: 125.75 | AL14: 447.625 | AM14: 1752.875 | AN14: 89.5 | AO14: 243.75 | AP14: 861.375 | AQ14: 1328.5 | AR14: 78.875 | AS14: 53.5 | AT14: 0 | AU14: 0 | AV14: 0 | AW14: 0 | BQ14: 7 | BR14: 1045.714286 | BS14: 143.7142857 | BT14: 511.5714286 | BU14: 2003.285714 | BV14: 102.2857143 | BW14: 278.5714286 | BX14: 984.4285714 | BY14: 1518.285714 | BZ14: 90.14285714 | CA14: 61.14285714 | CB14: 0 | CC14: 0 | CD14: 0 | CE14: 0 | CG14: 532.7142857 | CH14: 1424.285714 | CI14: 1045.714286 | CJ14: 143.7142857 | CK14: 511.5714286 | CL14: 2003.285714 | CM14: 102.2857143 | CN14: 278.5714286 | CO14: 984.4285714 | CP14: 1518.285714 | CQ14: 90.14285714 | CR14: 61.14285714 | CS14: 0 | CT14: 0 | CU14: 0 | CV14: 0
B15: 9 | C15: 813.3333333 | D15: 111.7777778 | E15: 397.8888889 | F15: 1558.111111 | G15: 79.55555556 | H15: 216.6666667 | I15: 765.6666667 | J15: 1180.888889 | K15: 70.11111111 | L15: 47.55555556 | M15: 0 | N15: 0 | O15: 0 | P15: 0 | R15: 414.3333333 | S15: 1107.777778 | T15: 813.3333333 | U15: 111.7777778 | V15: 397.8888889 | W15: 1558.111111 | X15: 79.55555556 | Y15: 216.6666667 | Z15: 765.6666667 | AA15: 1180.888889 | AB15: 70.11111111 | AC15: 47.55555556 | AD15: 0 | AE15: 0 | AF15: 0 | AG15: 0 | AI15: 1522.111111 | AJ15: 813.3333333 | AK15: 111.7777778 | AL15: 397.8888889 | AM15: 1558.111111 | AN15: 79.55555556 | AO15: 216.6666667 | AP15: 765.6666667 | AQ15: 1180.888889 | AR15: 70.11111111 | AS15: 47.55555556 | AT15: 0 | AU15: 0 | AV15: 0 | AW15: 0 | BQ15: 8 | BR15: 915 | BS15: 125.75 | BT15: 447.625 | BU15: 1752.875 | BV15: 89.5 | BW15: 243.75 | BX15: 861.375 | BY15: 1328.5 | BZ15: 78.875 | CA15: 53.5 | CB15: 0 | CC15: 0 | CD15: 0 | CE15: 0 | CG15: 466.125 | CH15: 1246.25 | CI15: 915 | CJ15: 125.75 | CK15: 447.625 | CL15: 1752.875 | CM15: 89.5 | CN15: 243.75 | CO15: 861.375 | CP15: 1328.5 | CQ15: 78.875 | CR15: 53.5 | CS15: 0 | CT15: 0 | CU15: 0 | CV15: 0
B16: 10 | C16: 732 | D16: 100.6 | E16: 358.1 | F16: 1402.3 | G16: 71.6 | H16: 195 | I16: 689.1 | J16: 1062.8 | K16: 63.1 | L16: 42.8 | M16: 0 | N16: 0 | O16: 0 | P16: 0 | R16: 372.9 | S16: 997 | T16: 732 | U16: 100.6 | V16: 358.1 | W16: 1402.3 | X16: 71.6 | Y16: 195 | Z16: 689.1 | AA16: 1062.8 | AB16: 63.1 | AC16: 42.8 | AD16: 0 | AE16: 0 | AF16: 0 | AG16: 0 | AI16: 1369.9 | AJ16: 732 | AK16: 100.6 | AL16: 358.1 | AM16: 1402.3 | AN16: 71.6 | AO16: 195 | AP16: 689.1 | AQ16: 1062.8 | AR16: 63.1 | AS16: 42.8 | AT16: 0 | AU16: 0 | AV16: 0 | AW16: 0 | BQ16: 9 | BR16: 813.3333333 | BS16: 111.7777778 | BT16: 397.8888889 | BU16: 1558.111111 | BV16: 79.55555556 | BW16: 216.6666667 | BX16: 765.6666667 | BY16: 1180.888889 | BZ16: 70.11111111 | CA16: 47.55555556 | CB16: 0 | CC16: 0 | CD16: 0 | CE16: 0 | CG16: 414.3333333 | CH16: 1107.777778 | CI16: 813.3333333 | CJ16: 111.7777778 | CK16: 397.8888889 | CL16: 1558.111111 | CM16: 79.55555556 | CN16: 216.6666667 | CO16: 765.6666667 | CP16: 1180.888889 | CQ16: 70.11111111 | CR16: 47.55555556 | CS16: 0 | CT16: 0 | CU16: 0 | CV16: 0
B17: 11 | C17: 665.4545455 | D17: 91.45454545 | E17: 325.5454545 | F17: 1274.818182 | G17: 65.09090909 | H17: 177.2727273 | I17: 626.4545455 | J17: 966.1818182 | K17: 57.36363636 | L17: 38.90909091 | M17: 0 | N17: 0 | O17: 0 | P17: 0 | R17: 339 | S17: 906.3636364 | T17: 665.4545455 | U17: 91.45454545 | V17: 325.5454545 | W17: 1274.818182 | X17: 65.09090909 | Y17: 177.2727273 | Z17: 626.4545455 | AA17: 966.1818182 | AB17: 57.36363636 | AC17: 38.90909091 | AD17: 0 | AE17: 0 | AF17: 0 | AG17: 0 | AI17: 1245.363636 | AJ17: 665.4545455 | AK17: 91.45454545 | AL17: 325.5454545 | AM17: 1274.818182 | AN17: 65.09090909 | AO17: 177.2727273 | AP17: 626.4545455 | AQ17: 966.1818182 | AR17: 57.36363636 | AS17: 38.90909091 | AT17: 0 | AU17: 0 | AV17: 0 | AW17: 0 | BQ17: 10 | BR17: 732 | BS17: 100.6 | BT17: 358.1 | BU17: 1402.3 | BV17: 71.6 | BW17: 195 | BX17: 689.1 | BY17: 1062.8 | BZ17: 63.1 | CA17: 42.8 | CB17: 0 | CC17: 0 | CD17: 0 | CE17: 0 | CG17: 372.9 | CH17: 997 | CI17: 732 | CJ17: 100.6 | CK17: 358.1 | CL17: 1402.3 | CM17: 71.6 | CN17: 195 | CO17: 689.1 | CP17: 1062.8 | CQ17: 63.1 | CR17: 42.8 | CS17: 0 | CT17: 0 | CU17: 0 | CV17: 0
B18: 12 | C18: 610 | D18: 83.83333333 | E18: 298.4166667 | F18: 1168.583333 | G18: 59.66666667 | H18: 162.5 | I18: 574.25 | J18: 885.6666667 | K18: 52.58333333 | L18: 35.66666667 | M18: 0 | N18: 0 | O18: 0 | P18: 0 | R18: 310.75 | S18: 830.8333333 | T18: 610 | U18: 83.83333333 | V18: 298.4166667 | W18: 1168.583333 | X18: 59.66666667 | Y18: 162.5 | Z18: 574.25 | AA18: 885.6666667 | AB18: 52.58333333 | AC18: 35.66666667 | AD18: 0 | AE18: 0 | AF18: 0 | AG18: 0 | AI18: 1141.583333 | AJ18: 610 | AK18: 83.83333333 | AL18: 298.4166667 | AM18: 1168.583333 | AN18: 59.66666667 | AO18: 162.5 | AP18: 574.25 | AQ18: 885.6666667 | AR18: 52.58333333 | AS18: 35.66666667 | AT18: 0 | AU18: 0 | AV18: 0 | AW18: 0 | BQ18: 11 | BR18: 665.4545455 | BS18: 91.45454545 | BT18: 325.5454545 | BU18: 1274.818182 | BV18: 65.09090909 | BW18: 177.2727273 | BX18: 626.4545455 | BY18: 966.1818182 | BZ18: 57.36363636 | CA18: 38.90909091 | CB18: 0 | CC18: 0 | CD18: 0 | CE18: 0 | CG18: 339 | CH18: 906.3636364 | CI18: 665.4545455 | CJ18: 91.45454545 | CK18: 325.5454545 | CL18: 1274.818182 | CM18: 65.09090909 | CN18: 177.2727273 | CO18: 626.4545455 | CP18: 966.1818182 | CQ18: 57.36363636 | CR18: 38.90909091 | CS18: 0 | CT18: 0 | CU18: 0 | CV18: 0
B19: 13 | C19: 563.0769231 | D19: 77.38461538 | E19: 275.4615385 | F19: 1078.692308 | G19: 55.07692308 | H19: 150 | I19: 530.0769231 | J19: 817.5384615 | K19: 48.53846154 | L19: 32.92307692 | M19: 0 | N19: 0 | O19: 0 | P19: 0 | R19: 286.8461538 | S19: 766.9230769 | T19: 563.0769231 | U19: 77.38461538 | V19: 275.4615385 | W19: 1078.692308 | X19: 55.07692308 | Y19: 150 | Z19: 530.0769231 | AA19: 817.5384615 | AB19: 48.53846154 | AC19: 32.92307692 | AD19: 0 | AE19: 0 | AF19: 0 | AG19: 0 | AI19: 1053.769231 | AJ19: 563.0769231 | AK19: 77.38461538 | AL19: 275.4615385 | AM19: 1078.692308 | AN19: 55.07692308 | AO19: 150 | AP19: 530.0769231 | AQ19: 817.5384615 | AR19: 48.53846154 | AS19: 32.92307692 | AT19: 0 | AU19: 0 | AV19: 0 | AW19: 0 | BQ19: 12 | BR19: 610 | BS19: 83.83333333 | BT19: 298.4166667 | BU19: 1168.583333 | BV19: 59.66666667 | BW19: 162.5 | BX19: 574.25 | BY19: 885.6666667 | BZ19: 52.58333333 | CA19: 35.66666667 | CB19: 0 | CC19: 0 | CD19: 0 | CE19: 0 | CG19: 310.75 | CH19: 830.8333333 | CI19: 610 | CJ19: 83.83333333 | CK19: 298.4166667 | CL19: 1168.583333 | CM19: 59.66666667 | CN19: 162.5 | CO19: 574.25 | CP19: 885.6666667 | CQ19: 52.58333333 | CR19: 35.66666667 | CS19: 0 | CT19: 0 | CU19: 0 | CV19: 0
B20: 14 | C20: 522.8571429 | D20: 71.85714286 | E20: 255.7857143 | F20: 1001.642857 | G20: 51.14285714 | H20: 139.2857143 | I20: 492.2142857 | J20: 759.1428571 | K20: 45.07142857 | L20: 30.57142857 | M20: 0 | N20: 0 | O20: 0 | P20: 0 | R20: 266.3571429 | S20: 712.1428571 | T20: 522.8571429 | U20: 71.85714286 | V20: 255.7857143 | W20: 1001.642857 | X20: 51.14285714 | Y20: 139.2857143 | Z20: 492.2142857 | AA20: 759.1428571 | AB20: 45.07142857 | AC20: 30.57142857 | AD20: 0 | AE20: 0 | AF20: 0 | AG20: 0 | AI20: 978.5 | AJ20: 522.8571429 | AK20: 71.85714286 | AL20: 255.7857143 | AM20: 1001.642857 | AN20: 51.14285714 | AO20: 139.2857143 | AP20: 492.2142857 | AQ20: 759.1428571 | AR20: 45.07142857 | AS20: 30.57142857 | AT20: 0 | AU20: 0 | AV20: 0 | AW20: 0 | BQ20: 13 | BR20: 563.0769231 | BS20: 77.38461538 | BT20: 275.4615385 | BU20: 1078.692308 | BV20: 55.07692308 | BW20: 150 | BX20: 530.0769231 | BY20: 817.5384615 | BZ20: 48.53846154 | CA20: 32.92307692 | CB20: 0 | CC20: 0 | CD20: 0 | CE20: 0 | CG20: 286.8461538 | CH20: 766.9230769 | CI20: 563.0769231 | CJ20: 77.38461538 | CK20: 275.4615385 | CL20: 1078.692308 | CM20: 55.07692308 | CN20: 150 | CO20: 530.0769231 | CP20: 817.5384615 | CQ20: 48.53846154 | CR20: 32.92307692 | CS20: 0 | CT20: 0 | CU20: 0 | CV20: 0
B21: 15 | C21: 488 | D21: 67.06666667 | E21: 238.7333333 | F21: 934.8666667 | G21: 47.73333333 | H21: 130 | I21: 459.4 | J21: 708.5333333 | K21: 42.06666667 | L21: 28.53333333 | M21: 0 | N21: 0 | O21: 0 | P21: 0 | R21: 248.6 | S21: 664.6666667 | T21: 488 | U21: 67.06666667 | V21: 238.7333333 | W21: 934.8666667 | X21: 47.73333333 | Y21: 130 | Z21: 459.4 | AA21: 708.5333333 | AB21: 42.06666667 | AC21: 28.53333333 | AD21: 0 | AE21: 0 | AF21: 0 | AG21: 0 | AI21: 913.2666667 | AJ21: 488 | AK21: 67.06666667 | AL21: 238.7333333 | AM21: 934.8666667 | AN21: 47.73333333 | AO21: 130 | AP21: 459.4 | AQ21: 708.5333333 | AR21: 42.06666667 | AS21: 28.53333333 | AT21: 0 | AU21: 0 | AV21: 0 | AW21: 0 | BQ21: 14 | BR21: 522.8571429 | BS21: 71.85714286 | BT21: 255.7857143 | BU21: 1001.642857 | BV21: 51.14285714 | BW21: 139.2857143 | BX21: 492.2142857 | BY21: 759.1428571 | BZ21: 45.07142857 | CA21: 30.57142857 | CB21: 0 | CC21: 0 | CD21: 0 | CE21: 0 | CG21: 266.3571429 | CH21: 712.1428571 | CI21: 522.8571429 | CJ21: 71.85714286 | CK21: 255.7857143 | CL21: 1001.642857 | CM21: 51.14285714 | CN21: 139.2857143 | CO21: 492.2142857 | CP21: 759.1428571 | CQ21: 45.07142857 | CR21: 30.57142857 | CS21: 0 | CT21: 0 | CU21: 0 | CV21: 0
B22: 16 | C22: 457.5 | D22: 62.875 | E22: 223.8125 | F22: 876.4375 | G22: 44.75 | H22: 121.875 | I22: 430.6875 | J22: 664.25 | K22: 39.4375 | L22: 26.75 | M22: 0 | N22: 0 | O22: 0 | P22: 0 | R22: 233.0625 | S22: 623.125 | T22: 457.5 | U22: 62.875 | V22: 223.8125 | W22: 876.4375 | X22: 44.75 | Y22: 121.875 | Z22: 430.6875 | AA22: 664.25 | AB22: 39.4375 | AC22: 26.75 | AD22: 0 | AE22: 0 | AF22: 0 | AG22: 0 | AI22: 856.1875 | AJ22: 457.5 | AK22: 62.875 | AL22: 223.8125 | AM22: 876.4375 | AN22: 44.75 | AO22: 121.875 | AP22: 430.6875 | AQ22: 664.25 | AR22: 39.4375 | AS22: 26.75 | AT22: 0 | AU22: 0 | AV22: 0 | AW22: 0 | BQ22: 15 | BR22: 488 | BS22: 67.06666667 | BT22: 238.7333333 | BU22: 934.8666667 | BV22: 47.73333333 | BW22: 130 | BX22: 459.4 | BY22: 708.5333333 | BZ22: 42.06666667 | CA22: 28.53333333 | CB22: 0 | CC22: 0 | CD22: 0 | CE22: 0 | CG22: 248.6 | CH22: 664.6666667 | CI22: 488 | CJ22: 67.06666667 | CK22: 238.7333333 | CL22: 934.8666667 | CM22: 47.73333333 | CN22: 130 | CO22: 459.4 | CP22: 708.5333333 | CQ22: 42.06666667 | CR22: 28.53333333 | CS22: 0 | CT22: 0 | CU22: 0 | CV22: 0
B23: 17 | C23: 430.5882353 | D23: 59.17647059 | E23: 210.6470588 | F23: 824.8823529 | G23: 42.11764706 | H23: 114.7058824 | I23: 405.3529412 | J23: 625.1764706 | K23: 37.11764706 | L23: 25.17647059 | M23: 0 | N23: 0 | O23: 0 | P23: 0 | R23: 219.3529412 | S23: 586.4705882 | T23: 430.5882353 | U23: 59.17647059 | V23: 210.6470588 | W23: 824.8823529 | X23: 42.11764706 | Y23: 114.7058824 | Z23: 405.3529412 | AA23: 625.1764706 | AB23: 37.11764706 | AC23: 25.17647059 | AD23: 0 | AE23: 0 | AF23: 0 | AG23: 0 | AI23: 805.8235294 | AJ23: 430.5882353 | AK23: 59.17647059 | AL23: 210.6470588 | AM23: 824.8823529 | AN23: 42.11764706 | AO23: 114.7058824 | AP23: 405.3529412 | AQ23: 625.1764706 | AR23: 37.11764706 | AS23: 25.17647059 | AT23: 0 | AU23: 0 | AV23: 0 | AW23: 0 | BQ23: 16 | BR23: 457.5 | BS23: 62.875 | BT23: 223.8125 | BU23: 876.4375 | BV23: 44.75 | BW23: 121.875 | BX23: 430.6875 | BY23: 664.25 | BZ23: 39.4375 | CA23: 26.75 | CB23: 0 | CC23: 0 | CD23: 0 | CE23: 0 | CG23: 233.0625 | CH23: 623.125 | CI23: 457.5 | CJ23: 62.875 | CK23: 223.8125 | CL23: 876.4375 | CM23: 44.75 | CN23: 121.875 | CO23: 430.6875 | CP23: 664.25 | CQ23: 39.4375 | CR23: 26.75 | CS23: 0 | CT23: 0 | CU23: 0 | CV23: 0
B24: 18 | C24: 406.6666667 | D24: 55.88888889 | E24: 198.9444444 | F24: 779.0555556 | G24: 39.77777778 | H24: 108.3333333 | I24: 382.8333333 | J24: 590.4444444 | K24: 35.05555556 | L24: 23.77777778 | M24: 0 | N24: 0 | O24: 0 | P24: 0 | R24: 207.1666667 | S24: 553.8888889 | T24: 406.6666667 | U24: 55.88888889 | V24: 198.9444444 | W24: 779.0555556 | X24: 39.77777778 | Y24: 108.3333333 | Z24: 382.8333333 | AA24: 590.4444444 | AB24: 35.05555556 | AC24: 23.77777778 | AD24: =M24 -> 0 | AE24: 0 | AF24: 0 | AG24: 0 | AI24: 761.0555556 | AJ24: 406.6666667 | AK24: 55.88888889 | AL24: 198.9444444 | AM24: 779.0555556 | AN24: 39.77777778 | AO24: 108.3333333 | AP24: 382.8333333 | AQ24: 590.4444444 | AR24: 35.05555556 | AS24: 23.77777778 | AT24: =M24 -> 0 | AU24: 0 | AV24: 0 | AW24: 0 | BQ24: 17 | BR24: 430.5882353 | BS24: 59.17647059 | BT24: 210.6470588 | BU24: 824.8823529 | BV24: 42.11764706 | BW24: 114.7058824 | BX24: 405.3529412 | BY24: 625.1764706 | BZ24: 37.11764706 | CA24: 25.17647059 | CB24: 0 | CC24: 0 | CD24: 0 | CE24: 0 | CG24: 219.3529412 | CH24: 586.4705882 | CI24: 430.5882353 | CJ24: 59.17647059 | CK24: 210.6470588 | CL24: 824.8823529 | CM24: 42.11764706 | CN24: 114.7058824 | CO24: 405.3529412 | CP24: 625.1764706 | CQ24: 37.11764706 | CR24: 25.17647059 | CS24: 0 | CT24: 0 | CU24: 0 | CV24: 0
B25: 19 | C25: 385.2631579 | D25: 52.94736842 | E25: 188.4736842 | F25: 738.0526316 | G25: 37.68421053 | H25: 102.6315789 | I25: 362.6842105 | J25: 559.3684211 | K25: 33.21052632 | L25: 22.52631579 | M25: 0 | N25: 0 | O25: 0 | P25: 0 | R25: 196.2631579 | S25: 524.7368421 | T25: 385.2631579 | U25: 52.94736842 | V25: 188.4736842 | W25: 738.0526316 | X25: 37.68421053 | Y25: 102.6315789 | Z25: 362.6842105 | AA25: 559.3684211 | AB25: 33.21052632 | AC25: 22.52631579 | AD25: 0 | AE25: 0 | AF25: 0 | AG25: 0 | AI25: 721 | AJ25: 385.2631579 | AK25: 52.94736842 | AL25: 188.4736842 | AM25: 738.0526316 | AN25: 37.68421053 | AO25: 102.6315789 | AP25: 362.6842105 | AQ25: 559.3684211 | AR25: 33.21052632 | AS25: 22.52631579 | AT25: 0 | AU25: 0 | AV25: 0 | AW25: 0 | BQ25: 18 | BR25: 406.6666667 | BS25: 55.88888889 | BT25: 198.9444444 | BU25: 779.0555556 | BV25: 39.77777778 | BW25: 108.3333333 | BX25: 382.8333333 | BY25: 590.4444444 | BZ25: 35.05555556 | CA25: 23.77777778 | CB25: 0 | CC25: 0 | CD25: 0 | CE25: 0 | CG25: 207.1666667 | CH25: 553.8888889 | CI25: 406.6666667 | CJ25: 55.88888889 | CK25: 198.9444444 | CL25: 779.0555556 | CM25: 39.77777778 | CN25: 108.3333333 | CO25: 382.8333333 | CP25: 590.4444444 | CQ25: 35.05555556 | CR25: 23.77777778 | CS25: 0 | CT25: 0 | CU25: 0 | CV25: 0
B26: 20 | C26: 366 | D26: 50.3 | E26: 179.05 | F26: 701.15 | G26: 35.8 | H26: 97.5 | I26: 344.55 | J26: 531.4 | K26: 31.55 | L26: 21.4 | M26: 0 | N26: 0 | O26: 0 | P26: 0 | R26: 186.45 | S26: 498.5 | T26: 366 | U26: 50.3 | V26: 179.05 | W26: 701.15 | X26: 35.8 | Y26: 97.5 | Z26: 344.55 | AA26: 531.4 | AB26: 31.55 | AC26: 21.4 | AD26: 0 | AE26: 0 | AF26: 0 | AG26: 0 | AI26: 684.95 | AJ26: 366 | AK26: 50.3 | AL26: 179.05 | AM26: 701.15 | AN26: 35.8 | AO26: 97.5 | AP26: 344.55 | AQ26: 531.4 | AR26: 31.55 | AS26: 21.4 | AT26: 0 | AU26: 0 | AV26: 0 | AW26: 0 | BQ26: 19 | BR26: 385.2631579 | BS26: 52.94736842 | BT26: 188.4736842 | BU26: 738.0526316 | BV26: 37.68421053 | BW26: 102.6315789 | BX26: 362.6842105 | BY26: 559.3684211 | BZ26: 33.21052632 | CA26: 22.52631579 | CB26: 0 | CC26: 0 | CD26: 0 | CE26: 0 | CG26: 196.2631579 | CH26: 524.7368421 | CI26: 385.2631579 | CJ26: 52.94736842 | CK26: 188.4736842 | CL26: 738.0526316 | CM26: 37.68421053 | CN26: 102.6315789 | CO26: 362.6842105 | CP26: 559.3684211 | CQ26: 33.21052632 | CR26: 22.52631579 | CS26: 0 | CT26: 0 | CU26: 0 | CV26: 0
B27: 21 | C27: 348.5714286 | D27: 47.9047619 | E27: 170.5238095 | F27: 667.7619048 | G27: 34.0952381 | H27: 92.85714286 | I27: 328.1428571 | J27: 506.0952381 | K27: 30.04761905 | L27: 20.38095238 | M27: 0 | N27: 0 | O27: 0 | P27: 0 | R27: 177.5714286 | S27: 474.7619048 | T27: 348.5714286 | U27: 47.9047619 | V27: 170.5238095 | W27: 667.7619048 | X27: 34.0952381 | Y27: 92.85714286 | Z27: 328.1428571 | AA27: 506.0952381 | AB27: 30.04761905 | AC27: 20.38095238 | AD27: 0 | AE27: 0 | AF27: 0 | AG27: =P27 -> 0 | AI27: 652.3333333 | AJ27: 348.5714286 | AK27: 47.9047619 | AL27: 170.5238095 | AM27: 667.7619048 | AN27: 34.0952381 | AO27: 92.85714286 | AP27: 328.1428571 | AQ27: 506.0952381 | AR27: 30.04761905 | AS27: 20.38095238 | AT27: 0 | AU27: 0 | AV27: 0 | AW27: =P27 -> 0 | BQ27: 20 | BR27: 366 | BS27: 50.3 | BT27: 179.05 | BU27: 701.15 | BV27: 35.8 | BW27: 97.5 | BX27: 344.55 | BY27: 531.4 | BZ27: 31.55 | CA27: 21.4 | CB27: 0 | CC27: 0 | CD27: 0 | CE27: 0 | CG27: 186.45 | CH27: 498.5 | CI27: 366 | CJ27: 50.3 | CK27: 179.05 | CL27: 701.15 | CM27: 35.8 | CN27: 97.5 | CO27: 344.55 | CP27: 531.4 | CQ27: 31.55 | CR27: 21.4 | CS27: 0 | CT27: 0 | CU27: 0 | CV27: 0
B28: 22 | C28: 332.7272727 | D28: 45.72727273 | E28: 162.7727273 | F28: 637.4090909 | G28: 32.54545455 | H28: 88.63636364 | I28: 313.2272727 | J28: 483.0909091 | K28: 28.68181818 | L28: 19.45454545 | M28: 0 | N28: 0 | O28: 0 | P28: 0 | R28: 169.5 | S28: 453.1818182 | T28: 332.7272727 | U28: 45.72727273 | V28: 162.7727273 | W28: 637.4090909 | X28: 32.54545455 | Y28: 88.63636364 | Z28: 313.2272727 | AA28: 483.0909091 | AB28: 28.68181818 | AC28: 19.45454545 | AD28: 0 | AE28: 0 | AF28: 0 | AG28: 0 | AI28: 622.6818182 | AJ28: 332.7272727 | AK28: 45.72727273 | AL28: 162.7727273 | AM28: 637.4090909 | AN28: 32.54545455 | AO28: 88.63636364 | AP28: 313.2272727 | AQ28: 483.0909091 | AR28: 28.68181818 | AS28: 19.45454545 | AT28: 0 | AU28: 0 | AV28: 0 | AW28: 0 | BQ28: 21 | BR28: 348.5714286 | BS28: 47.9047619 | BT28: 170.5238095 | BU28: 667.7619048 | BV28: 34.0952381 | BW28: 92.85714286 | BX28: 328.1428571 | BY28: 506.0952381 | BZ28: 30.04761905 | CA28: 20.38095238 | CB28: 0 | CC28: 0 | CD28: 0 | CE28: 0 | CG28: 177.5714286 | CH28: 474.7619048 | CI28: 348.5714286 | CJ28: 47.9047619 | CK28: 170.5238095 | CL28: 667.7619048 | CM28: 34.0952381 | CN28: 92.85714286 | CO28: 328.1428571 | CP28: 506.0952381 | CQ28: 30.04761905 | CR28: 20.38095238 | CS28: 0 | CT28: 0 | CU28: 0 | CV28: 0
B29: 23 | C29: 318.2608696 | D29: 43.73913043 | E29: 155.6956522 | F29: 609.6956522 | G29: 31.13043478 | H29: 84.7826087 | I29: 299.6086957 | J29: 462.0869565 | K29: 27.43478261 | L29: 18.60869565 | M29: 0 | N29: 0 | O29: 0 | P29: 0 | R29: 162.1304348 | S29: 433.4782609 | T29: 318.2608696 | U29: 43.73913043 | V29: 155.6956522 | W29: 609.6956522 | X29: 31.13043478 | Y29: 84.7826087 | Z29: 299.6086957 | AA29: 462.0869565 | AB29: 27.43478261 | AC29: 18.60869565 | AD29: 0 | AE29: 0 | AF29: 0 | AG29: 0 | AI29: 595.6086957 | AJ29: 318.2608696 | AK29: 43.73913043 | AL29: 155.6956522 | AM29: 609.6956522 | AN29: 31.13043478 | AO29: 84.7826087 | AP29: 299.6086957 | AQ29: 462.0869565 | AR29: 27.43478261 | AS29: 18.60869565 | AT29: 0 | AU29: 0 | AV29: 0 | AW29: 0 | BQ29: 22 | BR29: 332.7272727 | BS29: 45.72727273 | BT29: 162.7727273 | BU29: 637.4090909 | BV29: 32.54545455 | BW29: 88.63636364 | BX29: 313.2272727 | BY29: 483.0909091 | BZ29: 28.68181818 | CA29: 19.45454545 | CB29: 0 | CC29: 0 | CD29: 0 | CE29: 0 | CG29: 169.5 | CH29: 453.1818182 | CI29: 332.7272727 | CJ29: 45.72727273 | CK29: 162.7727273 | CL29: 637.4090909 | CM29: 32.54545455 | CN29: 88.63636364 | CO29: 313.2272727 | CP29: 483.0909091 | CQ29: 28.68181818 | CR29: 19.45454545 | CS29: 0 | CT29: 0 | CU29: 0 | CV29: 0
B30: 24 | C30: 305 | D30: 41.91666667 | E30: 149.2083333 | F30: 584.2916667 | G30: 29.83333333 | H30: 81.25 | I30: 287.125 | J30: 442.8333333 | K30: 26.29166667 | L30: 17.83333333 | M30: 0 | N30: 0 | O30: 0 | P30: 0 | R30: 155.375 | S30: 415.4166667 | T30: 305 | U30: 41.91666667 | V30: 149.2083333 | W30: 584.2916667 | X30: 29.83333333 | Y30: 81.25 | Z30: 287.125 | AA30: 442.8333333 | AB30: 26.29166667 | AC30: 17.83333333 | AD30: 0 | AE30: 0 | AF30: 0 | AG30: 0 | AI30: 570.7916667 | AJ30: 305 | AK30: 41.91666667 | AL30: 149.2083333 | AM30: 584.2916667 | AN30: 29.83333333 | AO30: 81.25 | AP30: 287.125 | AQ30: 442.8333333 | AR30: 26.29166667 | AS30: 17.83333333 | AT30: 0 | AU30: 0 | AV30: 0 | AW30: 0 | BQ30: 23 | BR30: 318.2608696 | BS30: 43.73913043 | BT30: 155.6956522 | BU30: 609.6956522 | BV30: 31.13043478 | BW30: 84.7826087 | BX30: 299.6086957 | BY30: 462.0869565 | BZ30: 27.43478261 | CA30: 18.60869565 | CB30: 0 | CC30: 0 | CD30: 0 | CE30: 0 | CG30: 162.1304348 | CH30: 433.4782609 | CI30: 318.2608696 | CJ30: 43.73913043 | CK30: 155.6956522 | CL30: 609.6956522 | CM30: 31.13043478 | CN30: 84.7826087 | CO30: 299.6086957 | CP30: 462.0869565 | CQ30: 27.43478261 | CR30: 18.60869565 | CS30: 0 | CT30: 0 | CU30: 0 | CV30: 0
B31: 25 | C31: 292.8 | D31: 40.24 | E31: 143.24 | F31: 560.92 | G31: 28.64 | H31: 78 | I31: 275.64 | J31: 425.12 | K31: 25.24 | L31: 17.12 | M31: 0 | N31: 0 | O31: 0 | P31: 0 | R31: 149.16 | S31: 398.8 | T31: 292.8 | U31: 40.24 | V31: 143.24 | W31: 560.92 | X31: 28.64 | Y31: 78 | Z31: 275.64 | AA31: 425.12 | AB31: 25.24 | AC31: 17.12 | AD31: 0 | AE31: 0 | AF31: 0 | AG31: 0 | AI31: 547.96 | AJ31: 292.8 | AK31: 40.24 | AL31: 143.24 | AM31: 560.92 | AN31: 28.64 | AO31: 78 | AP31: 275.64 | AQ31: 425.12 | AR31: 25.24 | AS31: 17.12 | AT31: 0 | AU31: 0 | AV31: 0 | AW31: 0 | BQ31: 24 | BR31: 305 | BS31: 41.91666667 | BT31: 149.2083333 | BU31: 584.2916667 | BV31: 29.83333333 | BW31: 81.25 | BX31: 287.125 | BY31: 442.8333333 | BZ31: 26.29166667 | CA31: 17.83333333 | CB31: 0 | CC31: 0 | CD31: 0 | CE31: 0 | CG31: 155.375 | CH31: 415.4166667 | CI31: 305 | CJ31: 41.91666667 | CK31: 149.2083333 | CL31: 584.2916667 | CM31: 29.83333333 | CN31: 81.25 | CO31: 287.125 | CP31: 442.8333333 | CQ31: 26.29166667 | CR31: 17.83333333 | CS31: 0 | CT31: 0 | CU31: 0 | CV31: 0
B32: 26 | C32: 281.5384615 | D32: 38.69230769 | E32: 137.7307692 | F32: 539.3461538 | G32: 27.53846154 | H32: 75 | I32: 265.0384615 | J32: 408.7692308 | K32: 24.26923077 | L32: 16.46153846 | M32: 0 | N32: 0 | O32: 0 | P32: 0 | R32: 143.4230769 | S32: 383.4615385 | T32: 281.5384615 | U32: 38.69230769 | V32: 137.7307692 | W32: 539.3461538 | X32: 27.53846154 | Y32: 75 | Z32: 265.0384615 | AA32: 408.7692308 | AB32: 24.26923077 | AC32: 16.46153846 | AD32: 0 | AE32: 0 | AF32: 0 | AG32: 0 | AI32: 526.8846154 | AJ32: 281.5384615 | AK32: 38.69230769 | AL32: 137.7307692 | AM32: 539.3461538 | AN32: 27.53846154 | AO32: 75 | AP32: 265.0384615 | AQ32: 408.7692308 | AR32: 24.26923077 | AS32: 16.46153846 | AT32: 0 | AU32: 0 | AV32: 0 | AW32: 0 | BQ32: 25 | BR32: 292.8 | BS32: 40.24 | BT32: 143.24 | BU32: 560.92 | BV32: 28.64 | BW32: 78 | BX32: 275.64 | BY32: 425.12 | BZ32: 25.24 | CA32: 17.12 | CB32: 0 | CC32: 0 | CD32: 0 | CE32: 0 | CG32: 149.16 | CH32: 398.8 | CI32: 292.8 | CJ32: 40.24 | CK32: 143.24 | CL32: 560.92 | CM32: 28.64 | CN32: 78 | CO32: 275.64 | CP32: 425.12 | CQ32: 25.24 | CR32: 17.12 | CS32: 0 | CT32: 0 | CU32: 0 | CV32: 0
B33: 27 | C33: 271.1111111 | D33: 37.25925926 | E33: 132.6296296 | F33: 519.3703704 | G33: 26.51851852 | H33: 72.22222222 | I33: 255.2222222 | J33: 393.6296296 | K33: 23.37037037 | L33: 15.85185185 | M33: 0 | N33: 0 | O33: 0 | P33: 0 | R33: 138.1111111 | S33: 369.2592593 | T33: 271.1111111 | U33: 37.25925926 | V33: 132.6296296 | W33: 519.3703704 | X33: 26.51851852 | Y33: 72.22222222 | Z33: 255.2222222 | AA33: 393.6296296 | AB33: 23.37037037 | AC33: 15.85185185 | AD33: 0 | AE33: 0 | AF33: 0 | AG33: 0 | AI33: 507.3703704 | AJ33: 271.1111111 | AK33: 37.25925926 | AL33: 132.6296296 | AM33: 519.3703704 | AN33: 26.51851852 | AO33: 72.22222222 | AP33: 255.2222222 | AQ33: 393.6296296 | AR33: 23.37037037 | AS33: 15.85185185 | AT33: 0 | AU33: 0 | AV33: 0 | AW33: 0 | BQ33: 26 | BR33: 281.5384615 | BS33: 38.69230769 | BT33: 137.7307692 | BU33: 539.3461538 | BV33: 27.53846154 | BW33: 75 | BX33: 265.0384615 | BY33: 408.7692308 | BZ33: 24.26923077 | CA33: 16.46153846 | CB33: 0 | CC33: 0 | CD33: 0 | CE33: 0 | CG33: 143.4230769 | CH33: 383.4615385 | CI33: 281.5384615 | CJ33: 38.69230769 | CK33: 137.7307692 | CL33: 539.3461538 | CM33: 27.53846154 | CN33: 75 | CO33: 265.0384615 | CP33: 408.7692308 | CQ33: 24.26923077 | CR33: 16.46153846 | CS33: 0 | CT33: 0 | CU33: 0 | CV33: 0
B34: 28 | C34: 261.4285714 | D34: 35.92857143 | E34: 127.8928571 | F34: 500.8214286 | G34: 25.57142857 | H34: 69.64285714 | I34: 246.1071429 | J34: 379.5714286 | K34: 22.53571429 | L34: 15.28571429 | M34: 0 | N34: 0 | O34: 0 | P34: 0 | R34: 133.1785714 | S34: 356.0714286 | T34: 261.4285714 | U34: 35.92857143 | V34: 127.8928571 | W34: 500.8214286 | X34: 25.57142857 | Y34: 69.64285714 | Z34: 246.1071429 | AA34: 379.5714286 | AB34: 22.53571429 | AC34: 15.28571429 | AD34: 0 | AE34: 0 | AF34: 0 | AG34: 0 | AI34: 489.25 | AJ34: 261.4285714 | AK34: 35.92857143 | AL34: 127.8928571 | AM34: 500.8214286 | AN34: 25.57142857 | AO34: 69.64285714 | AP34: 246.1071429 | AQ34: 379.5714286 | AR34: 22.53571429 | AS34: 15.28571429 | AT34: 0 | AU34: 0 | AV34: 0 | AW34: 0 | BQ34: 27 | BR34: 271.1111111 | BS34: 37.25925926 | BT34: 132.6296296 | BU34: 519.3703704 | BV34: 26.51851852 | BW34: 72.22222222 | BX34: 255.2222222 | BY34: 393.6296296 | BZ34: 23.37037037 | CA34: 15.85185185 | CB34: 0 | CC34: 0 | CD34: 0 | CE34: 0 | CG34: 138.1111111 | CH34: 369.2592593 | CI34: 271.1111111 | CJ34: 37.25925926 | CK34: 132.6296296 | CL34: 519.3703704 | CM34: 26.51851852 | CN34: 72.22222222 | CO34: 255.2222222 | CP34: 393.6296296 | CQ34: 23.37037037 | CR34: 15.85185185 | CS34: 0 | CT34: 0 | CU34: 0 | CV34: 0
B35: 29 | C35: 252.4137931 | D35: 34.68965517 | E35: 123.4827586 | F35: 483.5517241 | G35: 24.68965517 | H35: 67.24137931 | I35: 237.6206897 | J35: 366.4827586 | K35: 21.75862069 | L35: 14.75862069 | M35: 0 | N35: 0 | O35: 0 | P35: 0 | R35: 128.5862069 | S35: 343.7931034 | T35: 252.4137931 | U35: 34.68965517 | V35: 123.4827586 | W35: 483.5517241 | X35: 24.68965517 | Y35: 67.24137931 | Z35: 237.6206897 | AA35: 366.4827586 | AB35: 21.75862069 | AC35: 14.75862069 | AD35: 0 | AE35: 0 | AF35: 0 | AG35: 0 | AI35: 472.3793103 | AJ35: 252.4137931 | AK35: 34.68965517 | AL35: 123.4827586 | AM35: 483.5517241 | AN35: 24.68965517 | AO35: 67.24137931 | AP35: 237.6206897 | AQ35: 366.4827586 | AR35: 21.75862069 | AS35: 14.75862069 | AT35: 0 | AU35: 0 | AV35: 0 | AW35: 0 | BQ35: 28 | BR35: 261.4285714 | BS35: 35.92857143 | BT35: 127.8928571 | BU35: 500.8214286 | BV35: 25.57142857 | BW35: 69.64285714 | BX35: 246.1071429 | BY35: 379.5714286 | BZ35: 22.53571429 | CA35: 15.28571429 | CB35: 0 | CC35: 0 | CD35: 0 | CE35: 0 | CG35: 133.1785714 | CH35: 356.0714286 | CI35: 261.4285714 | CJ35: 35.92857143 | CK35: 127.8928571 | CL35: 500.8214286 | CM35: 25.57142857 | CN35: 69.64285714 | CO35: 246.1071429 | CP35: 379.5714286 | CQ35: 22.53571429 | CR35: 15.28571429 | CS35: 0 | CT35: 0 | CU35: 0 | CV35: 0
B36: 30 | C36: 244 | D36: 33.53333333 | E36: 119.3666667 | F36: 467.4333333 | G36: 23.86666667 | H36: 65 | I36: 229.7 | J36: 354.2666667 | K36: 21.03333333 | L36: 14.26666667 | M36: 0 | N36: 0 | O36: 0 | P36: 0 | R36: 124.3 | S36: 332.3333333 | T36: 244 | U36: 33.53333333 | V36: 119.3666667 | W36: 467.4333333 | X36: 23.86666667 | Y36: 65 | Z36: 229.7 | AA36: 354.2666667 | AB36: 21.03333333 | AC36: 14.26666667 | AD36: 0 | AE36: 0 | AF36: 0 | AG36: 0 | AI36: 456.6333333 | AJ36: 244 | AK36: 33.53333333 | AL36: 119.3666667 | AM36: 467.4333333 | AN36: 23.86666667 | AO36: 65 | AP36: 229.7 | AQ36: 354.2666667 | AR36: 21.03333333 | AS36: 14.26666667 | AT36: 0 | AU36: 0 | AV36: 0 | AW36: 0 | BQ36: 29 | BR36: 252.4137931 | BS36: 34.68965517 | BT36: 123.4827586 | BU36: 483.5517241 | BV36: 24.68965517 | BW36: 67.24137931 | BX36: 237.6206897 | BY36: 366.4827586 | BZ36: 21.75862069 | CA36: 14.75862069 | CB36: 0 | CC36: 0 | CD36: 0 | CE36: 0 | CG36: 128.5862069 | CH36: 343.7931034 | CI36: 252.4137931 | CJ36: 34.68965517 | CK36: 123.4827586 | CL36: 483.5517241 | CM36: 24.68965517 | CN36: 67.24137931 | CO36: 237.6206897 | CP36: 366.4827586 | CQ36: 21.75862069 | CR36: 14.75862069 | CS36: 0 | CT36: 0 | CU36: 0 | CV36: 0
B37: 31 | C37: 236.1290323 | D37: 32.4516129 | E37: 115.516129 | F37: 452.3548387 | G37: 23.09677419 | H37: 62.90322581 | I37: 222.2903226 | J37: 342.8387097 | K37: 20.35483871 | L37: 13.80645161 | M37: 0 | N37: 0 | O37: 0 | P37: 0 | R37: 120.2903226 | S37: 321.6129032 | T37: 236.1290323 | U37: 32.4516129 | V37: 115.516129 | W37: 452.3548387 | X37: 23.09677419 | Y37: 62.90322581 | Z37: 222.2903226 | AA37: 342.8387097 | AB37: 20.35483871 | AC37: 13.80645161 | AD37: 0 | AE37: 0 | AF37: 0 | AG37: 0 | AI37: 441.9032258 | AJ37: 236.1290323 | AK37: 32.4516129 | AL37: 115.516129 | AM37: 452.3548387 | AN37: 23.09677419 | AO37: 62.90322581 | AP37: 222.2903226 | AQ37: 342.8387097 | AR37: 20.35483871 | AS37: 13.80645161 | AT37: 0 | AU37: 0 | AV37: 0 | AW37: 0 | BQ37: 30 | BR37: 244 | BS37: 33.53333333 | BT37: 119.3666667 | BU37: 467.4333333 | BV37: 23.86666667 | BW37: 65 | BX37: 229.7 | BY37: 354.2666667 | BZ37: 21.03333333 | CA37: 14.26666667 | CB37: 0 | CC37: 0 | CD37: 0 | CE37: 0 | CG37: 124.3 | CH37: 332.3333333 | CI37: 244 | CJ37: 33.53333333 | CK37: 119.3666667 | CL37: 467.4333333 | CM37: 23.86666667 | CN37: 65 | CO37: 229.7 | CP37: 354.2666667 | CQ37: 21.03333333 | CR37: 14.26666667 | CS37: 0 | CT37: 0 | CU37: 0 | CV37: 0
B38: 32 | C38: 228.75 | D38: 31.4375 | E38: 111.90625 | F38: 438.21875 | G38: 22.375 | H38: 60.9375 | I38: 215.34375 | J38: 332.125 | K38: 19.71875 | L38: 13.375 | M38: 0 | N38: 0 | O38: 0 | P38: 0 | R38: 116.53125 | S38: 311.5625 | T38: 228.75 | U38: 31.4375 | V38: 111.90625 | W38: 438.21875 | X38: 22.375 | Y38: 60.9375 | Z38: 215.34375 | AA38: 332.125 | AB38: 19.71875 | AC38: 13.375 | AD38: 0 | AE38: 0 | AF38: 0 | AG38: 0 | AI38: 428.09375 | AJ38: 228.75 | AK38: 31.4375 | AL38: 111.90625 | AM38: 438.21875 | AN38: 22.375 | AO38: 60.9375 | AP38: 215.34375 | AQ38: 332.125 | AR38: 19.71875 | AS38: 13.375 | AT38: 0 | AU38: 0 | AV38: 0 | AW38: 0 | BQ38: 31 | BR38: 236.1290323 | BS38: 32.4516129 | BT38: 115.516129 | BU38: 452.3548387 | BV38: 23.09677419 | BW38: 62.90322581 | BX38: 222.2903226 | BY38: 342.8387097 | BZ38: 20.35483871 | CA38: 13.80645161 | CB38: 0 | CC38: 0 | CD38: 0 | CE38: 0 | CG38: 120.2903226 | CH38: 321.6129032 | CI38: 236.1290323 | CJ38: 32.4516129 | CK38: 115.516129 | CL38: 452.3548387 | CM38: 23.09677419 | CN38: 62.90322581 | CO38: 222.2903226 | CP38: 342.8387097 | CQ38: 20.35483871 | CR38: 13.80645161 | CS38: 0 | CT38: 0 | CU38: 0 | CV38: 0
B39: 33 | C39: 221.8181818 | D39: 30.48484848 | E39: 108.5151515 | F39: 424.9393939 | G39: 21.6969697 | H39: 59.09090909 | I39: 208.8181818 | J39: 322.0606061 | K39: 19.12121212 | L39: 12.96969697 | M39: 0 | N39: 0 | O39: 0 | P39: 0 | R39: 113 | S39: 302.1212121 | T39: 221.8181818 | U39: 30.48484848 | V39: 108.5151515 | W39: 424.9393939 | X39: 21.6969697 | Y39: 59.09090909 | Z39: 208.8181818 | AA39: 322.0606061 | AB39: 19.12121212 | AC39: 12.96969697 | AD39: 0 | AE39: 0 | AF39: 0 | AG39: 0 | AI39: 415.1212121 | AJ39: 221.8181818 | AK39: 30.48484848 | AL39: 108.5151515 | AM39: 424.9393939 | AN39: 21.6969697 | AO39: 59.09090909 | AP39: 208.8181818 | AQ39: 322.0606061 | AR39: 19.12121212 | AS39: 12.96969697 | AT39: 0 | AU39: 0 | AV39: 0 | AW39: 0 | BQ39: 32 | BR39: 228.75 | BS39: 31.4375 | BT39: 111.90625 | BU39: 438.21875 | BV39: 22.375 | BW39: 60.9375 | BX39: 215.34375 | BY39: 332.125 | BZ39: 19.71875 | CA39: 13.375 | CB39: 0 | CC39: 0 | CD39: 0 | CE39: 0 | CG39: 116.53125 | CH39: 311.5625 | CI39: 228.75 | CJ39: 31.4375 | CK39: 111.90625 | CL39: 438.21875 | CM39: 22.375 | CN39: 60.9375 | CO39: 215.34375 | CP39: 332.125 | CQ39: 19.71875 | CR39: 13.375 | CS39: 0 | CT39: 0 | CU39: 0 | CV39: 0
B40: 34 | C40: 215.2941176 | D40: 29.58823529 | E40: 105.3235294 | F40: 412.4411765 | G40: 21.05882353 | H40: 57.35294118 | I40: 202.6764706 | J40: 312.5882353 | K40: 18.55882353 | L40: 12.58823529 | M40: 0 | N40: 0 | O40: 0 | P40: =$P$6/B40 -> 0 | R40: =$R$6/B40 -> 109.6764706 | S40: =$S$6/B40 -> 293.2352941 | T40: =C40 -> 215.2941176 | U40: =D40 -> 29.58823529 | V40: =E40 -> 105.3235294 | W40: =F40 -> 412.4411765 | X40: =G40 -> 21.05882353 | Y40: =H40 -> 57.35294118 | Z40: =I40 -> 202.6764706 | AA40: =J40 -> 312.5882353 | AB40: =K40 -> 18.55882353 | AC40: =L40 -> 12.58823529 | AD40: =M40 -> 0 | AE40: 0 | AF40: =O40 -> 0 | AG40: 0 | AI40: =$AI$6/B40 -> 402.9117647 | AJ40: =C40 -> 215.2941176 | AK40: =D40 -> 29.58823529 | AL40: =E40 -> 105.3235294 | AM40: =F40 -> 412.4411765 | AN40: =G40 -> 21.05882353 | AO40: =H40 -> 57.35294118 | AP40: =I40 -> 202.6764706 | AQ40: =J40 -> 312.5882353 | AR40: =K40 -> 18.55882353 | AS40: =L40 -> 12.58823529 | AT40: =M40 -> 0 | AU40: 0 | AV40: =O40 -> 0 | AW40: 0 | BQ40: 33 | BR40: 221.8181818 | BS40: 30.48484848 | BT40: 108.5151515 | BU40: 424.9393939 | BV40: 21.6969697 | BW40: 59.09090909 | BX40: 208.8181818 | BY40: 322.0606061 | BZ40: 19.12121212 | CA40: 12.96969697 | CB40: 0 | CC40: 0 | CD40: 0 | CE40: 0 | CG40: 113 | CH40: 302.1212121 | CI40: 221.8181818 | CJ40: 30.48484848 | CK40: 108.5151515 | CL40: 424.9393939 | CM40: 21.6969697 | CN40: 59.09090909 | CO40: 208.8181818 | CP40: 322.0606061 | CQ40: 19.12121212 | CR40: 12.96969697 | CS40: 0 | CT40: 0 | CU40: 0 | CV40: 0
B41: 35 | C41: 209.1428571 | D41: 28.74285714 | E41: 102.3142857 | F41: 400.6571429 | G41: 20.45714286 | H41: 55.71428571 | I41: 196.8857143 | J41: 303.6571429 | K41: 18.02857143 | L41: 12.22857143 | M41: 0 | N41: 0 | O41: 0 | P41: 0 | R41: 106.5428571 | S41: 284.8571429 | T41: 209.1428571 | U41: 28.74285714 | V41: 102.3142857 | W41: 400.6571429 | X41: 20.45714286 | Y41: 55.71428571 | Z41: 196.8857143 | AA41: 303.6571429 | AB41: 18.02857143 | AC41: 12.22857143 | AD41: 0 | AE41: 0 | AF41: 0 | AG41: 0 | AI41: 391.4 | AJ41: 209.1428571 | AK41: 28.74285714 | AL41: 102.3142857 | AM41: 400.6571429 | AN41: 20.45714286 | AO41: 55.71428571 | AP41: 196.8857143 | AQ41: 303.6571429 | AR41: 18.02857143 | AS41: 12.22857143 | AT41: 0 | AU41: 0 | AV41: 0 | AW41: 0 | BQ41: 34 | BR41: 215.2941176 | BS41: 29.58823529 | BT41: 105.3235294 | BU41: 412.4411765 | BV41: 21.05882353 | BW41: 57.35294118 | BX41: 202.6764706 | BY41: 312.5882353 | BZ41: 18.55882353 | CA41: 12.58823529 | CB41: 0 | CC41: 0 | CD41: 0 | CE41: 0 | CG41: 109.6764706 | CH41: 293.2352941 | CI41: 215.2941176 | CJ41: 29.58823529 | CK41: 105.3235294 | CL41: 412.4411765 | CM41: 21.05882353 | CN41: 57.35294118 | CO41: 202.6764706 | CP41: 312.5882353 | CQ41: 18.55882353 | CR41: 12.58823529 | CS41: 0 | CT41: 0 | CU41: 0 | CV41: 0
B42: 36 | C42: 203.3333333 | D42: 27.94444444 | E42: 99.47222222 | F42: 389.5277778 | G42: 19.88888889 | H42: 54.16666667 | I42: 191.4166667 | J42: 295.2222222 | K42: 17.52777778 | L42: 11.88888889 | M42: 0 | N42: 0 | O42: 0 | P42: 0 | R42: 103.5833333 | S42: 276.9444444 | T42: 203.3333333 | U42: 27.94444444 | V42: 99.47222222 | W42: 389.5277778 | X42: 19.88888889 | Y42: 54.16666667 | Z42: 191.4166667 | AA42: 295.2222222 | AB42: 17.52777778 | AC42: 11.88888889 | AD42: 0 | AE42: 0 | AF42: 0 | AG42: 0 | AI42: 380.5277778 | AJ42: 203.3333333 | AK42: 27.94444444 | AL42: 99.47222222 | AM42: 389.5277778 | AN42: 19.88888889 | AO42: 54.16666667 | AP42: 191.4166667 | AQ42: 295.2222222 | AR42: 17.52777778 | AS42: 11.88888889 | AT42: 0 | AU42: 0 | AV42: 0 | AW42: 0 | BQ42: 35 | BR42: 209.1428571 | BS42: 28.74285714 | BT42: 102.3142857 | BU42: 400.6571429 | BV42: 20.45714286 | BW42: 55.71428571 | BX42: 196.8857143 | BY42: 303.6571429 | BZ42: 18.02857143 | CA42: 12.22857143 | CB42: 0 | CC42: 0 | CD42: 0 | CE42: 0 | CG42: 106.5428571 | CH42: 284.8571429 | CI42: 209.1428571 | CJ42: 28.74285714 | CK42: 102.3142857 | CL42: 400.6571429 | CM42: 20.45714286 | CN42: 55.71428571 | CO42: 196.8857143 | CP42: 303.6571429 | CQ42: 18.02857143 | CR42: 12.22857143 | CS42: 0 | CT42: 0 | CU42: 0 | CV42: 0
B43: 37 | C43: 197.8378378 | D43: 27.18918919 | E43: 96.78378378 | F43: 379 | G43: 19.35135135 | H43: 52.7027027 | I43: 186.2432432 | J43: 287.2432432 | K43: 17.05405405 | L43: 11.56756757 | M43: 0 | N43: 0 | O43: 0 | P43: 0 | R43: 100.7837838 | S43: 269.4594595 | T43: 197.8378378 | U43: 27.18918919 | V43: 96.78378378 | W43: 379 | X43: 19.35135135 | Y43: 52.7027027 | Z43: 186.2432432 | AA43: 287.2432432 | AB43: 17.05405405 | AC43: 11.56756757 | AD43: 0 | AE43: 0 | AF43: 0 | AG43: 0 | AI43: 370.2432432 | AJ43: 197.8378378 | AK43: 27.18918919 | AL43: 96.78378378 | AM43: 379 | AN43: 19.35135135 | AO43: 52.7027027 | AP43: 186.2432432 | AQ43: 287.2432432 | AR43: 17.05405405 | AS43: 11.56756757 | AT43: 0 | AU43: 0 | AV43: 0 | AW43: 0 | BQ43: 36 | BR43: 203.3333333 | BS43: 27.94444444 | BT43: 99.47222222 | BU43: 389.5277778 | BV43: 19.88888889 | BW43: 54.16666667 | BX43: 191.4166667 | BY43: 295.2222222 | BZ43: 17.52777778 | CA43: 11.88888889 | CB43: 0 | CC43: 0 | CD43: 0 | CE43: 0 | CG43: 103.5833333 | CH43: 276.9444444 | CI43: 203.3333333 | CJ43: 27.94444444 | CK43: 99.47222222 | CL43: 389.5277778 | CM43: 19.88888889 | CN43: 54.16666667 | CO43: 191.4166667 | CP43: 295.2222222 | CQ43: 17.52777778 | CR43: 11.88888889 | CS43: 0 | CT43: 0 | CU43: 0 | CV43: 0
B44: 38 | C44: 192.6315789 | D44: 26.47368421 | E44: 94.23684211 | F44: 369.0263158 | G44: 18.84210526 | H44: 51.31578947 | I44: 181.3421053 | J44: 279.6842105 | K44: 16.60526316 | L44: 11.26315789 | M44: 0 | N44: 0 | O44: 0 | P44: 0 | R44: 98.13157895 | S44: 262.3684211 | T44: 192.6315789 | U44: 26.47368421 | V44: 94.23684211 | W44: 369.0263158 | X44: 18.84210526 | Y44: 51.31578947 | Z44: 181.3421053 | AA44: 279.6842105 | AB44: 16.60526316 | AC44: 11.26315789 | AD44: 0 | AE44: 0 | AF44: 0 | AG44: 0 | AI44: 360.5 | AJ44: 192.6315789 | AK44: 26.47368421 | AL44: 94.23684211 | AM44: 369.0263158 | AN44: 18.84210526 | AO44: 51.31578947 | AP44: 181.3421053 | AQ44: 279.6842105 | AR44: 16.60526316 | AS44: 11.26315789 | AT44: 0 | AU44: 0 | AV44: 0 | AW44: 0 | BQ44: 37 | BR44: 197.8378378 | BS44: 27.18918919 | BT44: 96.78378378 | BU44: 379 | BV44: 19.35135135 | BW44: 52.7027027 | BX44: 186.2432432 | BY44: 287.2432432 | BZ44: 17.05405405 | CA44: 11.56756757 | CB44: 0 | CC44: 0 | CD44: 0 | CE44: 0 | CG44: 100.7837838 | CH44: 269.4594595 | CI44: 197.8378378 | CJ44: 27.18918919 | CK44: 96.78378378 | CL44: 379 | CM44: 19.35135135 | CN44: 52.7027027 | CO44: 186.2432432 | CP44: 287.2432432 | CQ44: 17.05405405 | CR44: 11.56756757 | CS44: 0 | CT44: 0 | CU44: 0 | CV44: 0
B45: 39 | C45: 187.6923077 | D45: 25.79487179 | E45: 91.82051282 | F45: 359.5641026 | G45: 18.35897436 | H45: 50 | I45: 176.6923077 | J45: 272.5128205 | K45: 16.17948718 | L45: 10.97435897 | M45: 0 | N45: 0 | O45: 0 | P45: 0 | R45: 95.61538462 | S45: 255.6410256 | T45: 187.6923077 | U45: 25.79487179 | V45: 91.82051282 | W45: 359.5641026 | X45: 18.35897436 | Y45: 50 | Z45: 176.6923077 | AA45: 272.5128205 | AB45: 16.17948718 | AC45: 10.97435897 | AD45: 0 | AE45: 0 | AF45: 0 | AG45: 0 | AI45: 351.2564103 | AJ45: 187.6923077 | AK45: 25.79487179 | AL45: 91.82051282 | AM45: 359.5641026 | AN45: 18.35897436 | AO45: 50 | AP45: 176.6923077 | AQ45: 272.5128205 | AR45: 16.17948718 | AS45: 10.97435897 | AT45: 0 | AU45: 0 | AV45: 0 | AW45: 0 | BQ45: 38 | BR45: 192.6315789 | BS45: 26.47368421 | BT45: 94.23684211 | BU45: 369.0263158 | BV45: 18.84210526 | BW45: 51.31578947 | BX45: 181.3421053 | BY45: 279.6842105 | BZ45: 16.60526316 | CA45: 11.26315789 | CB45: 0 | CC45: 0 | CD45: 0 | CE45: 0 | CG45: 98.13157895 | CH45: 262.3684211 | CI45: 192.6315789 | CJ45: 26.47368421 | CK45: 94.23684211 | CL45: 369.0263158 | CM45: 18.84210526 | CN45: 51.31578947 | CO45: 181.3421053 | CP45: 279.6842105 | CQ45: 16.60526316 | CR45: 11.26315789 | CS45: 0 | CT45: 0 | CU45: 0 | CV45: 0
B46: 40 | C46: 183 | D46: 25.15 | E46: 89.525 | F46: 350.575 | G46: 17.9 | H46: 48.75 | I46: 172.275 | J46: 265.7 | K46: 15.775 | L46: 10.7 | M46: 0 | N46: 0 | O46: 0 | P46: 0 | R46: 93.225 | S46: 249.25 | T46: 183 | U46: 25.15 | V46: 89.525 | W46: 350.575 | X46: 17.9 | Y46: 48.75 | Z46: 172.275 | AA46: 265.7 | AB46: 15.775 | AC46: 10.7 | AD46: 0 | AE46: 0 | AF46: 0 | AG46: 0 | AI46: 342.475 | AJ46: 183 | AK46: 25.15 | AL46: 89.525 | AM46: 350.575 | AN46: 17.9 | AO46: 48.75 | AP46: 172.275 | AQ46: 265.7 | AR46: 15.775 | AS46: 10.7 | AT46: 0 | AU46: 0 | AV46: 0 | AW46: 0 | BQ46: 39 | BR46: 187.6923077 | BS46: 25.79487179 | BT46: 91.82051282 | BU46: 359.5641026 | BV46: 18.35897436 | BW46: 50 | BX46: 176.6923077 | BY46: 272.5128205 | BZ46: 16.17948718 | CA46: 10.97435897 | CB46: 0 | CC46: 0 | CD46: 0 | CE46: 0 | CG46: 95.61538462 | CH46: 255.6410256 | CI46: 187.6923077 | CJ46: 25.79487179 | CK46: 91.82051282 | CL46: 359.5641026 | CM46: 18.35897436 | CN46: 50 | CO46: 176.6923077 | CP46: 272.5128205 | CQ46: 16.17948718 | CR46: 10.97435897 | CS46: 0 | CT46: 0 | CU46: 0 | CV46: 0
B47: 41 | C47: 178.5365854 | D47: 24.53658537 | E47: 87.34146341 | F47: 342.0243902 | G47: 17.46341463 | H47: 47.56097561 | I47: 168.0731707 | J47: 259.2195122 | K47: 15.3902439 | L47: 10.43902439 | M47: 0 | N47: 0 | O47: 0 | P47: 0 | R47: 90.95121951 | S47: 243.1707317 | T47: 178.5365854 | U47: 24.53658537 | V47: 87.34146341 | W47: 342.0243902 | X47: 17.46341463 | Y47: 47.56097561 | Z47: 168.0731707 | AA47: 259.2195122 | AB47: 15.3902439 | AC47: 10.43902439 | AD47: 0 | AE47: 0 | AF47: 0 | AG47: 0 | AI47: 334.1219512 | AJ47: 178.5365854 | AK47: 24.53658537 | AL47: 87.34146341 | AM47: 342.0243902 | AN47: 17.46341463 | AO47: 47.56097561 | AP47: 168.0731707 | AQ47: 259.2195122 | AR47: 15.3902439 | AS47: 10.43902439 | AT47: 0 | AU47: 0 | AV47: 0 | AW47: 0 | BQ47: 40 | BR47: 183 | BS47: 25.15 | BT47: 89.525 | BU47: 350.575 | BV47: 17.9 | BW47: 48.75 | BX47: 172.275 | BY47: 265.7 | BZ47: 15.775 | CA47: 10.7 | CB47: 0 | CC47: 0 | CD47: 0 | CE47: 0 | CG47: 93.225 | CH47: 249.25 | CI47: 183 | CJ47: 25.15 | CK47: 89.525 | CL47: 350.575 | CM47: 17.9 | CN47: 48.75 | CO47: 172.275 | CP47: 265.7 | CQ47: 15.775 | CR47: 10.7 | CS47: 0 | CT47: 0 | CU47: 0 | CV47: 0
B48: 42 | C48: 174.2857143 | D48: 23.95238095 | E48: 85.26190476 | F48: 333.8809524 | G48: 17.04761905 | H48: 46.42857143 | I48: 164.0714286 | J48: 253.047619 | K48: 15.02380952 | L48: 10.19047619 | M48: 0 | N48: 0 | O48: 0 | P48: 0 | R48: 88.78571429 | S48: 237.3809524 | T48: 174.2857143 | U48: 23.95238095 | V48: 85.26190476 | W48: 333.8809524 | X48: 17.04761905 | Y48: 46.42857143 | Z48: 164.0714286 | AA48: 253.047619 | AB48: 15.02380952 | AC48: 10.19047619 | AD48: 0 | AE48: 0 | AF48: 0 | AG48: 0 | AI48: 326.1666667 | AJ48: 174.2857143 | AK48: 23.95238095 | AL48: 85.26190476 | AM48: 333.8809524 | AN48: 17.04761905 | AO48: 46.42857143 | AP48: 164.0714286 | AQ48: 253.047619 | AR48: 15.02380952 | AS48: 10.19047619 | AT48: 0 | AU48: 0 | AV48: 0 | AW48: 0 | BQ48: 41 | BR48: 178.5365854 | BS48: 24.53658537 | BT48: 87.34146341 | BU48: 342.0243902 | BV48: 17.46341463 | BW48: 47.56097561 | BX48: 168.0731707 | BY48: 259.2195122 | BZ48: 15.3902439 | CA48: 10.43902439 | CB48: 0 | CC48: 0 | CD48: 0 | CE48: 0 | CG48: 90.95121951 | CH48: 243.1707317 | CI48: 178.5365854 | CJ48: 24.53658537 | CK48: 87.34146341 | CL48: 342.0243902 | CM48: 17.46341463 | CN48: 47.56097561 | CO48: 168.0731707 | CP48: 259.2195122 | CQ48: 15.3902439 | CR48: 10.43902439 | CS48: 0 | CT48: 0 | CU48: 0 | CV48: 0
B49: 43 | C49: 170.2325581 | D49: 23.39534884 | E49: 83.27906977 | F49: 326.1162791 | G49: 16.65116279 | H49: 45.34883721 | I49: 160.255814 | J49: 247.1627907 | K49: 14.6744186 | L49: 9.953488372 | M49: 0 | N49: 0 | O49: 0 | P49: 0 | R49: 86.72093023 | S49: 231.8604651 | T49: 170.2325581 | U49: 23.39534884 | V49: 83.27906977 | W49: 326.1162791 | X49: 16.65116279 | Y49: 45.34883721 | Z49: 160.255814 | AA49: 247.1627907 | AB49: 14.6744186 | AC49: 9.953488372 | AD49: 0 | AE49: 0 | AF49: 0 | AG49: 0 | AI49: 318.5813953 | AJ49: 170.2325581 | AK49: 23.39534884 | AL49: 83.27906977 | AM49: 326.1162791 | AN49: 16.65116279 | AO49: 45.34883721 | AP49: 160.255814 | AQ49: 247.1627907 | AR49: 14.6744186 | AS49: 9.953488372 | AT49: 0 | AU49: 0 | AV49: 0 | AW49: 0 | BQ49: 42 | BR49: 174.2857143 | BS49: 23.95238095 | BT49: 85.26190476 | BU49: 333.8809524 | BV49: 17.04761905 | BW49: 46.42857143 | BX49: 164.0714286 | BY49: 253.047619 | BZ49: 15.02380952 | CA49: 10.19047619 | CB49: 0 | CC49: 0 | CD49: 0 | CE49: 0 | CG49: 88.78571429 | CH49: 237.3809524 | CI49: 174.2857143 | CJ49: 23.95238095 | CK49: 85.26190476 | CL49: 333.8809524 | CM49: 17.04761905 | CN49: 46.42857143 | CO49: 164.0714286 | CP49: 253.047619 | CQ49: 15.02380952 | CR49: 10.19047619 | CS49: 0 | CT49: 0 | CU49: 0 | CV49: 0
B50: 44 | C50: 166.3636364 | D50: 22.86363636 | E50: 81.38636364 | F50: 318.7045455 | G50: 16.27272727 | H50: 44.31818182 | I50: 156.6136364 | J50: 241.5454545 | K50: 14.34090909 | L50: 9.727272727 | M50: 0 | N50: 0 | O50: 0 | P50: 0 | R50: 84.75 | S50: 226.5909091 | T50: 166.3636364 | U50: 22.86363636 | V50: 81.38636364 | W50: 318.7045455 | X50: 16.27272727 | Y50: 44.31818182 | Z50: 156.6136364 | AA50: 241.5454545 | AB50: 14.34090909 | AC50: 9.727272727 | AD50: 0 | AE50: 0 | AF50: 0 | AG50: 0 | AI50: 311.3409091 | AJ50: 166.3636364 | AK50: 22.86363636 | AL50: 81.38636364 | AM50: 318.7045455 | AN50: 16.27272727 | AO50: 44.31818182 | AP50: 156.6136364 | AQ50: 241.5454545 | AR50: 14.34090909 | AS50: 9.727272727 | AT50: 0 | AU50: 0 | AV50: 0 | AW50: 0 | BQ50: 43 | BR50: 170.2325581 | BS50: 23.39534884 | BT50: 83.27906977 | BU50: 326.1162791 | BV50: 16.65116279 | BW50: 45.34883721 | BX50: 160.255814 | BY50: 247.1627907 | BZ50: 14.6744186 | CA50: 9.953488372 | CB50: 0 | CC50: 0 | CD50: 0 | CE50: 0 | CG50: 86.72093023 | CH50: 231.8604651 | CI50: 170.2325581 | CJ50: 23.39534884 | CK50: 83.27906977 | CL50: 326.1162791 | CM50: 16.65116279 | CN50: 45.34883721 | CO50: 160.255814 | CP50: 247.1627907 | CQ50: 14.6744186 | CR50: 9.953488372 | CS50: 0 | CT50: 0 | CU50: 0 | CV50: 0
B51: 45 | C51: 162.6666667 | D51: 22.35555556 | E51: 79.57777778 | F51: 311.6222222 | G51: 15.91111111 | H51: 43.33333333 | I51: 153.1333333 | J51: 236.1777778 | K51: 14.02222222 | L51: 9.511111111 | M51: 0 | N51: 0 | O51: 0 | P51: 0 | R51: 82.86666667 | S51: 221.5555556 | T51: 162.6666667 | U51: 22.35555556 | V51: 79.57777778 | W51: 311.6222222 | X51: 15.91111111 | Y51: 43.33333333 | Z51: 153.1333333 | AA51: 236.1777778 | AB51: 14.02222222 | AC51: 9.511111111 | AD51: 0 | AE51: 0 | AF51: 0 | AG51: 0 | AI51: 304.4222222 | AJ51: 162.6666667 | AK51: 22.35555556 | AL51: 79.57777778 | AM51: 311.6222222 | AN51: 15.91111111 | AO51: 43.33333333 | AP51: 153.1333333 | AQ51: 236.1777778 | AR51: 14.02222222 | AS51: 9.511111111 | AT51: 0 | AU51: 0 | AV51: 0 | AW51: 0 | BQ51: 44 | BR51: 166.3636364 | BS51: 22.86363636 | BT51: 81.38636364 | BU51: 318.7045455 | BV51: 16.27272727 | BW51: 44.31818182 | BX51: 156.6136364 | BY51: 241.5454545 | BZ51: 14.34090909 | CA51: 9.727272727 | CB51: 0 | CC51: 0 | CD51: 0 | CE51: 0 | CG51: 84.75 | CH51: 226.5909091 | CI51: 166.3636364 | CJ51: 22.86363636 | CK51: 81.38636364 | CL51: 318.7045455 | CM51: 16.27272727 | CN51: 44.31818182 | CO51: 156.6136364 | CP51: 241.5454545 | CQ51: 14.34090909 | CR51: 9.727272727 | CS51: 0 | CT51: 0 | CU51: 0 | CV51: 0
B52: 46 | C52: 159.1304348 | D52: 21.86956522 | E52: 77.84782609 | F52: 304.8478261 | G52: 15.56521739 | H52: 42.39130435 | I52: 149.8043478 | J52: 231.0434783 | K52: 13.7173913 | L52: 9.304347826 | M52: 0 | N52: 0 | O52: 0 | P52: 0 | R52: 81.06521739 | S52: 216.7391304 | T52: 159.1304348 | U52: 21.86956522 | V52: 77.84782609 | W52: 304.8478261 | X52: 15.56521739 | Y52: 42.39130435 | Z52: 149.8043478 | AA52: 231.0434783 | AB52: 13.7173913 | AC52: 9.304347826 | AD52: 0 | AE52: 0 | AF52: 0 | AG52: 0 | AI52: 297.8043478 | AJ52: 159.1304348 | AK52: 21.86956522 | AL52: 77.84782609 | AM52: 304.8478261 | AN52: 15.56521739 | AO52: 42.39130435 | AP52: 149.8043478 | AQ52: 231.0434783 | AR52: 13.7173913 | AS52: 9.304347826 | AT52: 0 | AU52: 0 | AV52: 0 | AW52: 0 | BQ52: 45 | BR52: 162.6666667 | BS52: 22.35555556 | BT52: 79.57777778 | BU52: 311.6222222 | BV52: 15.91111111 | BW52: 43.33333333 | BX52: 153.1333333 | BY52: 236.1777778 | BZ52: 14.02222222 | CA52: 9.511111111 | CB52: 0 | CC52: 0 | CD52: 0 | CE52: 0 | CG52: 82.86666667 | CH52: 221.5555556 | CI52: 162.6666667 | CJ52: 22.35555556 | CK52: 79.57777778 | CL52: 311.6222222 | CM52: 15.91111111 | CN52: 43.33333333 | CO52: 153.1333333 | CP52: 236.1777778 | CQ52: 14.02222222 | CR52: 9.511111111 | CS52: 0 | CT52: 0 | CU52: 0 | CV52: 0
B53: 47 | C53: 155.7446809 | D53: 21.40425532 | E53: 76.19148936 | F53: 298.3617021 | G53: 15.23404255 | H53: 41.4893617 | I53: 146.6170213 | J53: 226.1276596 | K53: 13.42553191 | L53: 9.106382979 | M53: 0 | N53: 0 | O53: 0 | P53: 0 | R53: 79.34042553 | S53: 212.1276596 | T53: 155.7446809 | U53: 21.40425532 | V53: 76.19148936 | W53: 298.3617021 | X53: 15.23404255 | Y53: 41.4893617 | Z53: 146.6170213 | AA53: 226.1276596 | AB53: 13.42553191 | AC53: 9.106382979 | AD53: 0 | AE53: 0 | AF53: 0 | AG53: 0 | AI53: 291.4680851 | AJ53: 155.7446809 | AK53: 21.40425532 | AL53: 76.19148936 | AM53: 298.3617021 | AN53: 15.23404255 | AO53: 41.4893617 | AP53: 146.6170213 | AQ53: 226.1276596 | AR53: 13.42553191 | AS53: 9.106382979 | AT53: 0 | AU53: 0 | AV53: 0 | AW53: 0 | BQ53: 46 | BR53: 159.1304348 | BS53: 21.86956522 | BT53: 77.84782609 | BU53: 304.8478261 | BV53: 15.56521739 | BW53: 42.39130435 | BX53: 149.8043478 | BY53: 231.0434783 | BZ53: 13.7173913 | CA53: 9.304347826 | CB53: 0 | CC53: 0 | CD53: 0 | CE53: 0 | CG53: 81.06521739 | CH53: 216.7391304 | CI53: 159.1304348 | CJ53: 21.86956522 | CK53: 77.84782609 | CL53: 304.8478261 | CM53: 15.56521739 | CN53: 42.39130435 | CO53: 149.8043478 | CP53: 231.0434783 | CQ53: 13.7173913 | CR53: 9.304347826 | CS53: 0 | CT53: 0 | CU53: 0 | CV53: 0
B54: 48 | C54: 152.5 | D54: 20.95833333 | E54: 74.60416667 | F54: 292.1458333 | G54: 14.91666667 | H54: 40.625 | I54: 143.5625 | J54: =$J$6/B54 -> 221.4166667 | K54: 13.14583333 | L54: 8.916666667 | M54: 0 | N54: 0 | O54: 0 | P54: 0 | R54: 77.6875 | S54: 207.7083333 | T54: 152.5 | U54: 20.95833333 | V54: 74.60416667 | W54: 292.1458333 | X54: 14.91666667 | Y54: 40.625 | Z54: 143.5625 | AA54: 221.4166667 | AB54: 13.14583333 | AC54: 8.916666667 | AD54: 0 | AE54: 0 | AF54: 0 | AG54: 0 | AI54: 285.3958333 | AJ54: 152.5 | AK54: 20.95833333 | AL54: 74.60416667 | AM54: 292.1458333 | AN54: 14.91666667 | AO54: 40.625 | AP54: 143.5625 | AQ54: 221.4166667 | AR54: 13.14583333 | AS54: 8.916666667 | AT54: 0 | AU54: 0 | AV54: 0 | AW54: 0 | BQ54: 47 | BR54: 155.7446809 | BS54: 21.40425532 | BT54: 76.19148936 | BU54: 298.3617021 | BV54: 15.23404255 | BW54: 41.4893617 | BX54: 146.6170213 | BY54: 226.1276596 | BZ54: 13.42553191 | CA54: 9.106382979 | CB54: 0 | CC54: 0 | CD54: 0 | CE54: 0 | CG54: 79.34042553 | CH54: 212.1276596 | CI54: 155.7446809 | CJ54: 21.40425532 | CK54: 76.19148936 | CL54: 298.3617021 | CM54: 15.23404255 | CN54: 41.4893617 | CO54: 146.6170213 | CP54: 226.1276596 | CQ54: 13.42553191 | CR54: 9.106382979 | CS54: 0 | CT54: 0 | CU54: 0 | CV54: 0
B55: 49 | C55: 149.3877551 | D55: 20.53061224 | E55: 73.08163265 | F55: 286.1836735 | G55: 14.6122449 | H55: 39.79591837 | I55: 140.6326531 | J55: 216.8979592 | K55: 12.87755102 | L55: 8.734693878 | M55: 0 | N55: 0 | O55: 0 | P55: 0 | R55: 76.10204082 | S55: 203.4693878 | T55: 149.3877551 | U55: 20.53061224 | V55: 73.08163265 | W55: 286.1836735 | X55: 14.6122449 | Y55: 39.79591837 | Z55: 140.6326531 | AA55: 216.8979592 | AB55: 12.87755102 | AC55: 8.734693878 | AD55: 0 | AE55: 0 | AF55: 0 | AG55: =P55 -> 0 | AI55: 279.5714286 | AJ55: 149.3877551 | AK55: 20.53061224 | AL55: 73.08163265 | AM55: 286.1836735 | AN55: 14.6122449 | AO55: 39.79591837 | AP55: 140.6326531 | AQ55: 216.8979592 | AR55: 12.87755102 | AS55: 8.734693878 | AT55: 0 | AU55: 0 | AV55: 0 | AW55: =P55 -> 0 | BQ55: 48 | BR55: 152.5 | BS55: 20.95833333 | BT55: 74.60416667 | BU55: 292.1458333 | BV55: 14.91666667 | BW55: 40.625 | BX55: 143.5625 | BY55: 221.4166667 | BZ55: 13.14583333 | CA55: 8.916666667 | CB55: 0 | CC55: 0 | CD55: 0 | CE55: 0 | CG55: 77.6875 | CH55: 207.7083333 | CI55: 152.5 | CJ55: 20.95833333 | CK55: 74.60416667 | CL55: 292.1458333 | CM55: 14.91666667 | CN55: 40.625 | CO55: 143.5625 | CP55: 221.4166667 | CQ55: 13.14583333 | CR55: 8.916666667 | CS55: 0 | CT55: 0 | CU55: 0 | CV55: 0
B56: 50 | C56: 146.4 | D56: 20.12 | E56: 71.62 | F56: 280.46 | G56: 14.32 | H56: 39 | I56: 137.82 | J56: 212.56 | K56: 12.62 | L56: 8.56 | M56: 0 | N56: 0 | O56: 0 | P56: 0 | R56: 74.58 | S56: 199.4 | T56: 146.4 | U56: 20.12 | V56: 71.62 | W56: 280.46 | X56: 14.32 | Y56: 39 | Z56: 137.82 | AA56: 212.56 | AB56: 12.62 | AC56: 8.56 | AD56: =M56 -> 0 | AE56: 0 | AF56: 0 | AG56: 0 | AI56: 273.98 | AJ56: 146.4 | AK56: 20.12 | AL56: 71.62 | AM56: 280.46 | AN56: 14.32 | AO56: 39 | AP56: 137.82 | AQ56: 212.56 | AR56: 12.62 | AS56: 8.56 | AT56: =M56 -> 0 | AU56: 0 | AV56: 0 | AW56: 0 | BQ56: 49 | BR56: 149.3877551 | BS56: 20.53061224 | BT56: 73.08163265 | BU56: 286.1836735 | BV56: 14.6122449 | BW56: 39.79591837 | BX56: 140.6326531 | BY56: 216.8979592 | BZ56: 12.87755102 | CA56: 8.734693878 | CB56: 0 | CC56: 0 | CD56: 0 | CE56: 0 | CG56: 76.10204082 | CH56: 203.4693878 | CI56: 149.3877551 | CJ56: 20.53061224 | CK56: 73.08163265 | CL56: 286.1836735 | CM56: 14.6122449 | CN56: 39.79591837 | CO56: 140.6326531 | CP56: 216.8979592 | CQ56: 12.87755102 | CR56: 8.734693878 | CS56: 0 | CT56: 0 | CU56: 0 | CV56: 0
B57: 51 | C57: 143.5294118 | D57: 19.7254902 | E57: 70.21568627 | F57: 274.9607843 | G57: 14.03921569 | H57: 38.23529412 | I57: 135.1176471 | J57: 208.3921569 | K57: 12.37254902 | L57: 8.392156863 | M57: 0 | N57: 0 | O57: 0 | P57: 0 | R57: 73.11764706 | S57: 195.4901961 | T57: 143.5294118 | U57: 19.7254902 | V57: 70.21568627 | W57: 274.9607843 | X57: 14.03921569 | Y57: 38.23529412 | Z57: 135.1176471 | AA57: 208.3921569 | AB57: 12.37254902 | AC57: 8.392156863 | AD57: 0 | AE57: 0 | AF57: 0 | AG57: 0 | AI57: 268.6078431 | AJ57: 143.5294118 | AK57: 19.7254902 | AL57: 70.21568627 | AM57: 274.9607843 | AN57: 14.03921569 | AO57: 38.23529412 | AP57: 135.1176471 | AQ57: 208.3921569 | AR57: 12.37254902 | AS57: 8.392156863 | AT57: 0 | AU57: 0 | AV57: 0 | AW57: 0 | BQ57: 50 | BR57: 146.4 | BS57: 20.12 | BT57: 71.62 | BU57: 280.46 | BV57: 14.32 | BW57: 39 | BX57: 137.82 | BY57: 212.56 | BZ57: 12.62 | CA57: 8.56 | CB57: 0 | CC57: 0 | CD57: 0 | CE57: 0 | CG57: 74.58 | CH57: 199.4 | CI57: 146.4 | CJ57: 20.12 | CK57: 71.62 | CL57: 280.46 | CM57: 14.32 | CN57: 39 | CO57: 137.82 | CP57: 212.56 | CQ57: 12.62 | CR57: 8.56 | CS57: 0 | CT57: 0 | CU57: 0 | CV57: 0
B58: 52 | C58: 140.7692308 | D58: 19.34615385 | E58: 68.86538462 | F58: 269.6730769 | G58: 13.76923077 | H58: 37.5 | I58: 132.5192308 | J58: 204.3846154 | K58: 12.13461538 | L58: 8.230769231 | M58: 0 | N58: 0 | O58: 0 | P58: 0 | R58: 71.71153846 | S58: 191.7307692 | T58: 140.7692308 | U58: 19.34615385 | V58: 68.86538462 | W58: 269.6730769 | X58: 13.76923077 | Y58: 37.5 | Z58: 132.5192308 | AA58: 204.3846154 | AB58: 12.13461538 | AC58: 8.230769231 | AD58: 0 | AE58: 0 | AF58: 0 | AG58: 0 | AI58: 263.4423077 | AJ58: 140.7692308 | AK58: 19.34615385 | AL58: 68.86538462 | AM58: 269.6730769 | AN58: 13.76923077 | AO58: 37.5 | AP58: 132.5192308 | AQ58: 204.3846154 | AR58: 12.13461538 | AS58: 8.230769231 | AT58: 0 | AU58: 0 | AV58: 0 | AW58: 0 | BQ58: 51 | BR58: 143.5294118 | BS58: 19.7254902 | BT58: 70.21568627 | BU58: 274.9607843 | BV58: 14.03921569 | BW58: 38.23529412 | BX58: 135.1176471 | BY58: 208.3921569 | BZ58: 12.37254902 | CA58: 8.392156863 | CB58: 0 | CC58: 0 | CD58: 0 | CE58: 0 | CG58: 73.11764706 | CH58: 195.4901961 | CI58: 143.5294118 | CJ58: 19.7254902 | CK58: 70.21568627 | CL58: 274.9607843 | CM58: 14.03921569 | CN58: 38.23529412 | CO58: 135.1176471 | CP58: 208.3921569 | CQ58: 12.37254902 | CR58: 8.392156863 | CS58: 0 | CT58: 0 | CU58: 0 | CV58: 0
B59: 53 | C59: =$C$6/B59 -> 138.1132075 | D59: =$D$6/B59 -> 18.98113208 | E59: =$E$6/B59 -> 67.56603774 | F59: =$F$6/B59 -> 264.5849057 | G59: =$G$6/B59 -> 13.50943396 | H59: =$H$6/B59 -> 36.79245283 | I59: =$I$6/B59 -> 130.0188679 | J59: 200.5283019 | K59: =$K$6/B59 -> 11.90566038 | L59: =$L$6/B59 -> 8.075471698 | M59: 0 | N59: 0 | O59: =$O$6/B59 -> 0 | P59: =$P$6/B59 -> 0 | R59: =$R$6/B59 -> 70.35849057 | S59: =$S$6/B59 -> 188.1132075 | T59: =C59 -> 138.1132075 | U59: 18.98113208 | V59: 67.56603774 | W59: 264.5849057 | X59: 13.50943396 | Y59: 36.79245283 | Z59: 130.0188679 | AA59: 200.5283019 | AB59: 11.90566038 | AC59: 8.075471698 | AD59: 0 | AE59: 0 | AF59: 0 | AG59: 0 | AI59: =$AI$6/B59 -> 258.4716981 | AJ59: =C59 -> 138.1132075 | AK59: 18.98113208 | AL59: 67.56603774 | AM59: 264.5849057 | AN59: 13.50943396 | AO59: 36.79245283 | AP59: 130.0188679 | AQ59: 200.5283019 | AR59: 11.90566038 | AS59: 8.075471698 | AT59: 0 | AU59: 0 | AV59: 0 | AW59: 0 | BQ59: 52 | BR59: =$C$6/BQ59 -> 140.7692308 | BS59: =$D$6/BQ59 -> 19.34615385 | BT59: =$E$6/BQ59 -> 68.86538462 | BU59: =$F$6/BQ59 -> 269.6730769 | BV59: =$G$6/BQ59 -> 13.76923077 | BW59: =$H$6/BQ59 -> 37.5 | BX59: =$I$6/BQ59 -> 132.5192308 | BY59: 204.3846154 | BZ59: =$K$6/BQ59 -> 12.13461538 | CA59: =$L$6/BQ59 -> 8.230769231 | CB59: 0 | CC59: 0 | CD59: =$O$6/BQ59 -> 0 | CE59: =$P$6/BQ59 -> 0 | CG59: =$R$6/BQ59 -> 71.71153846 | CH59: =$S$6/BQ59 -> 191.7307692 | CI59: 140.7692308 | CJ59: 19.34615385 | CK59: 68.86538462 | CL59: 269.6730769 | CM59: 13.76923077 | CN59: 37.5 | CO59: 132.5192308 | CP59: 204.3846154 | CQ59: 12.13461538 | CR59: 8.230769231 | CS59: 0 | CT59: 0 | CU59: 0 | CV59: 0
B60: 54 | C60: =$C$6/B60 -> 135.5555556 | D60: =$D$6/B60 -> 18.62962963 | E60: =$E$6/B60 -> 66.31481481 | F60: =$F$6/B60 -> 259.6851852 | G60: =$G$6/B60 -> 13.25925926 | H60: =$H$6/B60 -> 36.11111111 | I60: =$I$6/B60 -> 127.6111111 | J60: 196.8148148 | K60: =$K$6/B60 -> 11.68518519 | L60: =$L$6/B60 -> 7.925925926 | M60: =$M$6/B60 -> 0 | N60: =$N$6/B60 -> 0 | O60: =$O$6/B60 -> 0 | P60: =$P$6/B60 -> 0 | R60: =$R$6/B60 -> 69.05555556 | S60: =$S$6/B60 -> 184.6296296 | T60: 135.5555556 | U60: 18.62962963 | V60: 66.31481481 | W60: 259.6851852 | X60: 13.25925926 | Y60: 36.11111111 | Z60: 127.6111111 | AA60: 196.8148148 | AB60: 11.68518519 | AC60: 7.925925926 | AD60: 0 | AE60: 0 | AF60: 0 | AG60: 0 | AI60: =$AI$6/B60 -> 253.6851852 | AJ60: 135.5555556 | AK60: 18.62962963 | AL60: 66.31481481 | AM60: 259.6851852 | AN60: 13.25925926 | AO60: 36.11111111 | AP60: 127.6111111 | AQ60: 196.8148148 | AR60: 11.68518519 | AS60: 7.925925926 | AT60: 0 | AU60: 0 | AV60: 0 | AW60: 0 | BQ60: 53 | BR60: =$C$6/BQ60 -> 138.1132075 | BS60: =$D$6/BQ60 -> 18.98113208 | BT60: =$E$6/BQ60 -> 67.56603774 | BU60: =$F$6/BQ60 -> 264.5849057 | BV60: =$G$6/BQ60 -> 13.50943396 | BW60: =$H$6/BQ60 -> 36.79245283 | BX60: =$I$6/BQ60 -> 130.0188679 | BY60: 200.5283019 | BZ60: =$K$6/BQ60 -> 11.90566038 | CA60: =$L$6/BQ60 -> 8.075471698 | CB60: =$M$6/BQ60 -> 0 | CC60: =$N$6/BQ60 -> 0 | CD60: =$O$6/BQ60 -> 0 | CE60: =$P$6/BQ60 -> 0 | CG60: =$R$6/BQ60 -> 70.35849057 | CH60: =$S$6/BQ60 -> 188.1132075 | CI60: 138.1132075 | CJ60: 18.98113208 | CK60: 67.56603774 | CL60: 264.5849057 | CM60: 13.50943396 | CN60: 36.79245283 | CO60: 130.0188679 | CP60: 200.5283019 | CQ60: 11.90566038 | CR60: 8.075471698 | CS60: 0 | CT60: 0 | CU60: 0 | CV60: 0
B63: Nombre d'inscrits | C63: 60873
B64: Bulletins déposés | C64: 50903
B65: Blancs & Nuls | C65: 3729
B66: Votes valables | C66: 47174
B67: Nombre de sièges | C67: 47
B72: Liste unique Majorité absolue | C72: =SUM($C$73:$P$73) -> 0 | R72: =SUM($R$73:$AG$73) -> 0 | AI72: =SUM($AI$73:$AW$73) -> 0
C73: =IF(C7>($C$67/2),1,0) -> 0 | D73: =IF(D7>($C$67/2),1,0) -> 0 | E73: =IF(E7>($C$67/2),1,0) -> 0 | F73: =IF(F7>($C$67/2),1,0) -> 0 | G73: =IF(G7>($C$67/2),1,0) -> 0 | H73: =IF(H7>($C$67/2),1,0) -> 0 | I73: =IF(I7>($C$67/2),1,0) -> 0 | J73: =IF(J7>($C$67/2),1,0) -> 0 | K73: =IF(K7>($C$67/2),1,0) -> 0 | L73: =IF(L7>($C$67/2),1,0) -> 0 | M73: =IF(M7>($C$67/2),1,0) -> 0 | N73: =IF(N7>($C$67/2),1,0) -> 0 | O73: =IF(O7>($C$67/2),1,0) -> 0 | P73: =IF(P7>($C$67/2),1,0) -> 0 | R73: =IF(R7>($C$67/2),1,0) -> 0 | S73: =IF(S7>($C$67/2),1,0) -> 0 | T73: =IF(T7>($C$67/2),1,0) -> 0 | U73: =IF(U7>($C$67/2),1,0) -> 0 | V73: =IF(V7>($C$67/2),1,0) -> 0 | W73: =IF(W7>($C$67/2),1,0) -> 0 | X73: =IF(X7>($C$67/2),1,0) -> 0 | Y73: =IF(Y7>($C$67/2),1,0) -> 0 | Z73: =IF(Z7>($C$67/2),1,0) -> 0 | AA73: =IF(AA7>($C$67/2),1,0) -> 0 | AB73: =IF(AB7>($C$67/2),1,0) -> 0 | AC73: =IF(AC7>($C$67/2),1,0) -> 0 | AD73: =IF(AD7>($C$67/2),1,0) -> 0 | AE73: =IF(AE7>($C$67/2),1,0) -> 0 | AF73: =IF(AF7>($C$67/2),1,0) -> 0 | AG73: =IF(AG7>($C$67/2),1,0) -> 0 | AI73: =IF(AI7>($C$67/2),1,0) -> 0 | AJ73: =IF(AJ7>($C$67/2),1,0) -> 0 | AK73: =IF(AK7>($C$67/2),1,0) -> 0 | AL73: =IF(AL7>($C$67/2),1,0) -> 0 | AM73: =IF(AM7>($C$67/2),1,0) -> 0 | AN73: =IF(AN7>($C$67/2),1,0) -> 0 | AO73: =IF(AO7>($C$67/2),1,0) -> 0 | AP73: =IF(AP7>($C$67/2),1,0) -> 0 | AQ73: =IF(AQ7>($C$67/2),1,0) -> 0 | AR73: =IF(AR7>($C$67/2),1,0) -> 0 | AS73: =IF(AS7>($C$67/2),1,0) -> 0 | AT73: =IF(AT7>($C$67/2),1,0) -> 0 | AU73: =IF(AU7>($C$67/2),1,0) -> 0 | AV73: =IF(AV7>($C$67/2),1,0) -> 0 | AW73: =IF(AW7>($C$67/2),1,0) -> 0
B75: Liste unique Majorité absolue nombre de voix | C75: =SUM($C$76:$P$76) -> 0 | R75: =SUM(R76:AG76) -> 0 | AI75: =SUM(AI76:AW76) -> 0
C76: =IF(C73>0,C6,0) -> 0 | D76: =IF(D73>0,D6,0) -> 0 | E76: =IF(E73>0,E6,0) -> 0 | F76: =IF(F73>0,F6,0) -> 0 | G76: =IF(G73>0,G6,0) -> 0 | H76: =IF(H73>0,H6,0) -> 0 | I76: =IF(I73>0,I6,0) -> 0 | J76: =IF(J73>0,J6,0) -> 0 | K76: =IF(K73>0,K6,0) -> 0 | L76: =IF(L73>0,L6,0) -> 0 | M76: =IF(M73>0,M6,0) -> 0 | N76: =IF(N73>0,N6,0) -> 0 | O76: =IF(O73>0,O6,0) -> 0 | P76: =IF(P73>0,P6,0) -> 0 | R76: =IF(R73>0,R6,0) -> 0 | S76: =IF(S73>0,S6,0) -> 0 | T76: =IF(T73>0,T6,0) -> 0 | U76: =IF(U73>0,U6,0) -> 0 | V76: =IF(V73>0,V6,0) -> 0 | W76: =IF(W73>0,W6,0) -> 0 | X76: =IF(X73>0,X6,0) -> 0 | Y76: =IF(Y73>0,Y6,0) -> 0 | Z76: =IF(Z73>0,Z6,0) -> 0 | AA76: =IF(AA73>0,AA6,0) -> 0 | AB76: =IF(AB73>0,AB6,0) -> 0 | AC76: =IF(AC73>0,AC6,0) -> 0 | AD76: =IF(AD73>0,AD6,0) -> 0 | AE76: =IF(AE73>0,AE6,0) -> 0 | AF76: =IF(AF73>0,AF6,0) -> 0 | AG76: =IF(AG73>0,AG6,0) -> 0 | AI76: =IF(AI73>0,AI6,0) -> 0 | AJ76: =IF(AJ73>0,AJ6,0) -> 0 | AK76: =IF(AK73>0,AK6,0) -> 0 | AL76: =IF(AL73>0,AL6,0) -> 0 | AM76: =IF(AM73>0,AM6,0) -> 0 | AN76: =IF(AN73>0,AN6,0) -> 0 | AO76: =IF(AO73>0,AO6,0) -> 0 | AP76: =IF(AP73>0,AP6,0) -> 0 | AQ76: =IF(AQ73>0,AQ6,0) -> 0 | AR76: =IF(AR73>0,AR6,0) -> 0 | AS76: =IF(AS73>0,AS6,0) -> 0 | AT76: =IF(AT73>0,AT6,0) -> 0 | AU76: =IF(AU73>0,AU6,0) -> 0 | AV76: =IF(AV73>0,AV6,0) -> 0 | AW76: =IF(AW73>0,AW6,0) -> 0
B78: Nbr voix Coalition | C78: =SUMIF(C4:P4,"x",C6:P6) -> 24924
B80: % Coalition | C80: =100/C63*C78 -> 40.944261
B81: % Majorité | C81: =100/C63*C75 -> 0
B83: Coalition | C83: =COUNTA(C4:P4) -> 3 | D83: =IF(C83>0,1,0) -> 1
P96: ANDERLECHT
R98: =R5 -> Blancs & Nuls | S98: =S5 -> Non-déposés | T98: =T5 -> Ecolo-Groen | U98: =U5 -> VLAAMS BELANG | V98: =V5 -> DéFI | W98: =W5 -> PS-sp.a-cdH | X98: =X5 -> CD&V Plus | Y98: =Y5 -> N-VA | Z98: =Z5 -> PTB*PVDA | AA98: =AA5 -> MR-Open Vld-IC | AB98: =AB5 -> LA DROITE | AC98: =AC5 -> NATION | AD98: =AD5 -> 0 | AE98: =AE5 -> 0 | AF98: =AF5 -> 0 | AG98: =AG5 -> 0
P99: Chiffres électoraux | R99: =R6 -> 3729 | S99: =S6 -> 9970 | T99: =T6 -> 7320 | U99: =U6 -> 1006 | V99: =V6 -> 3581 | W99: =W6 -> 14023 | X99: =X6 -> 716 | Y99: =Y6 -> 1950 | Z99: =Z6 -> 6891 | AA99: =AA6 -> 10628 | AB99: =AB6 -> 631 | AC99: =AC6 -> 428 | AD99: =AD6 -> 0 | AE99: =AE6 -> 0 | AF99: =AF6 -> 0 | AG99: =AG6 -> 0
P100: Impériali | R100: 0 | S100: 0 | T100: =C7 -> 8 | U100: =D7 -> 0 | V100: =E7 -> 3 | W100: =F7 -> 16 | X100: =G7 -> 0 | Y100: =H7 -> 1 | Z100: =I7 -> 7 | AA100: =J7 -> 12 | AB100: =K7 -> 0 | AC100: =L7 -> 0 | AD100: =M7 -> 0 | AE100: =N7 -> 0 | AF100: =O7 -> 0 | AG100: =P7 -> 0
P101: Impériali + proportionnelle | R101: =R7 -> 2 | S101: =S7 -> 9 | T101: =T7 -> 6 | U101: =U7 -> 0 | V101: =V7 -> 2 | W101: =W7 -> 13 | X101: =X7 -> 0 | Y101: =Y7 -> 0 | Z101: =Z7 -> 6 | AA101: =AA7 -> 9 | AB101: =AB7 -> 0 | AC101: =AC7 -> 0 | AD101: =AD7 -> 0 | AE101: =AE7 -> 0 | AF101: =AF7 -> 0 | AG101: =AG7 -> 0
P102: D'Hondt | R102: 0 | S102: 0 | T102: =BR7 -> 8 | U102: =BS7 -> 1 | V102: =BT7 -> 3 | W102: =BU7 -> 15 | X102: =BV7 -> 0 | Y102: =BW7 -> 2 | Z102: =BX7 -> 7 | AA102: =BY7 -> 11 | AB102: =BZ7 -> 0 | AC102: =CA7 -> 0 | AD102: =CB7 -> 0 | AE102: =CC7 -> 0 | AF102: =CD7 -> 0 | AG102: =CE7 -> 0
P103: D'Hondt + proportionnelle | R103: =CG7 -> 3 | S103: =CH7 -> 8 | T103: =CI7 -> 6 | U103: =CJ7 -> 0 | V103: =CK7 -> 3 | W103: =CL7 -> 12 | X103: =CM7 -> 0 | Y103: =CN7 -> 1 | Z103: =CO7 -> 5 | AA103: =CP7 -> 9 | AB103: =CQ7 -> 0 | AC103: =CR7 -> 0 | AD103: =CS7 -> 0 | AE103: =CT7 -> 0 | AF103: =CU7 -> 0 | AG103: =CV7 -> 0
P104: Proportionnelle pure | R104: =AZ7 -> 2.879158247 | S104: =BA7 -> 7.697829908 | T104: =BB7 -> 5.651766793 | U104: =BC7 -> 0.7767318844 | V104: =BD7 -> 2.764887553 | W104: =BE7 -> 10.82714833 | X104: =BF7 -> 0.5528230907 | Y104: =BG7 -> 1.505593613 | Z104: =BH7 -> 5.320536198 | AA104: =BI7 -> 8.20587124 | AB104: =BJ7 -> 0.4871946512 | AC104: =BK7 -> 0.3304584956 | AD104: =BL7 -> 0 | AE104: =BM7 -> 0 | AF104: =BN7 -> 0 | AG104: =BO7 -> 0
Q106: Nombre de sièges à distribuer : | U106: =C67 -> 47 | W106: Est-ce une liste unique en majorité absolue en termes de sièges ? | AD106: =IF(C72>0,"Oui","Non") -> Non
Q108: Nombre d'inscrits : | U108: =C63 -> 60873 | W108: Est-ce une liste unique en majorité absolue en termes de voix ? | AD108: =IF(C75>0,"Oui","Non") -> Non
Q110: Nombre de bulletins déposés : | U110: =C64 -> 50903 | W110: La majorité est-elle formée par une coalition ? | AD110: =IF(B4>0,"Oui","Non") -> Oui
Q112: Nombre de votes valables : | U112: =C66 -> 47174 | W112: Quelle est la proportion de l'électorat représentée par la majorité ? | AD112: =IF(D83>0,C80,C81) -> 40.944261
P114: Comparaison Clef Impériali - Clef D'Hondt | R114: =R100-R102 -> 0 | S114: =S100-S102 -> 0 | T114: 0 | U114: -1 | V114: 0 | W114: 1 | X114: 0 | Y114: -1 | Z114: 0 | AA114: 1 | AB114: 0 | AC114: 0 | AD114: 0 | AE114: 0 | AF114: 0 | AG114: 0

Sheet AUDERGHEM
B2: IMPÉRIALI | AY2: PROPORTIONNELLE PURE | BQ2: D'HONDT
B4: Coalition | D4: x | E4: x
B5: =COUNTA(C5:P5) -> 8 | C5: LISTE CITOYENNE 1160 | D5: Ecolo-Groen | E5: Liste du Bourgmestre | F5: PS | G5: N-VA | H5: MR-OpenVLD | I5: SAMEN | J5: PP Parti Populaire | R5: Blancs & Nuls | S5: Non-déposés | T5: =C5 -> LISTE CITOYENNE 1160 | U5: =D5 -> Ecolo-Groen | V5: =E5 -> Liste du Bourgmestre | W5: =F5 -> PS | X5: =G5 -> N-VA | Y5: =H5 -> MR-OpenVLD | Z5: =I5 -> SAMEN | AA5: =J5 -> PP Parti Populaire | AB5: =K5 -> 0 | AC5: =L5 -> 0 | AD5: =M5 -> 0 | AE5: =N5 -> 0 | AF5: =O5 -> 0 | AG5: =P5 -> 0 | AI5: Non-valables | AJ5: =C5 -> LISTE CITOYENNE 1160 | AK5: =D5 -> Ecolo-Groen | AL5: =E5 -> Liste du Bourgmestre | AM5: =F5 -> PS | AN5: =G5 -> N-VA | AO5: =H5 -> MR-OpenVLD | AP5: =I5 -> SAMEN | AQ5: =J5 -> PP Parti Populaire | AR5: =K5 -> 0 | AS5: =L5 -> 0 | AT5: =M5 -> 0 | AU5: =N5 -> 0 | AV5: =O5 -> 0 | AW5: =P5 -> 0 | AY5: New Key | AZ5: Blancs & Nuls | BA5: Non-déposés | BB5: =C5 -> LISTE CITOYENNE 1160 | BC5: =D5 -> Ecolo-Groen | BD5: Liste du Bourgmestre | BE5: PS | BF5: N-VA | BG5: MR-OpenVLD | BH5: SAMEN | BI5: PP Parti Populaire | BJ5: 0 | BK5: 0 | BL5: 0 | BM5: 0 | BN5: 0 | BO5: 0 | BR5: =C5 -> LISTE CITOYENNE 1160 | BS5: =D5 -> Ecolo-Groen | BT5: Liste du Bourgmestre | BU5: PS | BV5: N-VA | BW5: MR-OpenVLD | BX5: SAMEN | BY5: PP Parti Populaire | BZ5: 0 | CA5: 0 | CB5: 0 | CC5: 0 | CD5: 0 | CE5: 0 | CG5: Blancs & Nuls | CH5: Non-déposés | CI5: =C5 -> LISTE CITOYENNE 1160 | CJ5: =D5 -> Ecolo-Groen | CK5: Liste du Bourgmestre | CL5: PS | CM5: N-VA | CN5: MR-OpenVLD | CO5: SAMEN | CP5: PP Parti Populaire | CQ5: 0 | CR5: 0 | CS5: 0 | CT5: 0 | CU5: 0 | CV5: 0
B6: Chiffres électoraux | C6: 892 | D6: 3809 | E6: 8001 | F6: 1141 | G6: 382 | H6: 1590 | I6: 611 | J6: 367 | K6: 0 | L6: 0 | M6: 0 | N6: 0 | O6: 0 | P6: 0 | R6: =C65 -> 794 | S6: =C63-C64 -> 2511 | T6: 892 | U6: 3809 | V6: 8001 | W6: 1141 | X6: 382 | Y6: 1590 | Z6: 611 | AA6: 367 | AB6: 0 | AC6: 0 | AD6: 0 | AE6: 0 | AF6: 0 | AG6: 0 | AI6: =R6+S6 -> 3305 | AJ6: 892 | AK6: 3809 | AL6: 8001 | AM6: 1141 | AN6: 382 | AO6: 1590 | AP6: 611 | AQ6: 367 | AR6: 0 | AS6: 0 | AT6: 0 | AU6: 0 | AV6: 0 | AW6: 0 | AZ6: =C65 -> 794 | BA6: =C63-C64 -> 2511 | BB6: =C6 -> 892 | BC6: 3809 | BD6: 8001 | BE6: 1141 | BF6: 382 | BG6: 1590 | BH6: 611 | BI6: 367 | BJ6: 0 | BK6: 0 | BL6: 0 | BM6: 0 | BN6: 0 | BO6: 0 | BQ6: Chiffres électoraux | BR6: =C6 -> 892 | BS6: 3809 | BT6: 8001 | BU6: 1141 | BV6: 382 | BW6: 1590 | BX6: 611 | BY6: 367 | BZ6: 0 | CA6: 0 | CB6: 0 | CC6: 0 | CD6: 0 | CE6: 0 | CG6: =C65 -> 794 | CH6: =C63-C64 -> 2511 | CI6: =C6 -> 892 | CJ6: 3809 | CK6: 8001 | CL6: 1141 | CM6: 382 | CN6: 1590 | CO6: 611 | CP6: 367 | CQ6: 0 | CR6: 0 | CS6: 0 | CT6: 0 | CU6: 0 | CV6: 0
B7: Sièges | C7: 1 | D7: 8 | E7: 19 | F7: 1 | G7: 0 | H7: 2 | I7: 0 | J7: 0 | K7: 0 | L7: 0 | M7: 0 | N7: 0 | O7: 0 | P7: 0 | R7: 0 | S7: 4 | T7: 1 | U7: 7 | V7: 16 | W7: 1 | X7: 0 | Y7: 2 | Z7: 0 | AA7: 0 | AB7: 0 | AC7: 0 | AD7: 0 | AE7: 0 | AF7: 0 | AG7: 0 | AI7: 6 | AJ7: 0 | AK7: 7 | AL7: 15 | AM7: 1 | AN7: 0 | AO7: 2 | AP7: 0 | AQ7: 0 | AR7: 0 | AS7: 0 | AT7: 0 | AU7: 0 | AV7: 0 | AW7: 0 | AY7: 648.3225806 | AZ7: 1.224698975 | BA7: 3.873071947 | BB7: 1.375858294 | BC7: 5.875161708 | BD7: 12.34107871 | BE7: 1.759926361 | BF7: 0.589212857 | BG7: 2.452482834 | BH7: 0.9424320828 | BI7: 0.5660762265 | BJ7: 0 | BK7: 0 | BL7: 0 | BM7: 0 | BN7: 0 | BO7: 0 | BQ7: Sièges | BR7: 1 | BS7: 8 | BT7: 16 | BU7: 2 | BV7: 0 | BW7: 3 | BX7: 1 | BY7: 0 | BZ7: 0 | CA7: 0 | CB7: 0 | CC7: 0 | CD7: 0 | CE7: 0 | CG7: 1 | CH7: 4 | CI7: 1 | CJ7: 6 | CK7: 14 | CL7: 2 | CM7: 0 | CN7: 2 | CO7: 1 | CP7: 0 | CQ7: 0 | CR7: 0 | CS7: 0 | CT7: 0 | CU7: 0 | CV7: 0
B8: 2 | C8: =$C$6/B8 -> 446 | D8: =$D$6/B8 -> 1904.5 | E8: =$E$6/B8 -> 4000.5 | F8: =$F$6/B8 -> 570.5 | G8: =$G$6/B8 -> 191 | H8: =$H$6/B8 -> 795 | I8: =$I$6/B8 -> 305.5 | J8: =$J$6/B8 -> 183.5 | K8: =$K$6/B8 -> 0 | L8: =$L$6/B8 -> 0 | M8: =$M$6/B8 -> 0 | N8: =$N$6/B8 -> 0 | O8: =$O$6/B8 -> 0 | P8: =$P$6/B8 -> 0 | R8: =$R$6/B8 -> 397 | S8: =$S$6/B8 -> 1255.5 | T8: =C8 -> 446 | U8: 1904.5 | V8: 4000.5 | W8: 570.5 | X8: 191 | Y8: 795 | Z8: 305.5 | AA8: 183.5 | AB8: 0 | AC8: 0 | AD8: 0 | AE8: 0 | AF8: 0 | AG8: 0 | AI8: =$AI$6/B8 -> 1652.5 | AJ8: =C8 -> 446 | AK8: 1904.5 | AL8: 4000.5 | AM8: 570.5 | AN8: 191 | AO8: 795 | AP8: 305.5 | AQ8: 183.5 | AR8: 0 | AS8: 0 | AT8: 0 | AU8: 0 | AV8: 0 | AW8: 0 | BQ8: 1 | BR8: =$C$6/BQ8 -> 892 | BS8: =$D$6/BQ8 -> 3809 | BT8: =$E$6/BQ8 -> 8001 | BU8: =$F$6/BQ8 -> 1141 | BV8: =$G$6/BQ8 -> 382 | BW8: =$H$6/BQ8 -> 1590 | BX8: =$I$6/BQ8 -> 611 | BY8: =$J$6/BQ8 -> 367 | BZ8: =$K$6/BQ8 -> 0 | CA8: =$L$6/BQ8 -> 0 | CB8: =$M$6/BQ8 -> 0 | CC8: =$N$6/BQ8 -> 0 | CD8: =$O$6/BQ8 -> 0 | CE8: =$P$6/BQ8 -> 0 | CG8: =$R$6/BQ8 -> 794 | CH8: =$S$6/BQ8 -> 2511 | CI8: =BR8 -> 892 | CJ8: 3809 | CK8: 8001 | CL8: 1141 | CM8: 382 | CN8: 1590 | CO8: 611 | CP8: 367 | CQ8: 0 | CR8: 0 | CS8: 0 | CT8: 0 | CU8: 0 | CV8: 0
B9: 3 | C9: =$C$6/B9 -> 297.3333333 | D9: 1269.666667 | E9: =$E$6/B9 -> 2667 | F9: 380.3333333 | G9: 127.3333333 | H9: =$H$6/B9 -> 530 | I9: =$I$6/B9 -> 203.6666667 | J9: =$J$6/B9 -> 122.3333333 | K9: =$K$6/B9 -> 0 | L9: =$L$6/B9 -> 0 | M9: 0 | N9: 0 | O9: =$O$6/B9 -> 0 | P9: 0 | R9: 264.6666667 | S9: 837 | T9: 297.3333333 | U9: 1269.666667 | V9: 2667 | W9: 380.3333333 | X9: 127.3333333 | Y9: 530 | Z9: 203.6666667 | AA9: 122.3333333 | AB9: 0 | AC9: 0 | AD9: 0 | AE9: 0 | AF9: 0 | AG9: 0 | AI9: 1101.666667 | AJ9: 297.3333333 | AK9: 1269.666667 | AL9: 2667 | AM9: 380.3333333 | AN9: 127.3333333 | AO9: 530 | AP9: 203.6666667 | AQ9: 122.3333333 | AR9: 0 | AS9: 0 | AT9: 0 | AU9: 0 | AV9: 0 | AW9: 0 | BQ9: 2 | BR9: =$C$6/BQ9 -> 446 | BS9: 1904.5 | BT9: =$E$6/BQ9 -> 4000.5 | BU9: 570.5 | BV9: 191 | BW9: =$H$6/BQ9 -> 795 | BX9: =$I$6/BQ9 -> 305.5 | BY9: =$J$6/BQ9 -> 183.5 | BZ9: =$K$6/BQ9 -> 0 | CA9: =$L$6/BQ9 -> 0 | CB9: 0 | CC9: 0 | CD9: =$O$6/BQ9 -> 0 | CE9: 0 | CG9: 397 | CH9: 1255.5 | CI9: 446 | CJ9: 1904.5 | CK9: 4000.5 | CL9: 570.5 | CM9: 191 | CN9: 795 | CO9: 305.5 | CP9: 183.5 | CQ9: 0 | CR9: 0 | CS9: 0 | CT9: 0 | CU9: 0 | CV9: 0
B10: 4 | C10: 223 | D10: 952.25 | E10: 2000.25 | F10: 285.25 | G10: 95.5 | H10: 397.5 | I10: 152.75 | J10: 91.75 | K10: 0 | L10: 0 | M10: 0 | N10: 0 | O10: 0 | P10: 0 | R10: 198.5 | S10: 627.75 | T10: 223 | U10: 952.25 | V10: 2000.25 | W10: 285.25 | X10: 95.5 | Y10: 397.5 | Z10: 152.75 | AA10: 91.75 | AB10: 0 | AC10: 0 | AD10: 0 | AE10: 0 | AF10: 0 | AG10: 0 | AI10: 826.25 | AJ10: 223 | AK10: 952.25 | AL10: 2000.25 | AM10: 285.25 | AN10: 95.5 | AO10: 397.5 | AP10: 152.75 | AQ10: 91.75 | AR10: 0 | AS10: 0 | AT10: 0 | AU10: 0 | AV10: 0 | AW10: 0 | BQ10: 3 | BR10: 297.3333333 | BS10: 1269.666667 | BT10: 2667 | BU10: 380.3333333 | BV10: 127.3333333 | BW10: 530 | BX10: 203.6666667 | BY10: 122.3333333 | BZ10: 0 | CA10: 0 | CB10: 0 | CC10: 0 | CD10: 0 | CE10: 0 | CG10: 264.6666667 | CH10: 837 | CI10: 297.3333333 | CJ10: 1269.666667 | CK10: 2667 | CL10: 380.3333333 | CM10: 127.3333333 | CN10: 530 | CO10: 203.6666667 | CP10: 122.3333333 | CQ10: 0 | CR10: 0 | CS10: 0 | CT10: 0 | CU10: 0 | CV10: 0
B11: 5 | C11: 178.4 | D11: 761.8 | E11: 1600.2 | F11: 228.2 | G11: 76.4 | H11: 318 | I11: 122.2 | J11: 73.4 | K11: 0 | L11: 0 | M11: 0 | N11: 0 | O11: 0 | P11: 0 | R11: 158.8 | S11: 502.2 | T11: 178.4 | U11: 761.8 | V11: 1600.2 | W11: 228.2 | X11: 76.4 | Y11: 318 | Z11: 122.2 | AA11: 73.4 | AB11: 0 | AC11: 0 | AD11: 0 | AE11: 0 | AF11: 0 | AG11: 0 | AI11: 661 | AJ11: 178.4 | AK11: 761.8 | AL11: 1600.2 | AM11: 228.2 | AN11: 76.4 | AO11: 318 | AP11: 122.2 | AQ11: 73.4 | AR11: 0 | AS11: 0 | AT11: 0 | AU11: 0 | AV11: 0 | AW11: 0 | BQ11: 4 | BR11: 223 | BS11: 952.25 | BT11: 2000.25 | BU11: 285.25 | BV11: 95.5 | BW11: 397.5 | BX11: 152.75 | BY11: 91.75 | BZ11: 0 | CA11: 0 | CB11: 0 | CC11: 0 | CD11: 0 | CE11: 0 | CG11: 198.5 | CH11: 627.75 | CI11: 223 | CJ11: 952.25 | CK11: 2000.25 | CL11: 285.25 | CM11: 95.5 | CN11: 397.5 | CO11: 152.75 | CP11: 91.75 | CQ11: 0 | CR11: 0 | CS11: 0 | CT11: 0 | CU11: 0 | CV11: 0
B12: 6 | C12: 148.6666667 | D12: 634.8333333 | E12: 1333.5 | F12: 190.1666667 | G12: 63.66666667 | H12: 265 | I12: 101.8333333 | J12: 61.16666667 | K12: 0 | L12: 0 | M12: 0 | N12: 0 | O12: 0 | P12: 0 | R12: 132.3333333 | S12: 418.5 | T12: 148.6666667 | U12: 634.8333333 | V12: 1333.5 | W12: 190.1666667 | X12: 63.66666667 | Y12: 265 | Z12: 101.8333333 | AA12: 61.16666667 | AB12: 0 | AC12: 0 | AD12: 0 | AE12: 0 | AF12: 0 | AG12: 0 | AI12: 550.8333333 | AJ12: 148.6666667 | AK12: 634.8333333 | AL12: 1333.5 | AM12: 190.1666667 | AN12: 63.66666667 | AO12: 265 | AP12: 101.8333333 | AQ12: 61.16666667 | AR12: 0 | AS12: 0 | AT12: 0 | AU12: 0 | AV12: 0 | AW12: 0 | BQ12: 5 | BR12: 178.4 | BS12: 761.8 | BT12: 1600.2 | BU12: 228.2 | BV12: 76.4 | BW12: 318 | BX12: 122.2 | BY12: 73.4 | BZ12: 0 | CA12: 0 | CB12: 0 | CC12: 0 | CD12: 0 | CE12: 0 | CG12: 158.8 | CH12: 502.2 | CI12: 178.4 | CJ12: 761.8 | CK12: 1600.2 | CL12: 228.2 | CM12: 76.4 | CN12: 318 | CO12: 122.2 | CP12: 73.4 | CQ12: 0 | CR12: 0 | CS12: 0 | CT12: 0 | CU12: 0 | CV12: 0
B13: 7 | C13: 127.4285714 | D13: 544.1428571 | E13: 1143 | F13: 163 | G13: 54.57142857 | H13: 227.1428571 | I13: 87.28571429 | J13: 52.42857143 | K13: 0 | L13: 0 | M13: 0 | N13: 0 | O13: 0 | P13: 0 | R13: 113.4285714 | S13: 358.7142857 | T13: 127.4285714 | U13: 544.1428571 | V13: 1143 | W13: 163 | X13: 54.57142857 | Y13: 227.1428571 | Z13: 87.28571429 | AA13: 52.42857143 | AB13: 0 | AC13: 0 | AD13: 0 | AE13: 0 | AF13: 0 | AG13: 0 | AI13: 472.1428571 | AJ13: 127.4285714 | AK13: 544.1428571 | AL13: 1143 | AM13: 163 | AN13: 54.57142857 | AO13: 227.1428571 | AP13: 87.28571429 | AQ13: 52.42857143 | AR13: 0 | AS13: 0 | AT13: 0 | AU13: 0 | AV13: 0 | AW13: 0 | BQ13: 6 | BR13: 148.6666667 | BS13: 634.8333333 | BT13: 1333.5 | BU13: 190.1666667 | BV13: 63.66666667 | BW13: 265 | BX13: 101.8333333 | BY13: 61.16666667 | BZ13: 0 | CA13: 0 | CB13: 0 | CC13: 0 | CD13: 0 | CE13: 0 | CG13: 132.3333333 | CH13: 418.5 | CI13: 148.6666667 | CJ13: 634.8333333 | CK13: 1333.5 | CL13: 190.1666667 | CM13: 63.66666667 | CN13: 265 | CO13: 101.8333333 | CP13: 61.16666667 | CQ13: 0 | CR13: 0 | CS13: 0 | CT13: 0 | CU13: 0 | CV13: 0
B14: 8 | C14: 111.5 | D14: 476.125 | E14: 1000.125 | F14: 142.625 | G14: 47.75 | H14: 198.75 | I14: 76.375 | J14: 45.875 | K14: 0 | L14: 0 | M14: 0 | N14: 0 | O14: 0 | P14: 0 | R14: 99.25 | S14: 313.875 | T14: 111.5 | U14: 476.125 | V14: 1000.125 | W14: 142.625 | X14: 47.75 | Y14: 198.75 | Z14: 76.375 | AA14: 45.875 | AB14: 0 | AC14: 0 | AD14: 0 | AE14: 0 | AF14: 0 | AG14: 0 | AI14: 413.125 | AJ14: 111.5 | AK14: 476.125 | AL14: 1000.125 | AM14: 142.625 | AN14: 47.75 | AO14: 198.75 | AP14: 76.375 | AQ14: 45.875 | AR14: 0 | AS14: 0 | AT14: 0 | AU14: 0 | AV14: 0 | AW14: 0 | BQ14: 7 | BR14: 127.4285714 | BS14: 544.1428571 | BT14: 1143 | BU14: 163 | BV14: 54.57142857 | BW14: 227.1428571 | BX14: 87.28571429 | BY14: 52.42857143 | BZ14: 0 | CA14: 0 | CB14: 0 | CC14: 0 | CD14: 0 | CE14: 0 | CG14: 113.4285714 | CH14: 358.7142857 | CI14: 127.4285714 | CJ14: 544.1428571 | CK14: 1143 | CL14: 163 | CM14: 54.57142857 | CN14: 227.1428571 | CO14: 87.28571429 | CP14: 52.42857143 | CQ14: 0 | CR14: 0 | CS14: 0 | CT14: 0 | CU14: 0 | CV14: 0
B15: 9 | C15: 99.11111111 | D15: 423.2222222 | E15: 889 | F15: 126.7777778 | G15: 42.44444444 | H15: 176.6666667 | I15: 67.88888889 | J15: 40.77777778 | K15: 0 | L15: 0 | M15: 0 | N15: 0 | O15: 0 | P15: 0 | R15: 88.22222222 | S15: 279 | T15: 99.11111111 | U15: 423.2222222 | V15: 889 | W15: 126.7777778 | X15: 42.44444444 | Y15: 176.6666667 | Z15: 67.88888889 | AA15: 40.77777778 | AB15: 0 | AC15: 0 | AD15: 0 | AE15: 0 | AF15: 0 | AG15: 0 | AI15: 367.2222222 | AJ15: 99.11111111 | AK15: 423.2222222 | AL15: 889 | AM15: 126.7777778 | AN15: 42.44444444 | AO15: 176.6666667 | AP15: 67.88888889 | AQ15: 40.77777778 | AR15: 0 | AS15: 0 | AT15: 0 | AU15: 0 | AV15: 0 | AW15: 0 | BQ15: 8 | BR15: 111.5 | BS15: 476.125 | BT15: 1000.125 | BU15: 142.625 | BV15: 47.75 | BW15: 198.75 | BX15: 76.375 | BY15: 45.875 | BZ15: 0 | CA15: 0 | CB15: 0 | CC15: 0 | CD15: 0 | CE15: 0 | CG15: 99.25 | CH15: 313.875 | CI15: 111.5 | CJ15: 476.125 | CK15: 1000.125 | CL15: 142.625 | CM15: 47.75 | CN15: 198.75 | CO15: 76.375 | CP15: 45.875 | CQ15: 0 | CR15: 0 | CS15: 0 | CT15: 0 | CU15: 0 | CV15: 0
B16: 10 | C16: 89.2 | D16: 380.9 | E16: 800.1 | F16: 114.1 | G16: 38.2 | H16: 159 | I16: 61.1 | J16: 36.7 | K16: 0 | L16: 0 | M16: 0 | N16: 0 | O16: 0 | P16: 0 | R16: 79.4 | S16: 251.1 | T16: 89.2 | U16: 380.9 | V16: 800.1 | W16: 114.1 | X16: 38.2 | Y16: 159 | Z16: 61.1 | AA16: 36.7 | AB16: 0 | AC16: 0 | AD16: 0 | AE16: 0 | AF16: 0 | AG16: 0 | AI16: 330.5 | AJ16: 89.2 | AK16: 380.9 | AL16: 800.1 | AM16: 114.1 | AN16: 38.2 | AO16: 159 | AP16: 61.1 | AQ16: 36.7 | AR16: 0 | AS16: 0 | AT16: 0 | AU16: 0 | AV16: 0 | AW16: 0 | BQ16: 9 | BR16: 99.11111111 | BS16: 423.2222222 | BT16: 889 | BU16: 126.7777778 | BV16: 42.44444444 | BW16: 176.6666667 | BX16: 67.88888889 | BY16: 40.77777778 | BZ16: 0 | CA16: 0 | CB16: 0 | CC16: 0 | CD16: 0 | CE16: 0 | CG16: 88.22222222 | CH16: 279 | CI16: 99.11111111 | CJ16: 423.2222222 | CK16: 889 | CL16: 126.7777778 | CM16: 42.44444444 | CN16: 176.6666667 | CO16: 67.88888889 | CP16: 40.77777778 | CQ16: 0 | CR16: 0 | CS16: 0 | CT16: 0 | CU16: 0 | CV16: 0
B17: 11 | C17: 81.09090909 | D17: 346.2727273 | E17: 727.3636364 | F17: 103.7272727 | G17: 34.72727273 | H17: 144.5454545 | I17: 55.54545455 | J17: 33.36363636 | K17: 0 | L17: 0 | M17: 0 | N17: 0 | O17: 0 | P17: 0 | R17: 72.18181818 | S17: 228.2727273 | T17: 81.09090909 | U17: 346.2727273 | V17: 727.3636364 | W17: 103.7272727 | X17: 34.72727273 | Y17: 144.5454545 | Z17: 55.54545455 | AA17: 33.36363636 | AB17: 0 | AC17: 0 | AD17: 0 | AE17: 0 | AF17: 0 | AG17: 0 | AI17: 300.4545455 | AJ17: 81.09090909 | AK17: 346.2727273 | AL17: 727.3636364 | AM17: 103.7272727 | AN17: 34.72727273 | AO17: 144.5454545 | AP17: 55.54545455 | AQ17: 33.36363636 | AR17: 0 | AS17: 0 | AT17: 0 | AU17: 0 | AV17: 0 | AW17: 0 | BQ17: 10 | BR17: 89.2 | BS17: 380.9 | BT17: 800.1 | BU17: 114.1 | BV17: 38.2 | BW17: 159 | BX17: 61.1 | BY17: 36.7 | BZ17: 0 | CA17: 0 | CB17: 0 | CC17: 0 | CD17: 0 | CE17: 0 | CG17: 79.4 | CH17: 251.1 | CI17: 89.2 | CJ17: 380.9 | CK17: 800.1 | CL17: 114.1 | CM17: 38.2 | CN17: 159 | CO17: 61.1 | CP17: 36.7 | CQ17: 0 | CR17: 0 | CS17: 0 | CT17: 0 | CU17: 0 | CV17: 0
B18: 12 | C18: 74.33333333 | D18: 317.4166667 | E18: 666.75 | F18: 95.08333333 | G18: 31.83333333 | H18: 132.5 | I18: 50.91666667 | J18: 30.58333333 | K18: 0 | L18: 0 | M18: 0 | N18: 0 | O18: 0 | P18: 0 | R18: 66.16666667 | S18: 209.25 | T18: 74.33333333 | U18: 317.4166667 | V18: 666.75 | W18: 95.08333333 | X18: 31.83333333 | Y18: 132.5 | Z18: 50.91666667 | AA18: 30.58333333 | AB18: 0 | AC18: 0 | AD18: 0 | AE18: 0 | AF18: 0 | AG18: 0 | AI18: 275.4166667 | AJ18: 74.33333333 | AK18: 317.4166667 | AL18: 666.75 | AM18: 95.08333333 | AN18: 31.83333333 | AO18: 132.5 | AP18: 50.91666667 | AQ18: 30.58333333 | AR18: 0 | AS18: 0 | AT18: 0 | AU18: 0 | AV18: 0 | AW18: 0 | BQ18: 11 | BR18: 81.09090909 | BS18: 346.2727273 | BT18: 727.3636364 | BU18: 103.7272727 | BV18: 34.72727273 | BW18: 144.5454545 | BX18: 55.54545455 | BY18: 33.36363636 | BZ18: 0 | CA18: 0 | CB18: 0 | CC18: 0 | CD18: 0 | CE18: 0 | CG18: 72.18181818 | CH18: 228.2727273 | CI18: 81.09090909 | CJ18: 346.2727273 | CK18: 727.3636364 | CL18: 103.7272727 | CM18: 34.72727273 | CN18: 144.5454545 | CO18: 55.54545455 | CP18: 33.36363636 | CQ18: 0 | CR18: 0 | CS18: 0 | CT18: 0 | CU18: 0 | CV18: 0
B19: 13 | C19: 68.61538462 | D19: 293 | E19: 615.4615385 | F19: 87.76923077 | G19: 29.38461538 | H19: 122.3076923 | I19: 47 | J19: 28.23076923 | K19: 0 | L19: 0 | M19: 0 | N19: 0 | O19: 0 | P19: 0 | R19: 61.07692308 | S19: 193.1538462 | T19: 68.61538462 | U19: 293 | V19: 615.4615385 | W19: 87.76923077 | X19: 29.38461538 | Y19: 122.3076923 | Z19: 47 | AA19: 28.23076923 | AB19: 0 | AC19: 0 | AD19: 0 | AE19: 0 | AF19: 0 | AG19: 0 | AI19: 254.2307692 | AJ19: 68.61538462 | AK19: 293 | AL19: 615.4615385 | AM19: 87.76923077 | AN19: 29.38461538 | AO19: 122.3076923 | AP19: 47 | AQ19: 28.23076923 | AR19: 0 | AS19: 0 | AT19: 0 | AU19: 0 | AV19: 0 | AW19: 0 | BQ19: 12 | BR19: 74.33333333 | BS19: 317.4166667 | BT19: 666.75 | BU19: 95.08333333 | BV19: 31.83333333 | BW19: 132.5 | BX19: 50.91666667 | BY19: 30.58333333 | BZ19: 0 | CA19: 0 | CB19: 0 | CC19: 0 | CD19: 0 | CE19: 0 | CG19: 66.16666667 | CH19: 209.25 | CI19: 74.33333333 | CJ19: 317.4166667 | CK19: 666.75 | CL19: 95.08333333 | CM19: 31.83333333 | CN19: 132.5 | CO19: 50.91666667 | CP19: 30.58333333 | CQ19: 0 | CR19: 0 | CS19: 0 | CT19: 0 | CU19: 0 | CV19: 0
B20: 14 | C20: 63.71428571 | D20: 272.0714286 | E20: 571.5 | F20: 81.5 | G20: 27.28571429 | H20: 113.5714286 | I20: 43.64285714 | J20: 26.21428571 | K20: 0 | L20: 0 | M20: 0 | N20: 0 | O20: 0 | P20: 0 | R20: 56.71428571 | S20: 179.3571429 | T20: 63.71428571 | U20: 272.0714286 | V20: 571.5 | W20: 81.5 | X20: 27.28571429 | Y20: 113.5714286 | Z20: 43.64285714 | AA20: 26.21428571 | AB20: 0 | AC20: 0 | AD20: 0 | AE20: 0 | AF20: 0 | AG20: 0 | AI20: 236.0714286 | AJ20: 63.71428571 | AK20: 272.0714286 | AL20: 571.5 | AM20: 81.5 | AN20: 27.28571429 | AO20: 113.5714286 | AP20: 43.64285714 | AQ20: 26.21428571 | AR20: 0 | AS20: 0 | AT20: 0 | AU20: 0 | AV20: 0 | AW20: 0 | BQ20: 13 | BR20: 68.61538462 | BS20: 293 | BT20: 615.4615385 | BU20: 87.76923077 | BV20: 29.38461538 | BW20: 122.3076923 | BX20: 47 | BY20: 28.23076923 | BZ20: 0 | CA20: 0 | CB20: 0 | CC20: 0 | CD20: 0 | CE20: 0 | CG20: 61.07692308 | CH20: 193.1538462 | CI20: 68.61538462 | CJ20: 293 | CK20: 615.4615385 | CL20: 87.76923077 | CM20: 29.38461538 | CN20: 122.3076923 | CO20: 47 | CP20: 28.23076923 | CQ20: 0 | CR20: 0 | CS20: 0 | CT20: 0 | CU20: 0 | CV20: 0
B21: 15 | C21: 59.46666667 | D21: 253.9333333 | E21: 533.4 | F21: 76.06666667 | G21: 25.46666667 | H21: 106 | I21: 40.73333333 | J21: 24.46666667 | K21: 0 | L21: 0 | M21: 0 | N21: 0 | O21: 0 | P21: 0 | R21: 52.93333333 | S21: 167.4 | T21: 59.46666667 | U21: 253.9333333 | V21: 533.4 | W21: 76.06666667 | X21: 25.46666667 | Y21: 106 | Z21: 40.73333333 | AA21: 24.46666667 | AB21: 0 | AC21: 0 | AD21: 0 | AE21: 0 | AF21: 0 | AG21: 0 | AI21: 220.3333333 | AJ21: 59.46666667 | AK21: 253.9333333 | AL21: 533.4 | AM21: 76.06666667 | AN21: 25.46666667 | AO21: 106 | AP21: 40.73333333 | AQ21: 24.46666667 | AR21: 0 | AS21: 0 | AT21: 0 | AU21: 0 | AV21: 0 | AW21: 0 | BQ21: 14 | BR21: 63.71428571 | BS21: 272.0714286 | BT21: 571.5 | BU21: 81.5 | BV21: 27.28571429 | BW21: 113.5714286 | BX21: 43.64285714 | BY21: 26.21428571 | BZ21: 0 | CA21: 0 | CB21: 0 | CC21: 0 | CD21: 0 | CE21: 0 | CG21: 56.71428571 | CH21: 179.3571429 | CI21: 63.71428571 | CJ21: 272.0714286 | CK21: 571.5 | CL21: 81.5 | CM21: 27.28571429 | CN21: 113.5714286 | CO21: 43.64285714 | CP21: 26.21428571 | CQ21: 0 | CR21: 0 | CS21: 0 | CT21: 0 | CU21: 0 | CV21: 0
B22: 16 | C22: 55.75 | D22: 238.0625 | E22: 500.0625 | F22: 71.3125 | G22: 23.875 | H22: 99.375 | I22: 38.1875 | J22: 22.9375 | K22: 0 | L22: 0 | M22: 0 | N22: 0 | O22: 0 | P22: 0 | R22: 49.625 | S22: 156.9375 | T22: 55.75 | U22: 238.0625 | V22: 500.0625 | W22: 71.3125 | X22: 23.875 | Y22: 99.375 | Z22: 38.1875 | AA22: 22.9375 | AB22: 0 | AC22: 0 | AD22: 0 | AE22: 0 | AF22: 0 | AG22: 0 | AI22: 206.5625 | AJ22: 55.75 | AK22: 238.0625 | AL22: 500.0625 | AM22: 71.3125 | AN22: 23.875 | AO22: 99.375 | AP22: 38.1875 | AQ22: 22.9375 | AR22: 0 | AS22: 0 | AT22: 0 | AU22: 0 | AV22: 0 | AW22: 0 | BQ22: 15 | BR22: 59.46666667 | BS22: 253.9333333 | BT22: 533.4 | BU22: 76.06666667 | BV22: 25.46666667 | BW22: 106 | BX22: 40.73333333 | BY22: 24.46666667 | BZ22: 0 | CA22: 0 | CB22: 0 | CC22: 0 | CD22: 0 | CE22: 0 | CG22: 52.93333333 | CH22: 167.4 | CI22: 59.46666667 | CJ22: 253.9333333 | CK22: 533.4 | CL22: 76.06666667 | CM22: 25.46666667 | CN22: 106 | CO22: 40.73333333 | CP22: 24.46666667 | CQ22: 0 | CR22: 0 | CS22: 0 | CT22: 0 | CU22: 0 | CV22: 0
B23: 17 | C23: 52.47058824 | D23: 224.0588235 | E23: 470.6470588 | F23: 67.11764706 | G23: 22.47058824 | H23: 93.52941176 | I23: 35.94117647 | J23: 21.58823529 | K23: 0 | L23: 0 | M23: 0 | N23: 0 | O23: 0 | P23: 0 | R23: 46.70588235 | S23: 147.7058824 | T23: 52.47058824 | U23: 224.0588235 | V23: 470.6470588 | W23: 67.11764706 | X23: 22.47058824 | Y23: 93.52941176 | Z23: 35.94117647 | AA23: 21.58823529 | AB23: 0 | AC23: 0 | AD23: 0 | AE23: 0 | AF23: 0 | AG23: 0 | AI23: 194.4117647 | AJ23: 52.47058824 | AK23: 224.0588235 | AL23: 470.6470588 | AM23: 67.11764706 | AN23: 22.47058824 | AO23: 93.52941176 | AP23: 35.94117647 | AQ23: 21.58823529 | AR23: 0 | AS23: 0 | AT23: 0 | AU23: 0 | AV23: 0 | AW23: 0 | BQ23: 16 | BR23: 55.75 | BS23: 238.0625 | BT23: 500.0625 | BU23: 71.3125 | BV23: 23.875 | BW23: 99.375 | BX23: 38.1875 | BY23: 22.9375 | BZ23: 0 | CA23: 0 | CB23: 0 | CC23: 0 | CD23: 0 | CE23: 0 | CG23: 49.625 | CH23: 156.9375 | CI23: 55.75 | CJ23: 238.0625 | CK23: 500.0625 | CL23: 71.3125 | CM23: 23.875 | CN23: 99.375 | CO23: 38.1875 | CP23: 22.9375 | CQ23: 0 | CR23: 0 | CS23: 0 | CT23: 0 | CU23: 0 | CV23: 0
B24: 18 | C24: 49.55555556 | D24: 211.6111111 | E24: 444.5 | F24: 63.38888889 | G24: 21.22222222 | H24: 88.33333333 | I24: 33.94444444 | J24: 20.38888889 | K24: 0 | L24: 0 | M24: 0 | N24: 0 | O24: 0 | P24: 0 | R24: 44.11111111 | S24: 139.5 | T24: 49.55555556 | U24: 211.6111111 | V24: 444.5 | W24: 63.38888889 | X24: 21.22222222 | Y24: 88.33333333 | Z24: 33.94444444 | AA24: 20.38888889 | AB24: 0 | AC24: 0 | AD24: 0 | AE24: 0 | AF24: 0 | AG24: 0 | AI24: 183.6111111 | AJ24: 49.55555556 | AK24: 211.6111111 | AL24: 444.5 | AM24: 63.38888889 | AN24: 21.22222222 | AO24: 88.33333333 | AP24: 33.94444444 | AQ24: 20.38888889 | AR24: 0 | AS24: 0 | AT24: 0 | AU24: 0 | AV24: 0 | AW24: 0 | BQ24: 17 | BR24: 52.47058824 | BS24: 224.0588235 | BT24: 470.6470588 | BU24: 67.11764706 | BV24: 22.47058824 | BW24: 93.52941176 | BX24: 35.94117647 | BY24: 21.58823529 | BZ24: 0 | CA24: 0 | CB24: 0 | CC24: 0 | CD24: 0 | CE24: 0 | CG24: 46.70588235 | CH24: 147.7058824 | CI24: 52.47058824 | CJ24: 224.0588235 | CK24: 470.6470588 | CL24: 67.11764706 | CM24: 22.47058824 | CN24: 93.52941176 | CO24: 35.94117647 | CP24: 21.58823529 | CQ24: 0 | CR24: 0 | CS24: 0 | CT24: 0 | CU24: 0 | CV24: 0
B25: 19 | C25: 46.94736842 | D25: 200.4736842 | E25: 421.1052632 | F25: 60.05263158 | G25: 20.10526316 | H25: 83.68421053 | I25: 32.15789474 | J25: 19.31578947 | K25: 0 | L25: 0 | M25: 0 | N25: 0 | O25: 0 | P25: 0 | R25: 41.78947368 | S25: 132.1578947 | T25: 46.94736842 | U25: 200.4736842 | V25: 421.1052632 | W25: 60.05263158 | X25: 20.10526316 | Y25: 83.68421053 | Z25: 32.15789474 | AA25: 19.31578947 | AB25: 0 | AC25: 0 | AD25: 0 | AE25: 0 | AF25: 0 | AG25: 0 | AI25: 173.9473684 | AJ25: 46.94736842 | AK25: 200.4736842 | AL25: 421.1052632 | AM25: 60.05263158 | AN25: 20.10526316 | AO25: 83.68421053 | AP25: 32.15789474 | AQ25: 19.31578947 | AR25: 0 | AS25: 0 | AT25: 0 | AU25: 0 | AV25: 0 | AW25: 0 | BQ25: 18 | BR25: 49.55555556 | BS25: 211.6111111 | BT25: 444.5 | BU25: 63.38888889 | BV25: 21.22222222 | BW25: 88.33333333 | BX25: 33.94444444 | BY25: 20.38888889 | BZ25: 0 | CA25: 0 | CB25: 0 | CC25: 0 | CD25: 0 | CE25: 0 | CG25: 44.11111111 | CH25: 139.5 | CI25: 49.55555556 | CJ25: 211.6111111 | CK25: 444.5 | CL25: 63.38888889 | CM25: 21.22222222 | CN25: 88.33333333 | CO25: 33.94444444 | CP25: 20.38888889 | CQ25: 0 | CR25: 0 | CS25: 0 | CT25: 0 | CU25: 0 | CV25: 0
B26: 20 | C26: 44.6 | D26: 190.45 | E26: 400.05 | F26: 57.05 | G26: 19.1 | H26: 79.5 | I26: 30.55 | J26: 18.35 | K26: 0 | L26: 0 | M26: 0 | N26: 0 | O26: 0 | P26: 0 | R26: 39.7 | S26: 125.55 | T26: 44.6 | U26: 190.45 | V26: 400.05 | W26: =F26 -> 57.05 | X26: 19.1 | Y26: 79.5 | Z26: 30.55 | AA26: 18.35 | AB26: 0 | AC26: 0 | AD26: 0 | AE26: 0 | AF26: 0 | AG26: 0 | AI26: 165.25 | AJ26: 44.6 | AK26: 190.45 | AL26: 400.05 | AM26: =F26 -> 57.05 | AN26: 19.1 | AO26: 79.5 | AP26: 30.55 | AQ26: 18.35 | AR26: 0 | AS26: 0 | AT26: 0 | AU26: 0 | AV26: 0 | AW26: 0 | BQ26: 19 | BR26: 46.94736842 | BS26: 200.4736842 | BT26: 421.1052632 | BU26: 60.05263158 | BV26: 20.10526316 | BW26: 83.68421053 | BX26: 32.15789474 | BY26: 19.31578947 | BZ26: 0 | CA26: 0 | CB26: 0 | CC26: 0 | CD26: 0 | CE26: 0 | CG26: 41.78947368 | CH26: 132.1578947 | CI26: 46.94736842 | CJ26: 200.4736842 | CK26: 421.1052632 | CL26: =BU26 -> 60.05263158 | CM26: 20.10526316 | CN26: 83.68421053 | CO26: 32.15789474 | CP26: 19.31578947 | CQ26: 0 | CR26: 0 | CS26: 0 | CT26: 0 | CU26: 0 | CV26: 0
B27: 21 | C27: 42.47619048 | D27: 181.3809524 | E27: 381 | F27: 54.33333333 | G27: 18.19047619 | H27: 75.71428571 | I27: 29.0952381 | J27: 17.47619048 | K27: 0 | L27: 0 | M27: 0 | N27: 0 | O27: 0 | P27: 0 | R27: 37.80952381 | S27: 119.5714286 | T27: =C27 -> 42.47619048 | U27: 181.3809524 | V27: 381 | W27: 54.33333333 | X27: 18.19047619 | Y27: 75.71428571 | Z27: 29.0952381 | AA27: 17.47619048 | AB27: 0 | AC27: 0 | AD27: 0 | AE27: 0 | AF27: 0 | AG27: 0 | AI27: 157.3809524 | AJ27: =C27 -> 42.47619048 | AK27: 181.3809524 | AL27: 381 | AM27: 54.33333333 | AN27: 18.19047619 | AO27: 75.71428571 | AP27: 29.0952381 | AQ27: 17.47619048 | AR27: 0 | AS27: 0 | AT27: 0 | AU27: 0 | AV27: 0 | AW27: 0 | BQ27: 20 | BR27: 44.6 | BS27: 190.45 | BT27: 400.05 | BU27: 57.05 | BV27: 19.1 | BW27: 79.5 | BX27: 30.55 | BY27: 18.35 | BZ27: 0 | CA27: 0 | CB27: 0 | CC27: 0 | CD27: 0 | CE27: 0 | CG27: 39.7 | CH27: 125.55 | CI27: =BR27 -> 44.6 | CJ27: =BS27 -> 190.45 | CK27: =BT27 -> 400.05 | CL27: 57.05 | CM27: 19.1 | CN27: 79.5 | CO27: 30.55 | CP27: 18.35 | CQ27: 0 | CR27: 0 | CS27: 0 | CT27: 0 | CU27: 0 | CV27: 0
B28: 22 | C28: 40.54545455 | D28: 173.1363636 | E28: 363.6818182 | F28: 51.86363636 | G28: 17.36363636 | H28: 72.27272727 | I28: 27.77272727 | J28: 16.68181818 | K28: 0 | L28: 0 | M28: 0 | N28: 0 | O28: 0 | P28: 0 | R28: 36.09090909 | S28: 114.1363636 | T28: 40.54545455 | U28: 173.1363636 | V28: 363.6818182 | W28: 51.86363636 | X28: 17.36363636 | Y28: 72.27272727 | Z28: 27.77272727 | AA28: 16.68181818 | AB28: 0 | AC28: 0 | AD28: 0 | AE28: 0 | AF28: 0 | AG28: 0 | AI28: 150.2272727 | AJ28: 40.54545455 | AK28: 173.1363636 | AL28: 363.6818182 | AM28: 51.86363636 | AN28: 17.36363636 | AO28: 72.27272727 | AP28: 27.77272727 | AQ28: 16.68181818 | AR28: 0 | AS28: 0 | AT28: 0 | AU28: 0 | AV28: 0 | AW28: 0 | BQ28: 21 | BR28: 42.47619048 | BS28: 181.3809524 | BT28: 381 | BU28: 54.33333333 | BV28: 18.19047619 | BW28: 75.71428571 | BX28: 29.0952381 | BY28: 17.47619048 | BZ28: 0 | CA28: 0 | CB28: 0 | CC28: 0 | CD28: 0 | CE28: 0 | CG28: 37.80952381 | CH28: 119.5714286 | CI28: 42.47619048 | CJ28: 181.3809524 | CK28: 381 | CL28: 54.33333333 | CM28: 18.19047619 | CN28: 75.71428571 | CO28: 29.0952381 | CP28: 17.47619048 | CQ28: 0 | CR28: 0 | CS28: 0 | CT28: 0 | CU28: 0 | CV28: 0
B29: 23 | C29: 38.7826087 | D29: 165.6086957 | E29: 347.8695652 | F29: 49.60869565 | G29: 16.60869565 | H29: 69.13043478 | I29: 26.56521739 | J29: 15.95652174 | K29: 0 | L29: 0 | M29: 0 | N29: 0 | O29: 0 | P29: 0 | R29: 34.52173913 | S29: 109.173913 | T29: 38.7826087 | U29: 165.6086957 | V29: 347.8695652 | W29: 49.60869565 | X29: 16.60869565 | Y29: 69.13043478 | Z29: 26.56521739 | AA29: 15.95652174 | AB29: 0 | AC29: 0 | AD29: 0 | AE29: 0 | AF29: 0 | AG29: 0 | AI29: 143.6956522 | AJ29: 38.7826087 | AK29: 165.6086957 | AL29: 347.8695652 | AM29: 49.60869565 | AN29: 16.60869565 | AO29: 69.13043478 | AP29: 26.56521739 | AQ29: 15.95652174 | AR29: 0 | AS29: 0 | AT29: 0 | AU29: 0 | AV29: 0 | AW29: 0 | BQ29: 22 | BR29: 40.54545455 | BS29: 173.1363636 | BT29: 363.6818182 | BU29: 51.86363636 | BV29: 17.36363636 | BW29: 72.27272727 | BX29: 27.77272727 | BY29: 16.68181818 | BZ29: 0 | CA29: 0 | CB29: 0 | CC29: 0 | CD29: 0 | CE29: 0 | CG29: 36.09090909 | CH29: 114.1363636 | CI29: 40.54545455 | CJ29: 173.1363636 | CK29: 363.6818182 | CL29: 51.86363636 | CM29: 17.36363636 | CN29: 72.27272727 | CO29: 27.77272727 | CP29: 16.68181818 | CQ29: 0 | CR29: 0 | CS29: 0 | CT29: 0 | CU29: 0 | CV29: 0
B30: 24 | C30: 37.16666667 | D30: 158.7083333 | E30: 333.375 | F30: 47.54166667 | G30: 15.91666667 | H30: 66.25 | I30: 25.45833333 | J30: 15.29166667 | K30: 0 | L30: 0 | M30: 0 | N30: 0 | O30: 0 | P30: 0 | R30: 33.08333333 | S30: 104.625 | T30: 37.16666667 | U30: 158.7083333 | V30: 333.375 | W30: 47.54166667 | X30: 15.91666667 | Y30: 66.25 | Z30: 25.45833333 | AA30: 15.29166667 | AB30: 0 | AC30: 0 | AD30: 0 | AE30: 0 | AF30: 0 | AG30: 0 | AI30: 137.7083333 | AJ30: 37.16666667 | AK30: 158.7083333 | AL30: 333.375 | AM30: 47.54166667 | AN30: 15.91666667 | AO30: 66.25 | AP30: 25.45833333 | AQ30: 15.29166667 | AR30: 0 | AS30: 0 | AT30: 0 | AU30: 0 | AV30: 0 | AW30: 0 | BQ30: 23 | BR30: 38.7826087 | BS30: 165.6086957 | BT30: 347.8695652 | BU30: 49.60869565 | BV30: 16.60869565 | BW30: 69.13043478 | BX30: 26.56521739 | BY30: 15.95652174 | BZ30: 0 | CA30: 0 | CB30: 0 | CC30: 0 | CD30: 0 | CE30: 0 | CG30: 34.52173913 | CH30: 109.173913 | CI30: 38.7826087 | CJ30: 165.6086957 | CK30: 347.8695652 | CL30: 49.60869565 | CM30: 16.60869565 | CN30: 69.13043478 | CO30: 26.56521739 | CP30: 15.95652174 | CQ30: 0 | CR30: 0 | CS30: 0 | CT30: 0 | CU30: 0 | CV30: 0
B31: 25 | C31: 35.68 | D31: 152.36 | E31: 320.04 | F31: 45.64 | G31: 15.28 | H31: 63.6 | I31: 24.44 | J31: 14.68 | K31: 0 | L31: 0 | M31: 0 | N31: 0 | O31: 0 | P31: 0 | R31: 31.76 | S31: 100.44 | T31: 35.68 | U31: 152.36 | V31: 320.04 | W31: 45.64 | X31: 15.28 | Y31: 63.6 | Z31: 24.44 | AA31: 14.68 | AB31: 0 | AC31: 0 | AD31: 0 | AE31: 0 | AF31: 0 | AG31: 0 | AI31: 132.2 | AJ31: 35.68 | AK31: 152.36 | AL31: 320.04 | AM31: 45.64 | AN31: 15.28 | AO31: 63.6 | AP31: 24.44 | AQ31: 14.68 | AR31: 0 | AS31: 0 | AT31: 0 | AU31: 0 | AV31: 0 | AW31: 0 | BQ31: 24 | BR31: 37.16666667 | BS31: 158.7083333 | BT31: 333.375 | BU31: 47.54166667 | BV31: 15.91666667 | BW31: 66.25 | BX31: 25.45833333 | BY31: 15.29166667 | BZ31: 0 | CA31: 0 | CB31: 0 | CC31: 0 | CD31: 0 | CE31: 0 | CG31: 33.08333333 | CH31: 104.625 | CI31: 37.16666667 | CJ31: 158.7083333 | CK31: 333.375 | CL31: 47.54166667 | CM31: 15.91666667 | CN31: 66.25 | CO31: 25.45833333 | CP31: 15.29166667 | CQ31: 0 | CR31: 0 | CS31: 0 | CT31: 0 | CU31: 0 | CV31: 0
B32: 26 | C32: 34.30769231 | D32: 146.5 | E32: 307.7307692 | F32: 43.88461538 | G32: 14.69230769 | H32: 61.15384615 | I32: 23.5 | J32: 14.11538462 | K32: 0 | L32: 0 | M32: 0 | N32: 0 | O32: 0 | P32: 0 | R32: 30.53846154 | S32: 96.57692308 | T32: 34.30769231 | U32: 146.5 | V32: 307.7307692 | W32: 43.88461538 | X32: 14.69230769 | Y32: 61.15384615 | Z32: 23.5 | AA32: 14.11538462 | AB32: 0 | AC32: 0 | AD32: 0 | AE32: 0 | AF32: 0 | AG32: 0 | AI32: 127.1153846 | AJ32: 34.30769231 | AK32: 146.5 | AL32: 307.7307692 | AM32: 43.88461538 | AN32: 14.69230769 | AO32: 61.15384615 | AP32: 23.5 | AQ32: 14.11538462 | AR32: 0 | AS32: 0 | AT32: 0 | AU32: 0 | AV32: 0 | AW32: 0 | BQ32: 25 | BR32: 35.68 | BS32: 152.36 | BT32: 320.04 | BU32: 45.64 | BV32: 15.28 | BW32: 63.6 | BX32: 24.44 | BY32: 14.68 | BZ32: 0 | CA32: 0 | CB32: 0 | CC32: 0 | CD32: 0 | CE32: 0 | CG32: 31.76 | CH32: 100.44 | CI32: 35.68 | CJ32: 152.36 | CK32: 320.04 | CL32: 45.64 | CM32: 15.28 | CN32: 63.6 | CO32: 24.44 | CP32: 14.68 | CQ32: 0 | CR32: 0 | CS32: 0 | CT32: 0 | CU32: 0 | CV32: 0
B33: 27 | C33: 33.03703704 | D33: 141.0740741 | E33: 296.3333333 | F33: 42.25925926 | G33: 14.14814815 | H33: 58.88888889 | I33: 22.62962963 | J33: 13.59259259 | K33: 0 | L33: 0 | M33: 0 | N33: 0 | O33: 0 | P33: 0 | R33: 29.40740741 | S33: 93 | T33: 33.03703704 | U33: 141.0740741 | V33: 296.3333333 | W33: 42.25925926 | X33: 14.14814815 | Y33: 58.88888889 | Z33: 22.62962963 | AA33: 13.59259259 | AB33: 0 | AC33: 0 | AD33: 0 | AE33: 0 | AF33: 0 | AG33: 0 | AI33: 122.4074074 | AJ33: 33.03703704 | AK33: 141.0740741 | AL33: 296.3333333 | AM33: 42.25925926 | AN33: 14.14814815 | AO33: 58.88888889 | AP33: 22.62962963 | AQ33: 13.59259259 | AR33: 0 | AS33: 0 | AT33: 0 | AU33: 0 | AV33: 0 | AW33: 0 | BQ33: 26 | BR33: 34.30769231 | BS33: 146.5 | BT33: 307.7307692 | BU33: 43.88461538 | BV33: 14.69230769 | BW33: 61.15384615 | BX33: 23.5 | BY33: 14.11538462 | BZ33: 0 | CA33: 0 | CB33: 0 | CC33: 0 | CD33: 0 | CE33: 0 | CG33: 30.53846154 | CH33: 96.57692308 | CI33: 34.30769231 | CJ33: 146.5 | CK33: 307.7307692 | CL33: 43.88461538 | CM33: 14.69230769 | CN33: 61.15384615 | CO33: 23.5 | CP33: 14.11538462 | CQ33: 0 | CR33: 0 | CS33: 0 | CT33: 0 | CU33: 0 | CV33: 0
B34: 28 | C34: 31.85714286 | D34: 136.0357143 | E34: 285.75 | F34: 40.75 | G34: 13.64285714 | H34: 56.78571429 | I34: 21.82142857 | J34: 13.10714286 | K34: 0 | L34: 0 | M34: 0 | N34: 0 | O34: 0 | P34: 0 | R34: 28.35714286 | S34: 89.67857143 | T34: 31.85714286 | U34: 136.0357143 | V34: 285.75 | W34: 40.75 | X34: 13.64285714 | Y34: 56.78571429 | Z34: 21.82142857 | AA34: 13.10714286 | AB34: 0 | AC34: 0 | AD34: 0 | AE34: 0 | AF34: 0 | AG34: 0 | AI34: 118.0357143 | AJ34: 31.85714286 | AK34: 136.0357143 | AL34: 285.75 | AM34: 40.75 | AN34: 13.64285714 | AO34: 56.78571429 | AP34: 21.82142857 | AQ34: 13.10714286 | AR34: 0 | AS34: 0 | AT34: 0 | AU34: 0 | AV34: 0 | AW34: 0 | BQ34: 27 | BR34: 33.03703704 | BS34: 141.0740741 | BT34: 296.3333333 | BU34: 42.25925926 | BV34: 14.14814815 | BW34: 58.88888889 | BX34: 22.62962963 | BY34: 13.59259259 | BZ34: 0 | CA34: 0 | CB34: 0 | CC34: 0 | CD34: 0 | CE34: 0 | CG34: 29.40740741 | CH34: 93 | CI34: 33.03703704 | CJ34: 141.0740741 | CK34: 296.3333333 | CL34: 42.25925926 | CM34: 14.14814815 | CN34: 58.88888889 | CO34: 22.62962963 | CP34: 13.59259259 | CQ34: 0 | CR34: 0 | CS34: 0 | CT34: 0 | CU34: 0 | CV34: 0
B35: 29 | C35: 30.75862069 | D35: 131.3448276 | E35: 275.8965517 | F35: 39.34482759 | G35: 13.17241379 | H35: 54.82758621 | I35: 21.06896552 | J35: 12.65517241 | K35: 0 | L35: 0 | M35: 0 | N35: 0 | O35: 0 | P35: 0 | R35: 27.37931034 | S35: 86.5862069 | T35: 30.75862069 | U35: 131.3448276 | V35: 275.8965517 | W35: 39.34482759 | X35: 13.17241379 | Y35: 54.82758621 | Z35: 21.06896552 | AA35: 12.65517241 | AB35: 0 | AC35: 0 | AD35: 0 | AE35: 0 | AF35: 0 | AG35: 0 | AI35: 113.9655172 | AJ35: 30.75862069 | AK35: 131.3448276 | AL35: 275.8965517 | AM35: 39.34482759 | AN35: 13.17241379 | AO35: 54.82758621 | AP35: 21.06896552 | AQ35: 12.65517241 | AR35: 0 | AS35: 0 | AT35: 0 | AU35: 0 | AV35: 0 | AW35: 0 | BQ35: 28 | BR35: 31.85714286 | BS35: 136.0357143 | BT35: 285.75 | BU35: 40.75 | BV35: 13.64285714 | BW35: 56.78571429 | BX35: 21.82142857 | BY35: 13.10714286 | BZ35: 0 | CA35: 0 | CB35: 0 | CC35: 0 | CD35: 0 | CE35: 0 | CG35: 28.35714286 | CH35: 89.67857143 | CI35: 31.85714286 | CJ35: 136.0357143 | CK35: 285.75 | CL35: 40.75 | CM35: 13.64285714 | CN35: 56.78571429 | CO35: 21.82142857 | CP35: 13.10714286 | CQ35: 0 | CR35: 0 | CS35: 0 | CT35: 0 | CU35: 0 | CV35: 0
B36: 30 | C36: 29.73333333 | D36: 126.9666667 | E36: 266.7 | F36: 38.03333333 | G36: 12.73333333 | H36: 53 | I36: 20.36666667 | J36: 12.23333333 | K36: 0 | L36: 0 | M36: 0 | N36: 0 | O36: 0 | P36: 0 | R36: 26.46666667 | S36: 83.7 | T36: 29.73333333 | U36: 126.9666667 | V36: 266.7 | W36: 38.03333333 | X36: 12.73333333 | Y36: 53 | Z36: 20.36666667 | AA36: 12.23333333 | AB36: 0 | AC36: 0 | AD36: 0 | AE36: 0 | AF36: 0 | AG36: 0 | AI36: 110.1666667 | AJ36: 29.73333333 | AK36: 126.9666667 | AL36: 266.7 | AM36: 38.03333333 | AN36: 12.73333333 | AO36: 53 | AP36: 20.36666667 | AQ36: 12.23333333 | AR36: 0 | AS36: 0 | AT36: 0 | AU36: 0 | AV36: 0 | AW36: 0 | BQ36: 29 | BR36: 30.75862069 | BS36: 131.3448276 | BT36: 275.8965517 | BU36: 39.34482759 | BV36: 13.17241379 | BW36: 54.82758621 | BX36: 21.06896552 | BY36: 12.65517241 | BZ36: 0 | CA36: 0 | CB36: 0 | CC36: 0 | CD36: 0 | CE36: 0 | CG36: 27.37931034 | CH36: 86.5862069 | CI36: 30.75862069 | CJ36: 131.3448276 | CK36: 275.8965517 | CL36: 39.34482759 | CM36: 13.17241379 | CN36: 54.82758621 | CO36: 21.06896552 | CP36: 12.65517241 | CQ36: 0 | CR36: 0 | CS36: 0 | CT36: 0 | CU36: 0 | CV36: 0
B37: 31 | C37: 28.77419355 | D37: 122.8709677 | E37: 258.0967742 | F37: 36.80645161 | G37: 12.32258065 | H37: 51.29032258 | I37: 19.70967742 | J37: 11.83870968 | K37: 0 | L37: 0 | M37: 0 | N37: 0 | O37: 0 | P37: 0 | R37: 25.61290323 | S37: 81 | T37: 28.77419355 | U37: 122.8709677 | V37: 258.0967742 | W37: 36.80645161 | X37: 12.32258065 | Y37: 51.29032258 | Z37: 19.70967742 | AA37: 11.83870968 | AB37: 0 | AC37: 0 | AD37: 0 | AE37: 0 | AF37: 0 | AG37: 0 | AI37: 106.6129032 | AJ37: 28.77419355 | AK37: 122.8709677 | AL37: 258.0967742 | AM37: 36.80645161 | AN37: 12.32258065 | AO37: 51.29032258 | AP37: 19.70967742 | AQ37: 11.83870968 | AR37: 0 | AS37: 0 | AT37: 0 | AU37: 0 | AV37: 0 | AW37: 0 | BQ37: 30 | BR37: 29.73333333 | BS37: 126.9666667 | BT37: 266.7 | BU37: 38.03333333 | BV37: 12.73333333 | BW37: 53 | BX37: 20.36666667 | BY37: 12.23333333 | BZ37: 0 | CA37: 0 | CB37: 0 | CC37: 0 | CD37: 0 | CE37: 0 | CG37: 26.46666667 | CH37: 83.7 | CI37: 29.73333333 | CJ37: 126.9666667 | CK37: 266.7 | CL37: 38.03333333 | CM37: 12.73333333 | CN37: 53 | CO37: 20.36666667 | CP37: 12.23333333 | CQ37: 0 | CR37: 0 | CS37: 0 | CT37: 0 | CU37: 0 | CV37: 0
B38: 32 | C38: 27.875 | D38: 119.03125 | E38: 250.03125 | F38: 35.65625 | G38: 11.9375 | H38: 49.6875 | I38: 19.09375 | J38: 11.46875 | K38: 0 | L38: 0 | M38: 0 | N38: 0 | O38: 0 | P38: 0 | R38: 24.8125 | S38: 78.46875 | T38: 27.875 | U38: 119.03125 | V38: 250.03125 | W38: 35.65625 | X38: 11.9375 | Y38: 49.6875 | Z38: 19.09375 | AA38: 11.46875 | AB38: 0 | AC38: 0 | AD38: 0 | AE38: 0 | AF38: 0 | AG38: 0 | AI38: 103.28125 | AJ38: 27.875 | AK38: 119.03125 | AL38: 250.03125 | AM38: 35.65625 | AN38: 11.9375 | AO38: 49.6875 | AP38: 19.09375 | AQ38: 11.46875 | AR38: 0 | AS38: 0 | AT38: 0 | AU38: 0 | AV38: 0 | AW38: 0 | BQ38: 31 | BR38: 28.77419355 | BS38: 122.8709677 | BT38: 258.0967742 | BU38: 36.80645161 | BV38: 12.32258065 | BW38: 51.29032258 | BX38: 19.70967742 | BY38: 11.83870968 | BZ38: 0 | CA38: 0 | CB38: 0 | CC38: 0 | CD38: 0 | CE38: 0 | CG38: 25.61290323 | CH38: 81 | CI38: 28.77419355 | CJ38: 122.8709677 | CK38: 258.0967742 | CL38: 36.80645161 | CM38: 12.32258065 | CN38: 51.29032258 | CO38: 19.70967742 | CP38: 11.83870968 | CQ38: 0 | CR38: 0 | CS38: 0 | CT38: 0 | CU38: 0 | CV38: 0
B39: 33 | C39: 27.03030303 | D39: 115.4242424 | E39: 242.4545455 | F39: 34.57575758 | G39: 11.57575758 | H39: 48.18181818 | I39: 18.51515152 | J39: 11.12121212 | K39: 0 | L39: 0 | M39: 0 | N39: 0 | O39: 0 | P39: 0 | R39: 24.06060606 | S39: 76.09090909 | T39: 27.03030303 | U39: 115.4242424 | V39: 242.4545455 | W39: 34.57575758 | X39: 11.57575758 | Y39: 48.18181818 | Z39: 18.51515152 | AA39: 11.12121212 | AB39: 0 | AC39: 0 | AD39: 0 | AE39: 0 | AF39: 0 | AG39: 0 | AI39: 100.1515152 | AJ39: 27.03030303 | AK39: 115.4242424 | AL39: 242.4545455 | AM39: 34.57575758 | AN39: 11.57575758 | AO39: 48.18181818 | AP39: 18.51515152 | AQ39: 11.12121212 | AR39: 0 | AS39: 0 | AT39: 0 | AU39: 0 | AV39: 0 | AW39: 0 | BQ39: 32 | BR39: 27.875 | BS39: 119.03125 | BT39: 250.03125 | BU39: 35.65625 | BV39: 11.9375 | BW39: 49.6875 | BX39: 19.09375 | BY39: 11.46875 | BZ39: 0 | CA39: 0 | CB39: 0 | CC39: 0 | CD39: 0 | CE39: 0 | CG39: 24.8125 | CH39: 78.46875 | CI39: 27.875 | CJ39: 119.03125 | CK39: 250.03125 | CL39: 35.65625 | CM39: 11.9375 | CN39: 49.6875 | CO39: 19.09375 | CP39: 11.46875 | CQ39: 0 | CR39: 0 | CS39: 0 | CT39: 0 | CU39: 0 | CV39: 0
B40: 34 | C40: 26.23529412 | D40: 112.0294118 | E40: 235.3235294 | F40: 33.55882353 | G40: 11.23529412 | H40: 46.76470588 | I40: 17.97058824 | J40: 10.79411765 | K40: 0 | L40: 0 | M40: 0 | N40: 0 | O40: 0 | P40: 0 | R40: 23.35294118 | S40: 73.85294118 | T40: 26.23529412 | U40: 112.0294118 | V40: 235.3235294 | W40: 33.55882353 | X40: 11.23529412 | Y40: 46.76470588 | Z40: 17.97058824 | AA40: 10.79411765 | AB40: 0 | AC40: 0 | AD40: 0 | AE40: 0 | AF40: 0 | AG40: 0 | AI40: 97.20588235 | AJ40: 26.23529412 | AK40: 112.0294118 | AL40: 235.3235294 | AM40: 33.55882353 | AN40: 11.23529412 | AO40: 46.76470588 | AP40: 17.97058824 | AQ40: 10.79411765 | AR40: 0 | AS40: 0 | AT40: 0 | AU40: 0 | AV40: 0 | AW40: 0 | BQ40: 33 | BR40: 27.03030303 | BS40: 115.4242424 | BT40: 242.4545455 | BU40: 34.57575758 | BV40: 11.57575758 | BW40: 48.18181818 | BX40: 18.51515152 | BY40: 11.12121212 | BZ40: 0 | CA40: 0 | CB40: 0 | CC40: 0 | CD40: 0 | CE40: 0 | CG40: 24.06060606 | CH40: 76.09090909 | CI40: 27.03030303 | CJ40: 115.4242424 | CK40: 242.4545455 | CL40: 34.57575758 | CM40: 11.57575758 | CN40: 48.18181818 | CO40: 18.51515152 | CP40: 11.12121212 | CQ40: 0 | CR40: 0 | CS40: 0 | CT40: 0 | CU40: 0 | CV40: 0
B41: 35 | C41: 25.48571429 | D41: 108.8285714 | E41: 228.6 | F41: 32.6 | G41: 10.91428571 | H41: 45.42857143 | I41: 17.45714286 | J41: 10.48571429 | K41: 0 | L41: 0 | M41: 0 | N41: 0 | O41: 0 | P41: 0 | R41: 22.68571429 | S41: 71.74285714 | T41: 25.48571429 | U41: 108.8285714 | V41: 228.6 | W41: 32.6 | X41: 10.91428571 | Y41: 45.42857143 | Z41: 17.45714286 | AA41: 10.48571429 | AB41: 0 | AC41: 0 | AD41: 0 | AE41: 0 | AF41: 0 | AG41: 0 | AI41: 94.42857143 | AJ41: 25.48571429 | AK41: 108.8285714 | AL41: 228.6 | AM41: 32.6 | AN41: 10.91428571 | AO41: 45.42857143 | AP41: 17.45714286 | AQ41: 10.48571429 | AR41: 0 | AS41: 0 | AT41: 0 | AU41: 0 | AV41: 0 | AW41: 0 | BQ41: 34 | BR41: 26.23529412 | BS41: 112.0294118 | BT41: 235.3235294 | BU41: 33.55882353 | BV41: 11.23529412 | BW41: 46.76470588 | BX41: 17.97058824 | BY41: 10.79411765 | BZ41: 0 | CA41: 0 | CB41: 0 | CC41: 0 | CD41: 0 | CE41: 0 | CG41: 23.35294118 | CH41: 73.85294118 | CI41: 26.23529412 | CJ41: 112.0294118 | CK41: 235.3235294 | CL41: 33.55882353 | CM41: 11.23529412 | CN41: 46.76470588 | CO41: 17.97058824 | CP41: 10.79411765 | CQ41: 0 | CR41: 0 | CS41: 0 | CT41: 0 | CU41: 0 | CV41: 0
B42: 36 | C42: 24.77777778 | D42: 105.8055556 | E42: 222.25 | F42: 31.69444444 | G42: 10.61111111 | H42: 44.16666667 | I42: 16.97222222 | J42: 10.19444444 | K42: 0 | L42: 0 | M42: 0 | N42: 0 | O42: 0 | P42: 0 | R42: 22.05555556 | S42: 69.75 | T42: 24.77777778 | U42: 105.8055556 | V42: 222.25 | W42: 31.69444444 | X42: 10.61111111 | Y42: 44.16666667 | Z42: 16.97222222 | AA42: 10.19444444 | AB42: 0 | AC42: 0 | AD42: 0 | AE42: 0 | AF42: 0 | AG42: 0 | AI42: 91.80555556 | AJ42: 24.77777778 | AK42: 105.8055556 | AL42: 222.25 | AM42: 31.69444444 | AN42: 10.61111111 | AO42: 44.16666667 | AP42: 16.97222222 | AQ42: 10.19444444 | AR42: 0 | AS42: 0 | AT42: 0 | AU42: 0 | AV42: 0 | AW42: 0 | BQ42: 35 | BR42: 25.48571429 | BS42: 108.8285714 | BT42: 228.6 | BU42: 32.6 | BV42: 10.91428571 | BW42: 45.42857143 | BX42: 17.45714286 | BY42: 10.48571429 | BZ42: 0 | CA42: 0 | CB42: 0 | CC42: 0 | CD42: 0 | CE42: 0 | CG42: 22.68571429 | CH42: 71.74285714 | CI42: 25.48571429 | CJ42: 108.8285714 | CK42: 228.6 | CL42: 32.6 | CM42: 10.91428571 | CN42: 45.42857143 | CO42: 17.45714286 | CP42: 10.48571429 | CQ42: 0 | CR42: 0 | CS42: 0 | CT42: 0 | CU42: 0 | CV42: 0
B43: 37 | C43: 24.10810811 | D43: 102.9459459 | E43: 216.2432432 | F43: 30.83783784 | G43: 10.32432432 | H43: 42.97297297 | I43: 16.51351351 | J43: 9.918918919 | K43: 0 | L43: 0 | M43: 0 | N43: 0 | O43: 0 | P43: 0 | R43: 21.45945946 | S43: 67.86486486 | T43: 24.10810811 | U43: 102.9459459 | V43: 216.2432432 | W43: 30.83783784 | X43: 10.32432432 | Y43: 42.97297297 | Z43: 16.51351351 | AA43: 9.918918919 | AB43: 0 | AC43: 0 | AD43: 0 | AE43: 0 | AF43: 0 | AG43: 0 | AI43: 89.32432432 | AJ43: 24.10810811 | AK43: 102.9459459 | AL43: 216.2432432 | AM43: 30.83783784 | AN43: 10.32432432 | AO43: 42.97297297 | AP43: 16.51351351 | AQ43: 9.918918919 | AR43: 0 | AS43: 0 | AT43: 0 | AU43: 0 | AV43: 0 | AW43: 0 | BQ43: 36 | BR43: 24.77777778 | BS43: 105.8055556 | BT43: 222.25 | BU43: 31.69444444 | BV43: 10.61111111 | BW43: 44.16666667 | BX43: 16.97222222 | BY43: 10.19444444 | BZ43: 0 | CA43: 0 | CB43: 0 | CC43: 0 | CD43: 0 | CE43: 0 | CG43: 22.05555556 | CH43: 69.75 | CI43: 24.77777778 | CJ43: 105.8055556 | CK43: 222.25 | CL43: 31.69444444 | CM43: 10.61111111 | CN43: 44.16666667 | CO43: 16.97222222 | CP43: 10.19444444 | CQ43: 0 | CR43: 0 | CS43: 0 | CT43: 0 | CU43: 0 | CV43: 0
B44: 38 | C44: 23.47368421 | D44: 100.2368421 | E44: 210.5526316 | F44: 30.02631579 | G44: 10.05263158 | H44: 41.84210526 | I44: 16.07894737 | J44: 9.657894737 | K44: 0 | L44: 0 | M44: 0 | N44: 0 | O44: 0 | P44: 0 | R44: 20.89473684 | S44: 66.07894737 | T44: 23.47368421 | U44: 100.2368421 | V44: 210.5526316 | W44: 30.02631579 | X44: 10.05263158 | Y44: 41.84210526 | Z44: 16.07894737 | AA44: 9.657894737 | AB44: 0 | AC44: 0 | AD44: 0 | AE44: 0 | AF44: 0 | AG44: 0 | AI44: 86.97368421 | AJ44: 23.47368421 | AK44: 100.2368421 | AL44: 210.5526316 | AM44: 30.02631579 | AN44: 10.05263158 | AO44: 41.84210526 | AP44: 16.07894737 | AQ44: 9.657894737 | AR44: 0 | AS44: 0 | AT44: 0 | AU44: 0 | AV44: 0 | AW44: 0 | BQ44: 37 | BR44: 24.10810811 | BS44: 102.9459459 | BT44: 216.2432432 | BU44: 30.83783784 | BV44: 10.32432432 | BW44: 42.97297297 | BX44: 16.51351351 | BY44: 9.918918919 | BZ44: 0 | CA44: 0 | CB44: 0 | CC44: 0 | CD44: 0 | CE44: 0 | CG44: 21.45945946 | CH44: 67.86486486 | CI44: 24.10810811 | CJ44: 102.9459459 | CK44: 216.2432432 | CL44: 30.83783784 | CM44: 10.32432432 | CN44: 42.97297297 | CO44: 16.51351351 | CP44: 9.918918919 | CQ44: 0 | CR44: 0 | CS44: 0 | CT44: 0 | CU44: 0 | CV44: 0
B45: 39 | C45: 22.87179487 | D45: 97.66666667 | E45: 205.1538462 | F45: 29.25641026 | G45: 9.794871795 | H45: 40.76923077 | I45: 15.66666667 | J45: 9.41025641 | K45: 0 | L45: 0 | M45: 0 | N45: 0 | O45: 0 | P45: 0 | R45: 20.35897436 | S45: 64.38461538 | T45: 22.87179487 | U45: 97.66666667 | V45: 205.1538462 | W45: 29.25641026 | X45: 9.794871795 | Y45: 40.76923077 | Z45: 15.66666667 | AA45: 9.41025641 | AB45: 0 | AC45: 0 | AD45: 0 | AE45: 0 | AF45: 0 | AG45: 0 | AI45: 84.74358974 | AJ45: 22.87179487 | AK45: 97.66666667 | AL45: 205.1538462 | AM45: 29.25641026 | AN45: 9.794871795 | AO45: 40.76923077 | AP45: 15.66666667 | AQ45: 9.41025641 | AR45: 0 | AS45: 0 | AT45: 0 | AU45: 0 | AV45: 0 | AW45: 0 | BQ45: 38 | BR45: 23.47368421 | BS45: 100.2368421 | BT45: 210.5526316 | BU45: 30.02631579 | BV45: 10.05263158 | BW45: 41.84210526 | BX45: 16.07894737 | BY45: 9.657894737 | BZ45: 0 | CA45: 0 | CB45: 0 | CC45: 0 | CD45: 0 | CE45: 0 | CG45: 20.89473684 | CH45: 66.07894737 | CI45: 23.47368421 | CJ45: 100.2368421 | CK45: 210.5526316 | CL45: 30.02631579 | CM45: 10.05263158 | CN45: 41.84210526 | CO45: 16.07894737 | CP45: 9.657894737 | CQ45: 0 | CR45: 0 | CS45: 0 | CT45: 0 | CU45: 0 | CV45: 0
B46: 40 | C46: 22.3 | D46: 95.225 | E46: 200.025 | F46: 28.525 | G46: 9.55 | H46: 39.75 | I46: 15.275 | J46: 9.175 | K46: 0 | L46: 0 | M46: 0 | N46: 0 | O46: 0 | P46: 0 | R46: 19.85 | S46: 62.775 | T46: 22.3 | U46: 95.225 | V46: 200.025 | W46: 28.525 | X46: 9.55 | Y46: 39.75 | Z46: 15.275 | AA46: 9.175 | AB46: 0 | AC46: 0 | AD46: 0 | AE46: 0 | AF46: 0 | AG46: 0 | AI46: 82.625 | AJ46: 22.3 | AK46: 95.225 | AL46: 200.025 | AM46: 28.525 | AN46: 9.55 | AO46: 39.75 | AP46: 15.275 | AQ46: 9.175 | AR46: 0 | AS46: 0 | AT46: 0 | AU46: 0 | AV46: 0 | AW46: 0 | BQ46: 39 | BR46: 22.87179487 | BS46: 97.66666667 | BT46: 205.1538462 | BU46: 29.25641026 | BV46: 9.794871795 | BW46: 40.76923077 | BX46: 15.66666667 | BY46: 9.41025641 | BZ46: 0 | CA46: 0 | CB46: 0 | CC46: 0 | CD46: 0 | CE46: 0 | CG46: 20.35897436 | CH46: 64.38461538 | CI46: 22.87179487 | CJ46: 97.66666667 | CK46: 205.1538462 | CL46: 29.25641026 | CM46: 9.794871795 | CN46: 40.76923077 | CO46: 15.66666667 | CP46: 9.41025641 | CQ46: 0 | CR46: 0 | CS46: 0 | CT46: 0 | CU46: 0 | CV46: 0
B47: 41 | C47: 21.75609756 | D47: 92.90243902 | E47: 195.1463415 | F47: 27.82926829 | G47: 9.317073171 | H47: 38.7804878 | I47: 14.90243902 | J47: 8.951219512 | K47: 0 | L47: 0 | M47: 0 | N47: 0 | O47: 0 | P47: 0 | R47: 19.36585366 | S47: 61.24390244 | T47: 21.75609756 | U47: 92.90243902 | V47: 195.1463415 | W47: 27.82926829 | X47: 9.317073171 | Y47: 38.7804878 | Z47: 14.90243902 | AA47: 8.951219512 | AB47: 0 | AC47: 0 | AD47: 0 | AE47: 0 | AF47: 0 | AG47: 0 | AI47: 80.6097561 | AJ47: 21.75609756 | AK47: 92.90243902 | AL47: 195.1463415 | AM47: 27.82926829 | AN47: 9.317073171 | AO47: 38.7804878 | AP47: 14.90243902 | AQ47: 8.951219512 | AR47: 0 | AS47: 0 | AT47: 0 | AU47: 0 | AV47: 0 | AW47: 0 | BQ47: 40 | BR47: 22.3 | BS47: 95.225 | BT47: 200.025 | BU47: 28.525 | BV47: 9.55 | BW47: 39.75 | BX47: 15.275 | BY47: 9.175 | BZ47: 0 | CA47: 0 | CB47: 0 | CC47: 0 | CD47: 0 | CE47: 0 | CG47: 19.85 | CH47: 62.775 | CI47: 22.3 | CJ47: 95.225 | CK47: 200.025 | CL47: 28.525 | CM47: 9.55 | CN47: 39.75 | CO47: 15.275 | CP47: 9.175 | CQ47: 0 | CR47: 0 | CS47: 0 | CT47: 0 | CU47: 0 | CV47: 0
B48: 42 | C48: 21.23809524 | D48: 90.69047619 | E48: 190.5 | F48: 27.16666667 | G48: 9.095238095 | H48: 37.85714286 | I48: 14.54761905 | J48: 8.738095238 | K48: 0 | L48: 0 | M48: 0 | N48: 0 | O48: 0 | P48: 0 | R48: 18.9047619 | S48: 59.78571429 | T48: 21.23809524 | U48: 90.69047619 | V48: 190.5 | W48: 27.16666667 | X48: 9.095238095 | Y48: 37.85714286 | Z48: 14.54761905 | AA48: 8.738095238 | AB48: 0 | AC48: 0 | AD48: 0 | AE48: 0 | AF48: 0 | AG48: 0 | AI48: 78.69047619 | AJ48: 21.23809524 | AK48: 90.69047619 | AL48: 190.5 | AM48: 27.16666667 | AN48: 9.095238095 | AO48: 37.85714286 | AP48: 14.54761905 | AQ48: 8.738095238 | AR48: 0 | AS48: 0 | AT48: 0 | AU48: 0 | AV48: 0 | AW48: 0 | BQ48: 41 | BR48: 21.75609756 | BS48: 92.90243902 | BT48: 195.1463415 | BU48: 27.82926829 | BV48: 9.317073171 | BW48: 38.7804878 | BX48: 14.90243902 | BY48: 8.951219512 | BZ48: 0 | CA48: 0 | CB48: 0 | CC48: 0 | CD48: 0 | CE48: 0 | CG48: 19.36585366 | CH48: 61.24390244 | CI48: 21.75609756 | CJ48: 92.90243902 | CK48: 195.1463415 | CL48: 27.82926829 | CM48: 9.317073171 | CN48: 38.7804878 | CO48: 14.90243902 | CP48: 8.951219512 | CQ48: 0 | CR48: 0 | CS48: 0 | CT48: 0 | CU48: 0 | CV48: 0
B49: 43 | C49: 20.74418605 | D49: 88.58139535 | E49: 186.0697674 | F49: 26.53488372 | G49: 8.88372093 | H49: 36.97674419 | I49: 14.20930233 | J49: 8.534883721 | K49: 0 | L49: 0 | M49: 0 | N49: 0 | O49: 0 | P49: 0 | R49: 18.46511628 | S49: 58.39534884 | T49: 20.74418605 | U49: 88.58139535 | V49: 186.0697674 | W49: 26.53488372 | X49: 8.88372093 | Y49: =H49 -> 36.97674419 | Z49: 14.20930233 | AA49: 8.534883721 | AB49: 0 | AC49: 0 | AD49: 0 | AE49: 0 | AF49: 0 | AG49: 0 | AI49: 76.86046512 | AJ49: 20.74418605 | AK49: 88.58139535 | AL49: 186.0697674 | AM49: 26.53488372 | AN49: 8.88372093 | AO49: =H49 -> 36.97674419 | AP49: 14.20930233 | AQ49: 8.534883721 | AR49: 0 | AS49: 0 | AT49: 0 | AU49: 0 | AV49: 0 | AW49: 0 | BQ49: 42 | BR49: 21.23809524 | BS49: 90.69047619 | BT49: 190.5 | BU49: 27.16666667 | BV49: 9.095238095 | BW49: 37.85714286 | BX49: 14.54761905 | BY49: 8.738095238 | BZ49: 0 | CA49: 0 | CB49: 0 | CC49: 0 | CD49: 0 | CE49: 0 | CG49: 18.9047619 | CH49: 59.78571429 | CI49: 21.23809524 | CJ49: 90.69047619 | CK49: 190.5 | CL49: 27.16666667 | CM49: 9.095238095 | CN49: =BW49 -> 37.85714286 | CO49: =BX49 -> 14.54761905 | CP49: =BY49 -> 8.738095238 | CQ49: =BZ49 -> 0 | CR49: =CA49 -> 0 | CS49: =CB49 -> 0 | CT49: =CC49 -> 0 | CU49: =CD49 -> 0 | CV49: =CE49 -> 0
B50: 44 | C50: 20.27272727 | D50: 86.56818182 | E50: 181.8409091 | F50: 25.93181818 | G50: 8.681818182 | H50: 36.13636364 | I50: 13.88636364 | J50: 8.340909091 | K50: 0 | L50: 0 | M50: 0 | N50: 0 | O50: 0 | P50: 0 | R50: 18.04545455 | S50: 57.06818182 | T50: 20.27272727 | U50: 86.56818182 | V50: 181.8409091 | W50: 25.93181818 | X50: 8.681818182 | Y50: 36.13636364 | Z50: 13.88636364 | AA50: 8.340909091 | AB50: 0 | AC50: 0 | AD50: 0 | AE50: 0 | AF50: 0 | AG50: 0 | AI50: 75.11363636 | AJ50: 20.27272727 | AK50: 86.56818182 | AL50: 181.8409091 | AM50: 25.93181818 | AN50: 8.681818182 | AO50: 36.13636364 | AP50: 13.88636364 | AQ50: 8.340909091 | AR50: 0 | AS50: 0 | AT50: 0 | AU50: 0 | AV50: 0 | AW50: 0 | BQ50: 43 | BR50: 20.74418605 | BS50: 88.58139535 | BT50: 186.0697674 | BU50: 26.53488372 | BV50: 8.88372093 | BW50: 36.97674419 | BX50: 14.20930233 | BY50: 8.534883721 | BZ50: 0 | CA50: 0 | CB50: 0 | CC50: 0 | CD50: 0 | CE50: 0 | CG50: 18.46511628 | CH50: 58.39534884 | CI50: 20.74418605 | CJ50: 88.58139535 | CK50: 186.0697674 | CL50: =BU50 -> 26.53488372 | CM50: =BV50 -> 8.88372093 | CN50: 36.97674419 | CO50: 14.20930233 | CP50: 8.534883721 | CQ50: 0 | CR50: 0 | CS50: 0 | CT50: 0 | CU50: 0 | CV50: 0
B51: 45 | C51: 19.82222222 | D51: 84.64444444 | E51: 177.8 | F51: 25.35555556 | G51: 8.488888889 | H51: 35.33333333 | I51: 13.57777778 | J51: 8.155555556 | K51: 0 | L51: 0 | M51: 0 | N51: 0 | O51: 0 | P51: 0 | R51: 17.64444444 | S51: 55.8 | T51: 19.82222222 | U51: 84.64444444 | V51: 177.8 | W51: 25.35555556 | X51: 8.488888889 | Y51: 35.33333333 | Z51: 13.57777778 | AA51: 8.155555556 | AB51: 0 | AC51: 0 | AD51: 0 | AE51: 0 | AF51: 0 | AG51: 0 | AI51: 73.44444444 | AJ51: 19.82222222 | AK51: 84.64444444 | AL51: 177.8 | AM51: 25.35555556 | AN51: 8.488888889 | AO51: 35.33333333 | AP51: 13.57777778 | AQ51: 8.155555556 | AR51: 0 | AS51: 0 | AT51: 0 | AU51: 0 | AV51: 0 | AW51: 0 | BQ51: 44 | BR51: 20.27272727 | BS51: 86.56818182 | BT51: 181.8409091 | BU51: 25.93181818 | BV51: 8.681818182 | BW51: 36.13636364 | BX51: 13.88636364 | BY51: 8.340909091 | BZ51: 0 | CA51: 0 | CB51: 0 | CC51: 0 | CD51: 0 | CE51: 0 | CG51: 18.04545455 | CH51: 57.06818182 | CI51: 20.27272727 | CJ51: 86.56818182 | CK51: 181.8409091 | CL51: 25.93181818 | CM51: 8.681818182 | CN51: 36.13636364 | CO51: 13.88636364 | CP51: 8.340909091 | CQ51: 0 | CR51: 0 | CS51: 0 | CT51: 0 | CU51: 0 | CV51: 0
B52: 46 | C52: 19.39130435 | D52: 82.80434783 | E52: 173.9347826 | F52: 24.80434783 | G52: 8.304347826 | H52: 34.56521739 | I52: 13.2826087 | J52: 7.97826087 | K52: 0 | L52: 0 | M52: 0 | N52: 0 | O52: 0 | P52: 0 | R52: 17.26086957 | S52: 54.58695652 | T52: 19.39130435 | U52: 82.80434783 | V52: 173.9347826 | W52: 24.80434783 | X52: 8.304347826 | Y52: 34.56521739 | Z52: 13.2826087 | AA52: 7.97826087 | AB52: 0 | AC52: 0 | AD52: 0 | AE52: 0 | AF52: 0 | AG52: 0 | AI52: 71.84782609 | AJ52: 19.39130435 | AK52: 82.80434783 | AL52: 173.9347826 | AM52: 24.80434783 | AN52: 8.304347826 | AO52: 34.56521739 | AP52: 13.2826087 | AQ52: 7.97826087 | AR52: 0 | AS52: 0 | AT52: 0 | AU52: 0 | AV52: 0 | AW52: 0 | BQ52: 45 | BR52: 19.82222222 | BS52: 84.64444444 | BT52: 177.8 | BU52: 25.35555556 | BV52: 8.488888889 | BW52: 35.33333333 | BX52: 13.57777778 | BY52: 8.155555556 | BZ52: 0 | CA52: 0 | CB52: 0 | CC52: 0 | CD52: 0 | CE52: 0 | CG52: 17.64444444 | CH52: 55.8 | CI52: 19.82222222 | CJ52: 84.64444444 | CK52: 177.8 | CL52: 25.35555556 | CM52: 8.488888889 | CN52: 35.33333333 | CO52: 13.57777778 | CP52: 8.155555556 | CQ52: 0 | CR52: 0 | CS52: 0 | CT52: 0 | CU52: 0 | CV52: 0
B53: 47 | C53: 18.9787234 | D53: 81.04255319 | E53: 170.2340426 | F53: 24.27659574 | G53: 8.127659574 | H53: 33.82978723 | I53: 13 | J53: 7.808510638 | K53: 0 | L53: 0 | M53: 0 | N53: 0 | O53: 0 | P53: 0 | R53: 16.89361702 | S53: 53.42553191 | T53: 18.9787234 | U53: 81.04255319 | V53: 170.2340426 | W53: 24.27659574 | X53: 8.127659574 | Y53: 33.82978723 | Z53: 13 | AA53: 7.808510638 | AB53: 0 | AC53: 0 | AD53: 0 | AE53: 0 | AF53: 0 | AG53: 0 | AI53: 70.31914894 | AJ53: 18.9787234 | AK53: 81.04255319 | AL53: 170.2340426 | AM53: 24.27659574 | AN53: 8.127659574 | AO53: 33.82978723 | AP53: 13 | AQ53: 7.808510638 | AR53: 0 | AS53: 0 | AT53: 0 | AU53: 0 | AV53: 0 | AW53: 0 | BQ53: 46 | BR53: 19.39130435 | BS53: 82.80434783 | BT53: 173.9347826 | BU53: 24.80434783 | BV53: 8.304347826 | BW53: 34.56521739 | BX53: 13.2826087 | BY53: 7.97826087 | BZ53: 0 | CA53: 0 | CB53: 0 | CC53: 0 | CD53: 0 | CE53: 0 | CG53: 17.26086957 | CH53: 54.58695652 | CI53: 19.39130435 | CJ53: 82.80434783 | CK53: 173.9347826 | CL53: 24.80434783 | CM53: 8.304347826 | CN53: 34.56521739 | CO53: 13.2826087 | CP53: 7.97826087 | CQ53: 0 | CR53: 0 | CS53: 0 | CT53: 0 | CU53: 0 | CV53: 0
B54: 48 | C54: 18.58333333 | D54: 79.35416667 | E54: 166.6875 | F54: 23.77083333 | G54: 7.958333333 | H54: 33.125 | I54: 12.72916667 | J54: 7.645833333 | K54: 0 | L54: 0 | M54: 0 | N54: 0 | O54: 0 | P54: 0 | R54: 16.54166667 | S54: 52.3125 | T54: 18.58333333 | U54: 79.35416667 | V54: 166.6875 | W54: 23.77083333 | X54: 7.958333333 | Y54: 33.125 | Z54: 12.72916667 | AA54: 7.645833333 | AB54: 0 | AC54: 0 | AD54: 0 | AE54: 0 | AF54: 0 | AG54: 0 | AI54: 68.85416667 | AJ54: 18.58333333 | AK54: 79.35416667 | AL54: 166.6875 | AM54: 23.77083333 | AN54: 7.958333333 | AO54: 33.125 | AP54: 12.72916667 | AQ54: 7.645833333 | AR54: 0 | AS54: 0 | AT54: 0 | AU54: 0 | AV54: 0 | AW54: 0 | BQ54: 47 | BR54: 18.9787234 | BS54: 81.04255319 | BT54: 170.2340426 | BU54: 24.27659574 | BV54: 8.127659574 | BW54: 33.82978723 | BX54: 13 | BY54: 7.808510638 | BZ54: 0 | CA54: 0 | CB54: 0 | CC54: 0 | CD54: 0 | CE54: 0 | CG54: 16.89361702 | CH54: 53.42553191 | CI54: 18.9787234 | CJ54: 81.04255319 | CK54: 170.2340426 | CL54: 24.27659574 | CM54: 8.127659574 | CN54: 33.82978723 | CO54: 13 | CP54: 7.808510638 | CQ54: 0 | CR54: 0 | CS54: 0 | CT54: 0 | CU54: 0 | CV54: 0
B55: 49 | C55: 18.20408163 | D55: 77.73469388 | E55: 163.2857143 | F55: 23.28571429 | G55: 7.795918367 | H55: 32.44897959 | I55: 12.46938776 | J55: 7.489795918 | K55: 0 | L55: 0 | M55: 0 | N55: 0 | O55: 0 | P55: 0 | R55: 16.20408163 | S55: 51.24489796 | T55: 18.20408163 | U55: 77.73469388 | V55: 163.2857143 | W55: 23.28571429 | X55: 7.795918367 | Y55: 32.44897959 | Z55: 12.46938776 | AA55: 7.489795918 | AB55: 0 | AC55: 0 | AD55: 0 | AE55: 0 | AF55: 0 | AG55: 0 | AI55: 67.44897959 | AJ55: 18.20408163 | AK55: 77.73469388 | AL55: 163.2857143 | AM55: 23.28571429 | AN55: 7.795918367 | AO55: 32.44897959 | AP55: 12.46938776 | AQ55: 7.489795918 | AR55: 0 | AS55: 0 | AT55: 0 | AU55: 0 | AV55: 0 | AW55: 0 | BQ55: 48 | BR55: 18.58333333 | BS55: 79.35416667 | BT55: 166.6875 | BU55: 23.77083333 | BV55: 7.958333333 | BW55: 33.125 | BX55: 12.72916667 | BY55: 7.645833333 | BZ55: 0 | CA55: 0 | CB55: 0 | CC55: 0 | CD55: 0 | CE55: 0 | CG55: 16.54166667 | CH55: 52.3125 | CI55: 18.58333333 | CJ55: 79.35416667 | CK55: 166.6875 | CL55: 23.77083333 | CM55: 7.958333333 | CN55: 33.125 | CO55: 12.72916667 | CP55: 7.645833333 | CQ55: 0 | CR55: 0 | CS55: 0 | CT55: 0 | CU55: 0 | CV55: 0
B56: 50 | C56: 17.84 | D56: 76.18 | E56: 160.02 | F56: 22.82 | G56: 7.64 | H56: 31.8 | I56: 12.22 | J56: 7.34 | K56: 0 | L56: 0 | M56: 0 | N56: 0 | O56: 0 | P56: 0 | R56: 15.88 | S56: 50.22 | T56: 17.84 | U56: 76.18 | V56: 160.02 | W56: 22.82 | X56: 7.64 | Y56: 31.8 | Z56: 12.22 | AA56: 7.34 | AB56: 0 | AC56: 0 | AD56: 0 | AE56: 0 | AF56: 0 | AG56: 0 | AI56: 66.1 | AJ56: 17.84 | AK56: 76.18 | AL56: 160.02 | AM56: 22.82 | AN56: 7.64 | AO56: 31.8 | AP56: 12.22 | AQ56: 7.34 | AR56: 0 | AS56: 0 | AT56: 0 | AU56: 0 | AV56: 0 | AW56: 0 | BQ56: 49 | BR56: 18.20408163 | BS56: 77.73469388 | BT56: 163.2857143 | BU56: 23.28571429 | BV56: 7.795918367 | BW56: 32.44897959 | BX56: 12.46938776 | BY56: 7.489795918 | BZ56: 0 | CA56: 0 | CB56: 0 | CC56: 0 | CD56: 0 | CE56: 0 | CG56: 16.20408163 | CH56: 51.24489796 | CI56: 18.20408163 | CJ56: 77.73469388 | CK56: 163.2857143 | CL56: 23.28571429 | CM56: 7.795918367 | CN56: 32.44897959 | CO56: 12.46938776 | CP56: 7.489795918 | CQ56: 0 | CR56: 0 | CS56: 0 | CT56: 0 | CU56: 0 | CV56: 0
B57: 51 | C57: 17.49019608 | D57: 74.68627451 | E57: 156.8823529 | F57: 22.37254902 | G57: 7.490196078 | H57: 31.17647059 | I57: 11.98039216 | J57: 7.196078431 | K57: 0 | L57: 0 | M57: 0 | N57: 0 | O57: 0 | P57: 0 | R57: 15.56862745 | S57: 49.23529412 | T57: 17.49019608 | U57: 74.68627451 | V57: 156.8823529 | W57: 22.37254902 | X57: 7.490196078 | Y57: 31.17647059 | Z57: 11.98039216 | AA57: 7.196078431 | AB57: 0 | AC57: 0 | AD57: 0 | AE57: 0 | AF57: 0 | AG57: 0 | AI57: 64.80392157 | AJ57: 17.49019608 | AK57: 74.68627451 | AL57: 156.8823529 | AM57: 22.37254902 | AN57: 7.490196078 | AO57: 31.17647059 | AP57: 11.98039216 | AQ57: 7.196078431 | AR57: 0 | AS57: 0 | AT57: 0 | AU57: 0 | AV57: 0 | AW57: 0 | BQ57: 50 | BR57: 17.84 | BS57: 76.18 | BT57: 160.02 | BU57: 22.82 | BV57: 7.64 | BW57: 31.8 | BX57: 12.22 | BY57: 7.34 | BZ57: 0 | CA57: 0 | CB57: 0 | CC57: 0 | CD57: 0 | CE57: 0 | CG57: 15.88 | CH57: 50.22 | CI57: 17.84 | CJ57: 76.18 | CK57: 160.02 | CL57: 22.82 | CM57: 7.64 | CN57: 31.8 | CO57: 12.22 | CP57: 7.34 | CQ57: 0 | CR57: 0 | CS57: 0 | CT57: 0 | CU57: 0 | CV57: 0
B58: 52 | C58: 17.15384615 | D58: 73.25 | E58: 153.8653846 | F58: 21.94230769 | G58: 7.346153846 | H58: 30.57692308 | I58: 11.75 | J58: 7.057692308 | K58: 0 | L58: 0 | M58: 0 | N58: 0 | O58: 0 | P58: 0 | R58: 15.26923077 | S58: 48.28846154 | T58: 17.15384615 | U58: 73.25 | V58: 153.8653846 | W58: 21.94230769 | X58: 7.346153846 | Y58: 30.57692308 | Z58: 11.75 | AA58: 7.057692308 | AB58: 0 | AC58: 0 | AD58: 0 | AE58: 0 | AF58: 0 | AG58: 0 | AI58: 63.55769231 | AJ58: 17.15384615 | AK58: 73.25 | AL58: 153.8653846 | AM58: 21.94230769 | AN58: 7.346153846 | AO58: 30.57692308 | AP58: 11.75 | AQ58: 7.057692308 | AR58: 0 | AS58: 0 | AT58: 0 | AU58: 0 | AV58: 0 | AW58: 0 | BQ58: 51 | BR58: 17.49019608 | BS58: 74.68627451 | BT58: 156.8823529 | BU58: 22.37254902 | BV58: 7.490196078 | BW58: 31.17647059 | BX58: 11.98039216 | BY58: 7.196078431 | BZ58: 0 | CA58: 0 | CB58: 0 | CC58: 0 | CD58: 0 | CE58: 0 | CG58: 15.56862745 | CH58: 49.23529412 | CI58: 17.49019608 | CJ58: 74.68627451 | CK58: 156.8823529 | CL58: 22.37254902 | CM58: 7.490196078 | CN58: 31.17647059 | CO58: 11.98039216 | CP58: 7.196078431 | CQ58: 0 | CR58: 0 | CS58: 0 | CT58: 0 | CU58: 0 | CV58: 0
B59: 53 | C59: =$C$6/B59 -> 16.83018868 | D59: =$D$6/B59 -> 71.86792453 | E59: =$E$6/B59 -> 150.9622642 | F59: =$F$6/B59 -> 21.52830189 | G59: =$G$6/B59 -> 7.20754717 | H59: =$H$6/B59 -> 30 | I59: =$I$6/B59 -> 11.52830189 | J59: 6.924528302 | K59: =$K$6/B59 -> 0 | L59: =$L$6/B59 -> 0 | M59: 0 | N59: 0 | O59: =$O$6/B59 -> 0 | P59: =$P$6/B59 -> 0 | R59: =$R$6/B59 -> 14.98113208 | S59: =$S$6/B59 -> 47.37735849 | T59: =C59 -> 16.83018868 | U59: 71.86792453 | V59: 150.9622642 | W59: 21.52830189 | X59: 7.20754717 | Y59: 30 | Z59: 11.52830189 | AA59: 6.924528302 | AB59: 0 | AC59: 0 | AD59: 0 | AE59: 0 | AF59: 0 | AG59: 0 | AI59: =$AI$6/B59 -> 62.35849057 | AJ59: =C59 -> 16.83018868 | AK59: 71.86792453 | AL59: 150.9622642 | AM59: 21.52830189 | AN59: 7.20754717 | AO59: 30 | AP59: 11.52830189 | AQ59: 6.924528302 | AR59: 0 | AS59: 0 | AT59: 0 | AU59: 0 | AV59: 0 | AW59: 0 | BQ59: 52 | BR59: =$C$6/BQ59 -> 17.15384615 | BS59: =$D$6/BQ59 -> 73.25 | BT59: =$E$6/BQ59 -> 153.8653846 | BU59: =$F$6/BQ59 -> 21.94230769 | BV59: =$G$6/BQ59 -> 7.346153846 | BW59: =$H$6/BQ59 -> 30.57692308 | BX59: =$I$6/BQ59 -> 11.75 | BY59: 7.057692308 | BZ59: =$K$6/BQ59 -> 0 | CA59: =$L$6/BQ59 -> 0 | CB59: 0 | CC59: 0 | CD59: =$O$6/BQ59 -> 0 | CE59: =$P$6/BQ59 -> 0 | CG59: =$R$6/BQ59 -> 15.26923077 | CH59: =$S$6/BQ59 -> 48.28846154 | CI59: 17.15384615 | CJ59: 73.25 | CK59: 153.8653846 | CL59: 21.94230769 | CM59: 7.346153846 | CN59: 30.57692308 | CO59: 11.75 | CP59: 7.057692308 | CQ59: 0 | CR59: 0 | CS59: 0 | CT59: 0 | CU59: 0 | CV59: 0
B60: 54 | C60: =$C$6/B60 -> 16.51851852 | D60: =$D$6/B60 -> 70.53703704 | E60: =$E$6/B60 -> 148.1666667 | F60: =$F$6/B60 -> 21.12962963 | G60: =$G$6/B60 -> 7.074074074 | H60: =$H$6/B60 -> 29.44444444 | I60: =$I$6/B60 -> 11.31481481 | J60: 6.796296296 | K60: =$K$6/B60 -> 0 | L60: =$L$6/B60 -> 0 | M60: =$M$6/B60 -> 0 | N60: =$N$6/B60 -> 0 | O60: =$O$6/B60 -> 0 | P60: =$P$6/B60 -> 0 | R60: =$R$6/B60 -> 14.7037037 | S60: =$S$6/B60 -> 46.5 | T60: 16.51851852 | U60: 70.53703704 | V60: 148.1666667 | W60: 21.12962963 | X60: 7.074074074 | Y60: 29.44444444 | Z60: 11.31481481 | AA60: 6.796296296 | AB60: 0 | AC60: 0 | AD60: 0 | AE60: 0 | AF60: 0 | AG60: 0 | AI60: =$AI$6/B60 -> 61.2037037 | AJ60: 16.51851852 | AK60: 70.53703704 | AL60: 148.1666667 | AM60: 21.12962963 | AN60: 7.074074074 | AO60: 29.44444444 | AP60: 11.31481481 | AQ60: 6.796296296 | AR60: 0 | AS60: 0 | AT60: 0 | AU60: 0 | AV60: 0 | AW60: 0 | BQ60: 53 | BR60: =$C$6/BQ60 -> 16.83018868 | BS60: =$D$6/BQ60 -> 71.86792453 | BT60: =$E$6/BQ60 -> 150.9622642 | BU60: =$F$6/BQ60 -> 21.52830189 | BV60: =$G$6/BQ60 -> 7.20754717 | BW60: =$H$6/BQ60 -> 30 | BX60: =$I$6/BQ60 -> 11.52830189 | BY60: 6.924528302 | BZ60: =$K$6/BQ60 -> 0 | CA60: =$L$6/BQ60 -> 0 | CB60: =$M$6/BQ60 -> 0 | CC60: =$N$6/BQ60 -> 0 | CD60: =$O$6/BQ60 -> 0 | CE60: =$P$6/BQ60 -> 0 | CG60: =$R$6/BQ60 -> 14.98113208 | CH60: =$S$6/BQ60 -> 47.37735849 | CI60: 16.83018868 | CJ60: 71.86792453 | CK60: 150.9622642 | CL60: 21.52830189 | CM60: 7.20754717 | CN60: 30 | CO60: 11.52830189 | CP60: 6.924528302 | CQ60: 0 | CR60: 0 | CS60: 0 | CT60: 0 | CU60: 0 | CV60: 0
B63: Nombre d'inscrits | C63: 20098
B64: Bulletins déposés | C64: 17587
B65: Blancs & Nuls | C65: 794
B66: Votes valables | C66: 16739
B67: Nombre de sièges | C67: 31
B72: Liste unique Majorité absolue | C72: =SUM($C$73:$P$73) -> 1 | R72: =SUM($R$73:$AG$73) -> 1 | AI72: =SUM($AI$73:$AW$73) -> 0
C73: =IF(C7>($C$67/2),1,0) -> 0 | D73: =IF(D7>($C$67/2),1,0) -> 0 | E73: =IF(E7>($C$67/2),1,0) -> 1 | F73: =IF(F7>($C$67/2),1,0) -> 0 | G73: =IF(G7>($C$67/2),1,0) -> 0 | H73: =IF(H7>($C$67/2),1,0) -> 0 | I73: =IF(I7>($C$67/2),1,0) -> 0 | J73: =IF(J7>($C$67/2),1,0) -> 0 | K73: =IF(K7>($C$67/2),1,0) -> 0 | L73: =IF(L7>($C$67/2),1,0) -> 0 | M73: =IF(M7>($C$67/2),1,0) -> 0 | N73: =IF(N7>($C$67/2),1,0) -> 0 | O73: =IF(O7>($C$67/2),1,0) -> 0 | P73: =IF(P7>($C$67/2),1,0) -> 0 | R73: =IF(R7>($C$67/2),1,0) -> 0 | S73: =IF(S7>($C$67/2),1,0) -> 0 | T73: =IF(T7>($C$67/2),1,0) -> 0 | U73: =IF(U7>($C$67/2),1,0) -> 0 | V73: =IF(V7>($C$67/2),1,0) -> 1 | W73: =IF(W7>($C$67/2),1,0) -> 0 | X73: =IF(X7>($C$67/2),1,0) -> 0 | Y73: =IF(Y7>($C$67/2),1,0) -> 0 | Z73: =IF(Z7>($C$67/2),1,0) -> 0 | AA73: =IF(AA7>($C$67/2),1,0) -> 0 | AB73: =IF(AB7>($C$67/2),1,0) -> 0 | AC73: =IF(AC7>($C$67/2),1,0) -> 0 | AD73: =IF(AD7>($C$67/2),1,0) -> 0 | AE73: =IF(AE7>($C$67/2),1,0) -> 0 | AF73: =IF(AF7>($C$67/2),1,0) -> 0 | AG73: =IF(AG7>($C$67/2),1,0) -> 0 | AI73: =IF(AI7>($C$67/2),1,0) -> 0 | AJ73: =IF(AJ7>($C$67/2),1,0) -> 0 | AK73: =IF(AK7>($C$67/2),1,0) -> 0 | AL73: =IF(AL7>($C$67/2),1,0) -> 0 | AM73: =IF(AM7>($C$67/2),1,0) -> 0 | AN73: =IF(AN7>($C$67/2),1,0) -> 0 | AO73: =IF(AO7>($C$67/2),1,0) -> 0 | AP73: =IF(AP7>($C$67/2),1,0) -> 0 | AQ73: =IF(AQ7>($C$67/2),1,0) -> 0 | AR73: =IF(AR7>($C$67/2),1,0) -> 0 | AS73: =IF(AS7>($C$67/2),1,0) -> 0 | AT73: =IF(AT7>($C$67/2),1,0) -> 0 | AU73: =IF(AU7>($C$67/2),1,0) -> 0 | AV73: =IF(AV7>($C$67/2),1,0) -> 0 | AW73: =IF(AW7>($C$67/2),1,0) -> 0
B75: Liste unique Majorité absolue nombre de voix | C75: =SUM($C$76:$P$76) -> 8001 | R75: =SUM(R76:AG76) -> 8001 | AI75: =SUM(AI76:AW76) -> 0
C76: =IF(C73>0,C6,0) -> 0 | D76: =IF(D73>0,D6,0) -> 0 | E76: =IF(E73>0,E6,0) -> 8001 | F76: =IF(F73>0,F6,0) -> 0 | G76: =IF(G73>0,G6,0) -> 0 | H76: =IF(H73>0,H6,0) -> 0 | I76: =IF(I73>0,I6,0) -> 0 | J76: =IF(J73>0,J6,0) -> 0 | K76: =IF(K73>0,K6,0) -> 0 | L76: =IF(L73>0,L6,0) -> 0 | M76: =IF(M73>0,M6,0) -> 0 | N76: =IF(N73>0,N6,0) -> 0 | O76: =IF(O73>0,O6,0) -> 0 | P76: =IF(P73>0,P6,0) -> 0 | R76: =IF(R73>0,R6,0) -> 0 | S76: =IF(S73>0,S6,0) -> 0 | T76: =IF(T73>0,T6,0) -> 0 | U76: =IF(U73>0,U6,0) -> 0 | V76: =IF(V73>0,V6,0) -> 8001 | W76: =IF(W73>0,W6,0) -> 0 | X76: =IF(X73>0,X6,0) -> 0 | Y76: =IF(Y73>0,Y6,0) -> 0 | Z76: =IF(Z73>0,Z6,0) -> 0 | AA76: =IF(AA73>0,AA6,0) -> 0 | AB76: =IF(AB73>0,AB6,0) -> 0 | AC76: =IF(AC73>0,AC6,0) -> 0 | AD76: =IF(AD73>0,AD6,0) -> 0 | AE76: =IF(AE73>0,AE6,0) -> 0 | AF76: =IF(AF73>0,AF6,0) -> 0 | AG76: =IF(AG73>0,AG6,0) -> 0 | AI76: =IF(AI73>0,AI6,0) -> 0 | AJ76: =IF(AJ73>0,AJ6,0) -> 0 | AK76: =IF(AK73>0,AK6,0) -> 0 | AL76: =IF(AL73>0,AL6,0) -> 0 | AM76: =IF(AM73>0,AM6,0) -> 0 | AN76: =IF(AN73>0,AN6,0) -> 0 | AO76: =IF(AO73>0,AO6,0) -> 0 | AP76: =IF(AP73>0,AP6,0) -> 0 | AQ76: =IF(AQ73>0,AQ6,0) -> 0 | AR76: =IF(AR73>0,AR6,0) -> 0 | AS76: =IF(AS73>0,AS6,0) -> 0 | AT76: =IF(AT73>0,AT6,0) -> 0 | AU76: =IF(AU73>0,AU6,0) -> 0 | AV76: =IF(AV73>0,AV6,0) -> 0 | AW76: =IF(AW73>0,AW6,0) -> 0
B78: Nbr voix Coalition | C78: =SUMIF(C4:P4,"x",C6:P6) -> 11810
B80: % Coalition | C80: =100/C63*C78 -> 58.76206588
B81: % Majorité | C81: =100/C63*C75 -> 39.80993134
B83: Coalition | C83: =COUNTA(C4:P4) -> 2 | D83: =IF(C83>0,1,0) -> 1
P96: AUDERGHEM
R98: =R5 -> Blancs & Nuls | S98: =S5 -> Non-déposés | T98: =T5 -> LISTE CITOYENNE 1160 | U98: =U5 -> Ecolo-Groen | V98: =V5 -> Liste du Bourgmestre | W98: =W5 -> PS | X98: =X5 -> N-VA | Y98: =Y5 -> MR-OpenVLD | Z98: =Z5 -> SAMEN | AA98: =AA5 -> PP Parti Populaire | AB98: =AB5 -> 0 | AC98: =AC5 -> 0 | AD98: =AD5 -> 0 | AE98: =AE5 -> 0 | AF98: =AF5 -> 0 | AG98: =AG5 -> 0
P99: Chiffres électoraux | R99: =R6 -> 794 | S99: =S6 -> 2511 | T99: =T6 -> 892 | U99: =U6 -> 3809 | V99: =V6 -> 8001 | W99: =W6 -> 1141 | X99: =X6 -> 382 | Y99: =Y6 -> 1590 | Z99: =Z6 -> 611 | AA99: =AA6 -> 367 | AB99: =AB6 -> 0 | AC99: =AC6 -> 0 | AD99: =AD6 -> 0 | AE99: =AE6 -> 0 | AF99: =AF6 -> 0 | AG99: =AG6 -> 0
P100: Impériali | R100: 0 | S100: 0 | T100: =C7 -> 1 | U100: =D7 -> 8 | V100: =E7 -> 19 | W100: =F7 -> 1 | X100: =G7 -> 0 | Y100: =H7 -> 2 | Z100: =I7 -> 0 | AA100: =J7 -> 0 | AB100: =K7 -> 0 | AC100: =L7 -> 0 | AD100: =M7 -> 0 | AE100: =N7 -> 0 | AF100: =O7 -> 0 | AG100: =P7 -> 0
P101: Impériali + proportionnelle | R101: =R7 -> 0 | S101: =S7 -> 4 | T101: =T7 -> 1 | U101: =U7 -> 7 | V101: =V7 -> 16 | W101: =W7 -> 1 | X101: =X7 -> 0 | Y101: =Y7 -> 2 | Z101: =Z7 -> 0 | AA101: =AA7 -> 0 | AB101: =AB7 -> 0 | AC101: =AC7 -> 0 | AD101: =AD7 -> 0 | AE101: =AE7 -> 0 | AF101: =AF7 -> 0 | AG101: =AG7 -> 0
P102: D'Hondt | R102: 0 | S102: 0 | T102: =BR7 -> 1 | U102: =BS7 -> 8 | V102: =BT7 -> 16 | W102: =BU7 -> 2 | X102: =BV7 -> 0 | Y102: =BW7 -> 3 | Z102: =BX7 -> 1 | AA102: =BY7 -> 0 | AB102: =BZ7 -> 0 | AC102: =CA7 -> 0 | AD102: =CB7 -> 0 | AE102: =CC7 -> 0 | AF102: =CD7 -> 0 | AG102: =CE7 -> 0
P103: D'Hondt + proportionnelle | R103: =CG7 -> 1 | S103: =CH7 -> 4 | T103: =CI7 -> 1 | U103: =CJ7 -> 6 | V103: =CK7 -> 14 | W103: =CL7 -> 2 | X103: =CM7 -> 0 | Y103: =CN7 -> 2 | Z103: =CO7 -> 1 | AA103: =CP7 -> 0 | AB103: =CQ7 -> 0 | AC103: =CR7 -> 0 | AD103: =CS7 -> 0 | AE103: =CT7 -> 0 | AF103: =CU7 -> 0 | AG103: =CV7 -> 0
P104: Proportionnelle pure | R104: =AZ7 -> 1.224698975 | S104: =BA7 -> 3.873071947 | T104: =BB7 -> 1.375858294 | U104: =BC7 -> 5.875161708 | V104: =BD7 -> 12.34107871 | W104: =BE7 -> 1.759926361 | X104: =BF7 -> 0.589212857 | Y104: =BG7 -> 2.452482834 | Z104: =BH7 -> 0.9424320828 | AA104: =BI7 -> 0.5660762265 | AB104: =BJ7 -> 0 | AC104: =BK7 -> 0 | AD104: =BL7 -> 0 | AE104: =BM7 -> 0 | AF104: =BN7 -> 0 | AG104: =BO7 -> 0
Q106: Nombre de sièges à distribuer : | U106: =C67 -> 31 | W106: Est-ce une liste unique en majorité absolue en termes de sièges ? | AD106: =IF(C72>0,"Oui","Non") -> Oui
Q108: Nombre d'inscrits : | U108: =C63 -> 20098 | W108: Est-ce une liste unique en majorité absolue en termes de voix ? | AD108: =IF(C75>0,"Oui","Non") -> Oui
Q110: Nombre de bulletins déposés : | U110: =C64 -> 17587 | W110: La majorité est-elle formée par une coalition ? | AD110: =IF(B4>0,"Oui","Non") -> Oui
Q112: Nombre de votes valables : | U112: =C66 -> 16739 | W112: Quelle est la proportion de l'électorat représentée par la majorité ? | AD112: =IF(D83>0,C80,C81) -> 58.76206588
P114: Comparaison Clef Impériali - Clef D'Hondt | R114: =R100-R102 -> 0 | S114: =S100-S102 -> 0 | T114: 0 | U114: 0 | V114: 3 | W114: -1 | X114: 0 | Y114: -1 | Z114: -1 | AA114: 0 | AB114: 0 | AC114: 0 | AD114: 0 | AE114: 0 | AF114: 0 | AG114: 0

Sheet BERCHEM-SAINTE-AGATHE
B2: IMPÉRIALI | AY2: PROPORTIONNELLE PURE | BQ2: D'HONDT
B4: Coalition | C4: x | F4: x | I4: x
B5: =COUNTA(C5:P5) -> 7 | C5: ECOLO-GROEN | D5: VLAAMS BELANG | E5: DéFI | F5: PS-sp.a+ | G5: N-VA | H5: Open MR | I5: LBR | R5: Blancs & Nuls | S5: Non-déposés | T5: =C5 -> ECOLO-GROEN | U5: =D5 -> VLAAMS BELANG | V5: =E5 -> DéFI | W5: =F5 -> PS-sp.a+ | X5: =G5 -> N-VA | Y5: =H5 -> Open MR | Z5: =I5 -> LBR | AA5: =J5 -> 0 | AB5: =K5 -> 0 | AC5: =L5 -> 0 | AD5: =M5 -> 0 | AE5: =N5 -> 0 | AF5: =O5 -> 0 | AG5: =P5 -> 0 | AI5: Non-valables | AJ5: =C5 -> ECOLO-GROEN | AK5: =D5 -> VLAAMS BELANG | AL5: =E5 -> DéFI | AM5: =F5 -> PS-sp.a+ | AN5: =G5 -> N-VA | AO5: =H5 -> Open MR | AP5: =I5 -> LBR | AQ5: =J5 -> 0 | AR5: =K5 -> 0 | AS5: =L5 -> 0 | AT5: =M5 -> 0 | AU5: =N5 -> 0 | AV5: =O5 -> 0 | AW5: =P5 -> 0 | AY5: New Key | AZ5: Blancs & Nuls | BA5: Non-déposés | BB5: =C5 -> ECOLO-GROEN | BC5: =D5 -> VLAAMS BELANG | BD5: DéFI | BE5: PS-sp.a+ | BF5: N-VA | BG5: Open MR | BH5: LBR | BI5: 0 | BJ5: 0 | BK5: 0 | BL5: 0 | BM5: 0 | BN5: 0 | BO5: 0 | BR5: =C5 -> ECOLO-GROEN | BS5: =D5 -> VLAAMS BELANG | BT5: DéFI | BU5: PS-sp.a+ | BV5: N-VA | BW5: Open MR | BX5: LBR | BY5: 0 | BZ5: 0 | CA5: 0 | CB5: 0 | CC5: 0 | CD5: 0 | CE5: 0 | CG5: Blancs & Nuls | CH5: Non-déposés | CI5: =C5 -> ECOLO-GROEN | CJ5: =D5 -> VLAAMS BELANG | CK5: DéFI | CL5: PS-sp.a+ | CM5: N-VA | CN5: Open MR | CO5: LBR | CP5: 0 | CQ5: 0 | CR5: 0 | CS5: 0 | CT5: 0 | CU5: 0 | CV5: 0
B6: Chiffres électoraux | C6: 1805 | D6: 250 | E6: 1189 | F6: 2236 | G6: 826 | H6: 2767 | I6: 3182 | J6: 0 | K6: 0 | L6: 0 | M6: 0 | N6: 0 | O6: 0 | P6: 0 | R6: =C65 -> 934 | S6: =C63-C64 -> 2237 | T6: 1805 | U6: 250 | V6: 1189 | W6: 2236 | X6: 826 | Y6: 2767 | Z6: 3182 | AA6: 0 | AB6: 0 | AC6: 0 | AD6: 0 | AE6: 0 | AF6: 0 | AG6: 0 | AI6: =R6+S6 -> 3171 | AJ6: 1805 | AK6: 250 | AL6: 1189 | AM6: 2236 | AN6: 826 | AO6: 2767 | AP6: 3182 | AQ6: 0 | AR6: 0 | AS6: 0 | AT6: 0 | AU6: 0 | AV6: 0 | AW6: 0 | AZ6: =C65 -> 934 | BA6: =C63-C64 -> 2237 | BB6: =C6 -> 1805 | BC6: 250 | BD6: 1189 | BE6: 2236 | BF6: 826 | BG6: 2767 | BH6: 3182 | BI6: 0 | BJ6: 0 | BK6: 0 | BL6: 0 | BM6: 0 | BN6: 0 | BO6: 0 | BQ6: Chiffres électoraux | BR6: =C6 -> 1805 | BS6: 250 | BT6: 1189 | BU6: 2236 | BV6: 826 | BW6: 2767 | BX6: 3182 | BY6: 0 | BZ6: 0 | CA6: 0 | CB6: 0 | CC6: 0 | CD6: 0 | CE6: 0 | CG6: =C65 -> 934 | CH6: =C63-C64 -> 2237 | CI6: =C6 -> 1805 | CJ6: 250 | CK6: 1189 | CL6: 2236 | CM6: 826 | CN6: 2767 | CO6: 3182 | CP6: 0 | CQ6: 0 | CR6: 0 | CS6: 0 | CT6: 0 | CU6: 0 | CV6: 0
B7: Sièges | C7: 4 | D7: 0 | E7: 2 | F7: 5 | G7: 1 | H7: 7 | I7: 8 | J7: 0 | K7: 0 | L7: 0 | M7: 0 | N7: 0 | O7: 0 | P7: 0 | R7: 1 | S7: 4 | T7: 3 | U7: 0 | V7: 2 | W7: 4 | X7: 1 | Y7: 5 | Z7: 7 | AA7: 0 | AB7: 0 | AC7: 0 | AD7: 0 | AE7: 0 | AF7: 0 | AG7: 0 | AI7: 6 | AJ7: 3 | AK7: 0 | AL7: 1 | AM7: 4 | AN7: 1 | AO7: 5 | AP7: 7 | AQ7: 0 | AR7: 0 | AS7: 0 | AT7: 0 | AU7: 0 | AV7: 0 | AW7: 0 | AY7: 571.3333333 | AZ7: 1.634772462 | BA7: 3.915402567 | BB7: 3.159276546 | BC7: 0.4375729288 | BD7: 2.081096849 | BE7: 3.913652275 | BF7: 1.445740957 | BG7: 4.843057176 | BH7: 5.569428238 | BI7: 0 | BJ7: 0 | BK7: 0 | BL7: 0 | BM7: 0 | BN7: 0 | BO7: 0 | BQ7: Sièges | BR7: 4 | BS7: 0 | BT7: 2 | BU7: 5 | BV7: 2 | BW7: 6 | BX7: 8 | BY7: 0 | BZ7: 0 | CA7: 0 | CB7: 0 | CC7: 0 | CD7: 0 | CE7: 0 | CG7: 2 | CH7: 4 | CI7: 3 | CJ7: 0 | CK7: 2 | CL7: 4 | CM7: 1 | CN7: 5 | CO7: 6 | CP7: 0 | CQ7: 0 | CR7: 0 | CS7: 0 | CT7: 0 | CU7: 0 | CV7: 0
B8: 2 | C8: =$C$6/B8 -> 902.5 | D8: =$D$6/B8 -> 125 | E8: =$E$6/B8 -> 594.5 | F8: =$F$6/B8 -> 1118 | G8: =$G$6/B8 -> 413 | H8: =$H$6/B8 -> 1383.5 | I8: =$I$6/B8 -> 1591 | J8: =$J$6/B8 -> 0 | K8: =$K$6/B8 -> 0 | L8: =$L$6/B8 -> 0 | M8: =$M$6/B8 -> 0 | N8: =$N$6/B8 -> 0 | O8: =$O$6/B8 -> 0 | P8: =$P$6/B8 -> 0 | R8: =$R$6/B8 -> 467 | S8: =$S$6/B8 -> 1118.5 | T8: =C8 -> 902.5 | U8: =D8 -> 125 | V8: =E8 -> 594.5 | W8: =F8 -> 1118 | X8: =G8 -> 413 | Y8: =H8 -> 1383.5 | Z8: =I8 -> 1591 | AA8: =J8 -> 0 | AB8: =K8 -> 0 | AC8: =L8 -> 0 | AD8: =M8 -> 0 | AE8: 0 | AF8: 0 | AG8: =P8 -> 0 | AI8: =$AI$6/B8 -> 1585.5 | AJ8: =C8 -> 902.5 | AK8: =D8 -> 125 | AL8: =E8 -> 594.5 | AM8: =F8 -> 1118 | AN8: =G8 -> 413 | AO8: =H8 -> 1383.5 | AP8: =I8 -> 1591 | AQ8: =J8 -> 0 | AR8: =K8 -> 0 | AS8: =L8 -> 0 | AT8: =M8 -> 0 | AU8: =N8 -> 0 | AV8: 0 | AW8: 0 | BQ8: 1 | BR8: =$C$6/BQ8 -> 1805 | BS8: =$D$6/BQ8 -> 250 | BT8: =$E$6/BQ8 -> 1189 | BU8: =$F$6/BQ8 -> 2236 | BV8: =$G$6/BQ8 -> 826 | BW8: =$H$6/BQ8 -> 2767 | BX8: =$I$6/BQ8 -> 3182 | BY8: =$J$6/BQ8 -> 0 | BZ8: =$K$6/BQ8 -> 0 | CA8: =$L$6/BQ8 -> 0 | CB8: =$M$6/BQ8 -> 0 | CC8: =$N$6/BQ8 -> 0 | CD8: =$O$6/BQ8 -> 0 | CE8: =$P$6/BQ8 -> 0 | CG8: =$R$6/BQ8 -> 934 | CH8: =$S$6/BQ8 -> 2237 | CI8: =BR8 -> 1805 | CJ8: =BS8 -> 250 | CK8: =BT8 -> 1189 | CL8: =BU8 -> 2236 | CM8: =BV8 -> 826 | CN8: =BW8 -> 2767 | CO8: =BX8 -> 3182 | CP8: =BY8 -> 0 | CQ8: =BZ8 -> 0 | CR8: =CA8 -> 0 | CS8: =CB8 -> 0 | CT8: =CC8 -> 0 | CU8: =CD8 -> 0 | CV8: =CE8 -> 0
B9: 3 | C9: =$C$6/B9 -> 601.6666667 | D9: 83.33333333 | E9: =$E$6/B9 -> 396.3333333 | F9: 745.3333333 | G9: 275.3333333 | H9: =$H$6/B9 -> 922.3333333 | I9: =$I$6/B9 -> 1060.666667 | J9: =$J$6/B9 -> 0 | K9: =$K$6/B9 -> 0 | L9: =$L$6/B9 -> 0 | M9: =$M$6/B9 -> 0 | N9: 0 | O9: =$O$6/B9 -> 0 | P9: =$P$6/B9 -> 0 | R9: =$R$6/B9 -> 311.3333333 | S9: =$S$6/B9 -> 745.6666667 | T9: 601.6666667 | U9: 83.33333333 | V9: 396.3333333 | W9: 745.3333333 | X9: 275.3333333 | Y9: 922.3333333 | Z9: 1060.666667 | AA9: 0 | AB9: 0 | AC9: 0 | AD9: 0 | AE9: 0 | AF9: 0 | AG9: 0 | AI9: =$AI$6/B9 -> 1057 | AJ9: 601.6666667 | AK9: 83.33333333 | AL9: 396.3333333 | AM9: 745.3333333 | AN9: 275.3333333 | AO9: 922.3333333 | AP9: 1060.666667 | AQ9: 0 | AR9: 0 | AS9: 0 | AT9: 0 | AU9: 0 | AV9: 0 | AW9: 0 | BQ9: 2 | BR9: =$C$6/BQ9 -> 902.5 | BS9: 125 | BT9: =$E$6/BQ9 -> 594.5 | BU9: 1118 | BV9: 413 | BW9: =$H$6/BQ9 -> 1383.5 | BX9: =$I$6/BQ9 -> 1591 | BY9: =$J$6/BQ9 -> 0 | BZ9: =$K$6/BQ9 -> 0 | CA9: =$L$6/BQ9 -> 0 | CB9: =$M$6/BQ9 -> 0 | CC9: 0 | CD9: =$O$6/BQ9 -> 0 | CE9: =$P$6/BQ9 -> 0 | CG9: =$R$6/BQ9 -> 467 | CH9: =$S$6/BQ9 -> 1118.5 | CI9: 902.5 | CJ9: 125 | CK9: 594.5 | CL9: 1118 | CM9: 413 | CN9: 1383.5 | CO9: 1591 | CP9: 0 | CQ9: 0 | CR9: 0 | CS9: 0 | CT9: 0 | CU9: 0 | CV9: 0
B10: 4 | C10: 451.25 | D10: 62.5 | E10: 297.25 | F10: 559 | G10: 206.5 | H10: 691.75 | I10: 795.5 | J10: 0 | K10: 0 | L10: 0 | M10: 0 | N10: 0 | O10: 0 | P10: 0 | R10: 233.5 | S10: 559.25 | T10: 451.25 | U10: 62.5 | V10: 297.25 | W10: 559 | X10: 206.5 | Y10: 691.75 | Z10: 795.5 | AA10: 0 | AB10: 0 | AC10: 0 | AD10: 0 | AE10: 0 | AF10: 0 | AG10: 0 | AI10: 792.75 | AJ10: 451.25 | AK10: 62.5 | AL10: 297.25 | AM10: 559 | AN10: 206.5 | AO10: 691.75 | AP10: 795.5 | AQ10: 0 | AR10: 0 | AS10: 0 | AT10: 0 | AU10: 0 | AV10: 0 | AW10: 0 | BQ10: 3 | BR10: 601.6666667 | BS10: 83.33333333 | BT10: 396.3333333 | BU10: 745.3333333 | BV10: 275.3333333 | BW10: 922.3333333 | BX10: 1060.666667 | BY10: 0 | BZ10: 0 | CA10: 0 | CB10: 0 | CC10: 0 | CD10: 0 | CE10: 0 | CG10: 311.3333333 | CH10: 745.6666667 | CI10: 601.6666667 | CJ10: 83.33333333 | CK10: 396.3333333 | CL10: 745.3333333 | CM10: 275.3333333 | CN10: 922.3333333 | CO10: 1060.666667 | CP10: 0 | CQ10: 0 | CR10: 0 | CS10: 0 | CT10: 0 | CU10: 0 | CV10: 0
B11: 5 | C11: 361 | D11: 50 | E11: 237.8 | F11: 447.2 | G11: 165.2 | H11: 553.4 | I11: 636.4 | J11: 0 | K11: 0 | L11: 0 | M11: 0 | N11: 0 | O11: 0 | P11: 0 | R11: 186.8 | S11: 447.4 | T11: 361 | U11: 50 | V11: 237.8 | W11: 447.2 | X11: 165.2 | Y11: 553.4 | Z11: 636.4 | AA11: 0 | AB11: 0 | AC11: 0 | AD11: 0 | AE11: 0 | AF11: 0 | AG11: 0 | AI11: 634.2 | AJ11: 361 | AK11: 50 | AL11: 237.8 | AM11: 447.2 | AN11: 165.2 | AO11: 553.4 | AP11: 636.4 | AQ11: 0 | AR11: 0 | AS11: 0 | AT11: 0 | AU11: 0 | AV11: 0 | AW11: 0 | BQ11: 4 | BR11: 451.25 | BS11: 62.5 | BT11: 297.25 | BU11: 559 | BV11: 206.5 | BW11: 691.75 | BX11: 795.5 | BY11: 0 | BZ11: 0 | CA11: 0 | CB11: 0 | CC11: 0 | CD11: 0 | CE11: 0 | CG11: 233.5 | CH11: 559.25 | CI11: 451.25 | CJ11: 62.5 | CK11: 297.25 | CL11: 559 | CM11: 206.5 | CN11: 691.75 | CO11: 795.5 | CP11: 0 | CQ11: 0 | CR11: 0 | CS11: 0 | CT11: 0 | CU11: 0 | CV11: 0
B12: 6 | C12: 300.8333333 | D12: 41.66666667 | E12: 198.1666667 | F12: 372.6666667 | G12: 137.6666667 | H12: 461.1666667 | I12: 530.3333333 | J12: 0 | K12: 0 | L12: 0 | M12: 0 | N12: 0 | O12: 0 | P12: 0 | R12: 155.6666667 | S12: 372.8333333 | T12: 300.8333333 | U12: 41.66666667 | V12: 198.1666667 | W12: 372.6666667 | X12: 137.6666667 | Y12: 461.1666667 | Z12: 530.3333333 | AA12: 0 | AB12: 0 | AC12: 0 | AD12: 0 | AE12: 0 | AF12: 0 | AG12: 0 | AI12: 528.5 | AJ12: 300.8333333 | AK12: 41.66666667 | AL12: 198.1666667 | AM12: 372.6666667 | AN12: 137.6666667 | AO12: 461.1666667 | AP12: 530.3333333 | AQ12: 0 | AR12: 0 | AS12: 0 | AT12: 0 | AU12: 0 | AV12: 0 | AW12: 0 | BQ12: 5 | BR12: 361 | BS12: 50 | BT12: 237.8 | BU12: 447.2 | BV12: 165.2 | BW12: 553.4 | BX12: 636.4 | BY12: 0 | BZ12: 0 | CA12: 0 | CB12: 0 | CC12: 0 | CD12: 0 | CE12: 0 | CG12: 186.8 | CH12: 447.4 | CI12: 361 | CJ12: 50 | CK12: 237.8 | CL12: 447.2 | CM12: 165.2 | CN12: 553.4 | CO12: 636.4 | CP12: 0 | CQ12: 0 | CR12: 0 | CS12: 0 | CT12: 0 | CU12: 0 | CV12: 0
B13: 7 | C13: 257.8571429 | D13: 35.71428571 | E13: 169.8571429 | F13: 319.4285714 | G13: 118 | H13: 395.2857143 | I13: 454.5714286 | J13: 0 | K13: 0 | L13: 0 | M13: 0 | N13: 0 | O13: 0 | P13: 0 | R13: 133.4285714 | S13: 319.5714286 | T13: 257.8571429 | U13: 35.71428571 | V13: 169.8571429 | W13: 319.4285714 | X13: 118 | Y13: 395.2857143 | Z13: 454.5714286 | AA13: 0 | AB13: 0 | AC13: 0 | AD13: 0 | AE13: 0 | AF13: 0 | AG13: 0 | AI13: 453 | AJ13: 257.8571429 | AK13: 35.71428571 | AL13: 169.8571429 | AM13: 319.4285714 | AN13: 118 | AO13: 395.2857143 | AP13: 454.5714286 | AQ13: 0 | AR13: 0 | AS13: 0 | AT13: 0 | AU13: 0 | AV13: 0 | AW13: 0 | BQ13: 6 | BR13: 300.8333333 | BS13: 41.66666667 | BT13: 198.1666667 | BU13: 372.6666667 | BV13: 137.6666667 | BW13: 461.1666667 | BX13: 530.3333333 | BY13: 0 | BZ13: 0 | CA13: 0 | CB13: 0 | CC13: 0 | CD13: 0 | CE13: 0 | CG13: 155.6666667 | CH13: 372.8333333 | CI13: 300.8333333 | CJ13: 41.66666667 | CK13: 198.1666667 | CL13: 372.6666667 | CM13: 137.6666667 | CN13: 461.1666667 | CO13: 530.3333333 | CP13: 0 | CQ13: 0 | CR13: 0 | CS13: 0 | CT13: 0 | CU13: 0 | CV13: 0
B14: 8 | C14: 225.625 | D14: 31.25 | E14: 148.625 | F14: 279.5 | G14: 103.25 | H14: 345.875 | I14: 397.75 | J14: 0 | K14: 0 | L14: 0 | M14: 0 | N14: 0 | O14: 0 | P14: 0 | R14: 116.75 | S14: 279.625 | T14: 225.625 | U14: 31.25 | V14: 148.625 | W14: 279.5 | X14: 103.25 | Y14: 345.875 | Z14: 397.75 | AA14: 0 | AB14: 0 | AC14: 0 | AD14: 0 | AE14: 0 | AF14: 0 | AG14: 0 | AI14: 396.375 | AJ14: 225.625 | AK14: 31.25 | AL14: 148.625 | AM14: 279.5 | AN14: 103.25 | AO14: 345.875 | AP14: 397.75 | AQ14: 0 | AR14: 0 | AS14: 0 | AT14: 0 | AU14: 0 | AV14: 0 | AW14: 0 | BQ14: 7 | BR14: 257.8571429 | BS14: 35.71428571 | BT14: 169.8571429 | BU14: 319.4285714 | BV14: 118 | BW14: 395.2857143 | BX14: 454.5714286 | BY14: 0 | BZ14: 0 | CA14: 0 | CB14: 0 | CC14: 0 | CD14: 0 | CE14: 0 | CG14: 133.4285714 | CH14: 319.5714286 | CI14: 257.8571429 | CJ14: 35.71428571 | CK14: 169.8571429 | CL14: 319.4285714 | CM14: 118 | CN14: 395.2857143 | CO14: 454.5714286 | CP14: 0 | CQ14: 0 | CR14: 0 | CS14: 0 | CT14: 0 | CU14: 0 | CV14: 0
B15: 9 | C15: 200.5555556 | D15: 27.77777778 | E15: 132.1111111 | F15: 248.4444444 | G15: 91.77777778 | H15: 307.4444444 | I15: 353.5555556 | J15: 0 | K15: 0 | L15: 0 | M15: 0 | N15: 0 | O15: 0 | P15: 0 | R15: 103.7777778 | S15: 248.5555556 | T15: 200.5555556 | U15: 27.77777778 | V15: 132.1111111 | W15: 248.4444444 | X15: 91.77777778 | Y15: 307.4444444 | Z15: 353.5555556 | AA15: 0 | AB15: 0 | AC15: 0 | AD15: 0 | AE15: 0 | AF15: 0 | AG15: 0 | AI15: 352.3333333 | AJ15: 200.5555556 | AK15: 27.77777778 | AL15: 132.1111111 | AM15: 248.4444444 | AN15: 91.77777778 | AO15: 307.4444444 | AP15: 353.5555556 | AQ15: 0 | AR15: 0 | AS15: 0 | AT15: 0 | AU15: 0 | AV15: 0 | AW15: 0 | BQ15: 8 | BR15: 225.625 | BS15: 31.25 | BT15: 148.625 | BU15: 279.5 | BV15: 103.25 | BW15: 345.875 | BX15: 397.75 | BY15: 0 | BZ15: 0 | CA15: 0 | CB15: 0 | CC15: 0 | CD15: 0 | CE15: 0 | CG15: 116.75 | CH15: 279.625 | CI15: 225.625 | CJ15: 31.25 | CK15: 148.625 | CL15: 279.5 | CM15: 103.25 | CN15: 345.875 | CO15: 397.75 | CP15: 0 | CQ15: 0 | CR15: 0 | CS15: 0 | CT15: 0 | CU15: 0 | CV15: 0
B16: 10 | C16: 180.5 | D16: 25 | E16: 118.9 | F16: 223.6 | G16: 82.6 | H16: 276.7 | I16: 318.2 | J16: 0 | K16: 0 | L16: 0 | M16: 0 | N16: 0 | O16: 0 | P16: 0 | R16: 93.4 | S16: 223.7 | T16: 180.5 | U16: 25 | V16: 118.9 | W16: 223.6 | X16: 82.6 | Y16: 276.7 | Z16: 318.2 | AA16: 0 | AB16: 0 | AC16: 0 | AD16: 0 | AE16: 0 | AF16: 0 | AG16: 0 | AI16: 317.1 | AJ16: 180.5 | AK16: 25 | AL16: 118.9 | AM16: 223.6 | AN16: 82.6 | AO16: 276.7 | AP16: 318.2 | AQ16: 0 | AR16: 0 | AS16: 0 | AT16: 0 | AU16: 0 | AV16: 0 | AW16: 0 | BQ16: 9 | BR16: 200.5555556 | BS16: 27.77777778 | BT16: 132.1111111 | BU16: 248.4444444 | BV16: 91.77777778 | BW16: 307.4444444 | BX16: 353.5555556 | BY16: 0 | BZ16: 0 | CA16: 0 | CB16: 0 | CC16: 0 | CD16: 0 | CE16: 0 | CG16: 103.7777778 | CH16: 248.5555556 | CI16: 200.5555556 | CJ16: 27.77777778 | CK16: 132.1111111 | CL16: 248.4444444 | CM16: 91.77777778 | CN16: 307.4444444 | CO16: 353.5555556 | CP16: 0 | CQ16: 0 | CR16: 0 | CS16: 0 | CT16: 0 | CU16: 0 | CV16: 0
B17: 11 | C17: 164.0909091 | D17: 22.72727273 | E17: 108.0909091 | F17: 203.2727273 | G17: 75.09090909 | H17: 251.5454545 | I17: 289.2727273 | J17: 0 | K17: 0 | L17: 0 | M17: 0 | N17: 0 | O17: 0 | P17: 0 | R17: 84.90909091 | S17: 203.3636364 | T17: 164.0909091 | U17: 22.72727273 | V17: 108.0909091 | W17: 203.2727273 | X17: 75.09090909 | Y17: 251.5454545 | Z17: 289.2727273 | AA17: 0 | AB17: 0 | AC17: 0 | AD17: 0 | AE17: 0 | AF17: 0 | AG17: 0 | AI17: 288.2727273 | AJ17: 164.0909091 | AK17: 22.72727273 | AL17: 108.0909091 | AM17: 203.2727273 | AN17: 75.09090909 | AO17: 251.5454545 | AP17: 289.2727273 | AQ17: 0 | AR17: 0 | AS17: 0 | AT17: 0 | AU17: 0 | AV17: 0 | AW17: 0 | BQ17: 10 | BR17: 180.5 | BS17: 25 | BT17: 118.9 | BU17: 223.6 | BV17: 82.6 | BW17: 276.7 | BX17: 318.2 | BY17: 0 | BZ17: 0 | CA17: 0 | CB17: 0 | CC17: 0 | CD17: 0 | CE17: 0 | CG17: 93.4 | CH17: 223.7 | CI17: 180.5 | CJ17: 25 | CK17: 118.9 | CL17: 223.6 | CM17: 82.6 | CN17: 276.7 | CO17: 318.2 | CP17: 0 | CQ17: 0 | CR17: 0 | CS17: 0 | CT17: 0 | CU17: 0 | CV17: 0
B18: 12 | C18: 150.4166667 | D18: 20.83333333 | E18: 99.08333333 | F18: 186.3333333 | G18: 68.83333333 | H18: 230.5833333 | I18: 265.1666667 | J18: 0 | K18: 0 | L18: 0 | M18: 0 | N18: 0 | O18: 0 | P18: 0 | R18: 77.83333333 | S18: 186.4166667 | T18: 150.4166667 | U18: 20.83333333 | V18: 99.08333333 | W18: 186.3333333 | X18: 68.83333333 | Y18: 230.5833333 | Z18: 265.1666667 | AA18: 0 | AB18: 0 | AC18: 0 | AD18: 0 | AE18: 0 | AF18: 0 | AG18: 0 | AI18: 264.25 | AJ18: 150.4166667 | AK18: 20.83333333 | AL18: 99.08333333 | AM18: 186.3333333 | AN18: 68.83333333 | AO18: 230.5833333 | AP18: 265.1666667 | AQ18: 0 | AR18: 0 | AS18: 0 | AT18: 0 | AU18: 0 | AV18: 0 | AW18: 0 | BQ18: 11 | BR18: 164.0909091 | BS18: 22.72727273 | BT18: 108.0909091 | BU18: 203.2727273 | BV18: 75.09090909 | BW18: 251.5454545 | BX18: 289.2727273 | BY18: 0 | BZ18: 0 | CA18: 0 | CB18: 0 | CC18: 0 | CD18: 0 | CE18: 0 | CG18: 84.90909091 | CH18: 203.3636364 | CI18: 164.0909091 | CJ18: 22.72727273 | CK18: 108.0909091 | CL18: 203.2727273 | CM18: 75.09090909 | CN18: 251.5454545 | CO18: 289.2727273 | CP18: 0 | CQ18: 0 | CR18: 0 | CS18: 0 | CT18: 0 | CU18: 0 | CV18: 0
B19: 13 | C19: 138.8461538 | D19: 19.23076923 | E19: 91.46153846 | F19: 172 | G19: 63.53846154 | H19: 212.8461538 | I19: 244.7692308 | J19: 0 | K19: 0 | L19: 0 | M19: 0 | N19: 0 | O19: 0 | P19: 0 | R19: 71.84615385 | S19: 172.0769231 | T19: 138.8461538 | U19: 19.23076923 | V19: 91.46153846 | W19: 172 | X19: 63.53846154 | Y19: 212.8461538 | Z19: 244.7692308 | AA19: 0 | AB19: 0 | AC19: 0 | AD19: 0 | AE19: 0 | AF19: 0 | AG19: 0 | AI19: 243.9230769 | AJ19: 138.8461538 | AK19: 19.23076923 | AL19: 91.46153846 | AM19: 172 | AN19: 63.53846154 | AO19: 212.8461538 | AP19: 244.7692308 | AQ19: 0 | AR19: 0 | AS19: 0 | AT19: 0 | AU19: 0 | AV19: 0 | AW19: 0 | BQ19: 12 | BR19: 150.4166667 | BS19: 20.83333333 | BT19: 99.08333333 | BU19: 186.3333333 | BV19: 68.83333333 | BW19: 230.5833333 | BX19: 265.1666667 | BY19: 0 | BZ19: 0 | CA19: 0 | CB19: 0 | CC19: 0 | CD19: 0 | CE19: 0 | CG19: 77.83333333 | CH19: 186.4166667 | CI19: 150.4166667 | CJ19: 20.83333333 | CK19: 99.08333333 | CL19: 186.3333333 | CM19: 68.83333333 | CN19: 230.5833333 | CO19: 265.1666667 | CP19: 0 | CQ19: 0 | CR19: 0 | CS19: 0 | CT19: 0 | CU19: 0 | CV19: 0
B20: 14 | C20: 128.9285714 | D20: 17.85714286 | E20: 84.92857143 | F20: 159.7142857 | G20: 59 | H20: 197.6428571 | I20: 227.2857143 | J20: 0 | K20: 0 | L20: 0 | M20: 0 | N20: 0 | O20: 0 | P20: 0 | R20: 66.71428571 | S20: 159.7857143 | T20: 128.9285714 | U20: 17.85714286 | V20: 84.92857143 | W20: 159.7142857 | X20: 59 | Y20: 197.6428571 | Z20: 227.2857143 | AA20: 0 | AB20: 0 | AC20: 0 | AD20: 0 | AE20: 0 | AF20: 0 | AG20: 0 | AI20: 226.5 | AJ20: 128.9285714 | AK20: 17.85714286 | AL20: 84.92857143 | AM20: 159.7142857 | AN20: 59 | AO20: 197.6428571 | AP20: 227.2857143 | AQ20: 0 | AR20: 0 | AS20: 0 | AT20: 0 | AU20: 0 | AV20: 0 | AW20: 0 | BQ20: 13 | BR20: 138.8461538 | BS20: 19.23076923 | BT20: 91.46153846 | BU20: 172 | BV20: 63.53846154 | BW20: 212.8461538 | BX20: 244.7692308 | BY20: 0 | BZ20: 0 | CA20: 0 | CB20: 0 | CC20: 0 | CD20: 0 | CE20: 0 | CG20: 71.84615385 | CH20: 172.0769231 | CI20: 138.8461538 | CJ20: 19.23076923 | CK20: 91.46153846 | CL20: 172 | CM20: 63.53846154 | CN20: 212.8461538 | CO20: 244.7692308 | CP20: 0 | CQ20: 0 | CR20: 0 | CS20: 0 | CT20: 0 | CU20: 0 | CV20: 0
B21: 15 | C21: 120.3333333 | D21: 16.66666667 | E21: 79.26666667 | F21: 149.0666667 | G21: 55.06666667 | H21: 184.4666667 | I21: 212.1333333 | J21: 0 | K21: 0 | L21: 0 | M21: 0 | N21: 0 | O21: 0 | P21: 0 | R21: 62.26666667 | S21: 149.1333333 | T21: 120.3333333 | U21: 16.66666667 | V21: 79.26666667 | W21: 149.0666667 | X21: 55.06666667 | Y21: 184.4666667 | Z21: 212.1333333 | AA21: 0 | AB21: 0 | AC21: 0 | AD21: 0 | AE21: 0 | AF21: 0 | AG21: 0 | AI21: 211.4 | AJ21: 120.3333333 | AK21: 16.66666667 | AL21: 79.26666667 | AM21: 149.0666667 | AN21: 55.06666667 | AO21: 184.4666667 | AP21: 212.1333333 | AQ21: 0 | AR21: 0 | AS21: 0 | AT21: 0 | AU21: 0 | AV21: 0 | AW21: 0 | BQ21: 14 | BR21: 128.9285714 | BS21: 17.85714286 | BT21: 84.92857143 | BU21: 159.7142857 | BV21: 59 | BW21: 197.6428571 | BX21: 227.2857143 | BY21: 0 | BZ21: 0 | CA21: 0 | CB21: 0 | CC21: 0 | CD21: 0 | CE21: 0 | CG21: 66.71428571 | CH21: 159.7857143 | CI21: 128.9285714 | CJ21: 17.85714286 | CK21: 84.92857143 | CL21: 159.7142857 | CM21: 59 | CN21: 197.6428571 | CO21: 227.2857143 | CP21: 0 | CQ21: 0 | CR21: 0 | CS21: 0 | CT21: 0 | CU21: 0 | CV21: 0
B22: 16 | C22: 112.8125 | D22: 15.625 | E22: 74.3125 | F22: 139.75 | G22: 51.625 | H22: 172.9375 | I22: 198.875 | J22: 0 | K22: 0 | L22: 0 | M22: 0 | N22: 0 | O22: 0 | P22: 0 | R22: 58.375 | S22: 139.8125 | T22: 112.8125 | U22: 15.625 | V22: 74.3125 | W22: 139.75 | X22: 51.625 | Y22: 172.9375 | Z22: 198.875 | AA22: 0 | AB22: 0 | AC22: 0 | AD22: 0 | AE22: 0 | AF22: 0 | AG22: 0 | AI22: 198.1875 | AJ22: 112.8125 | AK22: 15.625 | AL22: 74.3125 | AM22: 139.75 | AN22: 51.625 | AO22: 172.9375 | AP22: 198.875 | AQ22: 0 | AR22: 0 | AS22: 0 | AT22: 0 | AU22: 0 | AV22: 0 | AW22: 0 | BQ22: 15 | BR22: 120.3333333 | BS22: 16.66666667 | BT22: 79.26666667 | BU22: 149.0666667 | BV22: 55.06666667 | BW22: 184.4666667 | BX22: 212.1333333 | BY22: 0 | BZ22: 0 | CA22: 0 | CB22: 0 | CC22: 0 | CD22: 0 | CE22: 0 | CG22: 62.26666667 | CH22: 149.1333333 | CI22: 120.3333333 | CJ22: 16.66666667 | CK22: 79.26666667 | CL22: 149.0666667 | CM22: 55.06666667 | CN22: 184.4666667 | CO22: 212.1333333 | CP22: 0 | CQ22: 0 | CR22: 0 | CS22: 0 | CT22: 0 | CU22: 0 | CV22: 0
B23: 17 | C23: 106.1764706 | D23: 14.70588235 | E23: 69.94117647 | F23: 131.5294118 | G23: 48.58823529 | H23: 162.7647059 | I23: 187.1764706 | J23: 0 | K23: 0 | L23: 0 | M23: 0 | N23: 0 | O23: 0 | P23: 0 | R23: 54.94117647 | S23: 131.5882353 | T23: 106.1764706 | U23: 14.70588235 | V23: 69.94117647 | W23: 131.5294118 | X23: 48.58823529 | Y23: 162.7647059 | Z23: 187.1764706 | AA23: 0 | AB23: 0 | AC23: 0 | AD23: 0 | AE23: 0 | AF23: 0 | AG23: 0 | AI23: 186.5294118 | AJ23: 106.1764706 | AK23: 14.70588235 | AL23: 69.94117647 | AM23: 131.5294118 | AN23: 48.58823529 | AO23: 162.7647059 | AP23: 187.1764706 | AQ23: 0 | AR23: 0 | AS23: 0 | AT23: 0 | AU23: 0 | AV23: 0 | AW23: 0 | BQ23: 16 | BR23: 112.8125 | BS23: 15.625 | BT23: 74.3125 | BU23: 139.75 | BV23: 51.625 | BW23: 172.9375 | BX23: 198.875 | BY23: 0 | BZ23: 0 | CA23: 0 | CB23: 0 | CC23: 0 | CD23: 0 | CE23: 0 | CG23: 58.375 | CH23: 139.8125 | CI23: 112.8125 | CJ23: 15.625 | CK23: 74.3125 | CL23: 139.75 | CM23: 51.625 | CN23: 172.9375 | CO23: 198.875 | CP23: 0 | CQ23: 0 | CR23: 0 | CS23: 0 | CT23: 0 | CU23: 0 | CV23: 0
B24: 18 | C24: 100.2777778 | D24: 13.88888889 | E24: 66.05555556 | F24: 124.2222222 | G24: 45.88888889 | H24: 153.7222222 | I24: 176.7777778 | J24: 0 | K24: 0 | L24: 0 | M24: 0 | N24: 0 | O24: 0 | P24: 0 | R24: 51.88888889 | S24: 124.2777778 | T24: 100.2777778 | U24: 13.88888889 | V24: 66.05555556 | W24: 124.2222222 | X24: 45.88888889 | Y24: 153.7222222 | Z24: 176.7777778 | AA24: 0 | AB24: 0 | AC24: 0 | AD24: =M24 -> 0 | AE24: 0 | AF24: 0 | AG24: 0 | AI24: 176.1666667 | AJ24: 100.2777778 | AK24: 13.88888889 | AL24: 66.05555556 | AM24: 124.2222222 | AN24: 45.88888889 | AO24: 153.7222222 | AP24: 176.7777778 | AQ24: 0 | AR24: 0 | AS24: 0 | AT24: 0 | AU24: =N24 -> 0 | AV24: 0 | AW24: 0 | BQ24: 17 | BR24: 106.1764706 | BS24: 14.70588235 | BT24: 69.94117647 | BU24: 131.5294118 | BV24: 48.58823529 | BW24: 162.7647059 | BX24: 187.1764706 | BY24: 0 | BZ24: 0 | CA24: 0 | CB24: 0 | CC24: 0 | CD24: 0 | CE24: 0 | CG24: 54.94117647 | CH24: 131.5882353 | CI24: 106.1764706 | CJ24: 14.70588235 | CK24: 69.94117647 | CL24: 131.5294118 | CM24: 48.58823529 | CN24: 162.7647059 | CO24: 187.1764706 | CP24: 0 | CQ24: 0 | CR24: 0 | CS24: 0 | CT24: 0 | CU24: 0 | CV24: 0
B25: 19 | C25: 95 | D25: 13.15789474 | E25: 62.57894737 | F25: 117.6842105 | G25: 43.47368421 | H25: 145.6315789 | I25: 167.4736842 | J25: 0 | K25: 0 | L25: 0 | M25: 0 | N25: 0 | O25: 0 | P25: 0 | R25: 49.15789474 | S25: 117.7368421 | T25: 95 | U25: 13.15789474 | V25: 62.57894737 | W25: 117.6842105 | X25: 43.47368421 | Y25: 145.6315789 | Z25: 167.4736842 | AA25: 0 | AB25: 0 | AC25: 0 | AD25: 0 | AE25: 0 | AF25: 0 | AG25: 0 | AI25: 166.8947368 | AJ25: 95 | AK25: 13.15789474 | AL25: 62.57894737 | AM25: 117.6842105 | AN25: 43.47368421 | AO25: 145.6315789 | AP25: 167.4736842 | AQ25: 0 | AR25: 0 | AS25: 0 | AT25: 0 | AU25: 0 | AV25: 0 | AW25: 0 | BQ25: 18 | BR25: 100.2777778 | BS25: 13.88888889 | BT25: 66.05555556 | BU25: 124.2222222 | BV25: 45.88888889 | BW25: 153.7222222 | BX25: 176.7777778 | BY25: 0 | BZ25: 0 | CA25: 0 | CB25: 0 | CC25: 0 | CD25: 0 | CE25: 0 | CG25: 51.88888889 | CH25: 124.2777778 | CI25: 100.2777778 | CJ25: 13.88888889 | CK25: 66.05555556 | CL25: 124.2222222 | CM25: 45.88888889 | CN25: 153.7222222 | CO25: 176.7777778 | CP25: 0 | CQ25: 0 | CR25: 0 | CS25: 0 | CT25: 0 | CU25: 0 | CV25: 0
B26: 20 | C26: 90.25 | D26: 12.5 | E26: 59.45 | F26: 111.8 | G26: 41.3 | H26: 138.35 | I26: 159.1 | J26: 0 | K26: 0 | L26: 0 | M26: 0 | N26: 0 | O26: 0 | P26: 0 | R26: 46.7 | S26: 111.85 | T26: 90.25 | U26: 12.5 | V26: 59.45 | W26: 111.8 | X26: 41.3 | Y26: 138.35 | Z26: 159.1 | AA26: 0 | AB26: 0 | AC26: 0 | AD26: 0 | AE26: 0 | AF26: 0 | AG26: 0 | AI26: 158.55 | AJ26: 90.25 | AK26: 12.5 | AL26: 59.45 | AM26: 111.8 | AN26: 41.3 | AO26: 138.35 | AP26: 159.1 | AQ26: 0 | AR26: 0 | AS26: 0 | AT26: 0 | AU26: 0 | AV26: 0 | AW26: 0 | BQ26: 19 | BR26: 95 | BS26: 13.15789474 | BT26: 62.57894737 | BU26: 117.6842105 | BV26: 43.47368421 | BW26: 145.6315789 | BX26: 167.4736842 | BY26: 0 | BZ26: 0 | CA26: 0 | CB26: 0 | CC26: 0 | CD26: 0 | CE26: 0 | CG26: 49.15789474 | CH26: 117.7368421 | CI26: 95 | CJ26: 13.15789474 | CK26: 62.57894737 | CL26: 117.6842105 | CM26: 43.47368421 | CN26: 145.6315789 | CO26: 167.4736842 | CP26: 0 | CQ26: 0 | CR26: 0 | CS26: 0 | CT26: 0 | CU26: 0 | CV26: 0
B27: 21 | C27: 85.95238095 | D27: 11.9047619 | E27: 56.61904762 | F27: 106.4761905 | G27: 39.33333333 | H27: 131.7619048 | I27: 151.5238095 | J27: 0 | K27: 0 | L27: 0 | M27: 0 | N27: 0 | O27: 0 | P27: 0 | R27: 44.47619048 | S27: 106.5238095 | T27: 85.95238095 | U27: 11.9047619 | V27: 56.61904762 | W27: 106.4761905 | X27: 39.33333333 | Y27: 131.7619048 | Z27: 151.5238095 | AA27: 0 | AB27: 0 | AC27: 0 | AD27: 0 | AE27: 0 | AF27: 0 | AG27: =P27 -> 0 | AI27: 151 | AJ27: 85.95238095 | AK27: 11.9047619 | AL27: 56.61904762 | AM27: 106.4761905 | AN27: 39.33333333 | AO27: 131.7619048 | AP27: 151.5238095 | AQ27: 0 | AR27: 0 | AS27: 0 | AT27: 0 | AU27: 0 | AV27: 0 | AW27: 0 | BQ27: 20 | BR27: 90.25 | BS27: 12.5 | BT27: 59.45 | BU27: 111.8 | BV27: 41.3 | BW27: 138.35 | BX27: 159.1 | BY27: 0 | BZ27: 0 | CA27: 0 | CB27: 0 | CC27: 0 | CD27: 0 | CE27: 0 | CG27: 46.7 | CH27: 111.85 | CI27: 90.25 | CJ27: 12.5 | CK27: 59.45 | CL27: 111.8 | CM27: 41.3 | CN27: 138.35 | CO27: 159.1 | CP27: 0 | CQ27: 0 | CR27: 0 | CS27: 0 | CT27: 0 | CU27: 0 | CV27: 0
B28: 22 | C28: 82.04545455 | D28: 11.36363636 | E28: 54.04545455 | F28: 101.6363636 | G28: 37.54545455 | H28: 125.7727273 | I28: 144.6363636 | J28: 0 | K28: 0 | L28: 0 | M28: 0 | N28: 0 | O28: 0 | P28: 0 | R28: 42.45454545 | S28: 101.6818182 | T28: 82.04545455 | U28: 11.36363636 | V28: 54.04545455 | W28: 101.6363636 | X28: 37.54545455 | Y28: 125.7727273 | Z28: 144.6363636 | AA28: 0 | AB28: 0 | AC28: 0 | AD28: 0 | AE28: 0 | AF28: 0 | AG28: 0 | AI28: 144.1363636 | AJ28: 82.04545455 | AK28: 11.36363636 | AL28: 54.04545455 | AM28: 101.6363636 | AN28: 37.54545455 | AO28: 125.7727273 | AP28: 144.6363636 | AQ28: 0 | AR28: 0 | AS28: 0 | AT28: 0 | AU28: 0 | AV28: 0 | AW28: 0 | BQ28: 21 | BR28: 85.95238095 | BS28: 11.9047619 | BT28: 56.61904762 | BU28: 106.4761905 | BV28: 39.33333333 | BW28: 131.7619048 | BX28: 151.5238095 | BY28: 0 | BZ28: 0 | CA28: 0 | CB28: 0 | CC28: 0 | CD28: 0 | CE28: 0 | CG28: 44.47619048 | CH28: 106.5238095 | CI28: 85.95238095 | CJ28: 11.9047619 | CK28: 56.61904762 | CL28: 106.4761905 | CM28: 39.33333333 | CN28: 131.7619048 | CO28: 151.5238095 | CP28: 0 | CQ28: 0 | CR28: 0 | CS28: 0 | CT28: 0 | CU28: 0 | CV28: 0
B29: 23 | C29: 78.47826087 | D29: 10.86956522 | E29: 51.69565217 | F29: 97.2173913 | G29: 35.91304348 | H29: 120.3043478 | I29: 138.3478261 | J29: 0 | K29: 0 | L29: 0 | M29: 0 | N29: 0 | O29: 0 | P29: 0 | R29: 40.60869565 | S29: 97.26086957 | T29: 78.47826087 | U29: 10.86956522 | V29: 51.69565217 | W29: 97.2173913 | X29: 35.91304348 | Y29: 120.3043478 | Z29: 138.3478261 | AA29: 0 | AB29: 0 | AC29: 0 | AD29: 0 | AE29: 0 | AF29: 0 | AG29: 0 | AI29: 137.8695652 | AJ29: 78.47826087 | AK29: 10.86956522 | AL29: 51.69565217 | AM29: 97.2173913 | AN29: 35.91304348 | AO29: 120.3043478 | AP29: 138.3478261 | AQ29: 0 | AR29: 0 | AS29: 0 | AT29: 0 | AU29: 0 | AV29: 0 | AW29: 0 | BQ29: 22 | BR29: 82.04545455 | BS29: 11.36363636 | BT29: 54.04545455 | BU29: 101.6363636 | BV29: 37.54545455 | BW29: 125.7727273 | BX29: 144.6363636 | BY29: 0 | BZ29: 0 | CA29: 0 | CB29: 0 | CC29: 0 | CD29: 0 | CE29: 0 | CG29: 42.45454545 | CH29: 101.6818182 | CI29: 82.04545455 | CJ29: 11.36363636 | CK29: 54.04545455 | CL29: 101.6363636 | CM29: 37.54545455 | CN29: 125.7727273 | CO29: 144.6363636 | CP29: 0 | CQ29: 0 | CR29: 0 | CS29: 0 | CT29: 0 | CU29: 0 | CV29: 0
B30: 24 | C30: 75.20833333 | D30: 10.41666667 | E30: 49.54166667 | F30: 93.16666667 | G30: 34.41666667 | H30: 115.2916667 | I30: 132.5833333 | J30: 0 | K30: 0 | L30: 0 | M30: 0 | N30: 0 | O30: 0 | P30: 0 | R30: 38.91666667 | S30: 93.20833333 | T30: 75.20833333 | U30: 10.41666667 | V30: 49.54166667 | W30: 93.16666667 | X30: 34.41666667 | Y30: 115.2916667 | Z30: 132.5833333 | AA30: 0 | AB30: 0 | AC30: 0 | AD30: 0 | AE30: 0 | AF30: 0 | AG30: 0 | AI30: 132.125 | AJ30: 75.20833333 | AK30: 10.41666667 | AL30: 49.54166667 | AM30: 93.16666667 | AN30: 34.41666667 | AO30: 115.2916667 | AP30: 132.5833333 | AQ30: 0 | AR30: 0 | AS30: 0 | AT30: 0 | AU30: 0 | AV30: 0 | AW30: 0 | BQ30: 23 | BR30: 78.47826087 | BS30: 10.86956522 | BT30: 51.69565217 | BU30: 97.2173913 | BV30: 35.91304348 | BW30: 120.3043478 | BX30: 138.3478261 | BY30: 0 | BZ30: 0 | CA30: 0 | CB30: 0 | CC30: 0 | CD30: 0 | CE30: 0 | CG30: 40.60869565 | CH30: 97.26086957 | CI30: 78.47826087 | CJ30: 10.86956522 | CK30: 51.69565217 | CL30: 97.2173913 | CM30: 35.91304348 | CN30: 120.3043478 | CO30: 138.3478261 | CP30: 0 | CQ30: 0 | CR30: 0 | CS30: 0 | CT30: 0 | CU30: 0 | CV30: 0
B31: 25 | C31: 72.2 | D31: 10 | E31: 47.56 | F31: 89.44 | G31: 33.04 | H31: 110.68 | I31: 127.28 | J31: 0 | K31: 0 | L31: 0 | M31: 0 | N31: 0 | O31: 0 | P31: 0 | R31: 37.36 | S31: 89.48 | T31: 72.2 | U31: 10 | V31: 47.56 | W31: 89.44 | X31: 33.04 | Y31: 110.68 | Z31: 127.28 | AA31: 0 | AB31: 0 | AC31: 0 | AD31: 0 | AE31: 0 | AF31: 0 | AG31: 0 | AI31: 126.84 | AJ31: 72.2 | AK31: 10 | AL31: 47.56 | AM31: 89.44 | AN31: 33.04 | AO31: 110.68 | AP31: 127.28 | AQ31: 0 | AR31: 0 | AS31: 0 | AT31: 0 | AU31: 0 | AV31: 0 | AW31: 0 | BQ31: 24 | BR31: 75.20833333 | BS31: 10.41666667 | BT31: 49.54166667 | BU31: 93.16666667 | BV31: 34.41666667 | BW31: 115.2916667 | BX31: 132.5833333 | BY31: 0 | BZ31: 0 | CA31: 0 | CB31: 0 | CC31: 0 | CD31: 0 | CE31: 0 | CG31: 38.91666667 | CH31: 93.20833333 | CI31: 75.20833333 | CJ31: 10.41666667 | CK31: 49.54166667 | CL31: 93.16666667 | CM31: 34.41666667 | CN31: 115.2916667 | CO31: 132.5833333 | CP31: 0 | CQ31: 0 | CR31: 0 | CS31: 0 | CT31: 0 | CU31: 0 | CV31: 0
B32: 26 | C32: 69.42307692 | D32: 9.615384615 | E32: 45.73076923 | F32: 86 | G32: 31.76923077 | H32: 106.4230769 | I32: 122.3846154 | J32: 0 | K32: 0 | L32: 0 | M32: 0 | N32: 0 | O32: 0 | P32: 0 | R32: 35.92307692 | S32: 86.03846154 | T32: 69.42307692 | U32: 9.615384615 | V32: 45.73076923 | W32: 86 | X32: 31.76923077 | Y32: 106.4230769 | Z32: 122.3846154 | AA32: 0 | AB32: 0 | AC32: 0 | AD32: 0 | AE32: 0 | AF32: 0 | AG32: 0 | AI32: 121.9615385 | AJ32: 69.42307692 | AK32: 9.615384615 | AL32: 45.73076923 | AM32: 86 | AN32: 31.76923077 | AO32: 106.4230769 | AP32: 122.3846154 | AQ32: 0 | AR32: 0 | AS32: 0 | AT32: 0 | AU32: 0 | AV32: 0 | AW32: 0 | BQ32: 25 | BR32: 72.2 | BS32: 10 | BT32: 47.56 | BU32: 89.44 | BV32: 33.04 | BW32: 110.68 | BX32: 127.28 | BY32: 0 | BZ32: 0 | CA32: 0 | CB32: 0 | CC32: 0 | CD32: 0 | CE32: 0 | CG32: 37.36 | CH32: 89.48 | CI32: 72.2 | CJ32: 10 | CK32: 47.56 | CL32: 89.44 | CM32: 33.04 | CN32: 110.68 | CO32: 127.28 | CP32: 0 | CQ32: 0 | CR32: 0 | CS32: 0 | CT32: 0 | CU32: 0 | CV32: 0
B33: 27 | C33: 66.85185185 | D33: 9.259259259 | E33: 44.03703704 | F33: 82.81481481 | G33: 30.59259259 | H33: 102.4814815 | I33: 117.8518519 | J33: 0 | K33: 0 | L33: 0 | M33: 0 | N33: 0 | O33: 0 | P33: 0 | R33: 34.59259259 | S33: 82.85185185 | T33: 66.85185185 | U33: 9.259259259 | V33: 44.03703704 | W33: 82.81481481 | X33: 30.59259259 | Y33: 102.4814815 | Z33: 117.8518519 | AA33: 0 | AB33: 0 | AC33: 0 | AD33: 0 | AE33: 0 | AF33: 0 | AG33: 0 | AI33: 117.4444444 | AJ33: 66.85185185 | AK33: 9.259259259 | AL33: 44.03703704 | AM33: 82.81481481 | AN33: 30.59259259 | AO33: 102.4814815 | AP33: 117.8518519 | AQ33: 0 | AR33: 0 | AS33: 0 | AT33: 0 | AU33: 0 | AV33: 0 | AW33: 0 | BQ33: 26 | BR33: 69.42307692 | BS33: 9.615384615 | BT33: 45.73076923 | BU33: 86 | BV33: 31.76923077 | BW33: 106.4230769 | BX33: 122.3846154 | BY33: 0 | BZ33: 0 | CA33: 0 | CB33: 0 | CC33: 0 | CD33: 0 | CE33: 0 | CG33: 35.92307692 | CH33: 86.03846154 | CI33: 69.42307692 | CJ33: 9.615384615 | CK33: 45.73076923 | CL33: 86 | CM33: 31.76923077 | CN33: 106.4230769 | CO33: 122.3846154 | CP33: 0 | CQ33: 0 | CR33: 0 | CS33: 0 | CT33: 0 | CU33: 0 | CV33: 0
B34: 28 | C34: 64.46428571 | D34: 8.928571429 | E34: 42.46428571 | F34: 79.85714286 | G34: 29.5 | H34: 98.82142857 | I34: 113.6428571 | J34: 0 | K34: 0 | L34: 0 | M34: 0 | N34: 0 | O34: 0 | P34: 0 | R34: 33.35714286 | S34: 79.89285714 | T34: 64.46428571 | U34: 8.928571429 | V34: 42.46428571 | W34: 79.85714286 | X34: 29.5 | Y34: 98.82142857 | Z34: 113.6428571 | AA34: 0 | AB34: 0 | AC34: 0 | AD34: 0 | AE34: 0 | AF34: 0 | AG34: 0 | AI34: 113.25 | AJ34: 64.46428571 | AK34: 8.928571429 | AL34: 42.46428571 | AM34: 79.85714286 | AN34: 29.5 | AO34: 98.82142857 | AP34: 113.6428571 | AQ34: 0 | AR34: 0 | AS34: 0 | AT34: 0 | AU34: 0 | AV34: 0 | AW34: 0 | BQ34: 27 | BR34: 66.85185185 | BS34: 9.259259259 | BT34: 44.03703704 | BU34: 82.81481481 | BV34: 30.59259259 | BW34: 102.4814815 | BX34: 117.8518519 | BY34: 0 | BZ34: 0 | CA34: 0 | CB34: 0 | CC34: 0 | CD34: 0 | CE34: 0 | CG34: 34.59259259 | CH34: 82.85185185 | CI34: 66.85185185 | CJ34: 9.259259259 | CK34: 44.03703704 | CL34: 82.81481481 | CM34: 30.59259259 | CN34: 102.4814815 | CO34: 117.8518519 | CP34: 0 | CQ34: 0 | CR34: 0 | CS34: 0 | CT34: 0 | CU34: 0 | CV34: 0
B35: 29 | C35: 62.24137931 | D35: 8.620689655 | E35: 41 | F35: 77.10344828 | G35: 28.48275862 | H35: 95.4137931 | I35: 109.7241379 | J35: 0 | K35: 0 | L35: 0 | M35: 0 | N35: 0 | O35: 0 | P35: 0 | R35: 32.20689655 | S35: 77.13793103 | T35: 62.24137931 | U35: 8.620689655 | V35: 41 | W35: 77.10344828 | X35: 28.48275862 | Y35: 95.4137931 | Z35: 109.7241379 | AA35: 0 | AB35: 0 | AC35: 0 | AD35: 0 | AE35: 0 | AF35: 0 | AG35: 0 | AI35: 109.3448276 | AJ35: 62.24137931 | AK35: 8.620689655 | AL35: 41 | AM35: 77.10344828 | AN35: 28.48275862 | AO35: 95.4137931 | AP35: 109.7241379 | AQ35: 0 | AR35: 0 | AS35: 0 | AT35: 0 | AU35: 0 | AV35: 0 | AW35: 0 | BQ35: 28 | BR35: 64.46428571 | BS35: 8.928571429 | BT35: 42.46428571 | BU35: 79.85714286 | BV35: 29.5 | BW35: 98.82142857 | BX35: 113.6428571 | BY35: 0 | BZ35: 0 | CA35: 0 | CB35: 0 | CC35: 0 | CD35: 0 | CE35: 0 | CG35: 33.35714286 | CH35: 79.89285714 | CI35: 64.46428571 | CJ35: 8.928571429 | CK35: 42.46428571 | CL35: 79.85714286 | CM35: 29.5 | CN35: 98.82142857 | CO35: 113.6428571 | CP35: 0 | CQ35: 0 | CR35: 0 | CS35: 0 | CT35: 0 | CU35: 0 | CV35: 0
B36: 30 | C36: 60.16666667 | D36: 8.333333333 | E36: 39.63333333 | F36: 74.53333333 | G36: 27.53333333 | H36: 92.23333333 | I36: 106.0666667 | J36: 0 | K36: 0 | L36: 0 | M36: 0 | N36: 0 | O36: 0 | P36: 0 | R36: 31.13333333 | S36: 74.56666667 | T36: 60.16666667 | U36: 8.333333333 | V36: 39.63333333 | W36: 74.53333333 | X36: 27.53333333 | Y36: 92.23333333 | Z36: 106.0666667 | AA36: 0 | AB36: 0 | AC36: 0 | AD36: 0 | AE36: 0 | AF36: 0 | AG36: 0 | AI36: 105.7 | AJ36: 60.16666667 | AK36: 8.333333333 | AL36: 39.63333333 | AM36: 74.53333333 | AN36: 27.53333333 | AO36: 92.23333333 | AP36: 106.0666667 | AQ36: 0 | AR36: 0 | AS36: 0 | AT36: 0 | AU36: 0 | AV36: 0 | AW36: 0 | BQ36: 29 | BR36: 62.24137931 | BS36: 8.620689655 | BT36: 41 | BU36: 77.10344828 | BV36: 28.48275862 | BW36: 95.4137931 | BX36: 109.7241379 | BY36: 0 | BZ36: 0 | CA36: 0 | CB36: 0 | CC36: 0 | CD36: 0 | CE36: 0 | CG36: 32.20689655 | CH36: 77.13793103 | CI36: 62.24137931 | CJ36: 8.620689655 | CK36: 41 | CL36: 77.10344828 | CM36: 28.48275862 | CN36: 95.4137931 | CO36: 109.7241379 | CP36: 0 | CQ36: 0 | CR36: 0 | CS36: 0 | CT36: 0 | CU36: 0 | CV36: 0
B37: 31 | C37: 58.22580645 | D37: 8.064516129 | E37: 38.35483871 | F37: 72.12903226 | G37: 26.64516129 | H37: 89.25806452 | I37: 102.6451613 | J37: 0 | K37: 0 | L37: 0 | M37: 0 | N37: 0 | O37: 0 | P37: 0 | R37: 30.12903226 | S37: 72.16129032 | T37: 58.22580645 | U37: 8.064516129 | V37: 38.35483871 | W37: 72.12903226 | X37: 26.64516129 | Y37: 89.25806452 | Z37: 102.6451613 | AA37: 0 | AB37: 0 | AC37: 0 | AD37: 0 | AE37: 0 | AF37: 0 | AG37: 0 | AI37: 102.2903226 | AJ37: 58.22580645 | AK37: 8.064516129 | AL37: 38.35483871 | AM37: 72.12903226 | AN37: 26.64516129 | AO37: 89.25806452 | AP37: 102.6451613 | AQ37: 0 | AR37: 0 | AS37: 0 | AT37: 0 | AU37: 0 | AV37: 0 | AW37: 0 | BQ37: 30 | BR37: 60.16666667 | BS37: 8.333333333 | BT37: 39.63333333 | BU37: 74.53333333 | BV37: 27.53333333 | BW37: 92.23333333 | BX37: 106.0666667 | BY37: 0 | BZ37: 0 | CA37: 0 | CB37: 0 | CC37: 0 | CD37: 0 | CE37: 0 | CG37: 31.13333333 | CH37: 74.56666667 | CI37: 60.16666667 | CJ37: 8.333333333 | CK37: 39.63333333 | CL37: 74.53333333 | CM37: 27.53333333 | CN37: 92.23333333 | CO37: 106.0666667 | CP37: 0 | CQ37: 0 | CR37: 0 | CS37: 0 | CT37: 0 | CU37: 0 | CV37: 0
B38: 32 | C38: 56.40625 | D38: 7.8125 | E38: 37.15625 | F38: 69.875 | G38: 25.8125 | H38: 86.46875 | I38: 99.4375 | J38: 0 | K38: 0 | L38: 0 | M38: 0 | N38: 0 | O38: 0 | P38: 0 | R38: 29.1875 | S38: 69.90625 | T38: 56.40625 | U38: 7.8125 | V38: 37.15625 | W38: 69.875 | X38: 25.8125 | Y38: 86.46875 | Z38: 99.4375 | AA38: 0 | AB38: 0 | AC38: 0 | AD38: 0 | AE38: 0 | AF38: 0 | AG38: 0 | AI38: 99.09375 | AJ38: 56.40625 | AK38: 7.8125 | AL38: 37.15625 | AM38: 69.875 | AN38: 25.8125 | AO38: 86.46875 | AP38: 99.4375 | AQ38: 0 | AR38: 0 | AS38: 0 | AT38: 0 | AU38: 0 | AV38: 0 | AW38: 0 | BQ38: 31 | BR38: 58.22580645 | BS38: 8.064516129 | BT38: 38.35483871 | BU38: 72.12903226 | BV38: 26.64516129 | BW38: 89.25806452 | BX38: 102.6451613 | BY38: 0 | BZ38: 0 | CA38: 0 | CB38: 0 | CC38: 0 | CD38: 0 | CE38: 0 | CG38: 30.12903226 | CH38: 72.16129032 | CI38: 58.22580645 | CJ38: 8.064516129 | CK38: 38.35483871 | CL38: 72.12903226 | CM38: 26.64516129 | CN38: 89.25806452 | CO38: 102.6451613 | CP38: 0 | CQ38: 0 | CR38: 0 | CS38: 0 | CT38: 0 | CU38: 0 | CV38: 0
B39: 33 | C39: 54.6969697 | D39: 7.575757576 | E39: 36.03030303 | F39: 67.75757576 | G39: 25.03030303 | H39: 83.84848485 | I39: 96.42424242 | J39: 0 | K39: 0 | L39: 0 | M39: 0 | N39: 0 | O39: 0 | P39: 0 | R39: 28.3030303 | S39: 67.78787879 | T39: 54.6969697 | U39: 7.575757576 | V39: 36.03030303 | W39: 67.75757576 | X39: 25.03030303 | Y39: 83.84848485 | Z39: 96.42424242 | AA39: 0 | AB39: 0 | AC39: 0 | AD39: 0 | AE39: 0 | AF39: 0 | AG39: 0 | AI39: 96.09090909 | AJ39: 54.6969697 | AK39: 7.575757576 | AL39: 36.03030303 | AM39: 67.75757576 | AN39: 25.03030303 | AO39: 83.84848485 | AP39: 96.42424242 | AQ39: 0 | AR39: 0 | AS39: 0 | AT39: 0 | AU39: 0 | AV39: 0 | AW39: 0 | BQ39: 32 | BR39: 56.40625 | BS39: 7.8125 | BT39: 37.15625 | BU39: 69.875 | BV39: 25.8125 | BW39: 86.46875 | BX39: 99.4375 | BY39: 0 | BZ39: 0 | CA39: 0 | CB39: 0 | CC39: 0 | CD39: 0 | CE39: 0 | CG39: 29.1875 | CH39: 69.90625 | CI39: 56.40625 | CJ39: 7.8125 | CK39: 37.15625 | CL39: 69.875 | CM39: 25.8125 | CN39: 86.46875 | CO39: 99.4375 | CP39: 0 | CQ39: 0 | CR39: 0 | CS39: 0 | CT39: 0 | CU39: 0 | CV39: 0
B40: 34 | C40: 53.08823529 | D40: 7.352941176 | E40: 34.97058824 | F40: 65.76470588 | G40: 24.29411765 | H40: 81.38235294 | I40: 93.58823529 | J40: 0 | K40: 0 | L40: 0 | M40: 0 | N40: 0 | O40: 0 | P40: 0 | R40: 27.47058824 | S40: 65.79411765 | T40: =C40 -> 53.08823529 | U40: =D40 -> 7.352941176 | V40: =E40 -> 34.97058824 | W40: =F40 -> 65.76470588 | X40: =G40 -> 24.29411765 | Y40: =H40 -> 81.38235294 | Z40: =I40 -> 93.58823529 | AA40: =J40 -> 0 | AB40: =K40 -> 0 | AC40: =L40 -> 0 | AD40: =M40 -> 0 | AE40: 0 | AF40: 0 | AG40: 0 | AI40: 93.26470588 | AJ40: =C40 -> 53.08823529 | AK40: =D40 -> 7.352941176 | AL40: =E40 -> 34.97058824 | AM40: =F40 -> 65.76470588 | AN40: =G40 -> 24.29411765 | AO40: =H40 -> 81.38235294 | AP40: =I40 -> 93.58823529 | AQ40: =J40 -> 0 | AR40: =K40 -> 0 | AS40: =L40 -> 0 | AT40: =M40 -> 0 | AU40: =N40 -> 0 | AV40: 0 | AW40: 0 | BQ40: 33 | BR40: 54.6969697 | BS40: 7.575757576 | BT40: 36.03030303 | BU40: 67.75757576 | BV40: 25.03030303 | BW40: 83.84848485 | BX40: 96.42424242 | BY40: 0 | BZ40: 0 | CA40: 0 | CB40: 0 | CC40: 0 | CD40: 0 | CE40: 0 | CG40: 28.3030303 | CH40: 67.78787879 | CI40: 54.6969697 | CJ40: 7.575757576 | CK40: 36.03030303 | CL40: 67.75757576 | CM40: 25.03030303 | CN40: 83.84848485 | CO40: 96.42424242 | CP40: 0 | CQ40: 0 | CR40: 0 | CS40: 0 | CT40: 0 | CU40: 0 | CV40: 0
B41: 35 | C41: 51.57142857 | D41: 7.142857143 | E41: 33.97142857 | F41: 63.88571429 | G41: 23.6 | H41: 79.05714286 | I41: 90.91428571 | J41: 0 | K41: 0 | L41: 0 | M41: 0 | N41: 0 | O41: 0 | P41: 0 | R41: 26.68571429 | S41: 63.91428571 | T41: 51.57142857 | U41: 7.142857143 | V41: 33.97142857 | W41: 63.88571429 | X41: 23.6 | Y41: 79.05714286 | Z41: 90.91428571 | AA41: 0 | AB41: 0 | AC41: 0 | AD41: 0 | AE41: 0 | AF41: 0 | AG41: 0 | AI41: 90.6 | AJ41: 51.57142857 | AK41: 7.142857143 | AL41: 33.97142857 | AM41: 63.88571429 | AN41: 23.6 | AO41: 79.05714286 | AP41: 90.91428571 | AQ41: 0 | AR41: 0 | AS41: 0 | AT41: 0 | AU41: 0 | AV41: 0 | AW41: 0 | BQ41: 34 | BR41: 53.08823529 | BS41: 7.352941176 | BT41: 34.97058824 | BU41: 65.76470588 | BV41: 24.29411765 | BW41: 81.38235294 | BX41: 93.58823529 | BY41: 0 | BZ41: 0 | CA41: 0 | CB41: 0 | CC41: 0 | CD41: 0 | CE41: 0 | CG41: 27.47058824 | CH41: 65.79411765 | CI41: 53.08823529 | CJ41: 7.352941176 | CK41: 34.97058824 | CL41: 65.76470588 | CM41: 24.29411765 | CN41: 81.38235294 | CO41: 93.58823529 | CP41: 0 | CQ41: 0 | CR41: 0 | CS41: 0 | CT41: 0 | CU41: 0 | CV41: 0
B42: 36 | C42: 50.13888889 | D42: 6.944444444 | E42: 33.02777778 | F42: 62.11111111 | G42: 22.94444444 | H42: 76.86111111 | I42: 88.38888889 | J42: 0 | K42: 0 | L42: 0 | M42: 0 | N42: 0 | O42: 0 | P42: 0 | R42: 25.94444444 | S42: 62.13888889 | T42: 50.13888889 | U42: 6.944444444 | V42: 33.02777778 | W42: 62.11111111 | X42: 22.94444444 | Y42: 76.86111111 | Z42: 88.38888889 | AA42: 0 | AB42: 0 | AC42: 0 | AD42: 0 | AE42: 0 | AF42: 0 | AG42: 0 | AI42: 88.08333333 | AJ42: 50.13888889 | AK42: 6.944444444 | AL42: 33.02777778 | AM42: 62.11111111 | AN42: 22.94444444 | AO42: 76.86111111 | AP42: 88.38888889 | AQ42: 0 | AR42: 0 | AS42: 0 | AT42: 0 | AU42: 0 | AV42: 0 | AW42: 0 | BQ42: 35 | BR42: 51.57142857 | BS42: 7.142857143 | BT42: 33.97142857 | BU42: 63.88571429 | BV42: 23.6 | BW42: 79.05714286 | BX42: 90.91428571 | BY42: 0 | BZ42: 0 | CA42: 0 | CB42: 0 | CC42: 0 | CD42: 0 | CE42: 0 | CG42: 26.68571429 | CH42: 63.91428571 | CI42: 51.57142857 | CJ42: 7.142857143 | CK42: 33.97142857 | CL42: 63.88571429 | CM42: 23.6 | CN42: 79.05714286 | CO42: 90.91428571 | CP42: 0 | CQ42: 0 | CR42: 0 | CS42: 0 | CT42: 0 | CU42: 0 | CV42: 0
B43: 37 | C43: 48.78378378 | D43: 6.756756757 | E43: 32.13513514 | F43: 60.43243243 | G43: 22.32432432 | H43: 74.78378378 | I43: 86 | J43: 0 | K43: 0 | L43: 0 | M43: 0 | N43: 0 | O43: 0 | P43: 0 | R43: 25.24324324 | S43: 60.45945946 | T43: 48.78378378 | U43: 6.756756757 | V43: 32.13513514 | W43: 60.43243243 | X43: 22.32432432 | Y43: 74.78378378 | Z43: 86 | AA43: 0 | AB43: 0 | AC43: 0 | AD43: 0 | AE43: 0 | AF43: 0 | AG43: 0 | AI43: 85.7027027 | AJ43: 48.78378378 | AK43: 6.756756757 | AL43: 32.13513514 | AM43: 60.43243243 | AN43: 22.32432432 | AO43: 74.78378378 | AP43: 86 | AQ43: 0 | AR43: 0 | AS43: 0 | AT43: 0 | AU43: 0 | AV43: 0 | AW43: 0 | BQ43: 36 | BR43: 50.13888889 | BS43: 6.944444444 | BT43: 33.02777778 | BU43: 62.11111111 | BV43: 22.94444444 | BW43: 76.86111111 | BX43: 88.38888889 | BY43: 0 | BZ43: 0 | CA43: 0 | CB43: 0 | CC43: 0 | CD43: 0 | CE43: 0 | CG43: 25.94444444 | CH43: 62.13888889 | CI43: 50.13888889 | CJ43: 6.944444444 | CK43: 33.02777778 | CL43: 62.11111111 | CM43: 22.94444444 | CN43: 76.86111111 | CO43: 88.38888889 | CP43: 0 | CQ43: 0 | CR43: 0 | CS43: 0 | CT43: 0 | CU43: 0 | CV43: 0
B44: 38 | C44: 47.5 | D44: 6.578947368 | E44: 31.28947368 | F44: 58.84210526 | G44: 21.73684211 | H44: 72.81578947 | I44: 83.73684211 | J44: 0 | K44: 0 | L44: 0 | M44: 0 | N44: 0 | O44: 0 | P44: 0 | R44: 24.57894737 | S44: 58.86842105 | T44: 47.5 | U44: 6.578947368 | V44: 31.28947368 | W44: 58.84210526 | X44: 21.73684211 | Y44: 72.81578947 | Z44: 83.73684211 | AA44: 0 | AB44: 0 | AC44: 0 | AD44: 0 | AE44: 0 | AF44: 0 | AG44: 0 | AI44: 83.44736842 | AJ44: 47.5 | AK44: 6.578947368 | AL44: 31.28947368 | AM44: 58.84210526 | AN44: 21.73684211 | AO44: 72.81578947 | AP44: 83.73684211 | AQ44: 0 | AR44: 0 | AS44: 0 | AT44: 0 | AU44: 0 | AV44: 0 | AW44: 0 | BQ44: 37 | BR44: 48.78378378 | BS44: 6.756756757 | BT44: 32.13513514 | BU44: 60.43243243 | BV44: 22.32432432 | BW44: 74.78378378 | BX44: 86 | BY44: 0 | BZ44: 0 | CA44: 0 | CB44: 0 | CC44: 0 | CD44: 0 | CE44: 0 | CG44: 25.24324324 | CH44: 60.45945946 | CI44: 48.78378378 | CJ44: 6.756756757 | CK44: 32.13513514 | CL44: 60.43243243 | CM44: 22.32432432 | CN44: 74.78378378 | CO44: 86 | CP44: 0 | CQ44: 0 | CR44: 0 | CS44: 0 | CT44: 0 | CU44: 0 | CV44: 0
B45: 39 | C45: 46.28205128 | D45: 6.41025641 | E45: 30.48717949 | F45: 57.33333333 | G45: 21.17948718 | H45: 70.94871795 | I45: 81.58974359 | J45: 0 | K45: 0 | L45: 0 | M45: 0 | N45: 0 | O45: 0 | P45: 0 | R45: 23.94871795 | S45: 57.35897436 | T45: 46.28205128 | U45: 6.41025641 | V45: 30.48717949 | W45: 57.33333333 | X45: 21.17948718 | Y45: 70.94871795 | Z45: 81.58974359 | AA45: 0 | AB45: 0 | AC45: 0 | AD45: 0 | AE45: 0 | AF45: 0 | AG45: 0 | AI45: 81.30769231 | AJ45: 46.28205128 | AK45: 6.41025641 | AL45: 30.48717949 | AM45: 57.33333333 | AN45: 21.17948718 | AO45: 70.94871795 | AP45: 81.58974359 | AQ45: 0 | AR45: 0 | AS45: 0 | AT45: 0 | AU45: 0 | AV45: 0 | AW45: 0 | BQ45: 38 | BR45: 47.5 | BS45: 6.578947368 | BT45: 31.28947368 | BU45: 58.84210526 | BV45: 21.73684211 | BW45: 72.81578947 | BX45: 83.73684211 | BY45: 0 | BZ45: 0 | CA45: 0 | CB45: 0 | CC45: 0 | CD45: 0 | CE45: 0 | CG45: 24.57894737 | CH45: 58.86842105 | CI45: 47.5 | CJ45: 6.578947368 | CK45: 31.28947368 | CL45: 58.84210526 | CM45: 21.73684211 | CN45: 72.81578947 | CO45: 83.73684211 | CP45: 0 | CQ45: 0 | CR45: 0 | CS45: 0 | CT45: 0 | CU45: 0 | CV45: 0
B46: 40 | C46: 45.125 | D46: 6.25 | E46: 29.725 | F46: 55.9 | G46: 20.65 | H46: 69.175 | I46: 79.55 | J46: 0 | K46: 0 | L46: 0 | M46: 0 | N46: 0 | O46: 0 | P46: 0 | R46: 23.35 | S46: 55.925 | T46: 45.125 | U46: 6.25 | V46: 29.725 | W46: 55.9 | X46: 20.65 | Y46: 69.175 | Z46: 79.55 | AA46: 0 | AB46: 0 | AC46: 0 | AD46: 0 | AE46: 0 | AF46: 0 | AG46: 0 | AI46: 79.275 | AJ46: 45.125 | AK46: 6.25 | AL46: 29.725 | AM46: 55.9 | AN46: 20.65 | AO46: 69.175 | AP46: 79.55 | AQ46: 0 | AR46: 0 | AS46: 0 | AT46: 0 | AU46: 0 | AV46: 0 | AW46: 0 | BQ46: 39 | BR46: 46.28205128 | BS46: 6.41025641 | BT46: 30.48717949 | BU46: 57.33333333 | BV46: 21.17948718 | BW46: 70.94871795 | BX46: 81.58974359 | BY46: 0 | BZ46: 0 | CA46: 0 | CB46: 0 | CC46: 0 | CD46: 0 | CE46: 0 | CG46: 23.94871795 | CH46: 57.35897436 | CI46: 46.28205128 | CJ46: 6.41025641 | CK46: 30.48717949 | CL46: 57.33333333 | CM46: 21.17948718 | CN46: 70.94871795 | CO46: 81.58974359 | CP46: 0 | CQ46: 0 | CR46: 0 | CS46: 0 | CT46: 0 | CU46: 0 | CV46: 0
B47: 41 | C47: 44.02439024 | D47: 6.097560976 | E47: 29 | F47: 54.53658537 | G47: 20.14634146 | H47: 67.48780488 | I47: 77.6097561 | J47: 0 | K47: 0 | L47: 0 | M47: 0 | N47: 0 | O47: 0 | P47: 0 | R47: 22.7804878 | S47: 54.56097561 | T47: 44.02439024 | U47: 6.097560976 | V47: 29 | W47: 54.53658537 | X47: 20.14634146 | Y47: 67.48780488 | Z47: 77.6097561 | AA47: 0 | AB47: 0 | AC47: 0 | AD47: 0 | AE47: 0 | AF47: 0 | AG47: 0 | AI47: 77.34146341 | AJ47: 44.02439024 | AK47: 6.097560976 | AL47: 29 | AM47: 54.53658537 | AN47: 20.14634146 | AO47: 67.48780488 | AP47: 77.6097561 | AQ47: 0 | AR47: 0 | AS47: 0 | AT47: 0 | AU47: 0 | AV47: 0 | AW47: 0 | BQ47: 40 | BR47: 45.125 | BS47: 6.25 | BT47: 29.725 | BU47: 55.9 | BV47: 20.65 | BW47: 69.175 | BX47: 79.55 | BY47: 0 | BZ47: 0 | CA47: 0 | CB47: 0 | CC47: 0 | CD47: 0 | CE47: 0 | CG47: 23.35 | CH47: 55.925 | CI47: 45.125 | CJ47: 6.25 | CK47: 29.725 | CL47: 55.9 | CM47: 20.65 | CN47: 69.175 | CO47: 79.55 | CP47: 0 | CQ47: 0 | CR47: 0 | CS47: 0 | CT47: 0 | CU47: 0 | CV47: 0
B48: 42 | C48: 42.97619048 | D48: 5.952380952 | E48: 28.30952381 | F48: 53.23809524 | G48: 19.66666667 | H48: 65.88095238 | I48: 75.76190476 | J48: 0 | K48: 0 | L48: 0 | M48: 0 | N48: 0 | O48: 0 | P48: 0 | R48: 22.23809524 | S48: 53.26190476 | T48: 42.97619048 | U48: 5.952380952 | V48: 28.30952381 | W48: 53.23809524 | X48: 19.66666667 | Y48: 65.88095238 | Z48: 75.76190476 | AA48: 0 | AB48: 0 | AC48: 0 | AD48: 0 | AE48: 0 | AF48: 0 | AG48: 0 | AI48: 75.5 | AJ48: 42.97619048 | AK48: 5.952380952 | AL48: 28.30952381 | AM48: 53.23809524 | AN48: 19.66666667 | AO48: 65.88095238 | AP48: 75.76190476 | AQ48: 0 | AR48: 0 | AS48: 0 | AT48: 0 | AU48: 0 | AV48: 0 | AW48: 0 | BQ48: 41 | BR48: 44.02439024 | BS48: 6.097560976 | BT48: 29 | BU48: 54.53658537 | BV48: 20.14634146 | BW48: 67.48780488 | BX48: 77.6097561 | BY48: 0 | BZ48: 0 | CA48: 0 | CB48: 0 | CC48: 0 | CD48: 0 | CE48: 0 | CG48: 22.7804878 | CH48: 54.56097561 | CI48: 44.02439024 | CJ48: 6.097560976 | CK48: 29 | CL48: 54.53658537 | CM48: 20.14634146 | CN48: 67.48780488 | CO48: 77.6097561 | CP48: 0 | CQ48: 0 | CR48: 0 | CS48: 0 | CT48: 0 | CU48: 0 | CV48: 0
B49: 43 | C49: 41.97674419 | D49: 5.813953488 | E49: 27.65116279 | F49: 52 | G49: 19.20930233 | H49: 64.34883721 | I49: 74 | J49: 0 | K49: 0 | L49: 0 | M49: 0 | N49: 0 | O49: 0 | P49: 0 | R49: 21.72093023 | S49: 52.02325581 | T49: 41.97674419 | U49: 5.813953488 | V49: 27.65116279 | W49: 52 | X49: 19.20930233 | Y49: 64.34883721 | Z49: 74 | AA49: 0 | AB49: 0 | AC49: 0 | AD49: 0 | AE49: 0 | AF49: 0 | AG49: 0 | AI49: 73.74418605 | AJ49: 41.97674419 | AK49: 5.813953488 | AL49: 27.65116279 | AM49: 52 | AN49: 19.20930233 | AO49: 64.34883721 | AP49: 74 | AQ49: 0 | AR49: 0 | AS49: 0 | AT49: 0 | AU49: 0 | AV49: 0 | AW49: 0 | BQ49: 42 | BR49: 42.97619048 | BS49: 5.952380952 | BT49: 28.30952381 | BU49: 53.23809524 | BV49: 19.66666667 | BW49: 65.88095238 | BX49: 75.76190476 | BY49: 0 | BZ49: 0 | CA49: 0 | CB49: 0 | CC49: 0 | CD49: 0 | CE49: 0 | CG49: 22.23809524 | CH49: 53.26190476 | CI49: 42.97619048 | CJ49: 5.952380952 | CK49: 28.30952381 | CL49: 53.23809524 | CM49: 19.66666667 | CN49: 65.88095238 | CO49: 75.76190476 | CP49: 0 | CQ49: 0 | CR49: 0 | CS49: 0 | CT49: 0 | CU49: 0 | CV49: 0
B50: 44 | C50: 41.02272727 | D50: 5.681818182 | E50: 27.02272727 | F50: 50.81818182 | G50: 18.77272727 | H50: 62.88636364 | I50: 72.31818182 | J50: 0 | K50: 0 | L50: 0 | M50: 0 | N50: 0 | O50: 0 | P50: 0 | R50: 21.22727273 | S50: 50.84090909 | T50: 41.02272727 | U50: 5.681818182 | V50: 27.02272727 | W50: 50.81818182 | X50: 18.77272727 | Y50: 62.88636364 | Z50: 72.31818182 | AA50: 0 | AB50: 0 | AC50: 0 | AD50: 0 | AE50: 0 | AF50: 0 | AG50: 0 | AI50: 72.06818182 | AJ50: 41.02272727 | AK50: 5.681818182 | AL50: 27.02272727 | AM50: 50.81818182 | AN50: 18.77272727 | AO50: 62.88636364 | AP50: 72.31818182 | AQ50: 0 | AR50: 0 | AS50: 0 | AT50: 0 | AU50: 0 | AV50: 0 | AW50: 0 | BQ50: 43 | BR50: 41.97674419 | BS50: 5.813953488 | BT50: 27.65116279 | BU50: 52 | BV50: 19.20930233 | BW50: 64.34883721 | BX50: 74 | BY50: 0 | BZ50: 0 | CA50: 0 | CB50: 0 | CC50: 0 | CD50: 0 | CE50: 0 | CG50: 21.72093023 | CH50: 52.02325581 | CI50: 41.97674419 | CJ50: 5.813953488 | CK50: 27.65116279 | CL50: 52 | CM50: 19.20930233 | CN50: 64.34883721 | CO50: 74 | CP50: 0 | CQ50: 0 | CR50: 0 | CS50: 0 | CT50: 0 | CU50: 0 | CV50: 0
B51: 45 | C51: 40.11111111 | D51: 5.555555556 | E51: 26.42222222 | F51: 49.68888889 | G51: 18.35555556 | H51: 61.48888889 | I51: 70.71111111 | J51: 0 | K51: 0 | L51: 0 | M51: 0 | N51: 0 | O51: 0 | P51: 0 | R51: 20.75555556 | S51: 49.71111111 | T51: 40.11111111 | U51: 5.555555556 | V51: 26.42222222 | W51: 49.68888889 | X51: 18.35555556 | Y51: 61.48888889 | Z51: 70.71111111 | AA51: 0 | AB51: 0 | AC51: 0 | AD51: 0 | AE51: 0 | AF51: 0 | AG51: 0 | AI51: 70.46666667 | AJ51: 40.11111111 | AK51: 5.555555556 | AL51: 26.42222222 | AM51: 49.68888889 | AN51: 18.35555556 | AO51: 61.48888889 | AP51: 70.71111111 | AQ51: 0 | AR51: 0 | AS51: 0 | AT51: 0 | AU51: 0 | AV51: 0 | AW51: 0 | BQ51: 44 | BR51: 41.02272727 | BS51: 5.681818182 | BT51: 27.02272727 | BU51: 50.81818182 | BV51: 18.77272727 | BW51: 62.88636364 | BX51: 72.31818182 | BY51: 0 | BZ51: 0 | CA51: 0 | CB51: 0 | CC51: 0 | CD51: 0 | CE51: 0 | CG51: 21.22727273 | CH51: 50.84090909 | CI51: 41.02272727 | CJ51: 5.681818182 | CK51: 27.02272727 | CL51: 50.81818182 | CM51: 18.77272727 | CN51: 62.88636364 | CO51: 72.31818182 | CP51: 0 | CQ51: 0 | CR51: 0 | CS51: 0 | CT51: 0 | CU51: 0 | CV51: 0
B52: 46 | C52: 39.23913043 | D52: 5.434782609 | E52: 25.84782609 | F52: 48.60869565 | G52: 17.95652174 | H52: 60.15217391 | I52: 69.17391304 | J52: 0 | K52: 0 | L52: 0 | M52: 0 | N52: 0 | O52: 0 | P52: 0 | R52: 20.30434783 | S52: 48.63043478 | T52: 39.23913043 | U52: 5.434782609 | V52: 25.84782609 | W52: 48.60869565 | X52: 17.95652174 | Y52: 60.15217391 | Z52: 69.17391304 | AA52: 0 | AB52: 0 | AC52: 0 | AD52: 0 | AE52: 0 | AF52: 0 | AG52: 0 | AI52: 68.93478261 | AJ52: 39.23913043 | AK52: 5.434782609 | AL52: 25.84782609 | AM52: 48.60869565 | AN52: 17.95652174 | AO52: 60.15217391 | AP52: 69.17391304 | AQ52: 0 | AR52: 0 | AS52: 0 | AT52: 0 | AU52: 0 | AV52: 0 | AW52: 0 | BQ52: 45 | BR52: 40.11111111 | BS52: 5.555555556 | BT52: 26.42222222 | BU52: 49.68888889 | BV52: 18.35555556 | BW52: 61.48888889 | BX52: 70.71111111 | BY52: 0 | BZ52: 0 | CA52: 0 | CB52: 0 | CC52: 0 | CD52: 0 | CE52: 0 | CG52: 20.75555556 | CH52: 49.71111111 | CI52: 40.11111111 | CJ52: 5.555555556 | CK52: 26.42222222 | CL52: 49.68888889 | CM52: 18.35555556 | CN52: 61.48888889 | CO52: 70.71111111 | CP52: 0 | CQ52: 0 | CR52: 0 | CS52: 0 | CT52: 0 | CU52: 0 | CV52: 0
B53: 47 | C53: 38.40425532 | D53: 5.319148936 | E53: 25.29787234 | F53: 47.57446809 | G53: 17.57446809 | H53: 58.87234043 | I53: 67.70212766 | J53: 0 | K53: 0 | L53: 0 | M53: 0 | N53: 0 | O53: 0 | P53: 0 | R53: 19.87234043 | S53: 47.59574468 | T53: 38.40425532 | U53: 5.319148936 | V53: 25.29787234 | W53: 47.57446809 | X53: 17.57446809 | Y53: 58.87234043 | Z53: 67.70212766 | AA53: 0 | AB53: 0 | AC53: 0 | AD53: 0 | AE53: 0 | AF53: 0 | AG53: 0 | AI53: 67.46808511 | AJ53: 38.40425532 | AK53: 5.319148936 | AL53: 25.29787234 | AM53: 47.57446809 | AN53: 17.57446809 | AO53: 58.87234043 | AP53: 67.70212766 | AQ53: 0 | AR53: 0 | AS53: 0 | AT53: 0 | AU53: 0 | AV53: 0 | AW53: 0 | BQ53: 46 | BR53: 39.23913043 | BS53: 5.434782609 | BT53: 25.84782609 | BU53: 48.60869565 | BV53: 17.95652174 | BW53: 60.15217391 | BX53: 69.17391304 | BY53: 0 | BZ53: 0 | CA53: 0 | CB53: 0 | CC53: 0 | CD53: 0 | CE53: 0 | CG53: 20.30434783 | CH53: 48.63043478 | CI53: 39.23913043 | CJ53: 5.434782609 | CK53: 25.84782609 | CL53: 48.60869565 | CM53: 17.95652174 | CN53: 60.15217391 | CO53: 69.17391304 | CP53: 0 | CQ53: 0 | CR53: 0 | CS53: 0 | CT53: 0 | CU53: 0 | CV53: 0
B54: 48 | C54: 37.60416667 | D54: 5.208333333 | E54: 24.77083333 | F54: 46.58333333 | G54: 17.20833333 | H54: 57.64583333 | I54: 66.29166667 | J54: =$J$6/B54 -> 0 | K54: 0 | L54: 0 | M54: 0 | N54: 0 | O54: 0 | P54: 0 | R54: 19.45833333 | S54: 46.60416667 | T54: 37.60416667 | U54: 5.208333333 | V54: 24.77083333 | W54: 46.58333333 | X54: 17.20833333 | Y54: 57.64583333 | Z54: 66.29166667 | AA54: 0 | AB54: 0 | AC54: 0 | AD54: 0 | AE54: 0 | AF54: 0 | AG54: 0 | AI54: 66.0625 | AJ54: 37.60416667 | AK54: 5.208333333 | AL54: 24.77083333 | AM54: 46.58333333 | AN54: 17.20833333 | AO54: 57.64583333 | AP54: 66.29166667 | AQ54: 0 | AR54: 0 | AS54: 0 | AT54: 0 | AU54: 0 | AV54: 0 | AW54: 0 | BQ54: 47 | BR54: 38.40425532 | BS54: 5.319148936 | BT54: 25.29787234 | BU54: 47.57446809 | BV54: 17.57446809 | BW54: 58.87234043 | BX54: 67.70212766 | BY54: 0 | BZ54: 0 | CA54: 0 | CB54: 0 | CC54: 0 | CD54: 0 | CE54: 0 | CG54: 19.87234043 | CH54: 47.59574468 | CI54: 38.40425532 | CJ54: 5.319148936 | CK54: 25.29787234 | CL54: 47.57446809 | CM54: 17.57446809 | CN54: 58.87234043 | CO54: 67.70212766 | CP54: 0 | CQ54: 0 | CR54: 0 | CS54: 0 | CT54: 0 | CU54: 0 | CV54: 0
B55: 49 | C55: 36.83673469 | D55: 5.102040816 | E55: 24.26530612 | F55: 45.63265306 | G55: 16.85714286 | H55: 56.46938776 | I55: 64.93877551 | J55: 0 | K55: 0 | L55: 0 | M55: 0 | N55: 0 | O55: 0 | P55: 0 | R55: 19.06122449 | S55: 45.65306122 | T55: 36.83673469 | U55: 5.102040816 | V55: 24.26530612 | W55: 45.63265306 | X55: 16.85714286 | Y55: 56.46938776 | Z55: 64.93877551 | AA55: 0 | AB55: 0 | AC55: 0 | AD55: 0 | AE55: 0 | AF55: 0 | AG55: =P55 -> 0 | AI55: 64.71428571 | AJ55: 36.83673469 | AK55: 5.102040816 | AL55: 24.26530612 | AM55: 45.63265306 | AN55: 16.85714286 | AO55: 56.46938776 | AP55: 64.93877551 | AQ55: 0 | AR55: 0 | AS55: 0 | AT55: 0 | AU55: 0 | AV55: 0 | AW55: 0 | BQ55: 48 | BR55: 37.60416667 | BS55: 5.208333333 | BT55: 24.77083333 | BU55: 46.58333333 | BV55: 17.20833333 | BW55: 57.64583333 | BX55: 66.29166667 | BY55: 0 | BZ55: 0 | CA55: 0 | CB55: 0 | CC55: 0 | CD55: 0 | CE55: 0 | CG55: 19.45833333 | CH55: 46.60416667 | CI55: 37.60416667 | CJ55: 5.208333333 | CK55: 24.77083333 | CL55: 46.58333333 | CM55: 17.20833333 | CN55: 57.64583333 | CO55: 66.29166667 | CP55: 0 | CQ55: 0 | CR55: 0 | CS55: 0 | CT55: 0 | CU55: 0 | CV55: 0
B56: 50 | C56: 36.1 | D56: 5 | E56: 23.78 | F56: 44.72 | G56: 16.52 | H56: 55.34 | I56: 63.64 | J56: 0 | K56: 0 | L56: 0 | M56: 0 | N56: 0 | O56: 0 | P56: 0 | R56: 18.68 | S56: 44.74 | T56: 36.1 | U56: 5 | V56: 23.78 | W56: 44.72 | X56: 16.52 | Y56: 55.34 | Z56: 63.64 | AA56: 0 | AB56: 0 | AC56: 0 | AD56: =M56 -> 0 | AE56: 0 | AF56: 0 | AG56: 0 | AI56: 63.42 | AJ56: 36.1 | AK56: 5 | AL56: 23.78 | AM56: 44.72 | AN56: 16.52 | AO56: 55.34 | AP56: 63.64 | AQ56: 0 | AR56: 0 | AS56: 0 | AT56: 0 | AU56: =N56 -> 0 | AV56: 0 | AW56: 0 | BQ56: 49 | BR56: 36.83673469 | BS56: 5.102040816 | BT56: 24.26530612 | BU56: 45.63265306 | BV56: 16.85714286 | BW56: 56.46938776 | BX56: 64.93877551 | BY56: 0 | BZ56: 0 | CA56: 0 | CB56: 0 | CC56: 0 | CD56: 0 | CE56: 0 | CG56: 19.06122449 | CH56: 45.65306122 | CI56: 36.83673469 | CJ56: 5.102040816 | CK56: 24.26530612 | CL56: 45.63265306 | CM56: 16.85714286 | CN56: 56.46938776 | CO56: 64.93877551 | CP56: 0 | CQ56: 0 | CR56: 0 | CS56: 0 | CT56: 0 | CU56: 0 | CV56: 0
B57: 51 | C57: 35.39215686 | D57: 4.901960784 | E57: 23.31372549 | F57: 43.84313725 | G57: 16.19607843 | H57: 54.25490196 | I57: 62.39215686 | J57: 0 | K57: 0 | L57: 0 | M57: 0 | N57: 0 | O57: 0 | P57: 0 | R57: 18.31372549 | S57: 43.8627451 | T57: 35.39215686 | U57: 4.901960784 | V57: 23.31372549 | W57: 43.84313725 | X57: 16.19607843 | Y57: 54.25490196 | Z57: 62.39215686 | AA57: 0 | AB57: 0 | AC57: 0 | AD57: 0 | AE57: 0 | AF57: 0 | AG57: 0 | AI57: 62.17647059 | AJ57: 35.39215686 | AK57: 4.901960784 | AL57: 23.31372549 | AM57: 43.84313725 | AN57: 16.19607843 | AO57: 54.25490196 | AP57: 62.39215686 | AQ57: 0 | AR57: 0 | AS57: 0 | AT57: 0 | AU57: 0 | AV57: 0 | AW57: 0 | BQ57: 50 | BR57: 36.1 | BS57: 5 | BT57: 23.78 | BU57: 44.72 | BV57: 16.52 | BW57: 55.34 | BX57: 63.64 | BY57: 0 | BZ57: 0 | CA57: 0 | CB57: 0 | CC57: 0 | CD57: 0 | CE57: 0 | CG57: 18.68 | CH57: 44.74 | CI57: 36.1 | CJ57: 5 | CK57: 23.78 | CL57: 44.72 | CM57: 16.52 | CN57: 55.34 | CO57: 63.64 | CP57: 0 | CQ57: 0 | CR57: 0 | CS57: 0 | CT57: 0 | CU57: 0 | CV57: 0
B58: 52 | C58: 34.71153846 | D58: 4.807692308 | E58: 22.86538462 | F58: 43 | G58: 15.88461538 | H58: 53.21153846 | I58: 61.19230769 | J58: 0 | K58: 0 | L58: 0 | M58: 0 | N58: 0 | O58: 0 | P58: 0 | R58: 17.96153846 | S58: 43.01923077 | T58: 34.71153846 | U58: 4.807692308 | V58: 22.86538462 | W58: 43 | X58: 15.88461538 | Y58: 53.21153846 | Z58: 61.19230769 | AA58: 0 | AB58: 0 | AC58: 0 | AD58: 0 | AE58: 0 | AF58: 0 | AG58: 0 | AI58: 60.98076923 | AJ58: 34.71153846 | AK58: 4.807692308 | AL58: 22.86538462 | AM58: 43 | AN58: 15.88461538 | AO58: 53.21153846 | AP58: 61.19230769 | AQ58: 0 | AR58: 0 | AS58: 0 | AT58: 0 | AU58: 0 | AV58: 0 | AW58: 0 | BQ58: 51 | BR58: 35.39215686 | BS58: 4.901960784 | BT58: 23.31372549 | BU58: 43.84313725 | BV58: 16.19607843 | BW58: 54.25490196 | BX58: 62.39215686 | BY58: 0 | BZ58: 0 | CA58: 0 | CB58: 0 | CC58: 0 | CD58: 0 | CE58: 0 | CG58: 18.31372549 | CH58: 43.8627451 | CI58: 35.39215686 | CJ58: 4.901960784 | CK58: 23.31372549 | CL58: 43.84313725 | CM58: 16.19607843 | CN58: 54.25490196 | CO58: 62.39215686 | CP58: 0 | CQ58: 0 | CR58: 0 | CS58: 0 | CT58: 0 | CU58: 0 | CV58: 0
B59: 53 | C59: =$C$6/B59 -> 34.05660377 | D59: =$D$6/B59 -> 4.716981132 | E59: =$E$6/B59 -> 22.43396226 | F59: =$F$6/B59 -> 42.18867925 | G59: =$G$6/B59 -> 15.58490566 | H59: =$H$6/B59 -> 52.20754717 | I59: =$I$6/B59 -> 60.03773585 | J59: 0 | K59: =$K$6/B59 -> 0 | L59: =$L$6/B59 -> 0 | M59: 0 | N59: 0 | O59: 0 | P59: =$P$6/B59 -> 0 | R59: =$R$6/B59 -> 17.62264151 | S59: =$S$6/B59 -> 42.20754717 | T59: 34.05660377 | U59: 4.716981132 | V59: 22.43396226 | W59: 42.18867925 | X59: 15.58490566 | Y59: 52.20754717 | Z59: 60.03773585 | AA59: 0 | AB59: 0 | AC59: 0 | AD59: 0 | AE59: 0 | AF59: 0 | AG59: 0 | AI59: =$AI$6/B59 -> 59.83018868 | AJ59: 34.05660377 | AK59: 4.716981132 | AL59: 22.43396226 | AM59: 42.18867925 | AN59: 15.58490566 | AO59: 52.20754717 | AP59: 60.03773585 | AQ59: 0 | AR59: 0 | AS59: 0 | AT59: 0 | AU59: 0 | AV59: 0 | AW59: 0 | BQ59: 52 | BR59: =$C$6/BQ59 -> 34.71153846 | BS59: =$D$6/BQ59 -> 4.807692308 | BT59: =$E$6/BQ59 -> 22.86538462 | BU59: =$F$6/BQ59 -> 43 | BV59: =$G$6/BQ59 -> 15.88461538 | BW59: =$H$6/BQ59 -> 53.21153846 | BX59: =$I$6/BQ59 -> 61.19230769 | BY59: 0 | BZ59: =$K$6/BQ59 -> 0 | CA59: =$L$6/BQ59 -> 0 | CB59: 0 | CC59: 0 | CD59: 0 | CE59: =$P$6/BQ59 -> 0 | CG59: =$R$6/BQ59 -> 17.96153846 | CH59: =$S$6/BQ59 -> 43.01923077 | CI59: 34.71153846 | CJ59: 4.807692308 | CK59: 22.86538462 | CL59: 43 | CM59: 15.88461538 | CN59: 53.21153846 | CO59: 61.19230769 | CP59: 0 | CQ59: 0 | CR59: 0 | CS59: 0 | CT59: 0 | CU59: 0 | CV59: 0
B60: 54 | C60: =$C$6/B60 -> 33.42592593 | D60: =$D$6/B60 -> 4.62962963 | E60: =$E$6/B60 -> 22.01851852 | F60: =$F$6/B60 -> 41.40740741 | G60: =$G$6/B60 -> 15.2962963 | H60: =$H$6/B60 -> 51.24074074 | I60: =$I$6/B60 -> 58.92592593 | J60: 0 | K60: =$K$6/B60 -> 0 | L60: =$L$6/B60 -> 0 | M60: 0 | N60: =$N$6/B60 -> 0 | O60: 0 | P60: =$P$6/B60 -> 0 | R60: =$R$6/B60 -> 17.2962963 | S60: =$S$6/B60 -> 41.42592593 | T60: 33.42592593 | U60: 4.62962963 | V60: 22.01851852 | W60: 41.40740741 | X60: 15.2962963 | Y60: 51.24074074 | Z60: 58.92592593 | AA60: 0 | AB60: 0 | AC60: 0 | AD60: 0 | AE60: 0 | AF60: 0 | AG60: 0 | AI60: =$AI$6/B60 -> 58.72222222 | AJ60: 33.42592593 | AK60: 4.62962963 | AL60: 22.01851852 | AM60: 41.40740741 | AN60: 15.2962963 | AO60: 51.24074074 | AP60: 58.92592593 | AQ60: 0 | AR60: 0 | AS60: 0 | AT60: 0 | AU60: 0 | AV60: 0 | AW60: 0 | BQ60: 53 | BR60: =$C$6/BQ60 -> 34.05660377 | BS60: =$D$6/BQ60 -> 4.716981132 | BT60: =$E$6/BQ60 -> 22.43396226 | BU60: =$F$6/BQ60 -> 42.18867925 | BV60: =$G$6/BQ60 -> 15.58490566 | BW60: =$H$6/BQ60 -> 52.20754717 | BX60: =$I$6/BQ60 -> 60.03773585 | BY60: 0 | BZ60: =$K$6/BQ60 -> 0 | CA60: =$L$6/BQ60 -> 0 | CB60: 0 | CC60: =$N$6/BQ60 -> 0 | CD60: 0 | CE60: =$P$6/BQ60 -> 0 | CG60: =$R$6/BQ60 -> 17.62264151 | CH60: =$S$6/BQ60 -> 42.20754717 | CI60: 34.05660377 | CJ60: 4.716981132 | CK60: 22.43396226 | CL60: 42.18867925 | CM60: 15.58490566 | CN60: 52.20754717 | CO60: 60.03773585 | CP60: 0 | CQ60: 0 | CR60: 0 | CS60: 0 | CT60: 0 | CU60: 0 | CV60: 0
B63: Nombre d'inscrits | C63: 15426
B64: Bulletins déposés | C64: 13189
B65: Blancs & Nuls | C65: 934
B66: Votes valables | C66: 12255
B67: Nombre de sièges | C67: 27
B72: Liste unique Majorité absolue | C72: =SUM($C$73:$P$73) -> 0 | R72: =SUM($R$73:$AG$73) -> 0 | AI72: =SUM($AI$73:$AW$73) -> 0
C73: =IF(C7>($C$67/2),1,0) -> 0 | D73: =IF(D7>($C$67/2),1,0) -> 0 | E73: =IF(E7>($C$67/2),1,0) -> 0 | F73: =IF(F7>($C$67/2),1,0) -> 0 | G73: =IF(G7>($C$67/2),1,0) -> 0 | H73: =IF(H7>($C$67/2),1,0) -> 0 | I73: =IF(I7>($C$67/2),1,0) -> 0 | J73: =IF(J7>($C$67/2),1,0) -> 0 | K73: =IF(K7>($C$67/2),1,0) -> 0 | L73: =IF(L7>($C$67/2),1,0) -> 0 | M73: =IF(M7>($C$67/2),1,0) -> 0 | N73: =IF(N7>($C$67/2),1,0) -> 0 | O73: =IF(O7>($C$67/2),1,0) -> 0 | P73: =IF(P7>($C$67/2),1,0) -> 0 | R73: =IF(R7>($C$67/2),1,0) -> 0 | S73: =IF(S7>($C$67/2),1,0) -> 0 | T73: =IF(T7>($C$67/2),1,0) -> 0 | U73: =IF(U7>($C$67/2),1,0) -> 0 | V73: =IF(V7>($C$67/2),1,0) -> 0 | W73: =IF(W7>($C$67/2),1,0) -> 0 | X73: =IF(X7>($C$67/2),1,0) -> 0 | Y73: =IF(Y7>($C$67/2),1,0) -> 0 | Z73: =IF(Z7>($C$67/2),1,0) -> 0 | AA73: =IF(AA7>($C$67/2),1,0) -> 0 | AB73: =IF(AB7>($C$67/2),1,0) -> 0 | AC73: =IF(AC7>($C$67/2),1,0) -> 0 | AD73: =IF(AD7>($C$67/2),1,0) -> 0 | AE73: =IF(AE7>($C$67/2),1,0) -> 0 | AF73: =IF(AF7>($C$67/2),1,0) -> 0 | AG73: =IF(AG7>($C$67/2),1,0) -> 0 | AI73: =IF(AI7>($C$67/2),1,0) -> 0 | AJ73: =IF(AJ7>($C$67/2),1,0) -> 0 | AK73: =IF(AK7>($C$67/2),1,0) -> 0 | AL73: =IF(AL7>($C$67/2),1,0) -> 0 | AM73: =IF(AM7>($C$67/2),1,0) -> 0 | AN73: =IF(AN7>($C$67/2),1,0) -> 0 | AO73: =IF(AO7>($C$67/2),1,0) -> 0 | AP73: =IF(AP7>($C$67/2),1,0) -> 0 | AQ73: =IF(AQ7>($C$67/2),1,0) -> 0 | AR73: =IF(AR7>($C$67/2),1,0) -> 0 | AS73: =IF(AS7>($C$67/2),1,0) -> 0 | AT73: =IF(AT7>($C$67/2),1,0) -> 0 | AU73: =IF(AU7>($C$67/2),1,0) -> 0 | AV73: =IF(AV7>($C$67/2),1,0) -> 0 | AW73: =IF(AW7>($C$67/2),1,0) -> 0
B75: Liste unique Majorité absolue nombre de voix | C75: =SUM($C$76:$P$76) -> 0 | R75: =SUM(R76:AG76) -> 0 | AI75: =SUM(AI76:AW76) -> 0
C76: =IF(C73>0,C6,0) -> 0 | D76: =IF(D73>0,D6,0) -> 0 | E76: =IF(E73>0,E6,0) -> 0 | F76: =IF(F73>0,F6,0) -> 0 | G76: =IF(G73>0,G6,0) -> 0 | H76: =IF(H73>0,H6,0) -> 0 | I76: =IF(I73>0,I6,0) -> 0 | J76: =IF(J73>0,J6,0) -> 0 | K76: =IF(K73>0,K6,0) -> 0 | L76: =IF(L73>0,L6,0) -> 0 | M76: =IF(M73>0,M6,0) -> 0 | N76: =IF(N73>0,N6,0) -> 0 | O76: =IF(O73>0,O6,0) -> 0 | P76: =IF(P73>0,P6,0) -> 0 | R76: =IF(R73>0,R6,0) -> 0 | S76: =IF(S73>0,S6,0) -> 0 | T76: =IF(T73>0,T6,0) -> 0 | U76: =IF(U73>0,U6,0) -> 0 | V76: =IF(V73>0,V6,0) -> 0 | W76: =IF(W73>0,W6,0) -> 0 | X76: =IF(X73>0,X6,0) -> 0 | Y76: =IF(Y73>0,Y6,0) -> 0 | Z76: =IF(Z73>0,Z6,0) -> 0 | AA76: =IF(AA73>0,AA6,0) -> 0 | AB76: =IF(AB73>0,AB6,0) -> 0 | AC76: =IF(AC73>0,AC6,0) -> 0 | AD76: =IF(AD73>0,AD6,0) -> 0 | AE76: =IF(AE73>0,AE6,0) -> 0 | AF76: =IF(AF73>0,AF6,0) -> 0 | AG76: =IF(AG73>0,AG6,0) -> 0 | AI76: =IF(AI73>0,AI6,0) -> 0 | AJ76: =IF(AJ73>0,AJ6,0) -> 0 | AK76: =IF(AK73>0,AK6,0) -> 0 | AL76: =IF(AL73>0,AL6,0) -> 0 | AM76: =IF(AM73>0,AM6,0) -> 0 | AN76: =IF(AN73>0,AN6,0) -> 0 | AO76: =IF(AO73>0,AO6,0) -> 0 | AP76: =IF(AP73>0,AP6,0) -> 0 | AQ76: =IF(AQ73>0,AQ6,0) -> 0 | AR76: =IF(AR73>0,AR6,0) -> 0 | AS76: =IF(AS73>0,AS6,0) -> 0 | AT76: =IF(AT73>0,AT6,0) -> 0 | AU76: =IF(AU73>0,AU6,0) -> 0 | AV76: =IF(AV73>0,AV6,0) -> 0 | AW76: =IF(AW73>0,AW6,0) -> 0
B78: Nbr voix Coalition | C78: =SUMIF(C4:P4,"x",C6:P6) -> 7223
B80: % Coalition | C80: =100/C63*C78 -> 46.82354466
B81: % Majorité | C81: =100/C63*C75 -> 0
B83: Coalition | C83: =COUNTA(C4:P4) -> 3 | D83: =IF(C83>0,1,0) -> 1
P96: BERCHEM-SAINTE-AGATHE
R98: =R5 -> Blancs & Nuls | S98: =S5 -> Non-déposés | T98: =T5 -> ECOLO-GROEN | U98: =U5 -> VLAAMS BELANG | V98: =V5 -> DéFI | W98: =W5 -> PS-sp.a+ | X98: =X5 -> N-VA | Y98: =Y5 -> Open MR | Z98: =Z5 -> LBR | AA98: =AA5 -> 0 | AB98: =AB5 -> 0 | AC98: =AC5 -> 0 | AD98: =AD5 -> 0 | AE98: =AE5 -> 0 | AF98: =AF5 -> 0 | AG98: =AG5 -> 0
P99: Chiffres électoraux | R99: =R6 -> 934 | S99: =S6 -> 2237 | T99: =T6 -> 1805 | U99: =U6 -> 250 | V99: =V6 -> 1189 | W99: =W6 -> 2236 | X99: =X6 -> 826 | Y99: =Y6 -> 2767 | Z99: =Z6 -> 3182 | AA99: =AA6 -> 0 | AB99: =AB6 -> 0 | AC99: =AC6 -> 0 | AD99: =AD6 -> 0 | AE99: =AE6 -> 0 | AF99: =AF6 -> 0 | AG99: =AG6 -> 0
P100: Impériali | R100: 0 | S100: 0 | T100: =C7 -> 4 | U100: =D7 -> 0 | V100: =E7 -> 2 | W100: =F7 -> 5 | X100: =G7 -> 1 | Y100: =H7 -> 7 | Z100: =I7 -> 8 | AA100: =J7 -> 0 | AB100: =K7 -> 0 | AC100: =L7 -> 0 | AD100: =M7 -> 0 | AE100: =N7 -> 0 | AF100: =O7 -> 0 | AG100: =P7 -> 0
P101: Impériali + proportionnelle | R101: =R7 -> 1 | S101: =S7 -> 4 | T101: =T7 -> 3 | U101: =U7 -> 0 | V101: =V7 -> 2 | W101: =W7 -> 4 | X101: =X7 -> 1 | Y101: =Y7 -> 5 | Z101: =Z7 -> 7 | AA101: =AA7 -> 0 | AB101: =AB7 -> 0 | AC101: =AC7 -> 0 | AD101: =AD7 -> 0 | AE101: =AE7 -> 0 | AF101: =AF7 -> 0 | AG101: =AG7 -> 0
P102: D'Hondt | R102: 0 | S102: 0 | T102: =BR7 -> 4 | U102: =BS7 -> 0 | V102: =BT7 -> 2 | W102: =BU7 -> 5 | X102: =BV7 -> 2 | Y102: =BW7 -> 6 | Z102: =BX7 -> 8 | AA102: =BY7 -> 0 | AB102: =BZ7 -> 0 | AC102: =CA7 -> 0 | AD102: =CB7 -> 0 | AE102: =CC7 -> 0 | AF102: =CD7 -> 0 | AG102: =CE7 -> 0
P103: D'Hondt + proportionnelle | R103: =CG7 -> 2 | S103: =CH7 -> 4 | T103: =CI7 -> 3 | U103: =CJ7 -> 0 | V103: =CK7 -> 2 | W103: =CL7 -> 4 | X103: =CM7 -> 1 | Y103: =CN7 -> 5 | Z103: =CO7 -> 6 | AA103: =CP7 -> 0 | AB103: =CQ7 -> 0 | AC103: =CR7 -> 0 | AD103: =CS7 -> 0 | AE103: =CT7 -> 0 | AF103: =CU7 -> 0 | AG103: =CV7 -> 0
P104: Proportionnelle pure | R104: =AZ7 -> 1.634772462 | S104: =BA7 -> 3.915402567 | T104: =BB7 -> 3.159276546 | U104: =BC7 -> 0.4375729288 | V104: =BD7 -> 2.081096849 | W104: =BE7 -> 3.913652275 | X104: =BF7 -> 1.445740957 | Y104: =BG7 -> 4.843057176 | Z104: =BH7 -> 5.569428238 | AA104: =BI7 -> 0 | AB104: =BJ7 -> 0 | AC104: =BK7 -> 0 | AD104: =BL7 -> 0 | AE104: =BM7 -> 0 | AF104: =BN7 -> 0 | AG104: =BO7 -> 0
Q106: Nombre de sièges à distribuer : | U106: =C67 -> 27 | W106: Est-ce une liste unique en majorité absolue en termes de sièges ? | AD106: =IF(C72>0,"Oui","Non") -> Non
Q108: Nombre d'inscrits : | U108: =C63 -> 15426 | W108: Est-ce une liste unique en majorité absolue en termes de voix ? | AD108: =IF(C75>0,"Oui","Non") -> Non
Q110: Nombre de bulletins déposés : | U110: =C64 -> 13189 | W110: La majorité est-elle formée par une coalition ? | AD110: =IF(B4>0,"Oui","Non") -> Oui
Q112: Nombre de votes valables : | U112: =C66 -> 12255 | W112: Quelle est la proportion de l'électorat représentée par la majorité ? | AD112: =IF(D83>0,C80,C81) -> 46.82354466
P114: Comparaison Clef Impériali - Clef D'Hondt | R114: =R100-R102 -> 0 | S114: =S100-S102 -> 0 | T114: 0 | U114: 0 | V114: 0 | W114: 0 | X114: -1 | Y114: 1 | Z114: 0 | AA114: 0 | AB114: 0 | AC114: 0 | AD114: 0 | AE114: 0 | AF114: 0 | AG114: 0

Sheet BRUXELLES
B2: IMPÉRIALI | AY2: PROPORTIONNELLE PURE | BQ2: D'HONDT
B4: Coalition | D4: x | F4: x | G4: x
B5: =COUNTA(C5:P5) -> 14 | C5: CDH-CD&V+ | D5: ECOLO-GROEN | E5: VLAAMS BELANG | F5: DéFI | G5: PS | H5: MR-VLD | I5: N-VA | J5: PTB*PVDA | K5: Change.Brussels | L5: PLAN B | M5: CITOYEN D'EUROPE M3E | N5: ISLAM | O5: LA DROITE | P5: SALEM | R5: Blancs & Nuls | S5: Non-déposés | T5: =C5 -> CDH-CD&V+ | U5: ECOLO-GROEN | V5: VLAAMS BELANG | W5: DéFI | X5: PS | AI5: Non-valables | AJ5: =C5 -> CDH-CD&V+ | AK5: ECOLO-GROEN | AL5: VLAAMS BELANG | AM5: DéFI | AN5: PS | AY5: New Key | AZ5: Blancs & Nuls | BA5: Non-déposés | BB5: =C5 -> CDH-CD&V+ | BC5: =D5 -> ECOLO-GROEN | BD5: VLAAMS BELANG | BE5: DéFI | BF5: PS | BG5: MR-VLD | BH5: N-VA | BI5: PTB*PVDA | BJ5: Change.Brussels | BK5: PLAN B | BL5: CITOYEN D'EUROPE M3E | BM5: ISLAM | BN5: LA DROITE | BO5: SALEM | BR5: =C5 -> CDH-CD&V+ | BS5: =D5 -> ECOLO-GROEN | BT5: VLAAMS BELANG | BU5: DéFI | BV5: PS | BW5: MR-VLD | BX5: N-VA | BY5: PTB*PVDA | BZ5: Change.Brussels | CA5: PLAN B | CB5: CITOYEN D'EUROPE M3E | CC5: ISLAM | CD5: LA DROITE | CE5: SALEM | CG5: Blancs & Nuls | CH5: Non-déposés | CI5: =C5 -> CDH-CD&V+ | CJ5: =D5 -> ECOLO-GROEN | CK5: VLAAMS BELANG | CL5: DéFI | CM5: PS | CN5: MR-VLD | CO5: N-VA | CP5: PTB*PVDA | CQ5: Change.Brussels | CR5: PLAN B | CS5: CITOYEN D'EUROPE M3E | CT5: ISLAM | CU5: LA DROITE | CV5: SALEM
B6: Chiffres électoraux | C6: 6543 | D6: 11847 | E6: 1138 | F6: 5317 | G6: 19997 | H6: 9772 | I6: 2606 | J6: 8159 | K6: 2269 | L6: 612 | M6: 204 | N6: 1125 | O6: 487 | P6: 391 | R6: =C65 -> 4139 | S6: =C63-C64 -> 15443 | T6: 6543 | U6: 11847 | V6: 1138 | W6: 5317 | X6: 19997 | AI6: =R6+S6 -> 19582 | AJ6: 6543 | AK6: 11847 | AL6: 1138 | AM6: 5317 | AN6: 19997 | AZ6: =C65 -> 4139 | BA6: =C63-C64 -> 15443 | BB6: =C6 -> 6543 | BC6: 11847 | BD6: 1138 | BE6: 5317 | BF6: 19997 | BG6: 9772 | BH6: 2606 | BI6: 8159 | BJ6: 2269 | BK6: 612 | BL6: 204 | BM6: 1125 | BN6: 487 | BO6: 391 | BQ6: Chiffres électoraux | BR6: =C6 -> 6543 | BS6: 11847 | BT6: 1138 | BU6: 5317 | BV6: 19997 | BW6: 9772 | BX6: 2606 | BY6: 8159 | BZ6: 2269 | CA6: 612 | CB6: 204 | CC6: 1125 | CD6: 487 | CE6: 391 | CG6: =C65 -> 4139 | CH6: =C63-C64 -> 15443 | CI6: =C6 -> 6543 | CJ6: 11847 | CK6: 1138 | CL6: 5317 | CM6: 19997 | CN6: 9772 | CO6: 2606 | CP6: 8159 | CQ6: 2269 | CR6: 612 | CS6: 204 | CT6: 1125 | CU6: 487 | CV6: 391
B7: Sièges | C7: 5 | D7: 9 | E7: 0 | F7: 3 | G7: 17 | H7: 7 | I7: 1 | J7: 6 | K7: 1 | L7: 0 | M7: 0 | N7: 0 | O7: 0 | P7: 0 | R7: 2 | S7: 10 | T7: 3 | U7: 7 | V7: 0 | W7: 2 | X7: 14 | Y7: 6 | Z7: 0 | AA7: 5 | AB7: 0 | AC7: 0 | AD7: 0 | AE7: 0 | AF7: 0 | AG7: 0 | AI7: 13 | AJ7: 3 | AK7: 7 | AL7: 0 | AM7: 2 | AN7: 13 | AO7: 6 | AP7: 0 | AQ7: 5 | AR7: 0 | AS7: 0 | AT7: 0 | AU7: 0 | AV7: 0 | AW7: 0 | AY7: 1837.734694 | AZ7: 2.252229342 | BA7: 8.403280436 | BB7: 3.560361581 | BC7: 6.446523559 | BD7: 0.6192406357 | BE7: 2.893235905 | BF7: 10.88133128 | BG7: 5.317416073 | BH7: 1.418050173 | BI7: 4.439705049 | BJ7: 1.234672234 | BK7: 0.3330186898 | BL7: 0.1110062299 | BM7: 0.6121667092 | BN7: 0.2650001666 | BO7: 0.2127619407 | BQ7: Sièges | BR7: 5 | BS7: 9 | BT7: 0 | BU7: 4 | BV7: 15 | BW7: 7 | BX7: 2 | BY7: 6 | BZ7: 1 | CA7: 0 | CB7: 0 | CC7: 0 | CD7: 0 | CE7: 0 | CG7: 2 | CH7: 9 | CI7: 4 | CJ7: 7 | CK7: 0 | CL7: 3 | CM7: 12 | CN7: 5 | CO7: 1 | CP7: 5 | CQ7: 1 | CR7: 0 | CS7: 0 | CT7: 0 | CU7: 0 | CV7: 0
B8: 2 | C8: =$C$6/B8 -> 3271.5 | D8: =$D$6/B8 -> 5923.5 | E8: =$E$6/B8 -> 569 | F8: =$F$6/B8 -> 2658.5 | G8: =$G$6/B8 -> 9998.5 | H8: =$H$6/B8 -> 4886 | I8: =$I$6/B8 -> 1303 | J8: =$J$6/B8 -> 4079.5 | K8: =$K$6/B8 -> 1134.5 | L8: =$L$6/B8 -> 306 | M8: =$M$6/B8 -> 102 | N8: =$N$6/B8 -> 562.5 | O8: =$O$6/B8 -> 243.5 | P8: =$P$6/B8 -> 195.5 | R8: =$R$6/B8 -> 2069.5 | S8: =$S$6/B8 -> 7721.5 | T8: =C8 -> 3271.5 | U8: =D8 -> 5923.5 | V8: =E8 -> 569 | W8: =F8 -> 2658.5 | X8: =G8 -> 9998.5 | Y8: =H8 -> 4886 | Z8: =I8 -> 1303 | AA8: =J8 -> 4079.5 | AB8: =K8 -> 1134.5 | AC8: =L8 -> 306 | AD8: =M8 -> 102 | AE8: 562.5 | AF8: =O8 -> 243.5 | AG8: =P8 -> 195.5 | AI8: =$AI$6/B8 -> 9791 | AJ8: =C8 -> 3271.5 | AK8: =D8 -> 5923.5 | AL8: =E8 -> 569 | AM8: =F8 -> 2658.5 | AN8: =G8 -> 9998.5 | AO8: =H8 -> 4886 | AP8: =I8 -> 1303 | AQ8: =J8 -> 4079.5 | AR8: =K8 -> 1134.5 | AS8: =L8 -> 306 | AT8: =M8 -> 102 | AU8: 562.5 | AV8: =O8 -> 243.5 | AW8: =P8 -> 195.5 | BQ8: 1 | BR8: =$C$6/BQ8 -> 6543 | BS8: =$D$6/BQ8 -> 11847 | BT8: =$E$6/BQ8 -> 1138 | BU8: =$F$6/BQ8 -> 5317 | BV8: =$G$6/BQ8 -> 19997 | BW8: =$H$6/BQ8 -> 9772 | BX8: =$I$6/BQ8 -> 2606 | BY8: =$J$6/BQ8 -> 8159 | BZ8: =$K$6/BQ8 -> 2269 | CA8: =$L$6/BQ8 -> 612 | CB8: =$M$6/BQ8 -> 204 | CC8: =$N$6/BQ8 -> 1125 | CD8: =$O$6/BQ8 -> 487 | CE8: =$P$6/BQ8 -> 391 | CG8: =$R$6/BQ8 -> 4139 | CH8: =$S$6/BQ8 -> 15443 | CI8: =BR8 -> 6543 | CJ8: =BS8 -> 11847 | CK8: =BT8 -> 1138 | CL8: =BU8 -> 5317 | CM8: =BV8 -> 19997 | CN8: =BW8 -> 9772 | CO8: =BX8 -> 2606 | CP8: =BY8 -> 8159 | CQ8: =BZ8 -> 2269 | CR8: =CA8 -> 612 | CS8: =CB8 -> 204 | CT8: =CC8 -> 1125 | CU8: =CD8 -> 487 | CV8: =CE8 -> 391
B9: 3 | C9: =$C$6/B9 -> 2181 | D9: 3949 | E9: =$E$6/B9 -> 379.3333333 | F9: 1772.333333 | G9: 6665.666667 | H9: =$H$6/B9 -> 3257.333333 | I9: =$I$6/B9 -> 868.6666667 | J9: =$J$6/B9 -> 2719.666667 | K9: =$K$6/B9 -> 756.3333333 | L9: =$L$6/B9 -> 204 | M9: 68 | N9: =$N$6/B9 -> 375 | O9: =$O$6/B9 -> 162.3333333 | P9: =$P$6/B9 -> 130.3333333 | R9: =$R$6/B9 -> 1379.666667 | S9: =$S$6/B9 -> 5147.666667 | T9: 2181 | U9: 3949 | V9: 379.3333333 | W9: 1772.333333 | X9: 6665.666667 | Y9: 3257.333333 | Z9: 868.6666667 | AA9: 2719.666667 | AB9: 756.3333333 | AC9: 204 | AD9: 68 | AE9: 375 | AF9: 162.3333333 | AG9: 130.3333333 | AI9: =$AI$6/B9 -> 6527.333333 | AJ9: 2181 | AK9: 3949 | AL9: 379.3333333 | AM9: 1772.333333 | AN9: 6665.666667 | AO9: 3257.333333 | AP9: 868.6666667 | AQ9: 2719.666667 | AR9: 756.3333333 | AS9: 204 | AT9: 68 | AU9: 375 | AV9: 162.3333333 | AW9: 130.3333333 | BQ9: 2 | BR9: =$C$6/BQ9 -> 3271.5 | BS9: 5923.5 | BT9: =$E$6/BQ9 -> 569 | BU9: 2658.5 | BV9: 9998.5 | BW9: =$H$6/BQ9 -> 4886 | BX9: =$I$6/BQ9 -> 1303 | BY9: =$J$6/BQ9 -> 4079.5 | BZ9: =$K$6/BQ9 -> 1134.5 | CA9: =$L$6/BQ9 -> 306 | CB9: 102 | CC9: =$N$6/BQ9 -> 562.5 | CD9: =$O$6/BQ9 -> 243.5 | CE9: =$P$6/BQ9 -> 195.5 | CG9: =$R$6/BQ9 -> 2069.5 | CH9: =$S$6/BQ9 -> 7721.5 | CI9: 3271.5 | CJ9: 5923.5 | CK9: 569 | CL9: 2658.5 | CM9: 9998.5 | CN9: 4886 | CO9: 1303 | CP9: 4079.5 | CQ9: 1134.5 | CR9: 306 | CS9: 102 | CT9: 562.5 | CU9: 243.5 | CV9: 195.5
B10: 4 | C10: 1635.75 | D10: 2961.75 | E10: 284.5 | F10: 1329.25 | G10: 4999.25 | H10: 2443 | I10: 651.5 | J10: 2039.75 | K10: 567.25 | L10: 153 | M10: 51 | N10: 281.25 | O10: 121.75 | P10: 97.75 | R10: 1034.75 | S10: 3860.75 | T10: 1635.75 | U10: 2961.75 | V10: 284.5 | W10: 1329.25 | X10: 4999.25 | Y10: 2443 | Z10: 651.5 | AA10: 2039.75 | AB10: 567.25 | AC10: 153 | AD10: 51 | AE10: 281.25 | AF10: 121.75 | AG10: 97.75 | AI10: 4895.5 | AJ10: 1635.75 | AK10: 2961.75 | AL10: 284.5 | AM10: 1329.25 | AN10: 4999.25 | AO10: 2443 | AP10: 651.5 | AQ10: 2039.75 | AR10: 567.25 | AS10: 153 | AT10: 51 | AU10: 281.25 | AV10: 121.75 | AW10: 97.75 | BQ10: 3 | BR10: 2181 | BS10: 3949 | BT10: 379.3333333 | BU10: 1772.333333 | BV10: 6665.666667 | BW10: 3257.333333 | BX10: 868.6666667 | BY10: 2719.666667 | BZ10: 756.3333333 | CA10: 204 | CB10: 68 | CC10: 375 | CD10: 162.3333333 | CE10: 130.3333333 | CG10: 1379.666667 | CH10: 5147.666667 | CI10: 2181 | CJ10: 3949 | CK10: 379.3333333 | CL10: 1772.333333 | CM10: 6665.666667 | CN10: 3257.333333 | CO10: 868.6666667 | CP10: 2719.666667 | CQ10: 756.3333333 | CR10: 204 | CS10: 68 | CT10: 375 | CU10: 162.3333333 | CV10: 130.3333333
B11: 5 | C11: 1308.6 | D11: 2369.4 | E11: 227.6 | F11: 1063.4 | G11: 3999.4 | H11: 1954.4 | I11: 521.2 | J11: 1631.8 | K11: 453.8 | L11: 122.4 | M11: 40.8 | N11: 225 | O11: =$O$6/B11 -> 97.4 | P11: 78.2 | R11: 827.8 | S11: 3088.6 | T11: 1308.6 | U11: 2369.4 | V11: 227.6 | W11: 1063.4 | X11: 3999.4 | Y11: 1954.4 | Z11: 521.2 | AA11: 1631.8 | AB11: 453.8 | AC11: 122.4 | AD11: 40.8 | AE11: 225 | AF11: 97.4 | AG11: 78.2 | AI11: 3916.4 | AJ11: 1308.6 | AK11: 2369.4 | AL11: 227.6 | AM11: 1063.4 | AN11: 3999.4 | AO11: 1954.4 | AP11: 521.2 | AQ11: 1631.8 | AR11: 453.8 | AS11: 122.4 | AT11: 40.8 | AU11: 225 | AV11: 97.4 | AW11: 78.2 | BQ11: 4 | BR11: 1635.75 | BS11: 2961.75 | BT11: 284.5 | BU11: 1329.25 | BV11: 4999.25 | BW11: 2443 | BX11: 651.5 | BY11: 2039.75 | BZ11: 567.25 | CA11: 153 | CB11: 51 | CC11: 281.25 | CD11: 121.75 | CE11: 97.75 | CG11: 1034.75 | CH11: 3860.75 | CI11: 1635.75 | CJ11: 2961.75 | CK11: 284.5 | CL11: 1329.25 | CM11: 4999.25 | CN11: 2443 | CO11: 651.5 | CP11: 2039.75 | CQ11: 567.25 | CR11: 153 | CS11: 51 | CT11: 281.25 | CU11: 121.75 | CV11: 97.75
B12: 6 | C12: 1090.5 | D12: 1974.5 | E12: 189.6666667 | F12: 886.1666667 | G12: 3332.833333 | H12: 1628.666667 | I12: 434.3333333 | J12: 1359.833333 | K12: 378.1666667 | L12: 102 | M12: 34 | N12: 187.5 | O12: 81.16666667 | P12: 65.16666667 | R12: 689.8333333 | S12: 2573.833333 | T12: 1090.5 | U12: 1974.5 | V12: 189.6666667 | W12: 886.1666667 | X12: 3332.833333 | Y12: 1628.666667 | Z12: 434.3333333 | AA12: 1359.833333 | AB12: 378.1666667 | AC12: 102 | AD12: 34 | AE12: 187.5 | AF12: 81.16666667 | AG12: 65.16666667 | AI12: 3263.666667 | AJ12: 1090.5 | AK12: 1974.5 | AL12: 189.6666667 | AM12: 886.1666667 | AN12: 3332.833333 | AO12: 1628.666667 | AP12: 434.3333333 | AQ12: 1359.833333 | AR12: 378.1666667 | AS12: 102 | AT12: 34 | AU12: 187.5 | AV12: 81.16666667 | AW12: 65.16666667 | BQ12: 5 | BR12: 1308.6 | BS12: 2369.4 | BT12: 227.6 | BU12: 1063.4 | BV12: 3999.4 | BW12: 1954.4 | BX12: 521.2 | BY12: 1631.8 | BZ12: 453.8 | CA12: 122.4 | CB12: 40.8 | CC12: 225 | CD12: 97.4 | CE12: 78.2 | CG12: 827.8 | CH12: 3088.6 | CI12: 1308.6 | CJ12: 2369.4 | CK12: 227.6 | CL12: 1063.4 | CM12: 3999.4 | CN12: 1954.4 | CO12: 521.2 | CP12: 1631.8 | CQ12: 453.8 | CR12: 122.4 | CS12: 40.8 | CT12: 225 | CU12: 97.4 | CV12: 78.2
B13: 7 | C13: 934.7142857 | D13: 1692.428571 | E13: 162.5714286 | F13: 759.5714286 | G13: 2856.714286 | H13: 1396 | I13: 372.2857143 | J13: 1165.571429 | K13: 324.1428571 | L13: 87.42857143 | M13: 29.14285714 | N13: 160.7142857 | O13: 69.57142857 | P13: 55.85714286 | R13: 591.2857143 | S13: 2206.142857 | T13: 934.7142857 | U13: 1692.428571 | V13: 162.5714286 | W13: 759.5714286 | X13: 2856.714286 | Y13: 1396 | Z13: 372.2857143 | AA13: 1165.571429 | AB13: 324.1428571 | AC13: 87.42857143 | AD13: 29.14285714 | AE13: 160.7142857 | AF13: 69.57142857 | AG13: 55.85714286 | AI13: 2797.428571 | AJ13: 934.7142857 | AK13: 1692.428571 | AL13: 162.5714286 | AM13: 759.5714286 | AN13: 2856.714286 | AO13: 1396 | AP13: 372.2857143 | AQ13: 1165.571429 | AR13: 324.1428571 | AS13: 87.42857143 | AT13: 29.14285714 | AU13: 160.7142857 | AV13: 69.57142857 | AW13: 55.85714286 | BQ13: 6 | BR13: 1090.5 | BS13: 1974.5 | BT13: 189.6666667 | BU13: 886.1666667 | BV13: 3332.833333 | BW13: 1628.666667 | BX13: 434.3333333 | BY13: 1359.833333 | BZ13: 378.1666667 | CA13: 102 | CB13: 34 | CC13: 187.5 | CD13: 81.16666667 | CE13: 65.16666667 | CG13: 689.8333333 | CH13: 2573.833333 | CI13: 1090.5 | CJ13: 1974.5 | CK13: 189.6666667 | CL13: 886.1666667 | CM13: 3332.833333 | CN13: 1628.666667 | CO13: 434.3333333 | CP13: 1359.833333 | CQ13: 378.1666667 | CR13: 102 | CS13: 34 | CT13: 187.5 | CU13: 81.16666667 | CV13: 65.16666667
B14: 8 | C14: 817.875 | D14: 1480.875 | E14: 142.25 | F14: 664.625 | G14: 2499.625 | H14: 1221.5 | I14: 325.75 | J14: 1019.875 | K14: 283.625 | L14: 76.5 | M14: 25.5 | N14: 140.625 | O14: 60.875 | P14: 48.875 | R14: 517.375 | S14: 1930.375 | T14: 817.875 | U14: 1480.875 | V14: 142.25 | W14: 664.625 | X14: 2499.625 | Y14: 1221.5 | Z14: 325.75 | AA14: 1019.875 | AB14: 283.625 | AC14: 76.5 | AD14: 25.5 | AE14: 140.625 | AF14: 60.875 | AG14: 48.875 | AI14: 2447.75 | AJ14: 817.875 | AK14: 1480.875 | AL14: 142.25 | AM14: 664.625 | AN14: 2499.625 | AO14: 1221.5 | AP14: 325.75 | AQ14: 1019.875 | AR14: 283.625 | AS14: 76.5 | AT14: 25.5 | AU14: 140.625 | AV14: 60.875 | AW14: 48.875 | BQ14: 7 | BR14: 934.7142857 | BS14: 1692.428571 | BT14: 162.5714286 | BU14: 759.5714286 | BV14: 2856.714286 | BW14: 1396 | BX14: 372.2857143 | BY14: 1165.571429 | BZ14: 324.1428571 | CA14: 87.42857143 | CB14: 29.14285714 | CC14: 160.7142857 | CD14: 69.57142857 | CE14: 55.85714286 | CG14: 591.2857143 | CH14: 2206.142857 | CI14: 934.7142857 | CJ14: 1692.428571 | CK14: 162.5714286 | CL14: 759.5714286 | CM14: 2856.714286 | CN14: 1396 | CO14: 372.2857143 | CP14: 1165.571429 | CQ14: 324.1428571 | CR14: 87.42857143 | CS14: 29.14285714 | CT14: 160.7142857 | CU14: 69.57142857 | CV14: 55.85714286
B15: 9 | C15: 727 | D15: 1316.333333 | E15: 126.4444444 | F15: 590.7777778 | G15: 2221.888889 | H15: 1085.777778 | I15: 289.5555556 | J15: 906.5555556 | K15: 252.1111111 | L15: 68 | M15: 22.66666667 | N15: 125 | O15: 54.11111111 | P15: 43.44444444 | R15: 459.8888889 | S15: 1715.888889 | T15: 727 | U15: 1316.333333 | V15: 126.4444444 | W15: 590.7777778 | X15: 2221.888889 | Y15: 1085.777778 | Z15: 289.5555556 | AA15: 906.5555556 | AB15: 252.1111111 | AC15: 68 | AD15: 22.66666667 | AE15: 125 | AF15: 54.11111111 | AG15: 43.44444444 | AI15: 2175.777778 | AJ15: 727 | AK15: 1316.333333 | AL15: 126.4444444 | AM15: 590.7777778 | AN15: 2221.888889 | AO15: 1085.777778 | AP15: 289.5555556 | AQ15: 906.5555556 | AR15: 252.1111111 | AS15: 68 | AT15: 22.66666667 | AU15: 125 | AV15: 54.11111111 | AW15: 43.44444444 | BQ15: 8 | BR15: 817.875 | BS15: 1480.875 | BT15: 142.25 | BU15: 664.625 | BV15: 2499.625 | BW15: 1221.5 | BX15: 325.75 | BY15: 1019.875 | BZ15: 283.625 | CA15: 76.5 | CB15: 25.5 | CC15: 140.625 | CD15: 60.875 | CE15: 48.875 | CG15: 517.375 | CH15: 1930.375 | CI15: 817.875 | CJ15: 1480.875 | CK15: 142.25 | CL15: 664.625 | CM15: 2499.625 | CN15: 1221.5 | CO15: 325.75 | CP15: 1019.875 | CQ15: 283.625 | CR15: 76.5 | CS15: 25.5 | CT15: 140.625 | CU15: 60.875 | CV15: 48.875
B16: 10 | C16: 654.3 | D16: 1184.7 | E16: 113.8 | F16: 531.7 | G16: 1999.7 | H16: 977.2 | I16: 260.6 | J16: 815.9 | K16: 226.9 | L16: 61.2 | M16: 20.4 | N16: 112.5 | O16: 48.7 | P16: 39.1 | R16: 413.9 | S16: 1544.3 | T16: 654.3 | U16: 1184.7 | V16: 113.8 | W16: 531.7 | X16: 1999.7 | Y16: 977.2 | Z16: 260.6 | AA16: 815.9 | AB16: 226.9 | AC16: 61.2 | AD16: 20.4 | AE16: 112.5 | AF16: 48.7 | AG16: 39.1 | AI16: 1958.2 | AJ16: 654.3 | AK16: 1184.7 | AL16: 113.8 | AM16: 531.7 | AN16: 1999.7 | AO16: 977.2 | AP16: 260.6 | AQ16: 815.9 | AR16: 226.9 | AS16: 61.2 | AT16: 20.4 | AU16: 112.5 | AV16: 48.7 | AW16: 39.1 | BQ16: 9 | BR16: 727 | BS16: 1316.333333 | BT16: 126.4444444 | BU16: 590.7777778 | BV16: 2221.888889 | BW16: 1085.777778 | BX16: 289.5555556 | BY16: 906.5555556 | BZ16: 252.1111111 | CA16: 68 | CB16: 22.66666667 | CC16: 125 | CD16: 54.11111111 | CE16: 43.44444444 | CG16: 459.8888889 | CH16: 1715.888889 | CI16: 727 | CJ16: 1316.333333 | CK16: 126.4444444 | CL16: 590.7777778 | CM16: 2221.888889 | CN16: 1085.777778 | CO16: 289.5555556 | CP16: 906.5555556 | CQ16: 252.1111111 | CR16: 68 | CS16: 22.66666667 | CT16: 125 | CU16: 54.11111111 | CV16: 43.44444444
B17: 11 | C17: 594.8181818 | D17: 1077 | E17: 103.4545455 | F17: 483.3636364 | G17: 1817.909091 | H17: 888.3636364 | I17: 236.9090909 | J17: 741.7272727 | K17: 206.2727273 | L17: 55.63636364 | M17: 18.54545455 | N17: 102.2727273 | O17: 44.27272727 | P17: 35.54545455 | R17: 376.2727273 | S17: 1403.909091 | T17: 594.8181818 | U17: 1077 | V17: 103.4545455 | W17: 483.3636364 | X17: 1817.909091 | Y17: 888.3636364 | Z17: 236.9090909 | AA17: 741.7272727 | AB17: 206.2727273 | AC17: 55.63636364 | AD17: 18.54545455 | AE17: 102.2727273 | AF17: 44.27272727 | AG17: 35.54545455 | AI17: 1780.181818 | AJ17: 594.8181818 | AK17: 1077 | AL17: 103.4545455 | AM17: 483.3636364 | AN17: 1817.909091 | AO17: 888.3636364 | AP17: 236.9090909 | AQ17: 741.7272727 | AR17: 206.2727273 | AS17: 55.63636364 | AT17: 18.54545455 | AU17: 102.2727273 | AV17: 44.27272727 | AW17: 35.54545455 | BQ17: 10 | BR17: 654.3 | BS17: 1184.7 | BT17: 113.8 | BU17: 531.7 | BV17: 1999.7 | BW17: 977.2 | BX17: 260.6 | BY17: 815.9 | BZ17: 226.9 | CA17: 61.2 | CB17: 20.4 | CC17: 112.5 | CD17: 48.7 | CE17: 39.1 | CG17: 413.9 | CH17: 1544.3 | CI17: 654.3 | CJ17: 1184.7 | CK17: 113.8 | CL17: 531.7 | CM17: 1999.7 | CN17: 977.2 | CO17: 260.6 | CP17: 815.9 | CQ17: 226.9 | CR17: 61.2 | CS17: 20.4 | CT17: 112.5 | CU17: 48.7 | CV17: 39.1
B18: 12 | C18: 545.25 | D18: 987.25 | E18: 94.83333333 | F18: 443.0833333 | G18: 1666.416667 | H18: 814.3333333 | I18: 217.1666667 | J18: 679.9166667 | K18: 189.0833333 | L18: 51 | M18: 17 | N18: 93.75 | O18: 40.58333333 | P18: 32.58333333 | R18: 344.9166667 | S18: 1286.916667 | T18: 545.25 | U18: 987.25 | V18: 94.83333333 | W18: 443.0833333 | X18: 1666.416667 | Y18: 814.3333333 | Z18: 217.1666667 | AA18: 679.9166667 | AB18: 189.0833333 | AC18: 51 | AD18: 17 | AE18: 93.75 | AF18: 40.58333333 | AG18: 32.58333333 | AI18: 1631.833333 | AJ18: 545.25 | AK18: 987.25 | AL18: 94.83333333 | AM18: 443.0833333 | AN18: 1666.416667 | AO18: 814.3333333 | AP18: 217.1666667 | AQ18: 679.9166667 | AR18: 189.0833333 | AS18: 51 | AT18: 17 | AU18: 93.75 | AV18: 40.58333333 | AW18: 32.58333333 | BQ18: 11 | BR18: 594.8181818 | BS18: 1077 | BT18: 103.4545455 | BU18: 483.3636364 | BV18: 1817.909091 | BW18: 888.3636364 | BX18: 236.9090909 | BY18: 741.7272727 | BZ18: 206.2727273 | CA18: 55.63636364 | CB18: 18.54545455 | CC18: 102.2727273 | CD18: 44.27272727 | CE18: 35.54545455 | CG18: 376.2727273 | CH18: 1403.909091 | CI18: 594.8181818 | CJ18: 1077 | CK18: 103.4545455 | CL18: 483.3636364 | CM18: 1817.909091 | CN18: 888.3636364 | CO18: 236.9090909 | CP18: 741.7272727 | CQ18: 206.2727273 | CR18: 55.63636364 | CS18: 18.54545455 | CT18: 102.2727273 | CU18: 44.27272727 | CV18: 35.54545455
B19: 13 | C19: 503.3076923 | D19: 911.3076923 | E19: 87.53846154 | F19: 409 | G19: 1538.230769 | H19: 751.6923077 | I19: 200.4615385 | J19: 627.6153846 | K19: 174.5384615 | L19: 47.07692308 | M19: 15.69230769 | N19: 86.53846154 | O19: 37.46153846 | P19: 30.07692308 | R19: 318.3846154 | S19: 1187.923077 | T19: 503.3076923 | U19: 911.3076923 | V19: 87.53846154 | W19: 409 | X19: 1538.230769 | Y19: 751.6923077 | Z19: 200.4615385 | AA19: 627.6153846 | AB19: 174.5384615 | AC19: 47.07692308 | AD19: 15.69230769 | AE19: 86.53846154 | AF19: 37.46153846 | AG19: 30.07692308 | AI19: 1506.307692 | AJ19: 503.3076923 | AK19: 911.3076923 | AL19: 87.53846154 | AM19: 409 | AN19: 1538.230769 | AO19: 751.6923077 | AP19: 200.4615385 | AQ19: 627.6153846 | AR19: 174.5384615 | AS19: 47.07692308 | AT19: 15.69230769 | AU19: 86.53846154 | AV19: 37.46153846 | AW19: 30.07692308 | BQ19: 12 | BR19: 545.25 | BS19: 987.25 | BT19: 94.83333333 | BU19: 443.0833333 | BV19: 1666.416667 | BW19: 814.3333333 | BX19: 217.1666667 | BY19: 679.9166667 | BZ19: 189.0833333 | CA19: 51 | CB19: 17 | CC19: 93.75 | CD19: 40.58333333 | CE19: 32.58333333 | CG19: 344.9166667 | CH19: 1286.916667 | CI19: 545.25 | CJ19: 987.25 | CK19: 94.83333333 | CL19: 443.0833333 | CM19: 1666.416667 | CN19: 814.3333333 | CO19: 217.1666667 | CP19: 679.9166667 | CQ19: 189.0833333 | CR19: 51 | CS19: 17 | CT19: 93.75 | CU19: 40.58333333 | CV19: 32.58333333
B20: 14 | C20: 467.3571429 | D20: 846.2142857 | E20: 81.28571429 | F20: 379.7857143 | G20: 1428.357143 | H20: 698 | I20: 186.1428571 | J20: 582.7857143 | K20: 162.0714286 | L20: 43.71428571 | M20: 14.57142857 | N20: 80.35714286 | O20: 34.78571429 | P20: 27.92857143 | R20: 295.6428571 | S20: 1103.071429 | T20: 467.3571429 | U20: 846.2142857 | V20: 81.28571429 | W20: 379.7857143 | X20: 1428.357143 | Y20: 698 | Z20: 186.1428571 | AA20: 582.7857143 | AB20: 162.0714286 | AC20: 43.71428571 | AD20: 14.57142857 | AE20: 80.35714286 | AF20: 34.78571429 | AG20: 27.92857143 | AI20: 1398.714286 | AJ20: 467.3571429 | AK20: 846.2142857 | AL20: 81.28571429 | AM20: 379.7857143 | AN20: 1428.357143 | AO20: 698 | AP20: 186.1428571 | AQ20: 582.7857143 | AR20: 162.0714286 | AS20: 43.71428571 | AT20: 14.57142857 | AU20: 80.35714286 | AV20: 34.78571429 | AW20: 27.92857143 | BQ20: 13 | BR20: 503.3076923 | BS20: 911.3076923 | BT20: 87.53846154 | BU20: 409 | BV20: 1538.230769 | BW20: 751.6923077 | BX20: 200.4615385 | BY20: 627.6153846 | BZ20: 174.5384615 | CA20: 47.07692308 | CB20: 15.69230769 | CC20: 86.53846154 | CD20: 37.46153846 | CE20: 30.07692308 | CG20: 318.3846154 | CH20: 1187.923077 | CI20: 503.3076923 | CJ20: 911.3076923 | CK20: 87.53846154 | CL20: 409 | CM20: 1538.230769 | CN20: 751.6923077 | CO20: 200.4615385 | CP20: 627.6153846 | CQ20: 174.5384615 | CR20: 47.07692308 | CS20: 15.69230769 | CT20: 86.53846154 | CU20: 37.46153846 | CV20: 30.07692308
B21: 15 | C21: 436.2 | D21: 789.8 | E21: 75.86666667 | F21: 354.4666667 | G21: 1333.133333 | H21: 651.4666667 | I21: 173.7333333 | J21: 543.9333333 | K21: 151.2666667 | L21: 40.8 | M21: 13.6 | N21: 75 | O21: 32.46666667 | P21: 26.06666667 | R21: 275.9333333 | S21: 1029.533333 | T21: 436.2 | U21: 789.8 | V21: 75.86666667 | W21: 354.4666667 | X21: 1333.133333 | Y21: 651.4666667 | Z21: 173.7333333 | AA21: 543.9333333 | AB21: 151.2666667 | AC21: 40.8 | AD21: 13.6 | AE21: 75 | AF21: 32.46666667 | AG21: 26.06666667 | AI21: 1305.466667 | AJ21: 436.2 | AK21: 789.8 | AL21: 75.86666667 | AM21: 354.4666667 | AN21: 1333.133333 | AO21: 651.4666667 | AP21: 173.7333333 | AQ21: 543.9333333 | AR21: 151.2666667 | AS21: 40.8 | AT21: 13.6 | AU21: 75 | AV21: 32.46666667 | AW21: 26.06666667 | BQ21: 14 | BR21: 467.3571429 | BS21: 846.2142857 | BT21: 81.28571429 | BU21: 379.7857143 | BV21: 1428.357143 | BW21: 698 | BX21: 186.1428571 | BY21: 582.7857143 | BZ21: 162.0714286 | CA21: 43.71428571 | CB21: 14.57142857 | CC21: 80.35714286 | CD21: 34.78571429 | CE21: 27.92857143 | CG21: 295.6428571 | CH21: 1103.071429 | CI21: 467.3571429 | CJ21: 846.2142857 | CK21: 81.28571429 | CL21: 379.7857143 | CM21: 1428.357143 | CN21: 698 | CO21: 186.1428571 | CP21: 582.7857143 | CQ21: 162.0714286 | CR21: 43.71428571 | CS21: 14.57142857 | CT21: 80.35714286 | CU21: 34.78571429 | CV21: 27.92857143
B22: 16 | C22: 408.9375 | D22: 740.4375 | E22: 71.125 | F22: 332.3125 | G22: 1249.8125 | H22: 610.75 | I22: 162.875 | J22: 509.9375 | K22: 141.8125 | L22: 38.25 | M22: 12.75 | N22: 70.3125 | O22: 30.4375 | P22: 24.4375 | R22: 258.6875 | S22: 965.1875 | T22: 408.9375 | U22: 740.4375 | V22: 71.125 | W22: 332.3125 | X22: 1249.8125 | Y22: 610.75 | Z22: 162.875 | AA22: 509.9375 | AB22: 141.8125 | AC22: 38.25 | AD22: 12.75 | AE22: 70.3125 | AF22: 30.4375 | AG22: 24.4375 | AI22: 1223.875 | AJ22: 408.9375 | AK22: 740.4375 | AL22: 71.125 | AM22: 332.3125 | AN22: 1249.8125 | AO22: 610.75 | AP22: 162.875 | AQ22: 509.9375 | AR22: 141.8125 | AS22: 38.25 | AT22: 12.75 | AU22: 70.3125 | AV22: 30.4375 | AW22: 24.4375 | BQ22: 15 | BR22: 436.2 | BS22: 789.8 | BT22: 75.86666667 | BU22: 354.4666667 | BV22: 1333.133333 | BW22: 651.4666667 | BX22: 173.7333333 | BY22: 543.9333333 | BZ22: 151.2666667 | CA22: 40.8 | CB22: 13.6 | CC22: 75 | CD22: 32.46666667 | CE22: 26.06666667 | CG22: 275.9333333 | CH22: 1029.533333 | CI22: 436.2 | CJ22: 789.8 | CK22: 75.86666667 | CL22: 354.4666667 | CM22: 1333.133333 | CN22: 651.4666667 | CO22: 173.7333333 | CP22: 543.9333333 | CQ22: 151.2666667 | CR22: 40.8 | CS22: 13.6 | CT22: 75 | CU22: 32.46666667 | CV22: 26.06666667
B23: 17 | C23: 384.8823529 | D23: 696.8823529 | E23: 66.94117647 | F23: 312.7647059 | G23: 1176.294118 | H23: 574.8235294 | I23: 153.2941176 | J23: 479.9411765 | K23: 133.4705882 | L23: 36 | M23: 12 | N23: 66.17647059 | O23: 28.64705882 | P23: 23 | R23: 243.4705882 | S23: 908.4117647 | T23: 384.8823529 | U23: 696.8823529 | V23: 66.94117647 | W23: 312.7647059 | X23: 1176.294118 | Y23: 574.8235294 | Z23: 153.2941176 | AA23: 479.9411765 | AB23: 133.4705882 | AC23: 36 | AD23: 12 | AE23: 66.17647059 | AF23: 28.64705882 | AG23: 23 | AI23: 1151.882353 | AJ23: 384.8823529 | AK23: 696.8823529 | AL23: 66.94117647 | AM23: 312.7647059 | AN23: 1176.294118 | AO23: 574.8235294 | AP23: 153.2941176 | AQ23: 479.9411765 | AR23: 133.4705882 | AS23: 36 | AT23: 12 | AU23: 66.17647059 | AV23: 28.64705882 | AW23: 23 | BQ23: 16 | BR23: 408.9375 | BS23: 740.4375 | BT23: 71.125 | BU23: 332.3125 | BV23: 1249.8125 | BW23: 610.75 | BX23: 162.875 | BY23: 509.9375 | BZ23: 141.8125 | CA23: 38.25 | CB23: 12.75 | CC23: 70.3125 | CD23: 30.4375 | CE23: 24.4375 | CG23: 258.6875 | CH23: 965.1875 | CI23: 408.9375 | CJ23: 740.4375 | CK23: 71.125 | CL23: 332.3125 | CM23: 1249.8125 | CN23: 610.75 | CO23: 162.875 | CP23: 509.9375 | CQ23: 141.8125 | CR23: 38.25 | CS23: 12.75 | CT23: 70.3125 | CU23: 30.4375 | CV23: 24.4375
B24: 18 | C24: 363.5 | D24: 658.1666667 | E24: 63.22222222 | F24: 295.3888889 | G24: 1110.944444 | H24: 542.8888889 | I24: 144.7777778 | J24: 453.2777778 | K24: 126.0555556 | L24: 34 | M24: 11.33333333 | N24: 62.5 | O24: 27.05555556 | P24: 21.72222222 | R24: 229.9444444 | S24: 857.9444444 | T24: 363.5 | U24: 658.1666667 | V24: 63.22222222 | W24: 295.3888889 | X24: 1110.944444 | Y24: 542.8888889 | Z24: 144.7777778 | AA24: 453.2777778 | AB24: 126.0555556 | AC24: 34 | AD24: =M24 -> 11.33333333 | AE24: 62.5 | AF24: 27.05555556 | AG24: 21.72222222 | AI24: 1087.888889 | AJ24: 363.5 | AK24: 658.1666667 | AL24: 63.22222222 | AM24: 295.3888889 | AN24: 1110.944444 | AO24: 542.8888889 | AP24: 144.7777778 | AQ24: 453.2777778 | AR24: 126.0555556 | AS24: 34 | AT24: =M24 -> 11.33333333 | AU24: 62.5 | AV24: 27.05555556 | AW24: 21.72222222 | BQ24: 17 | BR24: 384.8823529 | BS24: 696.8823529 | BT24: 66.94117647 | BU24: 312.7647059 | BV24: 1176.294118 | BW24: 574.8235294 | BX24: 153.2941176 | BY24: 479.9411765 | BZ24: 133.4705882 | CA24: 36 | CB24: 12 | CC24: 66.17647059 | CD24: 28.64705882 | CE24: 23 | CG24: 243.4705882 | CH24: 908.4117647 | CI24: 384.8823529 | CJ24: 696.8823529 | CK24: 66.94117647 | CL24: 312.7647059 | CM24: 1176.294118 | CN24: 574.8235294 | CO24: 153.2941176 | CP24: 479.9411765 | CQ24: 133.4705882 | CR24: 36 | CS24: 12 | CT24: 66.17647059 | CU24: 28.64705882 | CV24: 23
B25: 19 | C25: 344.3684211 | D25: 623.5263158 | E25: 59.89473684 | F25: 279.8421053 | G25: 1052.473684 | H25: 514.3157895 | I25: 137.1578947 | J25: 429.4210526 | K25: 119.4210526 | L25: 32.21052632 | M25: 10.73684211 | N25: 59.21052632 | O25: 25.63157895 | P25: 20.57894737 | R25: 217.8421053 | S25: 812.7894737 | T25: 344.3684211 | U25: 623.5263158 | V25: 59.89473684 | W25: 279.8421053 | X25: 1052.473684 | Y25: 514.3157895 | Z25: 137.1578947 | AA25: 429.4210526 | AB25: 119.4210526 | AC25: 32.21052632 | AD25: 10.73684211 | AE25: 59.21052632 | AF25: 25.63157895 | AG25: 20.57894737 | AI25: 1030.631579 | AJ25: 344.3684211 | AK25: 623.5263158 | AL25: 59.89473684 | AM25: 279.8421053 | AN25: 1052.473684 | AO25: 514.3157895 | AP25: 137.1578947 | AQ25: 429.4210526 | AR25: 119.4210526 | AS25: 32.21052632 | AT25: 10.73684211 | AU25: 59.21052632 | AV25: 25.63157895 | AW25: 20.57894737 | BQ25: 18 | BR25: 363.5 | BS25: 658.1666667 | BT25: 63.22222222 | BU25: 295.3888889 | BV25: 1110.944444 | BW25: 542.8888889 | BX25: 144.7777778 | BY25: 453.2777778 | BZ25: 126.0555556 | CA25: 34 | CB25: 11.33333333 | CC25: 62.5 | CD25: 27.05555556 | CE25: 21.72222222 | CG25: 229.9444444 | CH25: 857.9444444 | CI25: 363.5 | CJ25: 658.1666667 | CK25: 63.22222222 | CL25: 295.3888889 | CM25: 1110.944444 | CN25: 542.8888889 | CO25: 144.7777778 | CP25: 453.2777778 | CQ25: 126.0555556 | CR25: 34 | CS25: 11.33333333 | CT25: 62.5 | CU25: 27.05555556 | CV25: 21.72222222
B26: 20 | C26: 327.15 | D26: 592.35 | E26: 56.9 | F26: 265.85 | G26: 999.85 | H26: 488.6 | I26: 130.3 | J26: 407.95 | K26: 113.45 | L26: 30.6 | M26: 10.2 | N26: 56.25 | O26: 24.35 | P26: 19.55 | R26: 206.95 | S26: 772.15 | T26: 327.15 | U26: 592.35 | V26: 56.9 | W26: 265.85 | X26: 999.85 | Y26: 488.6 | Z26: 130.3 | AA26: 407.95 | AB26: 113.45 | AC26: 30.6 | AD26: 10.2 | AE26: 56.25 | AF26: 24.35 | AG26: 19.55 | AI26: 979.1 | AJ26: 327.15 | AK26: 592.35 | AL26: 56.9 | AM26: 265.85 | AN26: 999.85 | AO26: 488.6 | AP26: 130.3 | AQ26: 407.95 | AR26: 113.45 | AS26: 30.6 | AT26: 10.2 | AU26: 56.25 | AV26: 24.35 | AW26: 19.55 | BQ26: 19 | BR26: 344.3684211 | BS26: 623.5263158 | BT26: 59.89473684 | BU26: 279.8421053 | BV26: 1052.473684 | BW26: 514.3157895 | BX26: 137.1578947 | BY26: 429.4210526 | BZ26: 119.4210526 | CA26: 32.21052632 | CB26: 10.73684211 | CC26: 59.21052632 | CD26: 25.63157895 | CE26: 20.57894737 | CG26: 217.8421053 | CH26: 812.7894737 | CI26: 344.3684211 | CJ26: 623.5263158 | CK26: 59.89473684 | CL26: 279.8421053 | CM26: 1052.473684 | CN26: 514.3157895 | CO26: 137.1578947 | CP26: 429.4210526 | CQ26: 119.4210526 | CR26: 32.21052632 | CS26: 10.73684211 | CT26: 59.21052632 | CU26: 25.63157895 | CV26: 20.57894737
B27: 21 | C27: 311.5714286 | D27: 564.1428571 | E27: 54.19047619 | F27: 253.1904762 | G27: 952.2380952 | H27: 465.3333333 | I27: 124.0952381 | J27: 388.5238095 | K27: 108.047619 | L27: 29.14285714 | M27: 9.714285714 | N27: 53.57142857 | O27: 23.19047619 | P27: 18.61904762 | R27: 197.0952381 | S27: 735.3809524 | T27: 311.5714286 | U27: 564.1428571 | V27: 54.19047619 | W27: 253.1904762 | X27: 952.2380952 | Y27: 465.3333333 | Z27: 124.0952381 | AA27: 388.5238095 | AB27: 108.047619 | AC27: 29.14285714 | AD27: 9.714285714 | AE27: 53.57142857 | AF27: 23.19047619 | AG27: 18.61904762 | AI27: 932.4761905 | AJ27: 311.5714286 | AK27: 564.1428571 | AL27: 54.19047619 | AM27: 253.1904762 | AN27: 952.2380952 | AO27: 465.3333333 | AP27: 124.0952381 | AQ27: 388.5238095 | AR27: 108.047619 | AS27: 29.14285714 | AT27: 9.714285714 | AU27: 53.57142857 | AV27: 23.19047619 | AW27: 18.61904762 | BQ27: 20 | BR27: 327.15 | BS27: 592.35 | BT27: 56.9 | BU27: 265.85 | BV27: 999.85 | BW27: 488.6 | BX27: 130.3 | BY27: 407.95 | BZ27: 113.45 | CA27: 30.6 | CB27: 10.2 | CC27: 56.25 | CD27: 24.35 | CE27: 19.55 | CG27: 206.95 | CH27: 772.15 | CI27: 327.15 | CJ27: 592.35 | CK27: 56.9 | CL27: 265.85 | CM27: 999.85 | CN27: 488.6 | CO27: 130.3 | CP27: 407.95 | CQ27: 113.45 | CR27: 30.6 | CS27: 10.2 | CT27: 56.25 | CU27: 24.35 | CV27: 19.55
B28: 22 | C28: 297.4090909 | D28: 538.5 | E28: 51.72727273 | F28: 241.6818182 | G28: 908.9545455 | H28: 444.1818182 | I28: 118.4545455 | J28: 370.8636364 | K28: 103.1363636 | L28: 27.81818182 | M28: 9.272727273 | N28: 51.13636364 | O28: 22.13636364 | P28: 17.77272727 | R28: 188.1363636 | S28: 701.9545455 | T28: 297.4090909 | U28: 538.5 | V28: 51.72727273 | W28: 241.6818182 | X28: 908.9545455 | Y28: 444.1818182 | Z28: 118.4545455 | AA28: 370.8636364 | AB28: 103.1363636 | AC28: 27.81818182 | AD28: 9.272727273 | AE28: 51.13636364 | AF28: 22.13636364 | AG28: 17.77272727 | AI28: 890.0909091 | AJ28: 297.4090909 | AK28: 538.5 | AL28: 51.72727273 | AM28: 241.6818182 | AN28: 908.9545455 | AO28: 444.1818182 | AP28: 118.4545455 | AQ28: 370.8636364 | AR28: 103.1363636 | AS28: 27.81818182 | AT28: 9.272727273 | AU28: 51.13636364 | AV28: 22.13636364 | AW28: 17.77272727 | BQ28: 21 | BR28: 311.5714286 | BS28: 564.1428571 | BT28: 54.19047619 | BU28: 253.1904762 | BV28: 952.2380952 | BW28: 465.3333333 | BX28: 124.0952381 | BY28: 388.5238095 | BZ28: 108.047619 | CA28: 29.14285714 | CB28: 9.714285714 | CC28: 53.57142857 | CD28: 23.19047619 | CE28: 18.61904762 | CG28: 197.0952381 | CH28: 735.3809524 | CI28: 311.5714286 | CJ28: 564.1428571 | CK28: 54.19047619 | CL28: 253.1904762 | CM28: 952.2380952 | CN28: 465.3333333 | CO28: 124.0952381 | CP28: 388.5238095 | CQ28: 108.047619 | CR28: 29.14285714 | CS28: 9.714285714 | CT28: 53.57142857 | CU28: 23.19047619 | CV28: 18.61904762
B29: 23 | C29: 284.4782609 | D29: 515.0869565 | E29: 49.47826087 | F29: 231.173913 | G29: 869.4347826 | H29: 424.8695652 | I29: 113.3043478 | J29: 354.7391304 | K29: 98.65217391 | L29: 26.60869565 | M29: 8.869565217 | N29: 48.91304348 | O29: 21.17391304 | P29: 17 | R29: 179.9565217 | S29: 671.4347826 | T29: 284.4782609 | U29: 515.0869565 | V29: 49.47826087 | W29: 231.173913 | X29: 869.4347826 | Y29: 424.8695652 | Z29: 113.3043478 | AA29: 354.7391304 | AB29: 98.65217391 | AC29: 26.60869565 | AD29: 8.869565217 | AE29: 48.91304348 | AF29: 21.17391304 | AG29: 17 | AI29: 851.3913043 | AJ29: 284.4782609 | AK29: 515.0869565 | AL29: 49.47826087 | AM29: 231.173913 | AN29: 869.4347826 | AO29: 424.8695652 | AP29: 113.3043478 | AQ29: 354.7391304 | AR29: 98.65217391 | AS29: 26.60869565 | AT29: 8.869565217 | AU29: 48.91304348 | AV29: 21.17391304 | AW29: 17 | BQ29: 22 | BR29: 297.4090909 | BS29: 538.5 | BT29: 51.72727273 | BU29: 241.6818182 | BV29: 908.9545455 | BW29: 444.1818182 | BX29: 118.4545455 | BY29: 370.8636364 | BZ29: 103.1363636 | CA29: 27.81818182 | CB29: 9.272727273 | CC29: 51.13636364 | CD29: 22.13636364 | CE29: 17.77272727 | CG29: 188.1363636 | CH29: 701.9545455 | CI29: 297.4090909 | CJ29: 538.5 | CK29: 51.72727273 | CL29: 241.6818182 | CM29: 908.9545455 | CN29: 444.1818182 | CO29: 118.4545455 | CP29: 370.8636364 | CQ29: 103.1363636 | CR29: 27.81818182 | CS29: 9.272727273 | CT29: 51.13636364 | CU29: 22.13636364 | CV29: 17.77272727
B30: 24 | C30: 272.625 | D30: 493.625 | E30: 47.41666667 | F30: 221.5416667 | G30: 833.2083333 | H30: 407.1666667 | I30: 108.5833333 | J30: 339.9583333 | K30: 94.54166667 | L30: 25.5 | M30: 8.5 | N30: 46.875 | O30: 20.29166667 | P30: 16.29166667 | R30: 172.4583333 | S30: 643.4583333 | T30: 272.625 | U30: 493.625 | V30: 47.41666667 | W30: 221.5416667 | X30: 833.2083333 | Y30: 407.1666667 | Z30: 108.5833333 | AA30: 339.9583333 | AB30: 94.54166667 | AC30: 25.5 | AD30: 8.5 | AE30: 46.875 | AF30: 20.29166667 | AG30: 16.29166667 | AI30: 815.9166667 | AJ30: 272.625 | AK30: 493.625 | AL30: 47.41666667 | AM30: 221.5416667 | AN30: 833.2083333 | AO30: 407.1666667 | AP30: 108.5833333 | AQ30: 339.9583333 | AR30: 94.54166667 | AS30: 25.5 | AT30: 8.5 | AU30: 46.875 | AV30: 20.29166667 | AW30: 16.29166667 | BQ30: 23 | BR30: 284.4782609 | BS30: 515.0869565 | BT30: 49.47826087 | BU30: 231.173913 | BV30: 869.4347826 | BW30: 424.8695652 | BX30: 113.3043478 | BY30: 354.7391304 | BZ30: 98.65217391 | CA30: 26.60869565 | CB30: 8.869565217 | CC30: 48.91304348 | CD30: 21.17391304 | CE30: 17 | CG30: 179.9565217 | CH30: 671.4347826 | CI30: 284.4782609 | CJ30: 515.0869565 | CK30: 49.47826087 | CL30: 231.173913 | CM30: 869.4347826 | CN30: 424.8695652 | CO30: 113.3043478 | CP30: 354.7391304 | CQ30: 98.65217391 | CR30: 26.60869565 | CS30: 8.869565217 | CT30: 48.91304348 | CU30: 21.17391304 | CV30: 17
B31: 25 | C31: 261.72 | D31: 473.88 | E31: 45.52 | F31: 212.68 | G31: 799.88 | H31: 390.88 | I31: 104.24 | J31: 326.36 | K31: 90.76 | L31: 24.48 | M31: 8.16 | N31: 45 | O31: 19.48 | P31: 15.64 | R31: 165.56 | S31: 617.72 | T31: 261.72 | U31: 473.88 | V31: 45.52 | W31: 212.68 | X31: 799.88 | Y31: 390.88 | Z31: 104.24 | AA31: 326.36 | AB31: 90.76 | AC31: 24.48 | AD31: 8.16 | AE31: 45 | AF31: 19.48 | AG31: 15.64 | AI31: 783.28 | AJ31: 261.72 | AK31: 473.88 | AL31: 45.52 | AM31: 212.68 | AN31: 799.88 | AO31: 390.88 | AP31: 104.24 | AQ31: 326.36 | AR31: 90.76 | AS31: 24.48 | AT31: 8.16 | AU31: 45 | AV31: 19.48 | AW31: 15.64 | BQ31: 24 | BR31: 272.625 | BS31: 493.625 | BT31: 47.41666667 | BU31: 221.5416667 | BV31: 833.2083333 | BW31: 407.1666667 | BX31: 108.5833333 | BY31: 339.9583333 | BZ31: 94.54166667 | CA31: 25.5 | CB31: 8.5 | CC31: 46.875 | CD31: 20.29166667 | CE31: 16.29166667 | CG31: 172.4583333 | CH31: 643.4583333 | CI31: 272.625 | CJ31: 493.625 | CK31: 47.41666667 | CL31: 221.5416667 | CM31: 833.2083333 | CN31: 407.1666667 | CO31: 108.5833333 | CP31: 339.9583333 | CQ31: 94.54166667 | CR31: 25.5 | CS31: 8.5 | CT31: 46.875 | CU31: 20.29166667 | CV31: 16.29166667
B32: 26 | C32: 251.6538462 | D32: 455.6538462 | E32: 43.76923077 | F32: 204.5 | G32: 769.1153846 | H32: 375.8461538 | I32: 100.2307692 | J32: 313.8076923 | K32: 87.26923077 | L32: 23.53846154 | M32: 7.846153846 | N32: 43.26923077 | O32: 18.73076923 | P32: 15.03846154 | R32: 159.1923077 | S32: 593.9615385 | T32: 251.6538462 | U32: 455.6538462 | V32: 43.76923077 | W32: 204.5 | X32: 769.1153846 | Y32: 375.8461538 | Z32: 100.2307692 | AA32: 313.8076923 | AB32: 87.26923077 | AC32: 23.53846154 | AD32: 7.846153846 | AE32: 43.26923077 | AF32: 18.73076923 | AG32: 15.03846154 | AI32: 753.1538462 | AJ32: 251.6538462 | AK32: 455.6538462 | AL32: 43.76923077 | AM32: 204.5 | AN32: 769.1153846 | AO32: 375.8461538 | AP32: 100.2307692 | AQ32: 313.8076923 | AR32: 87.26923077 | AS32: 23.53846154 | AT32: 7.846153846 | AU32: 43.26923077 | AV32: 18.73076923 | AW32: 15.03846154 | BQ32: 25 | BR32: 261.72 | BS32: 473.88 | BT32: 45.52 | BU32: 212.68 | BV32: 799.88 | BW32: 390.88 | BX32: 104.24 | BY32: 326.36 | BZ32: 90.76 | CA32: 24.48 | CB32: 8.16 | CC32: 45 | CD32: 19.48 | CE32: 15.64 | CG32: 165.56 | CH32: 617.72 | CI32: 261.72 | CJ32: 473.88 | CK32: 45.52 | CL32: 212.68 | CM32: 799.88 | CN32: 390.88 | CO32: 104.24 | CP32: 326.36 | CQ32: 90.76 | CR32: 24.48 | CS32: 8.16 | CT32: 45 | CU32: 19.48 | CV32: 15.64
B33: 27 | C33: 242.3333333 | D33: 438.7777778 | E33: 42.14814815 | F33: 196.9259259 | G33: 740.6296296 | H33: 361.9259259 | I33: 96.51851852 | J33: 302.1851852 | K33: 84.03703704 | L33: 22.66666667 | M33: 7.555555556 | N33: 41.66666667 | O33: 18.03703704 | P33: 14.48148148 | R33: 153.2962963 | S33: 571.962963 | T33: 242.3333333 | U33: 438.7777778 | V33: 42.14814815 | W33: 196.9259259 | X33: 740.6296296 | Y33: 361.9259259 | Z33: 96.51851852 | AA33: 302.1851852 | AB33: 84.03703704 | AC33: 22.66666667 | AD33: 7.555555556 | AE33: 41.66666667 | AF33: 18.03703704 | AG33: 14.48148148 | AI33: 725.2592593 | AJ33: 242.3333333 | AK33: 438.7777778 | AL33: 42.14814815 | AM33: 196.9259259 | AN33: 740.6296296 | AO33: 361.9259259 | AP33: 96.51851852 | AQ33: 302.1851852 | AR33: 84.03703704 | AS33: 22.66666667 | AT33: 7.555555556 | AU33: 41.66666667 | AV33: 18.03703704 | AW33: 14.48148148 | BQ33: 26 | BR33: 251.6538462 | BS33: 455.6538462 | BT33: 43.76923077 | BU33: 204.5 | BV33: 769.1153846 | BW33: 375.8461538 | BX33: 100.2307692 | BY33: 313.8076923 | BZ33: 87.26923077 | CA33: 23.53846154 | CB33: 7.846153846 | CC33: 43.26923077 | CD33: 18.73076923 | CE33: 15.03846154 | CG33: 159.1923077 | CH33: 593.9615385 | CI33: 251.6538462 | CJ33: 455.6538462 | CK33: 43.76923077 | CL33: 204.5 | CM33: 769.1153846 | CN33: 375.8461538 | CO33: 100.2307692 | CP33: 313.8076923 | CQ33: 87.26923077 | CR33: 23.53846154 | CS33: 7.846153846 | CT33: 43.26923077 | CU33: 18.73076923 | CV33: 15.03846154
